Workbook

Sheet Data (hidden)
A1: 1 | B1: 2 | C1: 3 | D1: 4 | E1: 5 | F1: 6 | G1: 7 | H1: 8 | I1: 9 | J1: 10 | K1: 11 | L1: 12 | M1: 13 | N1: 14 | O1: 15 | P1: 16 | Q1: 17 | R1: 18 | S1: 19 | T1: 20 | U1: 21 | V1: 22 | W1: 23 | X1: 24 | Y1: 25 | Z1: 26 | AA1: 27 | AB1: 28 | AC1: 29 | AD1: 30 | AE1: 31 | AF1: 32 | AG1: 33 | AH1: 34 | AI1: 35 | AJ1: 36 | AK1: 37 | AL1: 38 | AM1: 39 | AN1: 40 | AO1: 41 | AP1: 42 | AQ1: 43 | AR1: 44 | AS1: 45 | AT1: 46 | AU1: 47 | AV1: 48 | AW1: 49 | AX1: 50 | AY1: 51 | AZ1: 52 | BA1: 53 | BB1: 54 | BC1: 55 | BD1: 56 | BE1: 57 | BF1: 58 | BG1: 59 | BH1: 60 | BI1: 61 | BJ1: 62 | BK1: 63 | BL1: 64 | BM1: 65 | BN1: 66 | BO1: 67 | BP1: 68 | BQ1: 69 | BR1: 70 | BS1: 71 | BT1: 72 | BU1: 73 | BV1: 74 | BW1: 75 | BX1: 76 | BY1: 77 | BZ1: 78 | CA1: 79 | CB1: 80
A2: final list | B2: School Name | C2: Phase | D2: F1 - Pri | E2: F1 -KS3 | F2: F1 - KS4 | G2: F2 - FSM Pri | H2: F2 - FSM Sec | I2: F2 - E6FSM Pri | J2: F2 - E6FSM Sec | K2: F2 - IDACI F - Pri | L2: F2 - IDACI E - Pri | M2: F2 - IDACI D - Pri | N2: F2 - IDACI C - Pri | O2: F2 - IDACI B - Pri | P2: F2 - IDACI A - Pri | Q2: F2 - IDACI F - Sec | R2: F2 - IDACI E - Sec | S2: F2 - IDACI D - Sec | T2: F2 - IDACI C - Sec | U2: F2 - IDACI B - Sec | V2: F2 - IDACI A - Sec | W2: F4 - EAL Pri | X2: F4 - EAL Sec | Y2: F6 - EYFS Pri | Z2: F6 - EYFS Sec | AA2: F7 - Lump Sum | AB2: F8 - Sparsity Pri | AC2: F8 - Sparsity Sec | AD2: F9 - ACA | AE2: F10 - Split Site | AF2: F11 - Rates | AG2: F12 - PFI | AH2: F13 - Exceptional Circumstances | AI2: MFL Rate | AJ2: SBS 20-21 | AK2: Protected Grants 20-21 | AN2: Rates - 20-21 | AO2: Pupils - Oct 19 | AP2: PFI Funding - Future Year? | AR2: Early Years - Base Rate | AS2: Early Years - QTS | AT2: Early Years - Disadvantage | AV2: SRP Des1 Pre | AW2: SRP Des2 Pre | AX2: SRP Des1 Post | AY2: SRP Des2 Post | AZ2: SRP Places Apr - Aug PRE | BA2: SRP Places Apr - Aug POST | BB2: SRP Places Sep - Mar PRE | BC2: SRP Places Sep - Mar Post | BD2: SRP actuals PRE (OCT) | BE2: SRP actuals POST (OCT) | BI2: IDACI | BJ2: Ever 6 FSM | BK2: Low Cost, high Incidence SEN | BL2: English as an additional language | BM2: Element of Lump Sum | BN2: Area Cost Adjustment-London Fringe | BO2: Minimum Per-Pupil Level Funding (MPPL) | BP2: Minimum Funding Guarantee (MFG)
A3: 2001 | B3: Horizon Primary Academy | C3: 1 | D3: 203 | E3: 0 | F3: 0 | G3: 0.4334975369 | H3: 0 | I3: 0.4682926829 | J3: 0 | K3: 0.05418719212 | L3: 0.1674876847 | M3: 0 | N3: 0.2610837438 | O3: 0.4039408867 | P3: 0 | Q3: 0 | R3: 0 | S3: 0 | T3: 0 | U3: 0 | V3: 0 | W3: 0.02312138728 | X3: 0 | Y3: 0.1856287425 | Z3: 0 | AA3: 120084 | AB3: 0 | AC3: 0 | AD3: 1.0368 | AE3: 0 | AF3: 4889.6 | AG3: 0 | AH3: 0 | AI3: 4180 | AJ3: 910719.0787 | AK3: 37994.7 | AL3: 0 | AM3: 0 | AN3: 2534.7 | AO3: 205 | AP3: 0 | AR3: 4.14 | AS3: 0 | AT3: 0 | BI3: 73791.26 | BJ3: 31677.98166 | BK3: 41291.50066 | BL3: 2583.33341 | BM3: 120084 | BO3: 0 | BP3: 0 | CD3: Recoupment Academy
A4: 2003 | B4: Oaks Primary Academy | C4: 1 | D4: 173 | E4: 0 | F4: 0 | G4: 0.3005780347 | H4: 0 | I4: 0.371257485 | J4: 0 | K4: 0.1627906977 | L4: 0.03488372093 | M4: 0.06395348837 | N4: 0.3720930233 | O4: 0.1453488372 | P4: 0 | Q4: 0 | R4: 0 | S4: 0 | T4: 0 | U4: 0 | V4: 0 | W4: 0.07638888889 | X4: 0 | Y4: 0.2279411765 | Z4: 0 | AA4: 120084 | AB4: 0 | AC4: 0 | AD4: 1 | AE4: 0 | AF4: 3891.2 | AG4: 0 | AH4: 0 | AI4: 4180 | AJ4: 774433.0343 | AK4: 30219.84 | AL4: 0 | AM4: 0 | AN4: 3746.8 | AO4: 168 | AP4: 0 | AR4: 4.14 | AS4: 0 | AT4: 0 | BI4: 52786.68535 | BJ4: 21402.54479 | BK4: 43210.40081 | BL4: 7273.556736 | BM4: 120084 | BO4: 0 | BP4: 20861.82153 | CD4: Recoupment Academy
A5: 2004 | B5: Tree Tops Primary Academy | C5: 1 | D5: 267 | E5: 0 | F5: 0 | G5: 0.5393258427 | H5: 0 | I5: 0.5443548387 | J5: 0 | K5: 0.03370786517 | L5: 0.01498127341 | M5: 0.02996254682 | N5: 0.1573033708 | O5: 0.5168539326 | P5: 0 | Q5: 0 | R5: 0 | S5: 0 | T5: 0 | U5: 0 | V5: 0 | W5: 0.09090909091 | X5: 0 | Y5: 0.3398058252 | Z5: 0 | AA5: 120084 | AB5: 0 | AC5: 0 | AD5: 1 | AE5: 0 | AF5: 6860.8 | AG5: 0 | AH5: 0 | AI5: 4180 | AJ5: 1133841.661 | AK5: 45149.88 | AL5: 0 | AM5: 0 | AN5: 6593.334 | AO5: 251 | AP5: 0 | AR5: 4.14 | AS5: 0 | AT5: 0 | BI5: 90557.95 | BJ5: 48432.5619 | BK5: 99417.19078 | BL5: 13359.46636 | BM5: 120084 | BO5: 0 | BP5: 0 | CD5: Recoupment Academy
A6: 2006 | B6: St James the Great Academy | C6: 1 | D6: 186 | E6: 0 | F6: 0 | G6: 0.3655913978 | H6: 0 | I6: 0.4108108108 | J6: 0 | K6: 0.02688172043 | L6: 0 | M6: 0.005376344086 | N6: 0.3548387097 | O6: 0.4408602151 | P6: 0 | Q6: 0 | R6: 0 | S6: 0 | T6: 0 | U6: 0 | V6: 0 | W6: 0.0127388535 | X6: 0 | Y6: 0.3 | Z6: 0 | AA6: 120084 | AB6: 0 | AC6: 0 | AD6: 1 | AE6: 0 | AF6: 7270.4 | AG6: 0 | AH6: 0 | AI6: 4180 | AJ6: 831746.4379 | AK6: 33637.56 | AL6: 0 | AM6: 0 | AN6: 7000.6 | AO6: 187 | AP6: 0 | AR6: 4.14 | AS6: 0 | AT6: 0 | BI6: 69853.56 | BJ6: 25462.37449 | BK6: 61143.966 | BL6: 1304.10879 | BM6: 120084 | BO6: 0 | BP6: 0 | CD6: Recoupment Academy
A7: 2007 | B7: Molehill Primary Academy | C7: 1 | D7: 262 | E7: 0 | F7: 0 | G7: 0.4923664122 | H7: 0 | I7: 0.5214285714 | J7: 0 | K7: 0.1755725191 | L7: 0.03435114504 | M7: 0.1297709924 | N7: 0.2251908397 | O7: 0.1564885496 | P7: 0 | Q7: 0 | R7: 0 | S7: 0 | T7: 0 | U7: 0 | V7: 0 | W7: 0.1189427313 | X7: 0 | Y7: 0.3073170732 | Z7: 0 | AA7: 120084 | AB7: 0 | AC7: 0 | AD7: 1 | AE7: 0 | AF7: 6553.6 | AG7: 0 | AH7: 0 | AI7: 4180 | AJ7: 1219359.19 | AK7: 49646.88 | AL7: 0 | AM7: 0 | AN7: 6115.024 | AO7: 276 | AP7: 0 | AR7: 4.14 | AS7: 0 | AT7: 0 | BI7: 71950.2 | BJ7: 45523.97843 | BK7: 88228.19327 | BL7: 17151.80115 | BM7: 120084 | BO7: 0 | BP7: 0 | CD7: Recoupment Academy
A8: 2008 | B8: Tiger Primary School | C8: 1 | D8: 422 | E8: 0 | F8: 0 | G8: 0.2488151659 | H8: 0 | I8: 0.25 | J8: 0 | K8: 0.2494061758 | L8: 0.06650831354 | M8: 0.04513064133 | N8: 0.135391924 | O8: 0.106888361 | P8: 0 | Q8: 0 | R8: 0 | S8: 0 | T8: 0 | U8: 0 | V8: 0 | W8: 0.05898123324 | X8: 0 | Y8: 0.3027777778 | Z8: 0 | AA8: 120084 | AB8: 0 | AC8: 0 | AD8: 1 | AE8: 0 | AF8: 7577.6 | AG8: 0 | AH8: 0 | AI8: 4180 | AJ8: 1603618.906 | AK8: 75909.36 | AL8: 0 | AM8: 0 | AN8: 7296.4 | AO8: 422 | AP8: 0 | AR8: 4.14 | AS8: 0 | AT8: 0 | BI8: 84644.39914 | BJ8: 35155.765 | BK8: 140008.9679 | BL8: 13699.25137 | BM8: 120084 | BO8: 16716.27654 | BP8: 0 | CD8: Recoupment Academy
A9: 2009 | B9: Northdown Primary School | C9: 1 | D9: 299 | E9: 0 | F9: 0 | G9: 0.5919732441 | H9: 0 | I9: 0.6138613861 | J9: 0 | K9: 0.03010033445 | L9: 0.09030100334 | M9: 0.01672240803 | N9: 0.1237458194 | O9: 0.4214046823 | P9: 0.2675585284 | Q9: 0 | R9: 0 | S9: 0 | T9: 0 | U9: 0 | V9: 0 | W9: 0.15 | X9: 0 | Y9: 0.4096385542 | Z9: 0 | AA9: 120084 | AB9: 0 | AC9: 0 | AD9: 1 | AE9: 0 | AF9: 8704 | AG9: 0 | AH9: 0 | AI9: 4180 | AJ9: 1417981.867 | AK9: 60724.4057 | AL9: 0 | AM9: 0 | AN9: 3824.4 | AO9: 307 | AP9: 0 | AR9: 4.14 | AS9: 0 | AT9: 0 | BI9: 137015.11 | BJ9: 61162.55188 | BK9: 134212.0219 | BL9: 24684.9915 | BM9: 120084 | BO9: 0 | BP9: 0 | CD9: Recoupment Academy
A10: 2010 | B10: Newlands Primary School | C10: 1 | D10: 323 | E10: 0 | F10: 0 | G10: 0.4643962848 | H10: 0 | I10: 0.4733727811 | J10: 0 | K10: 0.05882352941 | L10: 0.1919504644 | M10: 0.03715170279 | N10: 0.1764705882 | O10: 0.2910216718 | P10: 0.009287925697 | Q10: 0 | R10: 0 | S10: 0 | T10: 0 | U10: 0 | V10: 0 | W10: 0.07553956835 | X10: 0 | Y10: 0.3692307692 | Z10: 0 | AA10: 120084 | AB10: 0 | AC10: 0 | AD10: 1 | AE10: 0 | AF10: 8243.2 | AG10: 0 | AH10: 0 | AI10: 4180 | AJ10: 1481277.665 | AK10: 62238.48 | AL10: 0 | AM10: 0 | AN10: 7937.3 | AO10: 346 | AR10: 4.14 | AS10: 0 | AT10: 0 | BI10: 97067.47 | BJ10: 50950.66982 | BK10: 130683.216 | BL10: 13429.12004 | BM10: 120084 | BO10: 0 | BP10: 0 | CD10: Recoupment Academy
A11: 2011 | B11: Salmestone Primary School | C11: 1 | D11: 236 | E11: 0 | F11: 0 | G11: 0.3898305085 | H11: 0 | I11: 0.3938356164 | J11: 0 | K11: 0.3474576271 | L11: 0.1398305085 | M11: 0.05508474576 | N11: 0.1483050847 | O11: 0.1991525424 | P11: 0.08474576271 | Q11: 0 | R11: 0 | S11: 0 | T11: 0 | U11: 0 | V11: 0 | W11: 0.1201923077 | X11: 0 | Y11: 0.3668639053 | Z11: 0 | AA11: 120084 | AB11: 0 | AC11: 0 | AD11: 1 | AE11: 0 | AF11: 8448 | AG11: 0 | AH11: 0 | AI11: 4180 | AJ11: 1270019.542 | AK11: 52704.84 | AL11: 0 | AM11: 0 | AN11: 8134.5 | AO11: 293 | AR11: 4.14 | AS11: 0 | AT11: 0 | BI11: 81896.97 | BJ11: 30972.13082 | BK11: 94871.63692 | BL11: 15612.02404 | BM11: 120084 | BO11: 0 | BP11: 0 | CD11: Recoupment Academy
A12: 2013 | B12: Water Meadows Primary School | C12: 1 | D12: 99 | E12: 0 | F12: 0 | G12: 0.4444444444 | H12: 0 | I12: 0.4444444444 | J12: 0 | K12: 0.6262626263 | L12: 0.0303030303 | M12: 0.0101010101 | N12: 0 | O12: 0.08080808081 | P12: 0 | Q12: 0 | R12: 0 | S12: 0 | T12: 0 | U12: 0 | V12: 0 | W12: 0.02666666667 | X12: 0 | Y12: 0.2131147541 | Z12: 0 | AA12: 120084 | AB12: 0 | AC12: 0 | AD12: 1 | AE12: 0 | AF12: 3865.6 | AG12: 0 | AH12: 0 | AI12: 4180 | AJ12: 452600.4469 | AK12: 17988 | AL12: 0 | AM12: 0 | AN12: 3425.346 | AO12: 89 | AR12: 4.14 | AS12: 0 | AT12: 0 | BI12: 18332.77 | BJ12: 14662.12 | BK12: 23118.95066 | BL12: 1453.0296 | BM12: 120084 | BO12: 0 | BP12: 3962.356194 | CD12: Recoupment Academy
A13: 2014 | B13: St Laurence In Thanet Church of England Junior Academy | C13: 1 | D13: 203 | E13: 0 | F13: 0 | G13: 0.4876847291 | H13: 0 | I13: 0.5352112676 | J13: 0 | K13: 0.2019704433 | L13: 0.1280788177 | M13: 0.06896551724 | N13: 0.2118226601 | O13: 0.1330049261 | P13: 0.06403940887 | Q13: 0 | R13: 0 | S13: 0 | T13: 0 | U13: 0 | V13: 0 | W13: 0.01477832512 | X13: 0 | Y13: 0.2828282828 | Z13: 0 | AA13: 120084 | AB13: 0 | AC13: 0 | AD13: 1 | AE13: 0 | AF13: 4979.3 | AG13: 0 | AH13: 0 | AI13: 4180 | AJ13: 941232.9733 | AK13: 38494.32 | AL13: 0 | AM13: 0 | AN13: 4979.3 | AO13: 214 | AR13: 4.14 | AS13: 0 | AT13: 0 | BI13: 61377.72 | BJ13: 36204.73549 | BK13: 62912.69374 | BL13: 1651.17 | BM13: 120084 | BO13: 0 | BP13: 0 | CD13: Recoupment Academy
A14: 2015 | B14: Dame Janet Primary Academy | C14: 1 | D14: 374 | E14: 0 | F14: 0 | G14: 0.550802139 | H14: 0 | I14: 0.5655339806 | J14: 0 | K14: 0.05882352941 | L14: 0.1256684492 | M14: 0.2032085561 | N14: 0.1363636364 | O14: 0.1096256684 | P14: 0.256684492 | Q14: 0 | R14: 0 | S14: 0 | T14: 0 | U14: 0 | V14: 0 | W14: 0.08408408408 | X14: 0 | Y14: 0.4354354354 | Z14: 0 | AA14: 120084 | AB14: 0 | AC14: 0 | AD14: 1 | AE14: 0 | AF14: 10342.4 | AG14: 0 | AH14: 0 | AI14: 4180 | AJ14: 1769429.75 | AK14: 71952 | AL14: 0 | AM14: 0 | AN14: 9958.6 | AO14: 400 | AR14: 4.14 | AS14: 0 | AT14: 0 | BI14: 149904.42 | BJ14: 70481.38024 | BK14: 178449.2706 | BL14: 17308.3606 | BM14: 120084 | BO14: 0 | BP14: 0 | CD14: Recoupment Academy
A15: 2017 | B15: Drapers Mills Primary Academy | C15: 1 | D15: 374 | E15: 0 | F15: 0 | G15: 0.6069518717 | H15: 0 | I15: 0.6069518717 | J15: 0 | K15: 0.05080213904 | L15: 0.1470588235 | M15: 0.09090909091 | N15: 0.1818181818 | O15: 0.2379679144 | P15: 0.243315508 | Q15: 0 | R15: 0 | S15: 0 | T15: 0 | U15: 0 | V15: 0 | W15: 0.25 | X15: 0 | Y15: 0.4229390681 | Z15: 0 | AA15: 120084 | AB15: 0 | AC15: 0 | AD15: 1 | AE15: 0 | AF15: 11776 | AG15: 0 | AH15: 0 | AI15: 4180 | AJ15: 2015955.469 | AK15: 77708.16 | AL15: 0 | AM15: 0 | AN15: 11339 | AO15: 432 | AR15: 4.14 | AS15: 0 | AT15: 0 | BI15: 161392.19 | BJ15: 75643.21 | BK15: 173328.0346 | BL15: 51461.465 | BM15: 120084 | BO15: 0 | BP15: 0 | CD15: Recoupment Academy
A16: 2018 | B16: Temple Grove Academy | C16: 1 | D16: 206 | E16: 0 | F16: 0 | G16: 0.3834951456 | H16: 0 | I16: 0.3834951456 | J16: 0 | K16: 0.4611650485 | L16: 0 | M16: 0.0145631068 | N16: 0.2475728155 | O16: 0 | P16: 0 | Q16: 0 | R16: 0 | S16: 0 | T16: 0 | U16: 0 | V16: 0 | W16: 0.1581920904 | X16: 0 | Y16: 0.2944785276 | Z16: 0 | AA16: 120084 | AB16: 0 | AC16: 0 | AD16: 1 | AE16: 0 | AF16: 6689.59 | AG16: 0 | AH16: 0 | AI16: 4180 | AJ16: 887447.7846 | AK16: 37774.8 | AL16: 0 | AM16: 0 | AN16: 4359.796 | AO16: 210 | AR16: 4.14 | AS16: 0 | AT16: 0 | BI16: 44380.93 | BJ16: 26325.17 | BK16: 66472.23166 | BL16: 17935.87299 | BM16: 120084 | BO16: 0 | BP16: 0 | CD16: Recoupment Academy
A17: 2019 | B17: Chantry Community Academy | C17: 1 | D17: 408 | E17: 0 | F17: 0 | G17: 0.3676470588 | H17: 0 | I17: 0.3676470588 | J17: 0 | K17: 0.3995098039 | L17: 0.2401960784 | M17: 0.03431372549 | N17: 0.1348039216 | O17: 0.01470588235 | P17: 0 | Q17: 0 | R17: 0 | S17: 0 | T17: 0 | U17: 0 | V17: 0 | W17: 0.3154929577 | X17: 0 | Y17: 0.3496732026 | Z17: 0 | AA17: 120084 | AB17: 0 | AC17: 0 | AD17: 1 | AE17: 0 | AF17: 3865.6 | AG17: 0 | AH17: 0 | AI17: 4180 | AJ17: 1733875.698 | AK17: 72311.76 | AL17: 0 | AM17: 0 | AN17: 3223.698 | AO17: 402 | AR17: 4.14 | AS17: 0 | AT17: 0 | BI17: 93655.18 | BJ17: 49984.5 | BK17: 156329.8533 | BL17: 70846.82096 | BM17: 120084 | BO17: 0 | BP17: 14659.64142 | CD17: Recoupment Academy
A18: 2020 | B18: Christ Church Church of England Junior School, Ramsgate | C18: 1 | D18: 198 | E18: 0 | F18: 0 | G18: 0.2777777778 | H18: 0 | I18: 0.3318181818 | J18: 0 | K18: 0.196969697 | L18: 0.1767676768 | M18: 0.1262626263 | N18: 0.101010101 | O18: 0.0303030303 | P18: 0.04545454545 | Q18: 0 | R18: 0 | S18: 0 | T18: 0 | U18: 0 | V18: 0 | W18: 0.0202020202 | X18: 0 | Y18: 0.3333333333 | Z18: 0 | AA18: 120084 | AB18: 0 | AC18: 0 | AD18: 1 | AE18: 0 | AF18: 7884.8 | AG18: 0 | AH18: 0 | AI18: 4180 | AJ18: 917745.9215 | AK18: 39573.6 | AL18: 0 | AM18: 0 | AN18: 7592.2 | AO18: 220 | AR18: 4.14 | AS18: 0 | AT18: 0 | BI18: 45096.45 | BJ18: 21893.211 | BK18: 72320.82 | BL18: 2201.56 | BM18: 120084 | BO18: 0 | BP18: 0 | CD18: Recoupment Academy
A19: 2021 | B19: Kemsley Primary Academy | C19: 1 | D19: 210 | E19: 0 | F19: 0 | G19: 0.2333333333 | H19: 0 | I19: 0.2392344498 | J19: 0 | K19: 0.7714285714 | L19: 0.009523809524 | M19: 0.01428571429 | N19: 0 | O19: 0.004761904762 | P19: 0.004761904762 | Q19: 0 | R19: 0 | S19: 0 | T19: 0 | U19: 0 | V19: 0 | W19: 0.08333333333 | X19: 0 | Y19: 0.2485875706 | Z19: 0 | AA19: 120084 | AB19: 0 | AC19: 0 | AD19: 1 | AE19: 0 | AF19: 9472 | AG19: 0 | AH19: 0 | AI19: 4180 | AJ19: 866813.2213 | AK19: 37774.8 | AL19: 0 | AM19: 0 | AN19: 7888 | AO19: 210 | AR19: 4.14 | AS19: 0 | AT19: 0 | BI19: 37701.29 | BJ19: 16741.2201 | BK19: 57202.90847 | BL19: 9631.825 | BM19: 120084 | BO19: 0 | BP19: 0 | CD19: Recoupment Academy
A20: 2022 | B20: Milton Court Primary Academy | C20: 1 | D20: 196 | E20: 0 | F20: 0 | G20: 0.6020408163 | H20: 0 | I20: 0.6020408163 | J20: 0 | K20: 0.2680412371 | L20: 0.1494845361 | M20: 0.3711340206 | N20: 0.01030927835 | O20: 0 | P20: 0.005154639175 | Q20: 0 | R20: 0 | S20: 0 | T20: 0 | U20: 0 | V20: 0 | W20: 0.07228915663 | X20: 0 | Y20: 0.3496932515 | Z20: 0 | AA20: 120084 | AB20: 0 | AC20: 0 | AD20: 1 | AE20: 0 | AF20: 5836.8 | AG20: 0 | AH20: 0 | AI20: 4180 | AJ20: 875620.0431 | AK20: 34177.2 | AL20: 0 | AM20: 0 | AN20: 5620.2 | AO20: 190 | AR20: 4.14 | AS20: 0 | AT20: 0 | BI20: 50298.19691 | BJ20: 39321.14 | BK20: 75103.94135 | BL20: 7798.296867 | BM20: 120084 | BO20: 0 | BP20: 0 | CD20: Recoupment Academy
A21: 2023 | B21: Temple Ewell Church of England Primary School | C21: 1 | D21: 143 | E21: 0 | F21: 0 | G21: 0.2097902098 | H21: 0 | I21: 0.238410596 | J21: 0 | K21: 0.08391608392 | L21: 0.05594405594 | M21: 0.04895104895 | N21: 0.006993006993 | O21: 0.02097902098 | P21: 0.04895104895 | Q21: 0 | R21: 0 | S21: 0 | T21: 0 | U21: 0 | V21: 0 | W21: 0.02459016393 | X21: 0 | Y21: 0.1452991453 | Z21: 0 | AA21: 120084 | AB21: 0 | AC21: 0 | AD21: 1 | AE21: 0 | AF21: 1229 | AG21: 0 | AH21: 0 | AI21: 4180 | AJ21: 612924.3536 | AK21: 27161.88 | AL21: 0 | AM21: 0 | AN21: 1152 | AO21: 151 | AR21: 4.14 | AS21: 0 | AT21: 0 | BI21: 13749.58 | BJ21: 11360.7155 | BK21: 22767.66556 | BL21: 1935.387787 | BM21: 120084 | BO21: 0 | BP21: 0 | CD21: Recoupment Academy
A22: 2024 | B22: Copperfield Academy | C22: 1 | D22: 413 | E22: 0 | F22: 0 | G22: 0.3196125908 | H22: 0 | I22: 0.3196125908 | J22: 0 | K22: 0.2082324455 | L22: 0.1380145278 | M22: 0.09443099274 | N22: 0.009685230024 | O22: 0.07263922518 | P22: 0 | Q22: 0 | R22: 0 | S22: 0 | T22: 0 | U22: 0 | V22: 0 | W22: 0.3010752688 | X22: 0 | Y22: 0.3177842566 | Z22: 0 | AA22: 120084 | AB22: 0 | AC22: 0 | AD22: 1 | AE22: 0 | AF22: 7782.4 | AG22: 0 | AH22: 0 | AI22: 4180 | AJ22: 1700291.863 | AK22: 76089.24 | AL22: 0 | AM22: 0 | AN22: 7322.504 | AO22: 423 | AR22: 4.14 | AS22: 0 | AT22: 0 | BI22: 65375.61 | BJ22: 43986.36 | BK22: 143814.2218 | BL22: 68437.74151 | BM22: 120084 | BO22: 0 | BP22: 0 | CD22: Recoupment Academy
A23: 2025 | B23: The Wells Free School | C23: 1 | D23: 174 | E23: 0 | F23: 0 | G23: 0.1206896552 | H23: 0 | I23: 0.1352941176 | J23: 0 | K23: 0.01149425287 | L23: 0 | M23: 0 | N23: 0.005747126437 | O23: 0 | P23: 0 | Q23: 0 | R23: 0 | S23: 0 | T23: 0 | U23: 0 | V23: 0 | W23: 0.2466666667 | X23: 0 | Y23: 0.2580645161 | Z23: 0 | AA23: 120084 | AB23: 0 | AC23: 0 | AD23: 1 | AE23: 0 | AF23: 1258.4 | AG23: 0 | AH23: 0 | AI23: 4180 | AJ23: 694591.107 | AK23: 35363.7257 | AL23: 0 | AM23: 0 | AN23: 1258.4 | AO23: 172 | AR23: 4.14 | AS23: 0 | AT23: 0 | BI23: 875.61 | BJ23: 7844.626235 | BK23: 49203.60774 | BL23: 23622.7388 | BM23: 120084 | BO23: 0 | BP23: 0 | CD23: Recoupment Academy
A24: 2026 | B24: Petham Primary School | C24: 1 | D24: 114 | E24: 0 | F24: 0 | G24: 0.08771929825 | H24: 0 | I24: 0.125 | J24: 0 | K24: 0.02631578947 | L24: 0.02631578947 | M24: 0 | N24: 0.01754385965 | O24: 0.008771929825 | P24: 0.008771929825 | Q24: 0 | R24: 0 | S24: 0 | T24: 0 | U24: 0 | V24: 0 | W24: 0.0206185567 | X24: 0 | Y24: 0.1826923077 | Z24: 0 | AA24: 120084 | AB24: 21523.51923 | AC24: 0 | AD24: 1 | AE24: 0 | AF24: 3452.4 | AG24: 0 | AH24: 0 | AI24: 4180 | AJ24: 491793.9266 | AK24: 20146.56 | AL24: 0 | AM24: 0 | AN24: 3377.05 | AO24: 112 | AR24: 4.14 | AS24: 0 | AT24: 0 | BI24: 3412.37 | BJ24: 4748.5275 | BK24: 22821.5175 | BL24: 1293.700206 | BM24: 120084 | BO24: 0 | BP24: 0 | CD24: Recoupment Academy
A25: 2027 | B25: Archbishop Courtenay Primary School | C25: 1 | D25: 295 | E25: 0 | F25: 0 | G25: 0.2915254237 | H25: 0 | I25: 0.2933333333 | J25: 0 | K25: 0.05762711864 | L25: 0.04406779661 | M25: 0.01016949153 | N25: 0.003389830508 | O25: 0.213559322 | P25: 0 | Q25: 0 | R25: 0 | S25: 0 | T25: 0 | U25: 0 | V25: 0 | W25: 0.2711864407 | X25: 0 | Y25: 0.3130841121 | Z25: 0 | AA25: 120084 | AB25: 0 | AC25: 0 | AD25: 1 | AE25: 0 | AF25: 13005 | AG25: 0 | AH25: 0 | AI25: 4180 | AJ25: 1236570.21 | AK25: 53784.12 | AL25: 0 | AM25: 0 | AN25: 12983.932 | AO25: 299 | AR25: 4.14 | AS25: 0 | AT25: 0 | BI25: 38661.86 | BJ25: 28835.50267 | BK25: 101205.1124 | BL25: 44031.2 | BM25: 120084 | BO25: 0 | BP25: 0 | CD25: Recoupment Academy
A26: 2028 | B26: Cliftonville Primary School | C26: 1 | D26: 790 | E26: 0 | F26: 0 | G26: 0.4379746835 | H26: 0 | I26: 0.4661354582 | J26: 0 | K26: 0.02405063291 | L26: 0.1329113924 | M26: 0.05949367089 | N26: 0.1329113924 | O26: 0.2316455696 | P26: 0.2227848101 | Q26: 0 | R26: 0 | S26: 0 | T26: 0 | U26: 0 | V26: 0 | W26: 0.1396396396 | X26: 0 | Y26: 0.38125 | Z26: 0 | AA26: 120084 | AB26: 0 | AC26: 0 | AD26: 1 | AE26: 0 | AF26: 16793.6 | AG26: 0 | AH26: 0 | AI26: 4180 | AJ26: 3230281.05 | AK26: 152769.8057 | AL26: 0 | AM26: 0 | AN26: 13311 | AO26: 760 | AR26: 4.14 | AS26: 0 | AT26: 0 | BI26: 293629 | BJ26: 122710.9518 | BK26: 330032.2269 | BL26: 60716.4464 | BM26: 120084 | BO26: 0 | BP26: 0 | CD26: Recoupment Academy
A27: 2029 | B27: Tymberwood Academy | C27: 1 | D27: 359 | E27: 0 | F27: 0 | G27: 0.426183844 | H27: 0 | I27: 0.4381443299 | J27: 0 | K27: 0.1727019499 | L27: 0.07799442897 | M27: 0.2228412256 | N27: 0.286908078 | O27: 0.005571030641 | P27: 0 | Q27: 0 | R27: 0 | S27: 0 | T27: 0 | U27: 0 | V27: 0 | W27: 0.07476635514 | X27: 0 | Y27: 0.2996845426 | Z27: 0 | AA27: 120084 | AB27: 0 | AC27: 0 | AD27: 1 | AE27: 0 | AF27: 6629.39 | AG27: 0 | AH27: 0 | AI27: 4180 | AJ27: 1546359.962 | AK27: 68354.4 | AL27: 0 | AM27: 0 | AN27: 4318.388 | AO27: 380 | AR27: 4.14 | AS27: 0 | AT27: 0 | BI27: 100265.13 | BJ27: 52415.01778 | BK27: 117890.3339 | BL27: 14773.08486 | BM27: 120084 | BO27: 0 | BP27: 0 | CD27: Recoupment Academy
A28: 2030 | B28: Valley Invicta Primary School At Aylesford | C28: 1 | D28: 339 | E28: 0 | F28: 0 | G28: 0.1946902655 | H28: 0 | I28: 0.2053571429 | J28: 0 | K28: 0.1390532544 | L28: 0.02071005917 | M28: 0 | N28: 0.1982248521 | O28: 0.02071005917 | P28: 0 | Q28: 0 | R28: 0 | S28: 0 | T28: 0 | U28: 0 | V28: 0 | W28: 0.02265372168 | X28: 0 | Y28: 0.2121212121 | Z28: 0 | AA28: 120084 | AB28: 0 | AC28: 0 | AD28: 1 | AE28: 0 | AF28: 4531.2 | AG28: 0 | AH28: 0 | AI28: 4180 | AJ28: 1263879.15 | AK28: 60439.68 | AL28: 0 | AM28: 0 | AN28: 3879.15 | AO28: 336 | AR28: 4.14 | AS28: 0 | AT28: 0 | BI28: 45229.81127 | BJ28: 23198.16348 | BK28: 78795.82455 | BL28: 4226.781456 | BM28: 120084 | BO28: 66519.66924 | BP28: 0 | CD28: Recoupment Academy
A29: 2034 | B29: Thistle Hill Academy | C29: 1 | D29: 317 | E29: 0 | F29: 0 | G29: 0.3596214511 | H29: 0 | I29: 0.3596214511 | J29: 0 | K29: 0.6845425868 | L29: 0.01892744479 | M29: 0.02523659306 | N29: 0.02839116719 | O29: 0.1608832808 | P29: 0.02839116719 | Q29: 0 | R29: 0 | S29: 0 | T29: 0 | U29: 0 | V29: 0 | W29: 0.03610108303 | X29: 0 | Y29: 0.2703703704 | Z29: 0 | AA29: 120084 | AB29: 0 | AC29: 0 | AD29: 1 | AE29: 0 | AF29: 13004.8 | AG29: 0 | AH29: 0 | AI29: 4180 | AJ29: 1219756.198 | AK29: 55923.0857 | AL29: 0 | AM29: 0 | AN29: 13263.06 | AO29: 306 | AR29: 4.14 | AS29: 0 | AT29: 0 | BI29: 85364.44 | BJ29: 37988.22 | BK29: 93915.60581 | BL29: 6298.687004 | BM29: 120084 | BO29: 0 | BP29: 0 | CD29: Recoupment Academy
A30: 2036 | B30: Valley Invicta Primary School At Leybourne Chase | C30: 1 | D30: 201 | E30: 0 | F30: 0 | G30: 0.08955223881 | H30: 0 | I30: 0.09947643979 | J30: 0 | K30: 0.08955223881 | L30: 0.009950248756 | M30: 0 | N30: 0.04975124378 | O30: 0.01990049751 | P30: 0 | Q30: 0 | R30: 0 | S30: 0 | T30: 0 | U30: 0 | V30: 0 | W30: 0.02325581395 | X30: 0 | Y30: 0.2335329341 | Z30: 0 | AA30: 120084 | AB30: 0 | AC30: 0 | AD30: 1 | AE30: 0 | AF30: 8243.2 | AG30: 0 | AH30: 0 | AI30: 4180 | AJ30: 751857.6242 | AK30: 37943.3314 | AL30: 0 | AM30: 0 | AN30: 7937.3 | AO30: 194 | AR30: 4.14 | AS30: 0 | AT30: 0 | BI30: 10747.48 | BJ30: 6662.85534 | BK30: 51435.57503 | BL30: 2572.753256 | BM30: 120084 | BO30: 18664.40637 | BP30: 0 | CD30: Recoupment Academy
A31: 2037 | B31: Valley Invicta Primary School at Holborough Lakes | C31: 1 | D31: 199 | E31: 0 | F31: 0 | G31: 0.135678392 | H31: 0 | I31: 0.1639344262 | J31: 0 | K31: 0.6984924623 | L31: 0.1608040201 | M31: 0 | N31: 0 | O31: 0.005025125628 | P31: 0 | Q31: 0 | R31: 0 | S31: 0 | T31: 0 | U31: 0 | V31: 0 | W31: 0.07692307692 | X31: 0 | Y31: 0.2222222222 | Z31: 0 | AA31: 120084 | AB31: 0 | AC31: 0 | AD31: 1 | AE31: 0 | AF31: 9420.8 | AG31: 0 | AH31: 0 | AI31: 4180 | AJ31: 767458.9972 | AK31: 36929.8114 | AL31: 0 | AM31: 0 | AN31: 9071.2 | AO31: 183 | AR31: 4.14 | AS31: 0 | AT31: 0 | BI31: 38706.94 | BJ31: 10870.9459 | BK31: 48457.38444 | BL31: 8425.200769 | BM31: 120084 | BO31: 0 | BP31: 3511.837857 | CD31: Recoupment Academy
A32: 2038 | B32: Valley Invicta Primary School At Kings Hill | C32: 1 | D32: 196 | E32: 0 | F32: 0 | G32: 0.09183673469 | H32: 0 | I32: 0.09183673469 | J32: 0 | K32: 0.09183673469 | L32: 0.01530612245 | M32: 0 | N32: 0.04591836735 | O32: 0 | P32: 0 | Q32: 0 | R32: 0 | S32: 0 | T32: 0 | U32: 0 | V32: 0 | W32: 0.06626506024 | X32: 0 | Y32: 0.2195121951 | Z32: 0 | AA32: 120084 | AB32: 0 | AC32: 0 | AD32: 1 | AE32: 0 | AF32: 3891.2 | AG32: 0 | AH32: 0 | AI32: 4180 | AJ32: 684186.1482 | AK32: 38718.6 | AL32: 0 | AM32: 0 | AN32: 3746.8 | AO32: 175 | AR32: 4.14 | AS32: 0 | AT32: 0 | BI32: 8661.03 | BJ32: 5998.14 | BK32: 47144.8361 | BL32: 7148.438795 | BM32: 120084 | BO32: 15696.47511 | BP32: 0 | CD32: Recoupment Academy
A33: 2039 | B33: Martello Primary | C33: 1 | D33: 155 | E33: 0 | F33: 0 | G33: 0.5419354839 | H33: 0 | I33: 0.5419354839 | J33: 0 | K33: 0.1032258065 | L33: 0.1096774194 | M33: 0.09677419355 | N33: 0.09032258065 | O33: 0.464516129 | P33: 0.05806451613 | Q33: 0 | R33: 0 | S33: 0 | T33: 0 | U33: 0 | V33: 0 | W33: 0.1102941176 | X33: 0 | Y33: 0.375 | Z33: 0 | AA33: 120084 | AB33: 0 | AC33: 0 | AD33: 1 | AE33: 0 | AF33: 8908.8 | AG33: 0 | AH33: 0 | AI33: 4180 | AJ33: 733403.4554 | AK33: 27161.88 | AL33: 0 | AM33: 0 | AN33: 8578.2 | AO33: 151 | AR33: 4.14 | AS33: 0 | AT33: 0 | BI33: 60061.78 | BJ33: 27991.32 | BK33: 63691.63125 | BL33: 9409.240809 | BM33: 120084 | BO33: 0 | BP33: 0 | CD33: Recoupment Academy
A34: 2041 | B34: The Holy Family Catholic Primary School | C34: 1 | D34: 185 | E34: 0 | F34: 0 | G34: 0.372972973 | H34: 0 | I34: 0.4391534392 | J34: 0 | K34: 0.02702702703 | L34: 0.01081081081 | M34: 0.07567567568 | N34: 0.2540540541 | O34: 0.3405405405 | P34: 0 | Q34: 0 | R34: 0 | S34: 0 | T34: 0 | U34: 0 | V34: 0 | W34: 0.075 | X34: 0 | Y34: 0.3734177215 | Z34: 0 | AA34: 120084 | AB34: 0 | AC34: 0 | AD34: 1 | AE34: 0 | AF34: 3928.96 | AG34: 0 | AH34: 0 | AI34: 4180 | AJ34: 829279.9632 | AK34: 33277.8 | AL34: 0 | AM34: 0 | AN34: 535.398 | AO34: 185 | AR34: 4.14 | AS34: 0 | AT34: 0 | BI34: 58215.53 | BJ34: 27072.7336 | BK34: 75698.28829 | BL34: 7636.66125 | BM34: 120084 | BO34: 0 | BP34: 0 | CD34: Recoupment Academy
A35: 2043 | B35: Jubilee Primary School | C35: 1 | D35: 261 | E35: 0 | F35: 0 | G35: 0.2298850575 | H35: 0 | I35: 0.2298850575 | J35: 0 | K35: 0.09578544061 | L35: 0.1379310345 | M35: 0.007662835249 | N35: 0.007662835249 | O35: 0.030651341 | P35: 0.007662835249 | Q35: 0 | R35: 0 | S35: 0 | T35: 0 | U35: 0 | V35: 0 | W35: 0.05825242718 | X35: 0 | Y35: 0.2435233161 | Z35: 0 | AA35: 120084 | AB35: 0 | AC35: 0 | AD35: 1 | AE35: 0 | AF35: 4736 | AG35: 0 | AH35: 0 | AI35: 4180 | AJ35: 827235.2401 | AK35: 41005.3886 | AL35: 0 | AM35: 0 | AN35: 4153.214 | AO35: 210 | AR35: 4.14 | AS35: 0 | AT35: 0 | BI35: 21499.93 | BJ35: 19993.8 | BK35: 69646.68699 | BL35: 8368.065437 | BM35: 120084 | BO35: 16450.94757 | BP35: 0 | CD35: Recoupment Academy
A36: 2044 | B36: Loose Primary School | C36: 1 | D36: 655 | E36: 0 | F36: 0 | G36: 0.09007633588 | H36: 0 | I36: 0.09465648855 | J36: 0 | K36: 0.1954198473 | L36: 0.007633587786 | M36: 0.003053435115 | N36: 0.03969465649 | O36: 0.0320610687 | P36: 0 | Q36: 0 | R36: 0 | S36: 0 | T36: 0 | U36: 0 | V36: 0 | W36: 0.03185840708 | X36: 0 | Y36: 0.1982142857 | Z36: 0 | AA36: 120084 | AB36: 0 | AC36: 0 | AD36: 1 | AE36: 0 | AF36: 11980.8 | AG36: 0 | AH36: 0 | AI36: 4180 | AJ36: 2470450.478 | AK36: 118181.16 | AL36: 0 | AM36: 0 | AN36: 6700.4778 | AO36: 657 | AR36: 4.14 | AS36: 0 | AT36: 0 | BI36: 51220.67 | BJ36: 20660.26 | BK36: 142264.2104 | BL36: 11485.12938 | BM36: 120084 | BO36: 339000.5002 | BP36: 0 | CD36: Recoupment Academy
A37: 2045 | B37: Skinners' Kent Primary School | C37: 1 | D37: 210 | E37: 0 | F37: 0 | G37: 0.1238095238 | H37: 0 | I37: 0.1436464088 | J37: 0 | K37: 0.2009569378 | L37: 0.004784688995 | M37: 0.01435406699 | N37: 0.05741626794 | O37: 0 | P37: 0 | Q37: 0 | R37: 0 | S37: 0 | T37: 0 | U37: 0 | V37: 0 | W37: 0.1055555556 | X37: 0 | Y37: 0.2456140351 | Z37: 0 | AA37: 120084 | AB37: 0 | AC37: 0 | AD37: 1 | AE37: 0 | AF37: 10854.4 | AG37: 0 | AH37: 0 | AI37: 4180 | AJ37: 779368.0785 | AK37: 32798.3486 | AL37: 0 | AM37: 0 | AN37: 10882.406 | AO37: 197.6666667 | AR37: 4.14 | AS37: 0 | AT37: 0 | BI37: 15947.00813 | BJ37: 10052.13149 | BK37: 56518.66316 | BL37: 12200.31167 | BM37: 120084 | BO37: 1463.86555 | BP37: 0 | CD37: Recoupment Academy
A38: 2048 | B38: Reculver Church of England Primary School | C38: 1 | D38: 503 | E38: 0 | F38: 0 | G38: 0.1829025845 | H38: 0 | I38: 0.2004219409 | J38: 0 | K38: 0.04373757455 | L38: 0.02982107356 | M38: 0.02385685885 | N38: 0.01590457256 | O38: 0.01590457256 | P38: 0.003976143141 | Q38: 0 | R38: 0 | S38: 0 | T38: 0 | U38: 0 | V38: 0 | W38: 0.007058823529 | X38: 0 | Y38: 0.2912844037 | Z38: 0 | AA38: 120084 | AB38: 0 | AC38: 0 | AD38: 1 | AE38: 0 | AF38: 12595 | AG38: 0 | AH38: 0 | AI38: 4180 | AJ38: 1797127.8 | AK38: 85622.88 | AL38: 0 | AM38: 0 | AN38: 12127.8 | AO38: 476 | AR38: 4.14 | AS38: 0 | AT38: 0 | BI38: 22165.46 | BJ38: 33593.6615 | BK38: 160547.8976 | BL38: 1954.208259 | BM38: 120084 | BO38: 165980.8226 | BP38: 0 | CD38: Recoupment Academy
A39: 2051 | B39: St Mary of Charity CofE (Aided) Primary School | C39: 1 | D39: 206 | E39: 0 | F39: 0 | G39: 0.2669902913 | H39: 0 | I39: 0.3221153846 | J39: 0 | K39: 0.2475728155 | L39: 0.359223301 | M39: 0.02912621359 | N39: 0 | O39: 0.09708737864 | P39: 0 | Q39: 0 | R39: 0 | S39: 0 | T39: 0 | U39: 0 | V39: 0 | W39: 0.03977272727 | X39: 0 | Y39: 0.2678571429 | Z39: 0 | AA39: 120084 | AB39: 0 | AC39: 0 | AD39: 1 | AE39: 0 | AF39: 5427.2 | AG39: 0 | AH39: 0 | AI39: 4180 | AJ39: 871347.0435 | AK39: 36695.52 | AL39: 0 | AM39: 0 | AN39: 5225.8 | AO39: 204 | AR39: 4.14 | AS39: 0 | AT39: 0 | BI39: 42194.31 | BJ39: 22111.73298 | BK39: 60463.02321 | BL39: 4509.445341 | BM39: 120084 | BO39: 0 | BP39: 2569.515657 | CD39: Recoupment Academy
A40: 2052 | B40: Kennington Church of England Academy | C40: 1 | D40: 352 | E40: 0 | F40: 0 | G40: 0.2471590909 | H40: 0 | I40: 0.2881355932 | J40: 0 | K40: 0.01428571429 | L40: 0.09714285714 | M40: 0.1142857143 | N40: 0.1114285714 | O40: 0.01714285714 | P40: 0 | Q40: 0 | R40: 0 | S40: 0 | T40: 0 | U40: 0 | V40: 0 | W40: 0.01994301994 | X40: 0 | Y40: 0.2342342342 | Z40: 0 | AA40: 120084 | AB40: 0 | AC40: 0 | AD40: 1 | AE40: 0 | AF40: 5990 | AG40: 0 | AH40: 0 | AI40: 4180 | AJ40: 1349366.886 | AK40: 64217.16 | AL40: 0 | AM40: 0 | AN40: 5768.1 | AO40: 357 | AR40: 4.14 | AS40: 0 | AT40: 0 | BI40: 46818.55451 | BJ40: 33797.42915 | BK40: 90346.73009 | BL40: 3863.706439 | BM40: 120084 | BO40: 47605.8998 | BP40: 0 | CD40: Recoupment Academy
A41: 2054 | B41: St Edward's Catholic Primary School | C41: 1 | D41: 189 | E41: 0 | F41: 0 | G41: 0.4444444444 | H41: 0 | I41: 0.4444444444 | J41: 0 | K41: 0.04278074866 | L41: 0.02139037433 | M41: 0 | N41: 0.128342246 | O41: 0.4064171123 | P41: 0.385026738 | Q41: 0 | R41: 0 | S41: 0 | T41: 0 | U41: 0 | V41: 0 | W41: 0.1011904762 | X41: 0 | Y41: 0.3167701863 | Z41: 0 | AA41: 120084 | AB41: 0 | AC41: 0 | AD41: 1 | AE41: 0 | AF41: 4838.4 | AG41: 0 | AH41: 0 | AI41: 4180 | AJ41: 966692.5651 | AK41: 37674.0343 | AL41: 0 | AM41: 0 | AN41: 4658.85 | AO41: 208 | AR41: 4.14 | AS41: 0 | AT41: 0 | BI41: 95253.37219 | BJ41: 27991.32 | BK41: 65603.27348 | BL41: 10526.20875 | BM41: 120084 | BO41: 0 | BP41: 0 | CD41: Recoupment Academy
A42: 2055 | B42: Lansdowne Primary School | C42: 1 | D42: 401 | E42: 0 | F42: 0 | G42: 0.2718204489 | H42: 0 | I42: 0.2773722628 | J42: 0 | K42: 0.04738154613 | L42: 0.4463840399 | M42: 0.08728179551 | N42: 0.002493765586 | O42: 0.004987531172 | P42: 0.1072319202 | Q42: 0 | R42: 0 | S42: 0 | T42: 0 | U42: 0 | V42: 0 | W42: 0.125 | X42: 0 | Y42: 0.2507739938 | Z42: 0 | AA42: 120084 | AB42: 0 | AC42: 0 | AD42: 1 | AE42: 0 | AF42: 4608 | AG42: 0 | AH42: 0 | AI42: 4180 | AJ42: 1621099.433 | AK42: 74470.32 | AL42: 0 | AM42: 0 | AN42: 5173.938 | AO42: 414 | AR42: 4.14 | AS42: 0 | AT42: 0 | BI42: 93094.68 | BJ42: 37063.93241 | BK42: 110191.0383 | BL42: 27588.29875 | BM42: 120084 | BO42: 0 | BP42: 0 | CD42: Recoupment Academy
A43: 2058 | B43: Charlton Church of England Primary School | C43: 1 | D43: 203 | E43: 0 | F43: 0 | G43: 0.2266009852 | H43: 0 | I43: 0.2266009852 | J43: 0 | K43: 0.1231527094 | L43: 0.2167487685 | M43: 0.2709359606 | N43: 0.05418719212 | O43: 0.04433497537 | P43: 0.01477832512 | Q43: 0 | R43: 0 | S43: 0 | T43: 0 | U43: 0 | V43: 0 | W43: 0.06936416185 | X43: 0 | Y43: 0.1913580247 | Z43: 0 | AA43: 120084 | AB43: 0 | AC43: 0 | AD43: 1 | AE43: 0 | AF43: 2304 | AG43: 0 | AH43: 0 | AI43: 4180 | AJ43: 845001.3031 | AK43: 36695.52 | AL43: 0 | AM43: 0 | AN43: 2218.5 | AO43: 204 | AR43: 4.14 | AS43: 0 | AT43: 0 | BI43: 50430.29 | BJ43: 15328.58 | BK43: 42565.92969 | BL43: 7750.000231 | BM43: 120084 | BO43: 0 | BP43: 0 | CD43: Recoupment Academy
A44: 2059 | B44: Lydd Primary School | C44: 1 | D44: 257 | E44: 0 | F44: 0 | G44: 0.420233463 | H44: 0 | I44: 0.420233463 | J44: 0 | K44: 0.4630350195 | L44: 0.01556420233 | M44: 0.0233463035 | N44: 0.4474708171 | O44: 0 | P44: 0 | Q44: 0 | R44: 0 | S44: 0 | T44: 0 | U44: 0 | V44: 0 | W44: 0 | X44: 0 | Y44: 0.2868852459 | Z44: 0 | AA44: 120084 | AB44: 0 | AC44: 0 | AD44: 1 | AE44: 0 | AF44: 5493.6 | AG44: 0 | AH44: 0 | AI44: 4180 | AJ44: 1062772.583 | AK44: 46588.92 | AL44: 0 | AM44: 0 | AN44: 5115.69 | AO44: 259 | AR44: 4.14 | AS44: 0 | AT44: 0 | BI44: 80315.96 | BJ44: 35988.84 | BK44: 80790.5832 | BL44: 0 | BM44: 120084 | BO44: 0 | BP44: 0 | CD44: Recoupment Academy
A45: 2060 | B45: Beaver Green Primary School | C45: 1 | D45: 409 | E45: 0 | F45: 0 | G45: 0.4278728606 | H45: 0 | I45: 0.4285714286 | J45: 0 | K45: 0.04422604423 | L45: 0.08845208845 | M45: 0.06633906634 | N45: 0.002457002457 | O45: 0.5257985258 | P45: 0 | Q45: 0 | R45: 0 | S45: 0 | T45: 0 | U45: 0 | V45: 0 | W45: 0.06779661017 | X45: 0 | Y45: 0.2964071856 | Z45: 0 | AA45: 120084 | AB45: 0 | AC45: 0 | AD45: 1 | AE45: 0 | AF45: 10956.8 | AG45: 0 | AH45: 0 | AI45: 4180 | AJ45: 1673214.744 | AK45: 73031.28 | AL45: 0 | AM45: 0 | AN45: 10550.2 | AO45: 406 | AR45: 4.14 | AS45: 0 | AT45: 0 | BI45: 127104.4778 | BJ45: 58410.45857 | BK45: 132840.7876 | BL45: 15261.66169 | BM45: 120084 | BO45: 0 | BP45: 0 | CD45: Recoupment Academy
A46: 2061 | B46: Finberry Primary School | C46: 1 | D46: 219 | E46: 0 | F46: 0 | G46: 0.2511415525 | H46: 0 | I46: 0.2525252525 | J46: 0 | K46: 0.03652968037 | L46: 0.04566210046 | M46: 0.009132420091 | N46: 0.009132420091 | O46: 0.009132420091 | P46: 0 | Q46: 0 | R46: 0 | S46: 0 | T46: 0 | U46: 0 | V46: 0 | W46: 0.0350877193 | X46: 0 | Y46: 0.2977099237 | Z46: 0 | AA46: 120084 | AB46: 0 | AC46: 0 | AD46: 1 | AE46: 0 | AF46: 9881.6 | AG46: 0 | AH46: 0 | AI46: 4180 | AJ46: 815075.8927 | AK46: 36830.88 | AL46: 0 | AM46: 0 | AN46: 9514.9 | AO46: 201 | AR46: 4.14 | AS46: 0 | AT46: 0 | BI46: 6984.86 | BJ46: 18428.62879 | BK46: 71442.53107 | BL46: 4229.312632 | BM46: 120084 | BO46: 0 | BP46: 0 | CD46: Recoupment Academy
A47: 2062 | B47: Greenlands Primary School | C47: 1 | D47: 179 | E47: 0 | F47: 0 | G47: 0.3519553073 | H47: 0 | I47: 0.3519553073 | J47: 0 | K47: 0.07865168539 | L47: 0.2865168539 | M47: 0.01685393258 | N47: 0.005617977528 | O47: 0.03370786517 | P47: 0 | Q47: 0 | R47: 0 | S47: 0 | T47: 0 | U47: 0 | V47: 0 | W47: 0.07142857143 | X47: 0 | Y47: 0.323943662 | Z47: 0 | AA47: 120084 | AB47: 0 | AC47: 0 | AD47: 1.0368 | AE47: 0 | AF47: 3174.4 | AG47: 0 | AH47: 0 | AI47: 4180 | AJ47: 818905.3461 | AK47: 33731.88 | AL47: 0 | AM47: 0 | AN47: 2681.8 | AO47: 182 | AR47: 4.14 | AS47: 0 | AT47: 0 | BI47: 20926.34697 | BJ47: 20993.49 | BK47: 63539.22662 | BL47: 7037.129286 | BM47: 120084 | BO47: 0 | BP47: 0 | CD47: Recoupment Academy
A48: 2063 | B48: Istead Rise Primary School | C48: 1 | D48: 258 | E48: 0 | F48: 0 | G48: 0.2403100775 | H48: 0 | I48: 0.2534722222 | J48: 0 | K48: 0.05426356589 | L48: 0.1124031008 | M48: 0.03875968992 | N48: 0.07751937984 | O48: 0.007751937984 | P48: 0 | Q48: 0 | R48: 0 | S48: 0 | T48: 0 | U48: 0 | V48: 0 | W48: 0.01315789474 | X48: 0 | Y48: 0.1880733945 | Z48: 0 | AA48: 120084 | AB48: 0 | AC48: 0 | AD48: 1 | AE48: 0 | AF48: 5529.6 | AG48: 0 | AH48: 0 | AI48: 4180 | AJ48: 1094549.381 | AK48: 51805.44 | AL48: 0 | AM48: 0 | AN48: 4744.702 | AO48: 288 | AR48: 4.14 | AS48: 0 | AT48: 0 | BI48: 24517.08 | BJ48: 21791.85354 | BK48: 53169.97734 | BL48: 1868.429211 | BM48: 120084 | BO48: 30430.95991 | BP48: 0 | CD48: Recoupment Academy
A49: 2064 | B49: Ramsgate Arts Primary School | C49: 1 | D49: 297 | E49: 0 | F49: 0 | G49: 0.3063973064 | H49: 0 | I49: 0.3063973064 | J49: 0 | K49: 0.1144781145 | L49: 0.1548821549 | M49: 0.1548821549 | N49: 0.09427609428 | O49: 0.1212121212 | P49: 0.1212121212 | Q49: 0 | R49: 0 | S49: 0 | T49: 0 | U49: 0 | V49: 0 | W49: 0.04237288136 | X49: 0 | Y49: 0.2177777778 | Z49: 0 | AA49: 120084 | AB49: 0 | AC49: 0 | AD49: 1 | AE49: 0 | AF49: 12288 | AG49: 0 | AH49: 0 | AI49: 4180 | AJ49: 1036918.309 | AK49: 46150.3029 | AL49: 0 | AM49: 0 | AN49: 11832 | AO49: 251 | AR49: 4.14 | AS49: 0 | AT49: 0 | BI49: 90072.76 | BJ49: 30323.93 | BK49: 70874.4036 | BL49: 6926.51822 | BM49: 120084 | BO49: 0 | BP49: 0 | CD49: Recoupment Academy
A50: 2069 | B50: Dartford Primary Academy | C50: 1 | D50: 621 | E50: 0 | F50: 0 | G50: 0.1626409018 | H50: 0 | I50: 0.1878980892 | J50: 0 | K50: 0.06763285024 | L50: 0.01771336554 | M50: 0.03381642512 | N50: 0.009661835749 | O50: 0.08695652174 | P50: 0 | Q50: 0 | R50: 0 | S50: 0 | T50: 0 | U50: 0 | V50: 0 | W50: 0.1609848485 | X50: 0 | Y50: 0.2602739726 | Z50: 0 | AA50: 120084 | AB50: 0 | AC50: 0 | AD50: 1.0368 | AE50: 33000 | AF50: 9395.2 | AG50: 0 | AH50: 0 | AI50: 4180 | AJ50: 2391817.275 | AK50: 116393.52 | AL50: 0 | AM50: 0 | AN50: 1090 | AO50: 628 | AR50: 4.14 | AS50: 0 | AT50: 0 | BI50: 48854.05 | BJ50: 38882.84704 | BK50: 177109.4552 | BL50: 55023.36392 | BM50: 120084 | BO50: 99886.58433 | BP50: 0 | CD50: Recoupment Academy
A51: 2073 | B51: Langley Park Primary Academy | C51: 1 | D51: 355 | E51: 0 | F51: 0 | G51: 0.138028169 | H51: 0 | I51: 0.138028169 | J51: 0 | K51: 0.04273504274 | L51: 0.002849002849 | M51: 0.03418803419 | N51: 0.1623931624 | O51: 0.1566951567 | P51: 0 | Q51: 0 | R51: 0 | S51: 0 | T51: 0 | U51: 0 | V51: 0 | W51: 0.1050847458 | X51: 0 | Y51: 0.2006920415 | Z51: 0 | AA51: 120084 | AB51: 0 | AC51: 0 | AD51: 1 | AE51: 0 | AF51: 10035.2 | AG51: 0 | AH51: 0 | AI51: 4180 | AJ51: 1229309.356 | AK51: 52165.2 | AL51: 0 | AM51: 0 | AN51: 9662.8 | AO51: 325 | AR51: 4.14 | AS51: 0 | AT51: 0 | BI51: 60619.76966 | BJ51: 16328.27 | BK51: 78068.87301 | BL51: 20532.34559 | BM51: 120084 | BO51: 67635.71174 | BP51: 0 | CD51: Recoupment Academy
A52: 2076 | B52: Cherry Orchard Primary Academy | C52: 1 | D52: 379.25 | E52: 0 | F52: 0 | G52: 0.128742515 | H52: 0 | I52: 0.128742515 | J52: 0 | K52: 0.1347305389 | L52: 0.05988023952 | M52: 0.005988023952 | N52: 0.008982035928 | O52: 0.0628742515 | P52: 0 | Q52: 0 | R52: 0 | S52: 0 | T52: 0 | U52: 0 | V52: 0 | W52: 0.1618705036 | X52: 0 | Y52: 0.2674418605 | Z52: 0 | AA52: 120084 | AB52: 0 | AC52: 0 | AD52: 1.0368 | AE52: 0 | AF52: 12697.6 | AG52: 0 | AH52: 0 | AI52: 4180 | AJ52: 1230542.056 | AK52: 46520.34 | AL52: 0 | AM52: 0 | AN52: 12226.4 | AO52: 310 | AR52: 4.14 | AS52: 0 | AT52: 0 | BI52: 30684.94718 | BJ52: 16270.15429 | BK52: 111141.0206 | BL52: 33788.10553 | BM52: 120084 | BO52: 22259.60704 | BP52: 0 | CD52: Recoupment Academy
A53: 2077 | B53: Westgate Primary School | C53: 1 | D53: 235 | E53: 0 | F53: 0 | G53: 0.1446808511 | H53: 0 | I53: 0.2008547009 | J53: 0 | K53: 0.1111111111 | L53: 0 | M53: 0.01709401709 | N53: 0.235042735 | O53: 0.04700854701 | P53: 0 | Q53: 0 | R53: 0 | S53: 0 | T53: 0 | U53: 0 | V53: 0 | W53: 0.2341463415 | X53: 0 | Y53: 0.2324324324 | Z53: 0 | AA53: 120084 | AB53: 0 | AC53: 0 | AD53: 1.0368 | AE53: 0 | AF53: 6297.6 | AG53: 0 | AH53: 0 | AI53: 4180 | AJ53: 1008858.021 | AK53: 43925.58 | AL53: 0 | AM53: 0 | AN53: 6063.9 | AO53: 237 | AR53: 4.14 | AS53: 0 | AT53: 0 | BI53: 37113.67051 | BJ53: 15728.74081 | BK53: 59852.73432 | BL53: 30284.87415 | BM53: 120084 | BO53: 0 | BP53: 893.1606411 | CD53: Recoupment Academy
A54: 2078 | B54: St Nicholas Church of England Primary Academy | C54: 1 | D54: 344 | E54: 0 | F54: 0 | G54: 0.3052325581 | H54: 0 | I54: 0.348973607 | J54: 0 | K54: 0.1802325581 | L54: 0.02325581395 | M54: 0.3284883721 | N54: 0.05813953488 | O54: 0 | P54: 0 | Q54: 0 | R54: 0 | S54: 0 | T54: 0 | U54: 0 | V54: 0 | W54: 0.01355932203 | X54: 0 | Y54: 0.2543554007 | Z54: 0 | AA54: 120084 | AB54: 0 | AC54: 0 | AD54: 1 | AE54: 0 | AF54: 7219 | AG54: 0 | AH54: 0 | AI54: 4180 | AJ54: 1306348.715 | AK54: 60439.68 | AL54: 0 | AM54: 0 | AN54: 6951.3 | AO54: 336 | AR54: 4.14 | AS54: 0 | AT54: 0 | BI54: 70689.71 | BJ54: 40003.23543 | BK54: 95877.96599 | BL54: 2567.242847 | BM54: 120084 | BO54: 0 | BP54: 0 | CD54: Recoupment Academy
A55: 2080 | B55: Barming Primary School | C55: 1 | D55: 410 | E55: 0 | F55: 0 | G55: 0.212195122 | H55: 0 | I55: 0.212195122 | J55: 0 | K55: 0.1133004926 | L55: 0.1502463054 | M55: 0 | N55: 0.009852216749 | O55: 0.007389162562 | P55: 0 | Q55: 0 | R55: 0 | S55: 0 | T55: 0 | U55: 0 | V55: 0 | W55: 0.06779661017 | X55: 0 | Y55: 0.2507374631 | Z55: 0 | AA55: 120084 | AB55: 0 | AC55: 0 | AD55: 1 | AE55: 0 | AF55: 7560 | AG55: 0 | AH55: 0 | AI55: 4180 | AJ55: 1499895 | AK55: 71592.24 | AL55: 0 | AM55: 0 | AN55: 7395 | AO55: 398 | AR55: 4.14 | AS55: 0 | AT55: 0 | BI55: 29260.57906 | BJ55: 28991.01 | BK55: 112647.7419 | BL55: 15298.97627 | BM55: 120084 | BO55: 99270.15278 | BP55: 0 | CD55: Recoupment Academy
A56: 2081 | B56: Brenzett Church of England Primary School | C56: 1 | D56: 95 | E56: 0 | F56: 0 | G56: 0.2842105263 | H56: 0 | I56: 0.3580246914 | J56: 0 | K56: 0.08421052632 | L56: 0.02105263158 | M56: 0.5263157895 | N56: 0.07368421053 | O56: 0.03157894737 | P56: 0 | Q56: 0 | R56: 0 | S56: 0 | T56: 0 | U56: 0 | V56: 0 | W56: 0 | X56: 0 | Y56: 0.3333333333 | Z56: 0 | AA56: 120084 | AB56: 0 | AC56: 0 | AD56: 1 | AE56: 0 | AF56: 3891 | AG56: 0 | AH56: 0 | AI56: 4180 | AJ56: 412740.6564 | AK56: 17988 | AL56: 0 | AM56: 0 | AN56: 3746.8 | AO56: 76 | AR56: 4.14 | AS56: 0 | AT56: 0 | BI56: 27299.22 | BJ56: 11333.93395 | BK56: 34699.38333 | BL56: 0 | BM56: 120084 | BO56: 0 | BP56: 5928.104819 | CD56: Recoupment Academy
A57: 2085 | B57: Royal Rise Primary School | C57: 1 | D57: 176 | E57: 0 | F57: 0 | G57: 0.3295454545 | H57: 0 | I57: 0.3450292398 | J57: 0 | K57: 0.2784090909 | L57: 0.01136363636 | M57: 0.3465909091 | N57: 0 | O57: 0 | P57: 0 | Q57: 0 | R57: 0 | S57: 0 | T57: 0 | U57: 0 | V57: 0 | W57: 0.1232876712 | X57: 0 | Y57: 0.265625 | Z57: 0 | AA57: 120084 | AB57: 0 | AC57: 0 | AD57: 1 | AE57: 0 | AF57: 4812.8 | AG57: 0 | AH57: 0 | AI57: 4180 | AJ57: 737530.4208 | AK57: 35998.8343 | AL57: 0 | AM57: 0 | AN57: 4424.028 | AO57: 171 | AR57: 4.14 | AS57: 0 | AT57: 0 | BI57: 36090.4 | BJ57: 20235.44047 | BK57: 51227.2475 | BL57: 11942.70904 | BM57: 120084 | BO57: 0 | BP57: 0 | CD57: Recoupment Academy
A58: 2086 | B58: Bishop Chavasse Primary School | C58: 1 | D58: 254.9166667 | E58: 0 | F58: 0 | G58: 0.1889400922 | H58: 0 | I58: 0.1889400922 | J58: 0 | K58: 0.288372093 | L58: 0.004651162791 | M58: 0.2558139535 | N58: 0.009302325581 | O58: 0 | P58: 0 | Q58: 0 | R58: 0 | S58: 0 | T58: 0 | U58: 0 | V58: 0 | W58: 0.0253164557 | X58: 0 | Y58: 0.2115384615 | Z58: 0 | AA58: 120084 | AB58: 0 | AC58: 0 | AD58: 1 | AE58: 0 | AF58: 5734.4 | AG58: 0 | AH58: 0 | AI58: 4180 | AJ58: 757261.2744 | AK58: 34849.1829 | AL58: 0 | AM58: 0 | AN58: 0 | AO58: 194.1666667 | AR58: 4.14 | AS58: 0 | AT58: 0 | BI58: 43935.83603 | BJ58: 16049.68255 | BK58: 59089.04604 | BL58: 3551.989473 | BM58: 120084 | BO58: 12169.68416 | BP58: 0 | CD58: Recoupment Academy
A59: 2087 | B59: Morehall Primary | C59: 1 | D59: 177 | E59: 0 | F59: 0 | G59: 0.3050847458 | H59: 0 | I59: 0.3389830508 | J59: 0 | K59: 0.4293785311 | L59: 0.05649717514 | M59: 0.03389830508 | N59: 0.06214689266 | O59: 0.04519774011 | P59: 0.02259887006 | Q59: 0 | R59: 0 | S59: 0 | T59: 0 | U59: 0 | V59: 0 | W59: 0.04794520548 | X59: 0 | Y59: 0.2042253521 | Z59: 0 | AA59: 120084 | AB59: 0 | AC59: 0 | AD59: 1 | AE59: 0 | AF59: 5632 | AG59: 0 | AH59: 0 | AI59: 4180 | AJ59: 755433.471 | AK59: 32558.28 | AL59: 0 | AM59: 0 | AN59: 5423 | AO59: 181 | AR59: 4.14 | AS59: 0 | AT59: 0 | BI59: 32597.71 | BJ59: 19993.8 | BK59: 39609.77049 | BL59: 4670.775411 | BM59: 120084 | BO59: 0 | BP59: 0 | CD59: Recoupment Academy
A60: 2090 | B60: Richmond Academy | C60: 1 | D60: 301 | E60: 0 | F60: 0 | G60: 0.561461794 | H60: 0 | I60: 0.561461794 | J60: 0 | K60: 0.01328903654 | L60: 0.006644518272 | M60: 0.01661129568 | N60: 0.04318936877 | O60: 0.4584717608 | P60: 0.4451827243 | Q60: 0 | R60: 0 | S60: 0 | T60: 0 | U60: 0 | V60: 0 | W60: 0.09338521401 | X60: 0 | Y60: 0.3614457831 | Z60: 0 | AA60: 120084 | AB60: 0 | AC60: 0 | AD60: 1 | AE60: 0 | AF60: 9318.4 | AG60: 0 | AH60: 0 | AI60: 4180 | AJ60: 1402107.356 | AK60: 55403.04 | AL60: 0 | AM60: 0 | AN60: 8972.6 | AO60: 308 | AR60: 4.14 | AS60: 0 | AT60: 0 | BI60: 157954.6 | BJ60: 56315.87 | BK60: 119214.4952 | BL60: 15470.88467 | BM60: 120084 | BO60: 0 | BP60: 0 | CD60: Recoupment Academy
A61: 2092 | B61: Knockhall Primary School | C61: 1 | D61: 383 | E61: 0 | F61: 0 | G61: 0.3211488251 | H61: 0 | I61: 0.3271889401 | J61: 0 | K61: 0.2924281984 | L61: 0.02610966057 | M61: 0.0182767624 | N61: 0.007832898172 | O61: 0.05483028721 | P61: 0 | Q61: 0 | R61: 0 | S61: 0 | T61: 0 | U61: 0 | V61: 0 | W61: 0.07871720117 | X61: 0 | Y61: 0.3311688312 | Z61: 0 | AA61: 120084 | AB61: 0 | AC61: 0 | AD61: 1.0368 | AE61: 0 | AF61: 11468.8 | AG61: 0 | AH61: 0 | AI61: 4180 | AJ61: 1746593.962 | AK61: 80066.88 | AL61: 0 | AM61: 0 | AN61: 11043.2 | AO61: 432 | AR61: 4.14 | AS61: 0 | AT61: 0 | BI61: 40888.49 | BJ61: 41758.1723 | BK61: 138984.9053 | BL61: 16593.53641 | BM61: 120084 | BO61: 0 | BP61: 0 | CD61: Recoupment Academy
A62: 2093 | B62: Chilmington Green Primary School | C62: 1 | D62: 101 | E62: 0 | F62: 0 | G62: 0.297029703 | H62: 0 | I62: 0.297029703 | J62: 0 | K62: 0.0198019802 | L62: 0 | M62: 0.05940594059 | N62: 0.009900990099 | O62: 0.1782178218 | P62: 0 | Q62: 0 | R62: 0 | S62: 0 | T62: 0 | U62: 0 | V62: 0 | W62: 0.1111111111 | X62: 0 | Y62: 0.2857142857 | Z62: 0 | AA62: 120084 | AB62: 0 | AC62: 0 | AD62: 1 | AE62: 0 | AF62: 2534.4 | AG62: 0 | AH62: 0 | AI62: 4180 | AJ62: 556483.9722 | AK62: 18526.0457 | AL62: 0 | AM62: 0 | AN62: 0 | AO62: 120 | AR62: 4.14 | AS62: 0 | AT62: 0 | BI62: 11893.29 | BJ62: 9996.9 | BK62: 31620.79143 | BL62: 6176.598889 | BM62: 120084 | BO62: 0 | BP62: 0 | CD62: Recoupment Academy
A63: 2096 | B63: Riverview Junior School | C63: 1 | D63: 476 | E63: 0 | F63: 0 | G63: 0.1554621849 | H63: 0 | I63: 0.1554621849 | J63: 0 | K63: 0.1281512605 | L63: 0.0525210084 | M63: 0.08823529412 | N63: 0.1176470588 | O63: 0.002100840336 | P63: 0 | Q63: 0 | R63: 0 | S63: 0 | T63: 0 | U63: 0 | V63: 0 | W63: 0.03781512605 | X63: 0 | Y63: 0.2633832976 | Z63: 0 | AA63: 120084 | AB63: 0 | AC63: 0 | AD63: 1 | AE63: 0 | AF63: 7321.6 | AG63: 0 | AH63: 0 | AI63: 4180 | AJ63: 1825287.82 | AK63: 87241.8 | AL63: 0 | AM63: 0 | AN63: 6537.82 | AO63: 485 | AR63: 4.14 | AS63: 0 | AT63: 0 | BI63: 62273.52 | BJ63: 24659.02 | BK63: 137377.1776 | BL63: 9907.02 | BM63: 120084 | BO63: 128966.6624 | BP63: 0 | CD63: Recoupment Academy
A64: 2098 | B64: Pilgrims' Way Primary School | C64: 1 | D64: 222 | E64: 0 | F64: 0 | G64: 0.5135135135 | H64: 0 | I64: 0.5260869565 | J64: 0 | K64: 0.02702702703 | L64: 0.5630630631 | M64: 0.03153153153 | N64: 0.09009009009 | O64: 0.05855855856 | P64: 0 | Q64: 0 | R64: 0 | S64: 0 | T64: 0 | U64: 0 | V64: 0 | W64: 0.1701030928 | X64: 0 | Y64: 0.3898305085 | Z64: 0 | AA64: 120084 | AB64: 0 | AC64: 0 | AD64: 1 | AE64: 0 | AF64: 7493.6 | AG64: 0 | AH64: 0 | AI64: 4180 | AJ64: 1024485.366 | AK64: 41552.28 | AL64: 0 | AM64: 0 | AN64: 7493.6 | AO64: 231 | AR64: 4.14 | AS64: 0 | AT64: 0 | BI64: 51770.92 | BJ64: 38918.36635 | BK64: 94830.53593 | BL64: 20784.31515 | BM64: 120084 | BO64: 0 | BP64: 0 | CD64: Recoupment Academy
A65: 2099 | B65: Edenbridge Primary School | C65: 1 | D65: 342 | E65: 0 | F65: 0 | G65: 0.3713450292 | H65: 0 | I65: 0.375 | J65: 0 | K65: 0.2280701754 | L65: 0.005847953216 | M65: 0.1842105263 | N65: 0 | O65: 0 | P65: 0 | Q65: 0 | R65: 0 | S65: 0 | T65: 0 | U65: 0 | V65: 0 | W65: 0.0275862069 | X65: 0 | Y65: 0.3260869565 | Z65: 0 | AA65: 120084 | AB65: 0 | AC65: 0 | AD65: 1.0368 | AE65: 0 | AF65: 6415.2 | AG65: 0 | AH65: 0 | AI65: 4180 | AJ65: 1324690.782 | AK65: 60235.5 | AL65: 0 | AM65: 0 | AN65: 6415.2 | AO65: 325 | AR65: 4.14 | AS65: 0 | AT65: 0 | BI65: 43150.33 | BJ65: 42736.7475 | BK65: 122202.1761 | BL65: 5192.644966 | BM65: 120084 | BO65: 0 | BP65: 0 | CD65: Recoupment Academy
A66: 2107 | B66: Rosherville Church of England Academy | C66: 1 | D66: 141 | E66: 0 | F66: 0 | G66: 0.2907801418 | H66: 0 | I66: 0.3286713287 | J66: 0 | K66: 0.4714285714 | L66: 0.08571428571 | M66: 0.2214285714 | N66: 0 | O66: 0.03571428571 | P66: 0 | Q66: 0 | R66: 0 | S66: 0 | T66: 0 | U66: 0 | V66: 0 | W66: 0.2231404959 | X66: 0 | Y66: 0.3153153153 | Z66: 0 | AA66: 120084 | AB66: 0 | AC66: 0 | AD66: 1 | AE66: 0 | AF66: 1561.6 | AG66: 0 | AH66: 0 | AI66: 4180 | AJ66: 671675.3876 | AK66: 25722.84 | AL66: 0 | AM66: 0 | AN66: 1273.66 | AO66: 143 | AR66: 4.14 | AS66: 0 | AT66: 0 | BI66: 32649.255 | BJ66: 15442.76371 | BK66: 48717.34189 | BL66: 17316.81595 | BM66: 120084 | BO66: 0 | BP66: 1687.709897 | CD66: Recoupment Academy
A67: 2110 | B67: Culverstone Green Primary School | C67: 1 | D67: 202 | E67: 0 | F67: 0 | G67: 0.07920792079 | H67: 0 | I67: 0.1213592233 | J67: 0 | K67: 0.02475247525 | L67: 0.0297029703 | M67: 0.00495049505 | N67: 0.0297029703 | O67: 0 | P67: 0 | Q67: 0 | R67: 0 | S67: 0 | T67: 0 | U67: 0 | V67: 0 | W67: 0.01169590643 | X67: 0 | Y67: 0.2831325301 | Z67: 0 | AA67: 120084 | AB67: 0 | AC67: 0 | AD67: 1 | AE67: 0 | AF67: 7731.2 | AG67: 0 | AH67: 0 | AI67: 4180 | AJ67: 803972.7309 | AK67: 37055.28 | AL67: 0 | AM67: 0 | AN67: 7195.25 | AO67: 206 | AR67: 4.14 | AS67: 0 | AT67: 0 | BI67: 5718.98 | BJ67: 8168.987864 | BK67: 62670.12277 | BL67: 1300.336608 | BM67: 120084 | BO67: 14232.11276 | BP67: 0 | CD67: Recoupment Academy
A68: 2112 | B68: River Mill Primary School | C68: 1 | D68: 142.5 | E68: 0 | F68: 0 | G68: 0.0756302521 | H68: 0 | I68: 0.0756302521 | J68: 0 | K68: 0.008403361345 | L68: 0 | M68: 0.01680672269 | N68: 0.008403361345 | O68: 0.7394957983 | P68: 0 | Q68: 0 | R68: 0 | S68: 0 | T68: 0 | U68: 0 | V68: 0 | W68: 0.406779661 | X68: 0 | Y68: 0.3076923077 | Z68: 0 | AA68: 120084 | AB68: 0 | AC68: 0 | AD68: 1.0368 | AE68: 0 | AF68: 0 | AG68: 0 | AH68: 0 | AI68: 4180 | AJ68: 420674.3082 | AK68: 18534 | AL68: 0 | AM68: 0 | AN68: 0 | AO68: 77.5 | AR68: 4.14 | AS68: 0 | AT68: 0 | BI68: 51862.91092 | BJ68: 3591.323319 | BK68: 48045.3 | BL68: 31903.96271 | BM68: 120084 | BO68: 0 | BP68: 0 | CD68: Recoupment Academy
A69: 2114 | B69: Cage Green Primary School | C69: 1 | D69: 277 | E69: 0 | F69: 0 | G69: 0.3104693141 | H69: 0 | I69: 0.3375796178 | J69: 0 | K69: 0.3102189781 | L69: 0.007299270073 | M69: 0.2262773723 | N69: 0 | O69: 0 | P69: 0 | Q69: 0 | R69: 0 | S69: 0 | T69: 0 | U69: 0 | V69: 0 | W69: 0.03629032258 | X69: 0 | Y69: 0.2946058091 | Z69: 0 | AA69: 120084 | AB69: 0 | AC69: 0 | AD69: 1 | AE69: 0 | AF69: 7731.2 | AG69: 0 | AH69: 0 | AI69: 4180 | AJ69: 1243150.34 | AK69: 56662.2 | AL69: 0 | AM69: 0 | AN69: 8285 | AO69: 315 | AR69: 4.14 | AS69: 0 | AT69: 0 | BI69: 44730.53624 | BJ69: 31160.18873 | BK69: 89421.19747 | BL69: 5532.751089 | BM69: 120084 | BO69: 0 | BP69: 0 | CD69: Recoupment Academy
A70: 2117 | B70: Dartford Bridge Community Primary School | C70: 1 | D70: 418 | E70: 0 | F70: 0 | G70: 0.09330143541 | H70: 0 | I70: 0.1076555024 | J70: 0 | K70: 0.007194244604 | L70: 0.002398081535 | M70: 0.08153477218 | N70: 0.002398081535 | O70: 0.02877697842 | P70: 0 | Q70: 0 | R70: 0 | S70: 0 | T70: 0 | U70: 0 | V70: 0 | W70: 0.2150837989 | X70: 0 | Y70: 0.2528735632 | Z70: 0 | AA70: 120084 | AB70: 0 | AC70: 0 | AD70: 1.0368 | AE70: 0 | AF70: 10050.36 | AG70: 0 | AH70: 0 | AI70: 4180 | AJ70: 1638104.561 | AK70: 76360.08 | AL70: 0 | AM70: 0 | AN70: 26555.56 | AO70: 412 | AR70: 4.14 | AS70: 0 | AT70: 0 | BI70: 21055.13113 | BJ70: 14995.35 | BK70: 115824.1485 | BL70: 49482.82832 | BM70: 120084 | BO70: 54830.92692 | BP70: 0 | CD70: Recoupment Academy
A71: 2118 | B71: St Katherine's School & Nursery | C71: 1 | D71: 526 | E71: 0 | F71: 0 | G71: 0.2243346008 | H71: 0 | I71: 0.2244897959 | J71: 0 | K71: 0.1653992395 | L71: 0.4049429658 | M71: 0.001901140684 | N71: 0.007604562738 | O71: 0.001901140684 | P71: 0 | Q71: 0 | R71: 0 | S71: 0 | T71: 0 | U71: 0 | V71: 0 | W71: 0.01324503311 | X71: 0 | Y71: 0.1873684211 | Z71: 0 | AA71: 120084 | AB71: 0 | AC71: 0 | AD71: 1 | AE71: 0 | AF71: 14191.49 | AG71: 0 | AH71: 0 | AI71: 4180 | AJ71: 2052409.05 | AK71: 97674.84 | AL71: 0 | AM71: 0 | AN71: 16159.05 | AO71: 543 | AR71: 4.14 | AS71: 0 | AT71: 0 | BI71: 76803.25 | BJ71: 39348.34245 | BK71: 107994.4774 | BL71: 3834.505166 | BM71: 120084 | BO71: 169290.245 | BP71: 0 | CD71: Recoupment Academy
A72: 2126 | B72: Sunny Bank Primary School | C72: 1 | D72: 241 | E72: 0 | F72: 0 | G72: 0.5435684647 | H72: 0 | I72: 0.5435684647 | J72: 0 | K72: 0.09958506224 | L72: 0.4522821577 | M72: 0.04979253112 | N72: 0 | O72: 0.01244813278 | P72: 0.2697095436 | Q72: 0 | R72: 0 | S72: 0 | T72: 0 | U72: 0 | V72: 0 | W72: 0.09547738693 | X72: 0 | Y72: 0.3678756477 | Z72: 0 | AA72: 120084 | AB72: 0 | AC72: 0 | AD72: 1 | AE72: 0 | AF72: 24202 | AG72: 0 | AH72: 0 | AI72: 4180 | AJ72: 1170436.708 | AK72: 44610.24 | AL72: 0 | AM72: 0 | AN72: 24202 | AO72: 248 | AR72: 4.14 | AS72: 0 | AT72: 0 | BI72: 80200.64 | BJ72: 43653.13 | BK72: 97148.81073 | BL72: 12664.50156 | BM72: 120084 | BO72: 0 | BP72: 6317.573629 | CD72: Recoupment Academy
A73: 2127 | B73: Paddock Wood Primary Academy | C73: 1 | D73: 607 | E73: 0 | F73: 0 | G73: 0.1532125206 | H73: 0 | I73: 0.1677419355 | J73: 0 | K73: 0.1570247934 | L73: 0.00826446281 | M73: 0 | N73: 0 | O73: 0 | P73: 0 | Q73: 0 | R73: 0 | S73: 0 | T73: 0 | U73: 0 | V73: 0 | W73: 0.01127819549 | X73: 0 | Y73: 0.2333965844 | Z73: 0 | AA73: 120084 | AB73: 0 | AC73: 0 | AD73: 1 | AE73: 0 | AF73: 12083.2 | AG73: 0 | AH73: 0 | AI73: 4180 | AJ73: 2295644.4 | AK73: 109546.92 | AL73: 0 | AM73: 0 | AN73: 11894.4 | AO73: 609 | AR73: 4.14 | AS73: 0 | AT73: 0 | BI73: 21812.01826 | BJ73: 33929.26361 | BK73: 155239.628 | BL73: 3767.895451 | BM73: 120084 | BO73: 282063.2446 | BP73: 0 | CD73: Recoupment Academy
A74: 2129 | B74: Springhead Park Primary School | C74: 1 | D74: 127.0833333 | E74: 0 | F74: 0 | G74: 0.06086956522 | H74: 0 | I74: 0.06086956522 | J74: 0 | K74: 0.06956521739 | L74: 0.6782608696 | M74: 0.0347826087 | N74: 0 | O74: 0.01739130435 | P74: 0 | Q74: 0 | R74: 0 | S74: 0 | T74: 0 | U74: 0 | V74: 0 | W74: 0.1617647059 | X74: 0 | Y74: 0.2 | Z74: 0 | AA74: 120084 | AB74: 0 | AC74: 0 | AD74: 1 | AE74: 0 | AF74: 0 | AG74: 0 | AH74: 0 | AI74: 4180 | AJ74: 196694.5328 | AK74: 18534 | AL74: 0 | AM74: 0 | AN74: 0 | AO74: 35 | AR74: 4.14 | AS74: 0 | AT74: 0 | BI74: 27192.58442 | BJ74: 2577.70308 | BK74: 27850.82083 | BL74: 11314.69638 | BM74: 120084 | BO74: 0 | BP74: 64188.70256 | CD74: Recoupment Academy
A75: 2131 | B75: Bearsted Primary Academy | C75: 1 | D75: 44.25 | E75: 0 | F75: 0 | G75: 0.1025641026 | H75: 0 | I75: 0.1025641026 | J75: 0 | K75: 0.07692307692 | L75: 0.07692307692 | M75: 0.07692307692 | N75: 0.05128205128 | O75: 0.02564102564 | P75: 0 | Q75: 0 | R75: 0 | S75: 0 | T75: 0 | U75: 0 | V75: 0 | W75: 0 | X75: 0 | Y75: 0 | Z75: 0 | AA75: 120084 | AB75: 0 | AC75: 0 | AD75: 1 | AE75: 0 | AF75: 0 | AG75: 0 | AH75: 0 | AI75: 4180 | AJ75: 189786.311 | AK75: 17988 | AL75: 0 | AM75: 0 | AN75: 0 | AO75: 35 | AR75: 4.14 | AS75: 0 | AT75: 0 | BI75: 4564.342115 | BJ75: 1512.351538 | BK75: 0 | BL75: 0 | BM75: 120084 | BO75: 0 | BP75: 29956.15314 | CD75: Recoupment Academy
A76: 2135 | B76: Horsmonden Primary Academy | C76: 1 | D76: 163 | E76: 0 | F76: 0 | G76: 0.09202453988 | H76: 0 | I76: 0.09604519774 | J76: 0 | K76: 0.006134969325 | L76: 0.01840490798 | M76: 0 | N76: 0 | O76: 0 | P76: 0 | Q76: 0 | R76: 0 | S76: 0 | T76: 0 | U76: 0 | V76: 0 | W76: 0.03355704698 | X76: 0 | Y76: 0.2 | Z76: 0 | AA76: 120084 | AB76: 0 | AC76: 0 | AD76: 1 | AE76: 0 | AF76: 3840 | AG76: 0 | AH76: 0 | AI76: 4180 | AJ76: 663531.8738 | AK76: 30939.36 | AL76: 0 | AM76: 0 | AN76: 3682.6 | AO76: 172 | AR76: 4.14 | AS76: 0 | AT76: 0 | BI76: 995.69 | BJ76: 5216.838023 | BK76: 35722.102 | BL76: 3010.522483 | BM76: 120084 | BO76: 5219.337494 | BP76: 0 | CD76: Recoupment Academy
A77: 2140 | B77: Ebbsfleet Green Primary School | C77: 1 | D77: 77.5 | E77: 0 | F77: 0 | G77: 0 | H77: 0 | I77: 0 | J77: 0 | K77: 0.1363636364 | L77: 0.04545454545 | M77: 0 | N77: 0 | O77: 0 | P77: 0 | Q77: 0 | R77: 0 | S77: 0 | T77: 0 | U77: 0 | V77: 0 | W77: 0 | X77: 0 | Y77: 0.4 | Z77: 0 | AA77: 120084 | AB77: 0 | AC77: 0 | AD77: 1.0368 | AE77: 0 | AF77: 0 | AG77: 0 | AH77: 0 | AI77: 4180 | AJ77: 196694.5328 | AK77: 18534 | AL77: 0 | AM77: 0 | AN77: 0 | AO77: 35 | AR77: 4.14 | AS77: 0 | AT77: 0 | BI77: 3190.2875 | BJ77: 0 | BK77: 33968.87 | BL77: 0 | BM77: 120084 | BO77: 0 | BP77: 30270.76721 | CD77: Recoupment Academy
A78: 2141 | B78: Amherst School | C78: 1 | D78: 377 | E78: 0 | F78: 0 | G78: 0.02917771883 | H78: 0 | I78: 0.03645833333 | J78: 0 | K78: 0.002652519894 | L78: 0 | M78: 0 | N78: 0 | O78: 0 | P78: 0 | Q78: 0 | R78: 0 | S78: 0 | T78: 0 | U78: 0 | V78: 0 | W78: 0.02917771883 | X78: 0 | Y78: 0.1379310345 | Z78: 0 | AA78: 120084 | AB78: 0 | AC78: 0 | AD78: 1.0368 | AE78: 0 | AF78: 5580.8 | AG78: 0 | AH78: 0 | AI78: 4180 | AJ78: 1441911.218 | AK78: 70985.22 | AL78: 0 | AM78: 0 | AN78: 5661.218 | AO78: 383 | AR78: 4.14 | AS78: 0 | AT78: 0 | BI78: 215.15 | BJ78: 4580.176927 | BK78: 56980.04 | BL78: 6054.29 | BM78: 120084 | BO78: 166742.7696 | BP78: 0 | CD78: Recoupment Academy
A79: 2143 | B79: Folkestone Primary | C79: 1 | D79: 422 | E79: 0 | F79: 0 | G79: 0.2203791469 | H79: 0 | I79: 0.2203791469 | J79: 0 | K79: 0.1018957346 | L79: 0.07109004739 | M79: 0.08767772512 | N79: 0.08767772512 | O79: 0.1066350711 | P79: 0.01658767773 | Q79: 0 | R79: 0 | S79: 0 | T79: 0 | U79: 0 | V79: 0 | W79: 0.04521276596 | X79: 0 | Y79: 0.2391304348 | Z79: 0 | AA79: 120084 | AB79: 0 | AC79: 0 | AD79: 1 | AE79: 0 | AF79: 0 | AG79: 0 | AH79: 0 | AI79: 4180 | AJ79: 1679946.048 | AK79: 77377.39728 | AL79: 0 | AM79: 0 | AN79: 0 | AO79: 453 | AR79: 4.14 | AS79: 0 | AT79: 0 | BI79: 74446.91 | BJ79: 30990.39 | BK79: 110577.4857 | BL79: 10501.3241 | BM79: 120084 | BO79: 69232.39025 | BP79: 0 | CD79: Recoupment Academy
A80: 2172 | B80: Valley Invicta Primary School At East Borough | C80: 1 | D80: 457 | E80: 0 | F80: 0 | G80: 0.1597374179 | H80: 0 | I80: 0.1600877193 | J80: 0 | K80: 0.2341356674 | L80: 0.07658643326 | M80: 0.002188183807 | N80: 0.006564551422 | O80: 0.00875273523 | P80: 0 | Q80: 0 | R80: 0 | S80: 0 | T80: 0 | U80: 0 | V80: 0 | W80: 0.201511335 | X80: 0 | Y80: 0.2161458333 | Z80: 0 | AA80: 120084 | AB80: 0 | AC80: 0 | AD80: 1 | AE80: 0 | AF80: 10188.8 | AG80: 0 | AH80: 0 | AI80: 4180 | AJ80: 1712212.1 | AK80: 81665.52 | AL80: 0 | AM80: 0 | AN80: 9712.1 | AO80: 454 | AR80: 4.14 | AS80: 0 | AT80: 0 | BI80: 35774.89 | BJ80: 24379.13603 | BK80: 108238.6767 | BL80: 50685.78942 | BM80: 120084 | BO80: 123915.4578 | BP80: 0 | CD80: Recoupment Academy
A81: 2180 | B81: South Borough Primary School | C81: 1 | D81: 440 | E81: 0 | F81: 0 | G81: 0.2204545455 | H81: 0 | I81: 0.2204545455 | J81: 0 | K81: 0.1548974943 | L81: 0.0728929385 | M81: 0.004555808656 | N81: 0.0159453303 | O81: 0.2528473804 | P81: 0 | Q81: 0 | R81: 0 | S81: 0 | T81: 0 | U81: 0 | V81: 0 | W81: 0.2506596306 | X81: 0 | Y81: 0.2583333333 | Z81: 0 | AA81: 120084 | AB81: 0 | AC81: 0 | AD81: 1 | AE81: 0 | AF81: 11980.8 | AG81: 0 | AH81: 0 | AI81: 4180 | AJ81: 1556570.464 | AK81: 71232.48 | AL81: 0 | AM81: 0 | AN81: 7870.632 | AO81: 396 | AR81: 4.14 | AS81: 0 | AT81: 0 | BI81: 79836.78724 | BJ81: 32323.31 | BK81: 124552.5233 | BL81: 60702.6438 | BM81: 120084 | BO81: 16054.89562 | BP81: 0 | CD81: Recoupment Academy
A82: 2183 | B82: Marden Primary Academy | C82: 1 | D82: 270 | E82: 0 | F82: 0 | G82: 0.2740740741 | H82: 0 | I82: 0.2867924528 | J82: 0 | K82: 0.003703703704 | L82: 0.3888888889 | M82: 0.003703703704 | N82: 0.003703703704 | O82: 0.01851851852 | P82: 0 | Q82: 0 | R82: 0 | S82: 0 | T82: 0 | U82: 0 | V82: 0 | W82: 0.03879310345 | X82: 0 | Y82: 0.2600896861 | Z82: 0 | AA82: 120084 | AB82: 0 | AC82: 0 | AD82: 1 | AE82: 0 | AF82: 26624 | AG82: 0 | AH82: 0 | AI82: 4180 | AJ82: 1098643.7 | AK82: 49107.24 | AL82: 0 | AM82: 0 | AN82: 28546 | AO82: 273 | AR82: 4.14 | AS82: 0 | AT82: 0 | BI82: 30766.3 | BJ82: 25803.31925 | BK82: 76949.58834 | BL82: 5764.860776 | BM82: 120084 | BO82: 12.35163805 | BP82: 0 | CD82: Recoupment Academy
A83: 2223 | B83: Bobbing Village School | C83: 1 | D83: 209 | E83: 0 | F83: 0 | G83: 0.08133971292 | H83: 0 | I83: 0.09615384615 | J83: 0 | K83: 0.07177033493 | L83: 0.2583732057 | M83: 0.00956937799 | N83: 0.004784688995 | O83: 0 | P83: 0 | Q83: 0 | R83: 0 | S83: 0 | T83: 0 | U83: 0 | V83: 0 | W83: 0.04469273743 | X83: 0 | Y83: 0.1637426901 | Z83: 0 | AA83: 120084 | AB83: 0 | AC83: 0 | AD83: 1 | AE83: 0 | AF83: 1126.4 | AG83: 0 | AH83: 0 | AI83: 4180 | AJ83: 794868.1051 | AK83: 37774.8 | AL83: 0 | AM83: 0 | AN83: 889.538 | AO83: 210 | AR83: 4.14 | AS83: 0 | AT83: 0 | BI83: 18542.86 | BJ83: 6696.641346 | BK83: 37499.68444 | BL83: 5141.073073 | BM83: 120084 | BO83: 31357.77114 | BP83: 0 | CD83: Recoupment Academy
A84: 2229 | B84: Graveney Primary School | C84: 1 | D84: 103 | E84: 0 | F84: 0 | G84: 0.1359223301 | H84: 0 | I84: 0.1359223301 | J84: 0 | K84: 0.2427184466 | L84: 0.2330097087 | M84: 0 | N84: 0.03883495146 | O84: 0.01941747573 | P84: 0 | Q84: 0 | R84: 0 | S84: 0 | T84: 0 | U84: 0 | V84: 0 | W84: 0.05882352941 | X84: 0 | Y84: 0.2045454545 | Z84: 0 | AA84: 120084 | AB84: 0 | AC84: 0 | AD84: 1 | AE84: 0 | AF84: 952.32 | AG84: 0 | AH84: 0 | AI84: 4180 | AJ84: 426754.2907 | AK84: 17988 | AL84: 0 | AM84: 0 | AN84: 827.722 | AO84: 95 | AR84: 4.14 | AS84: 0 | AT84: 0 | BI84: 14354.97 | BJ84: 4665.22 | BK84: 23085.88159 | BL84: 3334.715882 | BM84: 120084 | BO84: 0 | BP84: 0 | CD84: Recoupment Academy
A85: 2230 | B85: Iwade School | C85: 1 | D85: 623 | E85: 0 | F85: 0 | G85: 0.1268057785 | H85: 0 | I85: 0.1268057785 | J85: 0 | K85: 0.1045016077 | L85: 0.02893890675 | M85: 0.02250803859 | N85: 0.006430868167 | O85: 0.006430868167 | P85: 0.003215434084 | Q85: 0 | R85: 0 | S85: 0 | T85: 0 | U85: 0 | V85: 0 | W85: 0.01125703565 | X85: 0 | Y85: 0.2205323194 | Z85: 0 | AA85: 120084 | AB85: 0 | AC85: 0 | AD85: 1 | AE85: 0 | AF85: 13926.4 | AG85: 0 | AH85: 0 | AI85: 4180 | AJ85: 2252159.6 | AK85: 107388.36 | AL85: 0 | AM85: 0 | AN85: 13409.6 | AO85: 597 | AR85: 4.14 | AS85: 0 | AT85: 0 | BI85: 29382.63314 | BJ85: 26325.17 | BK85: 150549.6319 | BL85: 3859.958386 | BM85: 120084 | BO85: 310528.4166 | BP85: 0 | CD85: Recoupment Academy
A86: 2232 | B86: Luddenham School | C86: 1 | D86: 192 | E86: 0 | F86: 0 | G86: 0.2291666667 | H86: 0 | I86: 0.2291666667 | J86: 0 | K86: 0.3020833333 | L86: 0.05729166667 | M86: 0.07291666667 | N86: 0.005208333333 | O86: 0.09895833333 | P86: 0 | Q86: 0 | R86: 0 | S86: 0 | T86: 0 | U86: 0 | V86: 0 | W86: 0.01875 | X86: 0 | Y86: 0.3095238095 | Z86: 0 | AA86: 120084 | AB86: 0 | AC86: 0 | AD86: 1 | AE86: 0 | AF86: 5273.6 | AG86: 0 | AH86: 0 | AI86: 4180 | AJ86: 777616.3976 | AK86: 34536.96 | AL86: 0 | AM86: 0 | AN86: 5077.9 | AO86: 192 | AR86: 4.14 | AS86: 0 | AT86: 0 | BI86: 30561.32 | BJ86: 14662.12 | BK86: 65120.04571 | BL86: 1981.404 | BM86: 120084 | BO86: 0 | BP86: 0 | CD86: Recoupment Academy
A87: 2233 | B87: Lynsted and Norton Primary School | C87: 1 | D87: 55 | E87: 0 | F87: 0 | G87: 0.2181818182 | H87: 0 | I87: 0.2181818182 | J87: 0 | K87: 0.6 | L87: 0.03636363636 | M87: 0.01818181818 | N87: 0 | O87: 0 | P87: 0 | Q87: 0 | R87: 0 | S87: 0 | T87: 0 | U87: 0 | V87: 0 | W87: 0.06976744186 | X87: 0 | Y87: 0.3181818182 | Z87: 0 | AA87: 120084 | AB87: 0 | AC87: 0 | AD87: 1 | AE87: 0 | AF87: 3225.6 | AG87: 0 | AH87: 0 | AI87: 4180 | AJ87: 258564.6221 | AK87: 17988 | AL87: 0 | AM87: 0 | AN87: 2968.426 | AO87: 40 | AR87: 4.14 | AS87: 0 | AT87: 0 | BI87: 8030.6 | BJ87: 3998.76 | BK87: 19175.975 | BL87: 2111.961628 | BM87: 120084 | BO87: 0 | BP87: 3152.596858 | CD87: Recoupment Academy
A88: 2235 | B88: Minster in Sheppey Primary School | C88: 1 | D88: 549 | E88: 0 | F88: 0 | G88: 0.1876138434 | H88: 0 | I88: 0.2346570397 | J88: 0 | K88: 0.3479052823 | L88: 0.06739526412 | M88: 0.05828779599 | N88: 0.05282331512 | O88: 0.1712204007 | P88: 0.029143898 | Q88: 0 | R88: 0 | S88: 0 | T88: 0 | U88: 0 | V88: 0 | W88: 0.004395604396 | X88: 0 | Y88: 0.1771300448 | Z88: 0 | AA88: 120084 | AB88: 0 | AC88: 0 | AD88: 1 | AE88: 0 | AF88: 20400 | AG88: 0 | AH88: 0 | AI88: 4180 | AJ88: 2067900 | AK88: 98214.48 | AL88: 0 | AM88: 0 | AN88: 20400 | AO88: 546 | AR88: 4.14 | AS88: 0 | AT88: 0 | BI88: 131371.48 | BJ88: 42928.92617 | BK88: 106557.4903 | BL88: 1328.19389 | BM88: 120084 | BO88: 146986.6196 | BP88: 0 | CD88: Recoupment Academy
A89: 2237 | B89: Queenborough School and Nursery | C89: 1 | D89: 438 | E89: 0 | F89: 0 | G89: 0.3447488584 | H89: 0 | I89: 0.3480278422 | J89: 0 | K89: 0.198630137 | L89: 0.02054794521 | M89: 0.01598173516 | N89: 0.02054794521 | O89: 0.3607305936 | P89: 0.3150684932 | Q89: 0 | R89: 0 | S89: 0 | T89: 0 | U89: 0 | V89: 0 | W89: 0.01583113456 | X89: 0 | Y89: 0.2815013405 | Z89: 0 | AA89: 120084 | AB89: 0 | AC89: 0 | AD89: 1 | AE89: 0 | AF89: 34048 | AG89: 0 | AH89: 0 | AI89: 4180 | AJ89: 1803959.952 | AK89: 78247.8 | AL89: 0 | AM89: 0 | AN89: 34048 | AO89: 435 | AR89: 4.14 | AS89: 0.9 | AT89: 0.32 | BI89: 188660.97 | BJ89: 50796.31323 | BK89: 135105.7971 | BL89: 3816.424591 | BM89: 120084 | BO89: 0 | BP89: 0 | CD89: Recoupment Academy
A90: 2246 | B90: Sheldwich Primary School | C90: 1 | D90: 211 | E90: 0 | F90: 0 | G90: 0.05687203791 | H90: 0 | I90: 0.07981220657 | J90: 0 | K90: 0.0663507109 | L90: 0.07109004739 | M90: 0.004739336493 | N90: 0 | O90: 0 | P90: 0.01421800948 | Q90: 0 | R90: 0 | S90: 0 | T90: 0 | U90: 0 | V90: 0 | W90: 0.005617977528 | X90: 0 | Y90: 0.207253886 | Z90: 0 | AA90: 120084 | AB90: 0 | AC90: 0 | AD90: 1 | AE90: 0 | AF90: 4966.4 | AG90: 0 | AH90: 0 | AI90: 4180 | AJ90: 799782.1 | AK90: 38134.56 | AL90: 0 | AM90: 0 | AN90: 4782.1 | AO90: 212 | AR90: 4.14 | AS90: 0 | AT90: 0 | BI90: 9186.38 | BJ90: 5611.718357 | BK90: 47918.64663 | BL90: 652.4285955 | BM90: 120084 | BO90: 40344.11642 | BP90: 0 | CD90: Recoupment Academy
A91: 2249 | B91: Regis Manor Primary School | C91: 1 | D91: 463 | E91: 0 | F91: 0 | G91: 0.2267818575 | H91: 0 | I91: 0.2651162791 | J91: 0 | K91: 0.2203023758 | L91: 0.13174946 | M91: 0.3174946004 | N91: 0.004319654428 | O91: 0.002159827214 | P91: 0.006479481641 | Q91: 0 | R91: 0 | S91: 0 | T91: 0 | U91: 0 | V91: 0 | W91: 0.05882352941 | X91: 0 | Y91: 0.2262210797 | Z91: 0 | AA91: 120084 | AB91: 0 | AC91: 0 | AD91: 1 | AE91: 0 | AF91: 6809.6 | AG91: 0 | AH91: 0 | AI91: 4180 | AJ91: 1631478.014 | AK91: 76808.76 | AL91: 0 | AM91: 0 | AN91: 4541.946 | AO91: 427 | AR91: 4.14 | AS91: 0 | AT91: 0 | BI91: 101356.15 | BJ91: 40903.59502 | BK91: 114771.3442 | BL91: 14990.03353 | BM91: 120084 | BO91: 62763.56728 | BP91: 0 | CD91: Recoupment Academy
A92: 2264 | B92: Hampton Primary School | C92: 1 | D92: 663 | E92: 0 | F92: 0 | G92: 0.2714932127 | H92: 0 | I92: 0.2887218045 | J92: 0 | K92: 0.02111613876 | L92: 0.07390648567 | M92: 0.2428355958 | N92: 0.04223227753 | O92: 0.04374057315 | P92: 0 | Q92: 0 | R92: 0 | S92: 0 | T92: 0 | U92: 0 | V92: 0 | W92: 0.02966841187 | X92: 0 | Y92: 0.2228070175 | Z92: 0 | AA92: 120084 | AB92: 0 | AC92: 0 | AD92: 1 | AE92: 0 | AF92: 16998.4 | AG92: 0 | AH92: 0 | AI92: 4180 | AJ92: 2504987.2 | AK92: 119440.32 | AL92: 0 | AM92: 0 | AN92: 14987.2 | AO92: 664 | AR92: 4.14 | AS92: 0 | AT92: 0 | BI92: 108070.86 | BJ92: 63787.73847 | BK92: 161868.2978 | BL92: 10826.25775 | BM92: 120084 | BO92: 173073.5359 | BP92: 0 | CD92: Recoupment Academy
A93: 2286 | B93: Hamstreet Primary Academy | C93: 1 | D93: 300 | E93: 0 | F93: 0 | G93: 0.12 | H93: 0 | I93: 0.1315789474 | J93: 0 | K93: 0.01006711409 | L93: 0.006711409396 | M93: 0.07046979866 | N93: 0.003355704698 | O93: 0.006711409396 | P93: 0 | Q93: 0 | R93: 0 | S93: 0 | T93: 0 | U93: 0 | V93: 0 | W93: 0.01915708812 | X93: 0 | Y93: 0.3003802281 | Z93: 0 | AA93: 120084 | AB93: 0 | AC93: 0 | AD93: 1 | AE93: 0 | AF93: 5017.6 | AG93: 0 | AH93: 0 | AI93: 4180 | AJ93: 1140645.62 | AK93: 54503.64 | AL93: 0 | AM93: 0 | AN93: 4395.62 | AO93: 303 | AR93: 4.14 | AS93: 0 | AT93: 0 | BI93: 11252.88926 | BJ93: 13153.81579 | BK93: 98744.29278 | BL93: 3163.16092 | BM93: 120084 | BO93: 63079.32125 | BP93: 0 | CD93: Recoupment Academy
A94: 2287 | B94: Rolvenden Primary School | C94: 1 | D94: 94 | E94: 0 | F94: 0 | G94: 0.09574468085 | H94: 0 | I94: 0.1145833333 | J94: 0 | K94: 0.5744680851 | L94: 0.02127659574 | M94: 0.01063829787 | N94: 0 | O94: 0 | P94: 0 | Q94: 0 | R94: 0 | S94: 0 | T94: 0 | U94: 0 | V94: 0 | W94: 0.0253164557 | X94: 0 | Y94: 0.3026315789 | Z94: 0 | AA94: 120084 | AB94: 33547.83164 | AC94: 0 | AD94: 1 | AE94: 0 | AF94: 2560 | AG94: 0 | AH94: 0 | AI94: 4180 | AJ94: 484190.5179 | AK94: 18347.76 | AL94: 0 | AM94: 0 | AN94: 0 | AO94: 102 | AR94: 4.14 | AS94: 0 | AT94: 0 | BI94: 12548.75 | BJ94: 3589.164792 | BK94: 31171.77289 | BL94: 1309.788861 | BM94: 120084 | BO94: 0 | BP94: 0 | CD94: Recoupment Academy
A95: 2288 | B95: Smarden Primary School | C95: 1 | D95: 117 | E95: 0 | F95: 0 | G95: 0.09401709402 | H95: 0 | I95: 0.09401709402 | J95: 0 | K95: 0.008695652174 | L95: 0.01739130435 | M95: 0.04347826087 | N95: 0 | O95: 0 | P95: 0 | Q95: 0 | R95: 0 | S95: 0 | T95: 0 | U95: 0 | V95: 0 | W95: 0.009803921569 | X95: 0 | Y95: 0.1224489796 | Z95: 0 | AA95: 120084 | AB95: 19719.87236 | AC95: 0 | AD95: 1 | AE95: 0 | AF95: 3953.75 | AG95: 0 | AH95: 0 | AI95: 4180 | AJ95: 519258.2832 | AK95: 22485 | AL95: 0 | AM95: 0 | AN95: 3253.8 | AO95: 125 | AR95: 4.14 | AS95: 0 | AT95: 0 | BI95: 2835.42887 | BJ95: 3665.53 | BK95: 15698.58245 | BL95: 631.3297059 | BM95: 120084 | BO95: 0 | BP95: 0 | CD95: Recoupment Academy
A96: 2290 | B96: Tenterden Infant School | C96: 1 | D96: 141 | E96: 0 | F96: 0 | G96: 0.1843971631 | H96: 0 | I96: 0.1843971631 | J96: 0 | K96: 0.02127659574 | L96: 0.1631205674 | M96: 0 | N96: 0 | O96: 0 | P96: 0 | Q96: 0 | R96: 0 | S96: 0 | T96: 0 | U96: 0 | V96: 0 | W96: 0.07216494845 | X96: 0 | Y96: 0.3396226415 | Z96: 0 | AA96: 120084 | AB96: 0 | AC96: 0 | AD96: 1 | AE96: 0 | AF96: 4864 | AG96: 0 | AH96: 0 | AI96: 4180 | AJ96: 559374.0504 | AK96: 29181.6343 | AL96: 0 | AM96: 0 | AN96: 4324.504 | AO96: 131 | AR96: 4.14 | AS96: 0 | AT96: 0 | BI96: 6629.59 | BJ96: 8663.98 | BK96: 52472.91057 | BL96: 5600.360103 | BM96: 120084 | BO96: 0 | BP96: 0 | CD96: Recoupment Academy
A97: 2307 | B97: Warden House Primary School | C97: 1 | D97: 444 | E97: 0 | F97: 0 | G97: 0.3153153153 | H97: 0 | I97: 0.3280898876 | J97: 0 | K97: 0.1693002257 | L97: 0.1173814898 | M97: 0.1083521445 | N97: 0.2844243792 | O97: 0.1060948081 | P97: 0 | Q97: 0 | R97: 0 | S97: 0 | T97: 0 | U97: 0 | V97: 0 | W97: 0 | X97: 0 | Y97: 0.2650918635 | Z97: 0 | AA97: 120084 | AB97: 0 | AC97: 0 | AD97: 1 | AE97: 0 | AF97: 1007.6 | AG97: 0 | AH97: 0 | AI97: 4180 | AJ97: 1715397.47 | AK97: 79866.72 | AL97: 0 | AM97: 0 | AN97: 1007.6 | AO97: 444 | AR97: 4.14 | AS97: 0 | AT97: 0 | BI97: 128097.6081 | BJ97: 48542.25061 | BK97: 128972.9918 | BL97: 0 | BM97: 120084 | BO97: 0 | BP97: 0 | CD97: Recoupment Academy
A98: 2309 | B98: Priory Fields School | C98: 1 | D98: 376 | E98: 0 | F98: 0 | G98: 0.4867021277 | H98: 0 | I98: 0.4867021277 | J98: 0 | K98: 0.07712765957 | L98: 0.3005319149 | M98: 0.2819148936 | N98: 0.1117021277 | O98: 0.125 | P98: 0.03723404255 | Q98: 0 | R98: 0 | S98: 0 | T98: 0 | U98: 0 | V98: 0 | W98: 0.1398176292 | X98: 0 | Y98: 0.2559726962 | Z98: 0 | AA98: 120084 | AB98: 0 | AC98: 0 | AD98: 1 | AE98: 0 | AF98: 6041.6 | AG98: 0 | AH98: 0 | AI98: 4180 | AJ98: 1620019.218 | AK98: 73756.3886 | AL98: 0 | AM98: 0 | AN98: 4556.052 | AO98: 387 | AR98: 4.14 | AS98: 0 | AT98: 0 | BI98: 128859.98 | BJ98: 60981.09 | BK98: 105463.1877 | BL98: 28934.78857 | BM98: 120084 | BO98: 0 | BP98: 0 | CD98: Recoupment Academy
A99: 2310 | B99: Barton Junior School | C99: 1 | D99: 213 | E99: 0 | F99: 0 | G99: 0.4225352113 | H99: 0 | I99: 0.4611872146 | J99: 0 | K99: 0.08450704225 | L99: 0.1314553991 | M99: 0.3896713615 | N99: 0.1549295775 | O99: 0.04694835681 | P99: 0.03286384977 | Q99: 0 | R99: 0 | S99: 0 | T99: 0 | U99: 0 | V99: 0 | W99: 0.04694835681 | X99: 0 | Y99: 0.2403846154 | Z99: 0 | AA99: 120084 | AB99: 0 | AC99: 0 | AD99: 1 | AE99: 0 | AF99: 3942.2 | AG99: 0 | AH99: 0 | AI99: 4180 | AJ99: 925591.7638 | AK99: 38494.32 | AL99: 0 | AM99: 0 | AN99: 2904.82 | AO99: 214 | AR99: 4.14 | AS99: 0 | AT99: 0 | BI99: 69003.35 | BJ99: 32734.14151 | BK99: 56105.53125 | BL99: 5503.9 | BM99: 120084 | BO99: 0 | BP99: 0 | CD99: Recoupment Academy
A100: 2313 | B100: St Martin's School | C100: 1 | D100: 220 | E100: 0 | F100: 0 | G100: 0.1454545455 | H100: 0 | I100: 0.1636363636 | J100: 0 | K100: 0.2681818182 | L100: 0.03181818182 | M100: 0.05909090909 | N100: 0.07272727273 | O100: 0.02727272727 | P100: 0.01363636364 | Q100: 0 | R100: 0 | S100: 0 | T100: 0 | U100: 0 | V100: 0 | W100: 0.01052631579 | X100: 0 | Y100: 0.2446808511 | Z100: 0 | AA100: 120084 | AB100: 0 | AC100: 0 | AD100: 1 | AE100: 0 | AF100: 4096 | AG100: 0 | AH100: 0 | AI100: 4180 | AJ100: 861292.096 | AK100: 39573.6 | AL100: 0 | AM100: 0 | AN100: 3700.06 | AO100: 220 | AR100: 4.14 | AS100: 0 | AT100: 0 | BI100: 31687.11 | BJ100: 11996.28 | BK100: 58985.06596 | BL100: 1274.587368 | BM100: 120084 | BO100: 345.3166741 | BP100: 0 | CD100: Recoupment Academy
A101: 2315 | B101: White Cliffs Primary School | C101: 1 | D101: 326 | E101: 0 | F101: 0 | G101: 0.527607362 | H101: 0 | I101: 0.527607362 | J101: 0 | K101: 0.0245398773 | L101: 0.07975460123 | M101: 0.3435582822 | N101: 0.01533742331 | O101: 0.0245398773 | P101: 0.4294478528 | Q101: 0 | R101: 0 | S101: 0 | T101: 0 | U101: 0 | V101: 0 | W101: 0.0625 | X101: 0 | Y101: 0.2472324723 | Z101: 0 | AA101: 120084 | AB101: 0 | AC101: 0 | AD101: 1 | AE101: 0 | AF101: 5836.8 | AG101: 0 | AH101: 0 | AI101: 4180 | AJ101: 1361713.543 | AK101: 65056.5257 | AL101: 0 | AM101: 0 | AN101: 2404.318 | AO101: 318 | AR101: 4.14 | AS101: 0 | AT101: 0 | BI101: 147327.75 | BJ101: 57315.56 | BK101: 88316.63594 | BL101: 11214.19625 | BM101: 120084 | BO101: 0 | BP101: 0 | CD101: Recoupment Academy
A102: 2316 | B102: Shatterlocks Infant and Nursery School | C102: 1 | D102: 166 | E102: 0 | F102: 0 | G102: 0.4036144578 | H102: 0 | I102: 0.4036144578 | J102: 0 | K102: 0.09036144578 | L102: 0.09036144578 | M102: 0.4397590361 | N102: 0.1626506024 | O102: 0.06626506024 | P102: 0.0421686747 | Q102: 0 | R102: 0 | S102: 0 | T102: 0 | U102: 0 | V102: 0 | W102: 0.07476635514 | X102: 0 | Y102: 0.1724137931 | Z102: 0 | AA102: 120084 | AB102: 0 | AC102: 0 | AD102: 1 | AE102: 0 | AF102: 6912 | AG102: 0 | AH102: 0 | AI102: 4180 | AJ102: 710752.4763 | AK102: 29058.8571 | AL102: 0 | AM102: 0 | AN102: 6062.634 | AO102: 160 | AR102: 4.14 | AS102: 0 | AT102: 0 | BI102: 58676.13 | BJ102: 22326.41 | BK102: 31361.6931 | BL102: 6831.008598 | BM102: 120084 | BO102: 0 | BP102: 0 | CD102: Recoupment Academy
A103: 2435 | B103: South Avenue Primary School | C103: 1 | D103: 414 | E103: 0 | F103: 0 | G103: 0.2801932367 | H103: 0 | I103: 0.3071428571 | J103: 0 | K103: 0.2391304348 | L103: 0.2657004831 | M103: 0.09178743961 | N103: 0 | O103: 0.002415458937 | P103: 0.07487922705 | Q103: 0 | R103: 0 | S103: 0 | T103: 0 | U103: 0 | V103: 0 | W103: 0.07062146893 | X103: 0 | Y103: 0.1936416185 | Z103: 0 | AA103: 120084 | AB103: 0 | AC103: 0 | AD103: 1 | AE103: 0 | AF103: 7884.8 | AG103: 0 | AH103: 0 | AI103: 4180 | AJ103: 1596360.708 | AK103: 74830.08 | AL103: 0 | AM103: 0 | AN103: 7190.672 | AO103: 416 | AR103: 4.14 | AS103: 0 | AT103: 0 | BI103: 85219.33 | BJ103: 42372.57471 | BK103: 87845.28399 | BL103: 16091.91102 | BM103: 120084 | BO103: 44937.40028 | BP103: 0 | CD103: Recoupment Academy
A104: 2438 | B104: Joydens Wood Junior School | C104: 1 | D104: 332 | E104: 0 | F104: 0 | G104: 0.07228915663 | H104: 0 | I104: 0.07228915663 | J104: 0 | K104: 0.04518072289 | L104: 0.04819277108 | M104: 0 | N104: 0.02710843373 | O104: 0.006024096386 | P104: 0 | Q104: 0 | R104: 0 | S104: 0 | T104: 0 | U104: 0 | V104: 0 | W104: 0.03927492447 | X104: 0 | Y104: 0.1790123457 | Z104: 0 | AA104: 120084 | AB104: 0 | AC104: 0 | AD104: 1.0368 | AE104: 0 | AF104: 2668.932 | AG104: 0 | AH104: 0 | AI104: 4180 | AJ104: 1285088.25 | AK104: 63386.28 | AL104: 0 | AM104: 0 | AN104: 2588.25 | AO104: 342 | AR104: 4.14 | AS104: 0 | AT104: 0 | BI104: 12348.58 | BJ104: 7997.52 | BK104: 65123.91086 | BL104: 7176.686526 | BM104: 120084 | BO104: 91023.02453 | BP104: 0 | CD104: Recoupment Academy
A105: 2462 | B105: Riverview Infant School | C105: 1 | D105: 352 | E105: 0 | F105: 0 | G105: 0.1903409091 | H105: 0 | I105: 0.1903409091 | J105: 0 | K105: 0.09943181818 | L105: 0.03977272727 | M105: 0.07102272727 | N105: 0.1789772727 | O105: 0 | P105: 0 | Q105: 0 | R105: 0 | S105: 0 | T105: 0 | U105: 0 | V105: 0 | W105: 0.156779661 | X105: 0 | Y105: 0.2457627119 | Z105: 0 | AA105: 120084 | AB105: 0 | AC105: 0 | AD105: 1 | AE105: 0 | AF105: 4121.6 | AG105: 0 | AH105: 0 | AI105: 4180 | AJ105: 1290283.765 | AK105: 60259.8 | AL105: 0 | AM105: 0 | AN105: 3297.41 | AO105: 335 | AR105: 4.14 | AS105: 0 | AT105: 0 | BI105: 49484.55 | BJ105: 22326.41 | BK105: 94793.39119 | BL105: 30374.06508 | BM105: 120084 | BO105: 34660.30373 | BP105: 0 | CD105: Recoupment Academy
A106: 2463 | B106: Minterne Community Junior School | C106: 1 | D106: 365 | E106: 0 | F106: 0 | G106: 0.1260273973 | H106: 0 | I106: 0.1558441558 | J106: 0 | K106: 0.1287671233 | L106: 0.06301369863 | M106: 0.1095890411 | N106: 0.005479452055 | O106: 0.008219178082 | P106: 0.01095890411 | Q106: 0 | R106: 0 | S106: 0 | T106: 0 | U106: 0 | V106: 0 | W106: 0.01643835616 | X106: 0 | Y106: 0.268907563 | Z106: 0 | AA106: 120084 | AB106: 0 | AC106: 0 | AD106: 1 | AE106: 0 | AF106: 6246.4 | AG106: 0 | AH106: 0 | AI106: 4180 | AJ106: 1452800.63 | AK106: 76374.1029 | AL106: 0 | AM106: 0 | AN106: 5300.63 | AO106: 386 | AR106: 4.14 | AS106: 0 | AT106: 0 | BI106: 37306.12 | BJ106: 18955.16104 | BK106: 107551.2067 | BL106: 3302.34 | BM106: 120084 | BO106: 88319.40224 | BP106: 0 | CD106: Recoupment Academy
A107: 2500 | B107: Joydens Wood Infant School | C107: 1 | D107: 255 | E107: 0 | F107: 0 | G107: 0.03137254902 | H107: 0 | I107: 0.03765690377 | J107: 0 | K107: 0.06274509804 | L107: 0.02352941176 | M107: 0.03529411765 | N107: 0.03137254902 | O107: 0.007843137255 | P107: 0 | Q107: 0 | R107: 0 | S107: 0 | T107: 0 | U107: 0 | V107: 0 | W107: 0.1818181818 | X107: 0 | Y107: 0.3253012048 | Z107: 0 | AA107: 120084 | AB107: 0 | AC107: 0 | AD107: 1.0368 | AE107: 0 | AF107: 2688 | AG107: 0 | AH107: 0 | AI107: 4180 | AJ107: 963014.3276 | AK107: 45222.96 | AL107: 0 | AM107: 0 | AN107: 5176.4 | AO107: 244 | AR107: 4.14 | AS107: 0 | AT107: 0 | BI107: 13209.23 | BJ107: 3199.844561 | BK107: 90896.10181 | BL107: 25518.08182 | BM107: 120084 | BO107: 0 | BP107: 0 | CD107: Recoupment Academy
A108: 2511 | B108: Hartley Primary Academy | C108: 1 | D108: 418 | E108: 0 | F108: 0 | G108: 0.07894736842 | H108: 0 | I108: 0.07894736842 | J108: 0 | K108: 0.002392344498 | L108: 0.01435406699 | M108: 0.1794258373 | N108: 0 | O108: 0.002392344498 | P108: 0 | Q108: 0 | R108: 0 | S108: 0 | T108: 0 | U108: 0 | V108: 0 | W108: 0.04748603352 | X108: 0 | Y108: 0.4666666667 | Z108: 0 | AA108: 120084 | AB108: 0 | AC108: 0 | AD108: 1.0368 | AE108: 0 | AF108: 6574.08 | AG108: 0 | AH108: 0 | AI108: 4180 | AJ108: 1572923 | AK108: 77472.12 | AL108: 0 | AM108: 0 | AN108: 5423 | AO108: 418 | AR108: 4.14 | AS108: 0 | AT108: 0 | BI108: 33023.31 | BJ108: 10996.59 | BK108: 213748.2013 | BL108: 10924.78028 | BM108: 120084 | BO108: 0 | BP108: 0 | CD108: Recoupment Academy
A109: 2513 | B109: The Oaks Community Infant School | C109: 1 | D109: 274 | E109: 0 | F109: 0 | G109: 0.1277372263 | H109: 0 | I109: 0.1277372263 | J109: 0 | K109: 0.1386861314 | L109: 0.07664233577 | M109: 0.1532846715 | N109: 0.003649635036 | O109: 0 | P109: 0 | Q109: 0 | R109: 0 | S109: 0 | T109: 0 | U109: 0 | V109: 0 | W109: 0.03804347826 | X109: 0 | Y109: 0.2790697674 | Z109: 0 | AA109: 120084 | AB109: 0 | AC109: 0 | AD109: 1 | AE109: 0 | AF109: 4736 | AG109: 0 | AH109: 0 | AI109: 4180 | AJ109: 1025870.358 | AK109: 48387.72 | AL109: 0 | AM109: 0 | AN109: 3413.838 | AO109: 269 | AR109: 4.14 | AS109: 0 | AT109: 0 | BI109: 31316.97 | BJ109: 11663.05 | BK109: 83788.18047 | BL109: 5737.2175 | BM109: 120084 | BO109: 29090.80203 | BP109: 0 | CD109: Recoupment Academy
A110: 2523 | B110: Upton Junior School | C110: 1 | D110: 512 | E110: 0 | F110: 0 | G110: 0.154296875 | H110: 0 | I110: 0.1773879142 | J110: 0 | K110: 0.08219178082 | L110: 0.07632093933 | M110: 0.05088062622 | N110: 0.0313111546 | O110: 0.0313111546 | P110: 0.005870841487 | Q110: 0 | R110: 0 | S110: 0 | T110: 0 | U110: 0 | V110: 0 | W110: 0.015625 | X110: 0 | Y110: 0.2510288066 | Z110: 0 | AA110: 120084 | AB110: 0 | AC110: 0 | AD110: 1 | AE110: 0 | AF110: 15400.96 | AG110: 0 | AH110: 0 | AI110: 4180 | AJ110: 1923066.72 | AK110: 91558.92 | AL110: 0 | AM110: 0 | AN110: 14316.72 | AO110: 509 | AR110: 4.14 | AS110: 0 | AT110: 0 | BI110: 46533.2753 | BJ110: 30264.81903 | BK110: 140835.7557 | BL110: 4403.12 | BM110: 120084 | BO110: 177970.71 | BP110: 0 | CD110: Recoupment Academy
A111: 2531 | B111: Vale View Community School | C111: 1 | D111: 186 | E111: 0 | F111: 0 | G111: 0.4462365591 | H111: 0 | I111: 0.4494949495 | J111: 0 | K111: 0.1505376344 | L111: 0.1505376344 | M111: 0.1290322581 | N111: 0.252688172 | O111: 0.1559139785 | P111: 0.02150537634 | Q111: 0 | R111: 0 | S111: 0 | T111: 0 | U111: 0 | V111: 0 | W111: 0.09493670886 | X111: 0 | Y111: 0.338028169 | Z111: 0 | AA111: 120084 | AB111: 0 | AC111: 0 | AD111: 1 | AE111: 0 | AF111: 3865.6 | AG111: 0 | AH111: 0 | AI111: 4180 | AJ111: 888575.0721 | AK111: 35436.36 | AL111: 0 | AM111: 0 | AN111: 3290.912 | AO111: 197 | AR111: 4.14 | AS111: 0 | AT111: 0 | BI111: 60352.06 | BJ111: 27860.04758 | BK111: 68894.60958 | BL111: 9718.912025 | BM111: 120084 | BO111: 0 | BP111: 0 | CD111: Recoupment Academy
A112: 2534 | B112: Bysing Wood Primary School | C112: 1 | D112: 136 | E112: 0 | F112: 0 | G112: 0.5147058824 | H112: 0 | I112: 0.5147058824 | J112: 0 | K112: 0.1029411765 | L112: 0.08088235294 | M112: 0.2867647059 | N112: 0.007352941176 | O112: 0.3529411765 | P112: 0 | Q112: 0 | R112: 0 | S112: 0 | T112: 0 | U112: 0 | V112: 0 | W112: 0.04237288136 | X112: 0 | Y112: 0.4285714286 | Z112: 0 | AA112: 120084 | AB112: 0 | AC112: 0 | AD112: 1 | AE112: 0 | AF112: 48154 | AG112: 0 | AH112: 0 | AI112: 4180 | AJ112: 770357.1555 | AK112: 37968.1886 | AL112: 0 | AM112: 0 | AN112: 45608 | AO112: 151 | AR112: 4.14 | AS112: 0 | AT112: 0 | BI112: 45136.54 | BJ112: 23326.1 | BK112: 63867.73714 | BL112: 3171.738983 | BM112: 120084 | BO112: 0 | BP112: 0 | CD112: Recoupment Academy
A113: 2569 | B113: Briary Primary School | C113: 1 | D113: 307 | E113: 0 | F113: 0 | G113: 0.2573289902 | H113: 0 | I113: 0.2653061224 | J113: 0 | K113: 0.02295081967 | L113: 0.2655737705 | M113: 0.03278688525 | N113: 0.02295081967 | O113: 0.0131147541 | P113: 0 | Q113: 0 | R113: 0 | S113: 0 | T113: 0 | U113: 0 | V113: 0 | W113: 0.01838235294 | X113: 0 | Y113: 0.3547169811 | Z113: 0 | AA113: 120084 | AB113: 0 | AC113: 0 | AD113: 1 | AE113: 0 | AF113: 13308 | AG113: 0 | AH113: 0 | AI113: 4180 | AJ113: 1312666.189 | AK113: 60799.44 | AL113: 0 | AM113: 0 | AN113: 13317 | AO113: 338 | AR113: 4.14 | AS113: 0 | AT113: 0 | BI113: 31909.9021 | BJ113: 27141.24347 | BK113: 119327.2855 | BL113: 3106.061213 | BM113: 120084 | BO113: 0 | BP113: 0 | CD113: Recoupment Academy
A114: 2595 | B114: Grove Park Primary School | C114: 1 | D114: 411 | E114: 0 | F114: 0 | G114: 0.1411192214 | H114: 0 | I114: 0.1513002364 | J114: 0 | K114: 0.07785888078 | L114: 0.2214111922 | M114: 0.04379562044 | N114: 0 | O114: 0.007299270073 | P114: 0.01459854015 | Q114: 0 | R114: 0 | S114: 0 | T114: 0 | U114: 0 | V114: 0 | W114: 0.0625 | X114: 0 | Y114: 0.2585227273 | Z114: 0 | AA114: 120084 | AB114: 0 | AC114: 0 | AD114: 1 | AE114: 0 | AF114: 11366.4 | AG114: 0 | AH114: 0 | AI114: 4180 | AJ114: 1578444.6 | AK114: 75189.84 | AL114: 0 | AM114: 0 | AN114: 10944.6 | AO114: 418 | AR114: 4.14 | AS114: 0 | AT114: 0 | BI114: 43094.97 | BJ114: 20721.70667 | BK114: 116428.6755 | BL114: 14138.14313 | BM114: 120084 | BO114: 105521.0747 | BP114: 0 | CD114: Recoupment Academy
A115: 2596 | B115: Chilton Primary School | C115: 1 | D115: 423 | E115: 0 | F115: 0 | G115: 0.1560283688 | H115: 0 | I115: 0.1560283688 | J115: 0 | K115: 0.2718676123 | L115: 0.04728132388 | M115: 0.0756501182 | N115: 0.05437352246 | O115: 0.02836879433 | P115: 0.0378250591 | Q115: 0 | R115: 0 | S115: 0 | T115: 0 | U115: 0 | V115: 0 | W115: 0.01928374656 | X115: 0 | Y115: 0.2055555556 | Z115: 0 | AA115: 120084 | AB115: 0 | AC115: 0 | AD115: 1 | AE115: 0 | AF115: 7526.4 | AG115: 0 | AH115: 0 | AI115: 4180 | AJ115: 1589747.1 | AK115: 79320.5314 | AL115: 0 | AM115: 0 | AN115: 7247.1 | AO115: 422 | AR115: 4.14 | AS115: 0 | AT115: 0 | BI115: 68948.1 | BJ115: 21993.18 | BK115: 95277.2015 | BL115: 4489.544876 | BM115: 120084 | BO115: 118555.9436 | BP115: 0 | CD115: Recoupment Academy
A116: 2608 | B116: St Stephen's Junior School | C116: 1 | D116: 423 | E116: 0 | F116: 0 | G116: 0.243498818 | H116: 0 | I116: 0.243498818 | J116: 0 | K116: 0.08983451537 | L116: 0.1158392435 | M116: 0.01182033097 | N116: 0.1394799054 | O116: 0.2789598109 | P116: 0 | Q116: 0 | R116: 0 | S116: 0 | T116: 0 | U116: 0 | V116: 0 | W116: 0.08274231678 | X116: 0 | Y116: 0.249343832 | Z116: 0 | AA116: 120084 | AB116: 0 | AC116: 0 | AD116: 1 | AE116: 0 | AF116: 8294.4 | AG116: 0 | AH116: 0 | AI116: 4180 | AJ116: 1653718.072 | AK116: 92569.2 | AL116: 0 | AM116: 0 | AN116: 7888 | AO116: 432 | AR116: 4.14 | AS116: 0 | AT116: 0 | BI116: 105338.2 | BJ116: 34322.69 | BK116: 115573.5366 | BL116: 19263.65 | BM116: 120084 | BO116: 17734.05339 | BP116: 0 | CD116: Recoupment Academy
A117: 2625 | B117: Godinton Primary School | C117: 1 | D117: 415 | E117: 0 | F117: 0 | G117: 0.06746987952 | H117: 0 | I117: 0.08571428571 | J117: 0 | K117: 0.04096385542 | L117: 0.0313253012 | M117: 0.01204819277 | N117: 0.004819277108 | O117: 0.06506024096 | P117: 0 | Q117: 0 | R117: 0 | S117: 0 | T117: 0 | U117: 0 | V117: 0 | W117: 0.04481792717 | X117: 0 | Y117: 0.2877492877 | Z117: 0 | AA117: 120084 | AB117: 0 | AC117: 0 | AD117: 1 | AE117: 0 | AF117: 10086.4 | AG117: 0 | AH117: 0 | AI117: 4180 | AJ117: 1588462.1 | AK117: 75729.48 | AL117: 0 | AM117: 0 | AN117: 9712.1 | AO117: 421 | AR117: 4.14 | AS117: 0 | AT117: 0 | BI117: 22815.87 | BJ117: 11853.46714 | BK117: 130852.4204 | BL117: 10236.94566 | BM117: 120084 | BO117: 142302.7868 | BP117: 0 | CD117: Recoupment Academy
A118: 2629 | B118: Holywell Primary School | C118: 1 | D118: 199 | E118: 0 | F118: 0 | G118: 0.1457286432 | H118: 0 | I118: 0.1457286432 | J118: 0 | K118: 0.08040201005 | L118: 0.03015075377 | M118: 0.01507537688 | N118: 0 | O118: 0 | P118: 0 | Q118: 0 | R118: 0 | S118: 0 | T118: 0 | U118: 0 | V118: 0 | W118: 0.0988372093 | X118: 0 | Y118: 0.1242236025 | Z118: 0 | AA118: 120084 | AB118: 0 | AC118: 0 | AD118: 1 | AE118: 0 | AF118: 23578 | AG118: 0 | AH118: 0 | AI118: 4180 | AJ118: 789266.7098 | AK118: 37472.9143 | AL118: 0 | AM118: 0 | AN118: 23578 | AO118: 202 | AR118: 4.14 | AS118: 0 | AT118: 0 | BI118: 6234.35 | BJ118: 9663.67 | BK118: 27087.97888 | BL118: 10825.40331 | BM118: 120084 | BO118: 29034.4878 | BP118: 0 | CD118: Recoupment Academy
A119: 2650 | B119: Dymchurch Primary School | C119: 1 | D119: 175 | E119: 0 | F119: 0 | G119: 0.2628571429 | H119: 0 | I119: 0.2905027933 | J119: 0 | K119: 0.5771428571 | L119: 0.02285714286 | M119: 0.02857142857 | N119: 0.04 | O119: 0 | P119: 0 | Q119: 0 | R119: 0 | S119: 0 | T119: 0 | U119: 0 | V119: 0 | W119: 0.01973684211 | X119: 0 | Y119: 0.3020134228 | Z119: 0 | AA119: 120084 | AB119: 0 | AC119: 0 | AD119: 1 | AE119: 0 | AF119: 4359.6 | AG119: 0 | AH119: 0 | AI119: 4180 | AJ119: 750348.8473 | AK119: 32018.64 | AL119: 0 | AM119: 0 | AN119: 4264.45 | AO119: 178 | AR119: 4.14 | AS119: 0 | AT119: 0 | BI119: 27939.49 | BJ119: 16940.74302 | BK119: 57914.01846 | BL119: 1901.018092 | BM119: 120084 | BO119: 0 | BP119: 0 | CD119: Recoupment Academy
A120: 2654 | B120: The Canterbury Primary School | C120: 1 | D120: 392 | E120: 0 | F120: 0 | G120: 0.3214285714 | H120: 0 | I120: 0.3290488432 | J120: 0 | K120: 0.04591836735 | L120: 0.1479591837 | M120: 0.02551020408 | N120: 0.2959183673 | O120: 0.1071428571 | P120: 0 | Q120: 0 | R120: 0 | S120: 0 | T120: 0 | U120: 0 | V120: 0 | W120: 0.1420289855 | X120: 0 | Y120: 0.2113564669 | Z120: 0 | AA120: 120084 | AB120: 0 | AC120: 0 | AD120: 1 | AE120: 0 | AF120: 16281.6 | AG120: 0 | AH120: 0 | AI120: 4180 | AJ120: 1543879.033 | AK120: 70512.96 | AL120: 0 | AM120: 0 | AN120: 15677.4 | AO120: 392 | AR120: 4.14 | AS120: 0 | AT120: 0 | BI120: 94685.86 | BJ120: 42982.38684 | BK120: 90786.44568 | BL120: 30643.16267 | BM120: 120084 | BO120: 0 | BP120: 0 | CD120: Recoupment Academy
A121: 2656 | B121: Meopham Community Academy | C121: 1 | D121: 433 | E121: 0 | F121: 0 | G121: 0.06466512702 | H121: 0 | I121: 0.07816091954 | J121: 0 | K121: 0.01395348837 | L121: 0.01395348837 | M121: 0.006976744186 | N121: 0.009302325581 | O121: 0 | P121: 0 | Q121: 0 | R121: 0 | S121: 0 | T121: 0 | U121: 0 | V121: 0 | W121: 0.005361930295 | X121: 0 | Y121: 0.2213114754 | Z121: 0 | AA121: 120084 | AB121: 0 | AC121: 0 | AD121: 1 | AE121: 0 | AF121: 6553.6 | AG121: 0 | AH121: 0 | AI121: 4180 | AJ121: 1633749.454 | AK121: 78067.92 | AL121: 0 | AM121: 0 | AN121: 6249.454 | AO121: 434 | AR121: 4.14 | AS121: 0 | AT121: 0 | BI121: 5905.002256 | BJ121: 11277.72887 | BK121: 105005.3039 | BL121: 1277.849169 | BM121: 120084 | BO121: 214158.5458 | BP121: 0 | CD121: Recoupment Academy
A122: 2657 | B122: Temple Hill Primary Academy | C122: 1 | D122: 785 | E122: 0 | F122: 0 | G122: 0.3312101911 | H122: 0 | I122: 0.3312101911 | J122: 0 | K122: 0.1146496815 | L122: 0.01146496815 | M122: 0.1694267516 | N122: 0.0127388535 | O122: 0.3057324841 | P122: 0 | Q122: 0 | R122: 0 | S122: 0 | T122: 0 | U122: 0 | V122: 0 | W122: 0.1776504298 | X122: 0 | Y122: 0.3303167421 | Z122: 0 | AA122: 120084 | AB122: 0 | AC122: 0 | AD122: 1.0368 | AE122: 0 | AF122: 9574.4 | AG122: 0 | AH122: 0 | AI122: 4180 | AJ122: 3312092.476 | AK122: 150496.08 | AL122: 0 | AM122: 0 | AN122: 6897.492 | AO122: 812 | AR122: 4.14 | AS122: 0 | AT122: 0 | BI122: 194805.99 | BJ122: 86639.8 | BK122: 284131.6735 | BL122: 76754.96074 | BM122: 120084 | BO122: 0 | BP122: 0 | CD122: Recoupment Academy
A123: 2658 | B123: Westcourt Primary School | C123: 1 | D123: 299 | E123: 0 | F123: 0 | G123: 0.3511705686 | H123: 0 | I123: 0.3511705686 | J123: 0 | K123: 0.1891891892 | L123: 0.04391891892 | M123: 0.2601351351 | N123: 0.3513513514 | O123: 0.01689189189 | P123: 0 | Q123: 0 | R123: 0 | S123: 0 | T123: 0 | U123: 0 | V123: 0 | W123: 0.1395348837 | X123: 0 | Y123: 0.2113207547 | Z123: 0 | AA123: 120084 | AB123: 0 | AC123: 0 | AD123: 1 | AE123: 0 | AF123: 4787.2 | AG123: 0 | AH123: 0 | AI123: 4180 | AJ123: 1274058.843 | AK123: 52524.96 | AL123: 0 | AM123: 0 | AN123: 4357.1 | AO123: 292 | AR123: 4.14 | AS123: 0 | AT123: 0 | BI123: 96682.01365 | BJ123: 34989.15 | BK123: 69236.12408 | BL123: 22962.78279 | BM123: 120084 | BO123: 0 | BP123: 40054.49831 | CD123: Recoupment Academy
A124: 2659 | B124: Sandown School | C124: 1 | D124: 386 | E124: 0 | F124: 0 | G124: 0.2642487047 | H124: 0 | I124: 0.2642487047 | J124: 0 | K124: 0.3896103896 | L124: 0.03116883117 | M124: 0.02337662338 | N124: 0.1246753247 | O124: 0.03116883117 | P124: 0.005194805195 | Q124: 0 | R124: 0 | S124: 0 | T124: 0 | U124: 0 | V124: 0 | W124: 0.01497005988 | X124: 0 | Y124: 0.1873015873 | Z124: 0 | AA124: 120084 | AB124: 0 | AC124: 0 | AD124: 1 | AE124: 0 | AF124: 7610.4 | AG124: 0 | AH124: 0 | AI124: 4180 | AJ124: 1470110.4 | AK124: 70153.2 | AL124: 0 | AM124: 0 | AN124: 7610.4 | AO124: 390 | AR124: 4.14 | AS124: 0 | AT124: 0 | BI124: 67582.05304 | BJ124: 33989.46 | BK124: 79222.43168 | BL124: 3180.397305 | BM124: 120084 | BO124: 68505.39797 | BP124: 0 | CD124: Recoupment Academy
A125: 2666 | B125: Wrotham Road Primary School | C125: 1 | D125: 409 | E125: 0 | F125: 0 | G125: 0.2322738386 | H125: 0 | I125: 0.2322738386 | J125: 0 | K125: 0.07579462103 | L125: 0.4425427873 | M125: 0.0097799511 | N125: 0.02689486553 | O125: 0.002444987775 | P125: 0 | Q125: 0 | R125: 0 | S125: 0 | T125: 0 | U125: 0 | V125: 0 | W125: 0.2897727273 | X125: 0 | Y125: 0.3333333333 | Z125: 0 | AA125: 120084 | AB125: 0 | AC125: 0 | AD125: 1 | AE125: 0 | AF125: 5529.6 | AG125: 0 | AH125: 0 | AI125: 4180 | AJ125: 1622676.756 | AK125: 73930.68 | AL125: 0 | AM125: 0 | AN125: 4434.5688 | AO125: 411 | AR125: 4.14 | AS125: 0.9 | AT125: 0.22 | BI125: 60777.13 | BJ125: 31656.85 | BK125: 149389.9767 | BL125: 65230.59665 | BM125: 120084 | BO125: 0 | BP125: 0 | CD125: Recoupment Academy
A126: 2676 | B126: West Hill Primary Academy | C126: 1 | D126: 540 | E126: 0 | F126: 0 | G126: 0.1074074074 | H126: 0 | I126: 0.1074074074 | J126: 0 | K126: 0.02222222222 | L126: 0.02222222222 | M126: 0.01111111111 | N126: 0.01296296296 | O126: 0.04259259259 | P126: 0 | Q126: 0 | R126: 0 | S126: 0 | T126: 0 | U126: 0 | V126: 0 | W126: 0.1698924731 | X126: 0 | Y126: 0.2304250559 | Z126: 0 | AA126: 120084 | AB126: 0 | AC126: 0 | AD126: 1.0368 | AE126: 0 | AF126: 5734.4 | AG126: 0 | AH126: 0 | AI126: 4180 | AJ126: 2030521.6 | AK126: 100083.6 | AL126: 0 | AM126: 0 | AN126: 5521.6 | AO126: 540 | AR126: 4.14 | AS126: 0 | AT126: 0 | BI126: 22215.46 | BJ126: 19327.34 | BK126: 136346.1463 | BL126: 50493.84387 | BM126: 120084 | BO126: 136449.2907 | BP126: 0 | CD126: Recoupment Academy
A127: 2677 | B127: Coxheath Primary School | C127: 1 | D127: 405 | E127: 0 | F127: 0 | G127: 0.187654321 | H127: 0 | I127: 0.2 | J127: 0 | K127: 0.3604938272 | L127: 0.01975308642 | M127: 0.004938271605 | N127: 0.01234567901 | O127: 0.03950617284 | P127: 0 | Q127: 0 | R127: 0 | S127: 0 | T127: 0 | U127: 0 | V127: 0 | W127: 0.04213483146 | X127: 0 | Y127: 0.273255814 | Z127: 0 | AA127: 120084 | AB127: 0 | AC127: 0 | AD127: 1 | AE127: 0 | AF127: 5324.8 | AG127: 0 | AH127: 0 | AI127: 4180 | AJ127: 1491942.8 | AK127: 71412.36 | AL127: 0 | AM127: 0 | AN127: 3192.8 | AO127: 397 | AR127: 4.14 | AS127: 0 | AT127: 0 | BI127: 44145.75 | BJ127: 26991.63 | BK127: 121267.3369 | BL127: 9392.188904 | BM127: 120084 | BO127: 83300.92418 | BP127: 0 | CD127: Recoupment Academy
A128: 2679 | B128: The Brent Primary School | C128: 1 | D128: 584 | E128: 0 | F128: 0 | G128: 0.2020547945 | H128: 0 | I128: 0.2258652095 | J128: 0 | K128: 0.2739726027 | L128: 0.02054794521 | M128: 0.1678082192 | N128: 0.003424657534 | O128: 0.02397260274 | P128: 0 | Q128: 0 | R128: 0 | S128: 0 | T128: 0 | U128: 0 | V128: 0 | W128: 0.1191919192 | X128: 0 | Y128: 0.2662601626 | Z128: 0 | AA128: 120084 | AB128: 0 | AC128: 0 | AD128: 1.0368 | AE128: 0 | AF128: 8140.8 | AG128: 0 | AH128: 0 | AI128: 4180 | AJ128: 2077331.604 | AK128: 102307.68 | AL128: 0 | AM128: 0 | AN128: 7331.604 | AO128: 552 | AR128: 4.14 | AS128: 0 | AT128: 0 | BI128: 85299.82 | BJ128: 43954.79723 | BK128: 170387.7807 | BL128: 38311.5916 | BM128: 120084 | BO128: 37022.34384 | BP128: 0 | CD128: Recoupment Academy
A129: 2684 | B129: Wentworth Primary School | C129: 1 | D129: 606 | E129: 0 | F129: 0 | G129: 0.1138613861 | H129: 0 | I129: 0.1258503401 | J129: 0 | K129: 0.1716171617 | L129: 0.001650165017 | M129: 0.00495049505 | N129: 0.01650165017 | O129: 0.01155115512 | P129: 0 | Q129: 0 | R129: 0 | S129: 0 | T129: 0 | U129: 0 | V129: 0 | W129: 0.07572815534 | X129: 0 | Y129: 0.2549407115 | Z129: 0 | AA129: 120084 | AB129: 0 | AC129: 0 | AD129: 1.0368 | AE129: 0 | AF129: 7680 | AG129: 0 | AH129: 0 | AI129: 4180 | AJ129: 2193435.472 | AK129: 108053.22 | AL129: 0 | AM129: 0 | AN129: 7185.472 | AO129: 583 | AR129: 4.14 | AS129: 0 | AT129: 0 | BI129: 31647.06 | BJ129: 25413.88796 | BK129: 169289.9683 | BL129: 25258.09177 | BM129: 120084 | BO129: 171336.5792 | BP129: 0 | CD129: Recoupment Academy
A130: 2685 | B130: The Gateway Primary Academy | C130: 1 | D130: 209 | E130: 0 | F130: 0 | G130: 0.0956937799 | H130: 0 | I130: 0.1047619048 | J130: 0 | K130: 0.1941747573 | L130: 0.004854368932 | M130: 0.03398058252 | N130: 0.009708737864 | O130: 0.009708737864 | P130: 0 | Q130: 0 | R130: 0 | S130: 0 | T130: 0 | U130: 0 | V130: 0 | W130: 0.1899441341 | X130: 0 | Y130: 0.2203389831 | Z130: 0 | AA130: 120084 | AB130: 0 | AC130: 0 | AD130: 1.0368 | AE130: 0 | AF130: 5376 | AG130: 0 | AH130: 0 | AI130: 4180 | AJ130: 853175.0507 | AK130: 38921.4 | AL130: 0 | AM130: 0 | AN130: 5176.5 | AO130: 210 | AR130: 4.14 | AS130: 0 | AT130: 0 | BI130: 13777.24956 | BJ130: 7296.15019 | BK130: 50461.13712 | BL130: 21849.56056 | BM130: 120084 | BO130: 0 | BP130: 0 | CD130: Recoupment Academy
A131: 2686 | B131: Furley Park Primary Academy | C131: 1 | D131: 578 | E131: 0 | F131: 0 | G131: 0.1193771626 | H131: 0 | I131: 0.1338842975 | J131: 0 | K131: 0.04340277778 | L131: 0.02604166667 | M131: 0.01736111111 | N131: 0.003472222222 | O131: 0.03472222222 | P131: 0 | Q131: 0 | R131: 0 | S131: 0 | T131: 0 | U131: 0 | V131: 0 | W131: 0.08823529412 | X131: 0 | Y131: 0.1963927856 | Z131: 0 | AA131: 120084 | AB131: 0 | AC131: 0 | AD131: 1 | AE131: 0 | AF131: 14363.34 | AG131: 0 | AH131: 0 | AI131: 4180 | AJ131: 2293705.4 | AK131: 109367.04 | AL131: 0 | AM131: 0 | AN131: 13705.4 | AO131: 608 | AR131: 4.14 | AS131: 0 | AT131: 0 | BI131: 23864.1449 | BJ131: 25787.04486 | BK131: 124386.3645 | BL131: 28069.89 | BM131: 120084 | BO131: 274234.2158 | BP131: 0 | CD131: Recoupment Academy
A132: 3019 | B132: Shorne Church of England Primary School | C132: 1 | D132: 210 | E132: 0 | F132: 0 | G132: 0.01904761905 | H132: 0 | I132: 0.02857142857 | J132: 0 | K132: 0.01904761905 | L132: 0.02380952381 | M132: 0.05238095238 | N132: 0.04285714286 | O132: 0 | P132: 0 | Q132: 0 | R132: 0 | S132: 0 | T132: 0 | U132: 0 | V132: 0 | W132: 0.01111111111 | X132: 0 | Y132: 0.2166666667 | Z132: 0 | AA132: 120084 | AB132: 0 | AC132: 0 | AD132: 1 | AE132: 0 | AF132: 4096 | AG132: 0 | AH132: 0 | AI132: 4180 | AJ132: 783800.884 | AK132: 37415.04 | AL132: 0 | AM132: 0 | AN132: 3800.884 | AO132: 208 | AR132: 4.14 | AS132: 0 | AT132: 0 | BI132: 10682.48 | BJ132: 1999.38 | BK132: 49857.535 | BL132: 1284.243333 | BM132: 120084 | BO132: 42485.38167 | BP132: 0 | CD132: Recoupment Academy
A133: 3021 | B133: Stone St Mary's CofE Primary School | C133: 1 | D133: 636 | E133: 0 | F133: 0 | G133: 0.1855345912 | H133: 0 | I133: 0.1855345912 | J133: 0 | K133: 0.09119496855 | L133: 0.0251572327 | M133: 0.08962264151 | N133: 0.003144654088 | O133: 0.01729559748 | P133: 0 | Q133: 0 | R133: 0 | S133: 0 | T133: 0 | U133: 0 | V133: 0 | W133: 0.08791208791 | X133: 0 | Y133: 0.2772466539 | Z133: 0 | AA133: 120084 | AB133: 0 | AC133: 0 | AD133: 1.0368 | AE133: 0 | AF133: 11059.2 | AG133: 0 | AH133: 0 | AI133: 4180 | AJ133: 2388148.8 | AK133: 117505.56 | AL133: 0 | AM133: 0 | AN133: 10648.8 | AO133: 634 | AR133: 4.14 | AS133: 0 | AT133: 0 | BI133: 46147.36 | BJ133: 39321.14 | BK133: 193215.888 | BL133: 30773.45407 | BM133: 120084 | BO133: 117163.2194 | BP133: 0 | CD133: Recoupment Academy
A134: 3025 | B134: Chiddingstone Church of England School | C134: 1 | D134: 209 | E134: 0 | F134: 0 | G134: 0.04784688995 | H134: 0 | I134: 0.04784688995 | J134: 0 | K134: 0.04854368932 | L134: 0 | M134: 0.01941747573 | N134: 0 | O134: 0 | P134: 0 | Q134: 0 | R134: 0 | S134: 0 | T134: 0 | U134: 0 | V134: 0 | W134: 0.005586592179 | X134: 0 | Y134: 0.08 | Z134: 0 | AA134: 120084 | AB134: 0 | AC134: 0 | AD134: 1.0368 | AE134: 0 | AF134: 2534.4 | AG134: 0 | AH134: 0 | AI134: 4180 | AJ134: 789940.35 | AK134: 38921.4 | AL134: 0 | AM134: 0 | AN134: 2440.35 | AO134: 210 | AR134: 4.14 | AS134: 0 | AT134: 0 | BI134: 3847.892913 | BJ134: 3332.3 | BK134: 18321.2744 | BL134: 642.6341341 | BM134: 120084 | BO134: 46975.38756 | BP134: 0 | CD134: Recoupment Academy
A135: 3059 | B135: St Mark's Church of England Primary School, Eccles | C135: 1 | D135: 135 | E135: 0 | F135: 0 | G135: 0.1259259259 | H135: 0 | I135: 0.1259259259 | J135: 0 | K135: 0.02962962963 | L135: 0.01481481481 | M135: 0 | N135: 0.007407407407 | O135: 0.01481481481 | P135: 0 | Q135: 0 | R135: 0 | S135: 0 | T135: 0 | U135: 0 | V135: 0 | W135: 0 | X135: 0 | Y135: 0.2767857143 | Z135: 0 | AA135: 120084 | AB135: 0 | AC135: 0 | AD135: 1 | AE135: 0 | AF135: 4582.4 | AG135: 0 | AH135: 0 | AI135: 4180 | AJ135: 552412.3212 | AK135: 23263.1143 | AL135: 0 | AM135: 0 | AN135: 4412.35 | AO135: 127 | AR135: 4.14 | AS135: 0 | AT135: 0 | BI135: 2776.93 | BJ135: 5664.91 | BK135: 40944.62009 | BL135: 0 | BM135: 120084 | BO135: 0 | BP135: 7207.964282 | CD135: Recoupment Academy
A136: 3086 | B136: West Malling Church of England Primary School and McGinty Speech and Language Centre | C136: 1 | D136: 194 | E136: 0 | F136: 0 | G136: 0.1907216495 | H136: 0 | I136: 0.1907216495 | J136: 0 | K136: 0.2731958763 | L136: 0.01030927835 | M136: 0 | N136: 0.1340206186 | O136: 0.05154639175 | P136: 0 | Q136: 0 | R136: 0 | S136: 0 | T136: 0 | U136: 0 | V136: 0 | W136: 0.02247191011 | X136: 0 | Y136: 0.3604651163 | Z136: 0 | AA136: 120084 | AB136: 0 | AC136: 0 | AD136: 1 | AE136: 0 | AF136: 3777.2 | AG136: 0 | AH136: 0 | AI136: 4180 | AJ136: 851509.3795 | AK136: 37774.8 | AL136: 0 | AM136: 0 | AN136: 3777.2 | AO136: 210 | AR136: 4.14 | AS136: 0 | AT136: 0 | BI136: 28254.67 | BJ136: 12329.51 | BK136: 76627.45093 | BL136: 2399.453034 | BM136: 120084 | BO136: 0 | BP136: 0 | CD136: Recoupment Academy
A137: 3106 | B137: Eastchurch Church of England Primary School | C137: 1 | D137: 373 | E137: 0 | F137: 0 | G137: 0.3324396783 | H137: 0 | I137: 0.3324396783 | J137: 0 | K137: 0.09703504043 | L137: 0 | M137: 0.01078167116 | N137: 0.5148247978 | O137: 0.3261455526 | P137: 0.0269541779 | Q137: 0 | R137: 0 | S137: 0 | T137: 0 | U137: 0 | V137: 0 | W137: 0.0273556231 | X137: 0 | Y137: 0.3417721519 | Z137: 0 | AA137: 120084 | AB137: 0 | AC137: 0 | AD137: 1 | AE137: 33000 | AF137: 77824 | AG137: 0 | AH137: 0 | AI137: 4180 | AJ137: 1793630.295 | AK137: 74110.56 | AL137: 0 | AM137: 0 | AN137: 77824 | AO137: 412 | AR137: 4.14 | AS137: 0 | AT137: 0 | BI137: 159012.6146 | BJ137: 41320.52 | BK137: 139689.8692 | BL137: 5615.985502 | BM137: 120084 | BO137: 0 | BP137: 0 | CD137: Recoupment Academy
A138: 3110 | B138: Milstead and Frinsted Church of England Primary School | C138: 1 | D138: 97 | E138: 0 | F138: 0 | G138: 0.1340206186 | H138: 0 | I138: 0.1649484536 | J138: 0 | K138: 0.0824742268 | L138: 0.1546391753 | M138: 0.0206185567 | N138: 0.0412371134 | O138: 0 | P138: 0 | Q138: 0 | R138: 0 | S138: 0 | T138: 0 | U138: 0 | V138: 0 | W138: 0 | X138: 0 | Y138: 0.2666666667 | Z138: 0 | AA138: 120084 | AB138: 0 | AC138: 0 | AD138: 1 | AE138: 0 | AF138: 1132.436 | AG138: 0 | AH138: 0 | AI138: 4180 | AJ138: 448967.5223 | AK138: 22999.4914 | AL138: 0 | AM138: 0 | AN138: 1010.178 | AO138: 97 | AR138: 4.14 | AS138: 0 | AT138: 0 | BI138: 8225.72 | BJ138: 5331.68 | BK138: 28343.91733 | BL138: 0 | BM138: 120084 | BO138: 0 | BP138: 4704.232545 | CD138: Recoupment Academy
A139: 3112 | B139: Selling Church of England Primary School | C139: 1 | D139: 131 | E139: 0 | F139: 0 | G139: 0.1526717557 | H139: 0 | I139: 0.1526717557 | J139: 0 | K139: 0.07633587786 | L139: 0.08396946565 | M139: 0 | N139: 0 | O139: 0 | P139: 0 | Q139: 0 | R139: 0 | S139: 0 | T139: 0 | U139: 0 | V139: 0 | W139: 0.01639344262 | X139: 0 | Y139: 0.243697479 | Z139: 0 | AA139: 120084 | AB139: 0 | AC139: 0 | AD139: 1 | AE139: 0 | AF139: 2142 | AG139: 0 | AH139: 0 | AI139: 4180 | AJ139: 565214.0229 | AK139: 24463.68 | AL139: 0 | AM139: 0 | AN139: 2071.732 | AO139: 136 | AR139: 4.14 | AS139: 0 | AT139: 0 | BI139: 5013.48 | BJ139: 6664.6 | BK139: 34981.76664 | BL139: 1181.985082 | BM139: 120084 | BO139: 0 | BP139: 0 | CD139: Recoupment Academy
A140: 3119 | B140: Adisham Church of England Primary School | C140: 1 | D140: 106 | E140: 0 | F140: 0 | G140: 0.1226415094 | H140: 0 | I140: 0.1454545455 | J140: 0 | K140: 0.2641509434 | L140: 0.1226415094 | M140: 0 | N140: 0 | O140: 0.009433962264 | P140: 0 | Q140: 0 | R140: 0 | S140: 0 | T140: 0 | U140: 0 | V140: 0 | W140: 0.01098901099 | X140: 0 | Y140: 0.1098901099 | Z140: 0 | AA140: 120084 | AB140: 0 | AC140: 0 | AD140: 1 | AE140: 0 | AF140: 2867.2 | AG140: 0 | AH140: 0 | AI140: 4180 | AJ140: 486416.8005 | AK140: 20146.56 | AL140: 0 | AM140: 0 | AN140: 2760.8 | AO140: 112 | AR140: 4.14 | AS140: 0 | AT140: 0 | BI140: 9881.87 | BJ140: 5137.800727 | BK140: 12763.91429 | BL140: 641.1136264 | BM140: 120084 | BO140: 0 | BP140: 2693.141451 | CD140: Recoupment Academy
A141: 3128 | B141: Sturry Church of England Primary School | C141: 1 | D141: 392 | E141: 0 | F141: 0 | G141: 0.2551020408 | H141: 0 | I141: 0.2551020408 | J141: 0 | K141: 0.1045918367 | L141: 0.3112244898 | M141: 0.007653061224 | N141: 0.07397959184 | O141: 0.03316326531 | P141: 0 | Q141: 0 | R141: 0 | S141: 0 | T141: 0 | U141: 0 | V141: 0 | W141: 0.0383480826 | X141: 0 | Y141: 0.1696969697 | Z141: 0 | AA141: 120084 | AB141: 0 | AC141: 0 | AD141: 1 | AE141: 0 | AF141: 8243.2 | AG141: 0 | AH141: 0 | AI141: 4180 | AJ141: 1507603.068 | AK141: 79714.6114 | AL141: 0 | AM141: 0 | AN141: 7603.068 | AO141: 400 | AR141: 4.14 | AS141: 0 | AT141: 0 | BI141: 60887.26 | BJ141: 33323 | BK141: 72891.94861 | BL141: 8273.709263 | BM141: 120084 | BO141: 84545.44213 | BP141: 0 | CD141: Recoupment Academy
A142: 3140 | B142: Kingsnorth Church of England Primary School | C142: 1 | D142: 418 | E142: 0 | F142: 0 | G142: 0.07416267943 | H142: 0 | I142: 0.08076009501 | J142: 0 | K142: 0.02158273381 | L142: 0.01678657074 | M142: 0.002398081535 | N142: 0.00479616307 | O142: 0.04316546763 | P142: 0 | Q142: 0 | R142: 0 | S142: 0 | T142: 0 | U142: 0 | V142: 0 | W142: 0.01388888889 | X142: 0 | Y142: 0.137254902 | Z142: 0 | AA142: 120084 | AB142: 0 | AC142: 0 | AD142: 1 | AE142: 0 | AF142: 8090 | AG142: 0 | AH142: 0 | AI142: 4180 | AJ142: 1582789.4 | AK142: 75549.6 | AL142: 0 | AM142: 0 | AN142: 7789.4 | AO142: 420 | AR142: 4.14 | AS142: 0 | AT142: 0 | BI142: 13647.10859 | BJ142: 11249.08494 | BK142: 62867.11804 | BL142: 3195.319722 | BM142: 120084 | BO142: 228982.3887 | BP142: 0 | CD142: Recoupment Academy
A143: 3142 | B143: Pluckley Church of England Primary School | C143: 1 | D143: 98 | E143: 0 | F143: 0 | G143: 0.09183673469 | H143: 0 | I143: 0.14 | J143: 0 | K143: 0.01020408163 | L143: 0.0612244898 | M143: 0.02040816327 | N143: 0 | O143: 0 | P143: 0 | Q143: 0 | R143: 0 | S143: 0 | T143: 0 | U143: 0 | V143: 0 | W143: 0.02352941176 | X143: 0 | Y143: 0.1411764706 | Z143: 0 | AA143: 120084 | AB143: 0 | AC143: 0 | AD143: 1 | AE143: 0 | AF143: 1971.2 | AG143: 0 | AH143: 0 | AI143: 4180 | AJ143: 437052.643 | AK143: 17988 | AL143: 0 | AM143: 0 | AN143: 1898.05 | AO143: 100 | AR143: 4.14 | AS143: 0 | AT143: 0 | BI143: 2596.81 | BJ143: 4571.9156 | BK143: 15160.30024 | BL143: 1269.134588 | BM143: 120084 | BO143: 0 | BP143: 0 | CD143: Recoupment Academy
A144: 3143 | B144: St Michael's Church of England Primary School | C144: 1 | D144: 154 | E144: 0 | F144: 0 | G144: 0.2532467532 | H144: 0 | I144: 0.2532467532 | J144: 0 | K144: 0.01960784314 | L144: 0.07189542484 | M144: 0 | N144: 0.006535947712 | O144: 0 | P144: 0 | Q144: 0 | R144: 0 | S144: 0 | T144: 0 | U144: 0 | V144: 0 | W144: 0.05263157895 | X144: 0 | Y144: 0.2558139535 | Z144: 0 | AA144: 120084 | AB144: 0 | AC144: 0 | AD144: 1 | AE144: 0 | AF144: 3635.2 | AG144: 0 | AH144: 0 | AI144: 4180 | AJ144: 623042.6486 | AK144: 29582.8971 | AL144: 0 | AM144: 0 | AN144: 3500.3 | AO144: 150 | AR144: 4.14 | AS144: 0 | AT144: 0 | BI144: 3978.574902 | BJ144: 12995.97 | BK144: 43168.2414 | BL144: 4461.055789 | BM144: 120084 | BO144: 0 | BP144: 0 | CD144: Recoupment Academy
A145: 3144 | B145: Tenterden Church of England Junior School | C145: 1 | D145: 209 | E145: 0 | F145: 0 | G145: 0.1961722488 | H145: 0 | I145: 0.2164502165 | J145: 0 | K145: 0.03827751196 | L145: 0.1818181818 | M145: 0.01435406699 | N145: 0 | O145: 0 | P145: 0 | Q145: 0 | R145: 0 | S145: 0 | T145: 0 | U145: 0 | V145: 0 | W145: 0.01435406699 | X145: 0 | Y145: 0.2388059701 | Z145: 0 | AA145: 120084 | AB145: 0 | AC145: 0 | AD145: 1 | AE145: 0 | AF145: 5222.4 | AG145: 0 | AH145: 0 | AI145: 4180 | AJ145: 857896.6504 | AK145: 43021.5943 | AL145: 0 | AM145: 0 | AN145: 5028.6 | AO145: 227 | AR145: 4.14 | AS145: 0 | AT145: 0 | BI145: 12838.91 | BJ145: 15074.69048 | BK145: 54690.37134 | BL145: 1651.17 | BM145: 120084 | BO145: 3935.208181 | BP145: 0 | CD145: Recoupment Academy
A146: 3148 | B146: Christ Church Cep Academy, Folkestone | C146: 1 | D146: 420 | E146: 0 | F146: 0 | G146: 0.3714285714 | H146: 0 | I146: 0.4043062201 | J146: 0 | K146: 0.04523809524 | L146: 0.1761904762 | M146: 0.08571428571 | N146: 0.1214285714 | O146: 0.25 | P146: 0.1714285714 | Q146: 0 | R146: 0 | S146: 0 | T146: 0 | U146: 0 | V146: 0 | W146: 0.1207865169 | X146: 0 | Y146: 0.2640949555 | Z146: 0 | AA146: 120084 | AB146: 0 | AC146: 0 | AD146: 1 | AE146: 0 | AF146: 8687.598361 | AG146: 0 | AH146: 0 | AI146: 4180 | AJ146: 1743300.997 | AK146: 107641.56 | AL146: 0 | AM146: 0 | AN146: 8278.9 | AO146: 417 | AR146: 4.14 | AS146: 0 | AT146: 0 | BI146: 155403.03 | BJ146: 56585.32392 | BK146: 121542.6783 | BL146: 27921.47022 | BM146: 120084 | BO146: 0 | BP146: 11253.3555 | CD146: Recoupment Academy
A147: 3163 | B147: The Downs Church of England Primary School | C147: 1 | D147: 350 | E147: 0 | F147: 0 | G147: 0.3085714286 | H147: 0 | I147: 0.3297587131 | J147: 0 | K147: 0.2542857143 | L147: 0.1371428571 | M147: 0.01714285714 | N147: 0.05714285714 | O147: 0.1057142857 | P147: 0 | Q147: 0 | R147: 0 | S147: 0 | T147: 0 | U147: 0 | V147: 0 | W147: 0.02258064516 | X147: 0 | Y147: 0.3887147335 | Z147: 0 | AA147: 120084 | AB147: 0 | AC147: 0 | AD147: 1 | AE147: 0 | AF147: 7986.6 | AG147: 0 | AH147: 0 | AI147: 4180 | AJ147: 1470166.127 | AK147: 67301.1771 | AL147: 0 | AM147: 0 | AN147: 7986.6 | AO147: 372 | AR147: 4.14 | AS147: 0 | AT147: 0 | BI147: 60592.14 | BJ147: 38459.92359 | BK147: 149079.6803 | BL147: 4349.856452 | BM147: 120084 | BO147: 0 | BP147: 0 | CD147: Recoupment Academy
A148: 3172 | B148: Northbourne Church of England Primary School | C148: 1 | D148: 121 | E148: 0 | F148: 0 | G148: 0.0826446281 | H148: 0 | I148: 0.125 | J148: 0 | K148: 0.1157024793 | L148: 0.01652892562 | M148: 0.04132231405 | N148: 0.02479338843 | O148: 0.02479338843 | P148: 0 | Q148: 0 | R148: 0 | S148: 0 | T148: 0 | U148: 0 | V148: 0 | W148: 0 | X148: 0 | Y148: 0.09375 | Z148: 0 | AA148: 120084 | AB148: 0 | AC148: 0 | AD148: 1 | AE148: 0 | AF148: 3854.4 | AG148: 0 | AH148: 0 | AI148: 4180 | AJ148: 513233.1218 | AK148: 23135.2457 | AL148: 0 | AM148: 0 | AN148: 3854.4 | AO148: 126 | AR148: 4.14 | AS148: 0 | AT148: 0 | BI148: 8345.83 | BJ148: 5040.10375 | BK148: 12430.14094 | BL148: 0 | BM148: 120084 | BO148: 0 | BP148: 0 | CD148: Recoupment Academy
A149: 3306 | B149: Brenchley and Matfield Church of England Primary School | C149: 1 | D149: 179 | E149: 0 | F149: 0 | G149: 0.0782122905 | H149: 0 | I149: 0.1016949153 | J149: 0 | K149: 0.01123595506 | L149: 0 | M149: 0 | N149: 0 | O149: 0 | P149: 0 | Q149: 0 | R149: 0 | S149: 0 | T149: 0 | U149: 0 | V149: 0 | W149: 0.00625 | X149: 0 | Y149: 0.238410596 | Z149: 0 | AA149: 120084 | AB149: 0 | AC149: 0 | AD149: 1 | AE149: 0 | AF149: 4326.4 | AG149: 0 | AH149: 0 | AI149: 4180 | AJ149: 688696.3012 | AK149: 34835.6914 | AL149: 0 | AM149: 0 | AN149: 4387.7 | AO149: 177 | AR149: 4.14 | AS149: 0 | AT149: 0 | BI149: 432.7174157 | BJ149: 6065.915593 | BK149: 46762.52901 | BL149: 615.7488125 | BM149: 120084 | BO149: 14137.17917 | BP149: 0 | CD149: Recoupment Academy
A150: 3313 | B150: Fordcombe Church of England Primary School | C150: 1 | D150: 93 | E150: 0 | F150: 0 | G150: 0.2043010753 | H150: 0 | I150: 0.2043010753 | J150: 0 | K150: 0.03225806452 | L150: 0 | M150: 0 | N150: 0 | O150: 0 | P150: 0 | Q150: 0 | R150: 0 | S150: 0 | T150: 0 | U150: 0 | V150: 0 | W150: 0.01204819277 | X150: 0 | Y150: 0.2133333333 | Z150: 0 | AA150: 120084 | AB150: 0 | AC150: 0 | AD150: 1.0368 | AE150: 0 | AF150: 2772 | AG150: 0 | AH150: 0 | AI150: 4180 | AJ150: 444930.1141 | AK150: 18534 | AL150: 0 | AM150: 0 | AN150: 542.4 | AO150: 97 | AR150: 4.14 | AS150: 0 | AT150: 0 | BI150: 645.45 | BJ150: 6331.37 | BK150: 21740.0768 | BL150: 616.7020482 | BM150: 120084 | BO150: 0 | BP150: 0 | CD150: Recoupment Academy
A151: 3324 | B151: Leybourne, St Peter and St Paul Church of England Primary Academy | C151: 1 | D151: 212 | E151: 0 | F151: 0 | G151: 0.04716981132 | H151: 0 | I151: 0.06161137441 | J151: 0 | K151: 0.03301886792 | L151: 0 | M151: 0 | N151: 0.004716981132 | O151: 0.004716981132 | P151: 0 | Q151: 0 | R151: 0 | S151: 0 | T151: 0 | U151: 0 | V151: 0 | W151: 0 | X151: 0 | Y151: 0.1546961326 | Z151: 0 | AA151: 120084 | AB151: 0 | AC151: 0 | AD151: 1 | AE151: 0 | AF151: 4864 | AG151: 0 | AH151: 0 | AI151: 4180 | AJ151: 806804 | AK151: 38494.32 | AL151: 0 | AM151: 0 | AN151: 4304 | AO151: 214 | AR151: 4.14 | AS151: 0 | AT151: 0 | BI151: 2426.69 | BJ151: 4352.520758 | BK151: 35936.41282 | BL151: 0 | BM151: 120084 | BO151: 63005.13642 | BP151: 0 | CD151: Recoupment Academy
A152: 3329 | B152: Borden Church of England Primary School | C152: 1 | D152: 136 | E152: 0 | F152: 0 | G152: 0.08823529412 | H152: 0 | I152: 0.08823529412 | J152: 0 | K152: 0.1397058824 | L152: 0.08088235294 | M152: 0.02941176471 | N152: 0 | O152: 0.01470588235 | P152: 0.01470588235 | Q152: 0 | R152: 0 | S152: 0 | T152: 0 | U152: 0 | V152: 0 | W152: 0.008620689655 | X152: 0 | Y152: 0.1238938053 | Z152: 0 | AA152: 120084 | AB152: 0 | AC152: 0 | AD152: 1 | AE152: 0 | AF152: 1254.4 | AG152: 0 | AH152: 0 | AI152: 4180 | AJ152: 537842.2097 | AK152: 28949.52 | AL152: 0 | AM152: 0 | AN152: 1064.976 | AO152: 136 | AR152: 4.14 | AS152: 0 | AT152: 0 | BI152: 10782.51 | BJ152: 3998.76 | BK152: 18463.23965 | BL152: 645.2848276 | BM152: 120084 | BO152: 0 | BP152: 0 | CD152: Recoupment Academy
A153: 3330 | B153: Bredgar Church of England Primary School | C153: 1 | D153: 104 | E153: 0 | F153: 0 | G153: 0.06730769231 | H153: 0 | I153: 0.06730769231 | J153: 0 | K153: 0.08653846154 | L153: 0.08653846154 | M153: 0.02884615385 | N153: 0.009615384615 | O153: 0 | P153: 0 | Q153: 0 | R153: 0 | S153: 0 | T153: 0 | U153: 0 | V153: 0 | W153: 0.01123595506 | X153: 0 | Y153: 0.1071428571 | Z153: 0 | AA153: 120084 | AB153: 0 | AC153: 0 | AD153: 1 | AE153: 0 | AF153: 1147.42 | AG153: 0 | AH153: 7940 | AI153: 4180 | AJ153: 431513.1674 | AK153: 17988 | AL153: 0 | AM153: 0 | AN153: 880.008 | AO153: 100 | AR153: 4.14 | AS153: 0 | AT153: 0 | BI153: 5954.15 | BJ153: 2332.61 | BK153: 12210.00857 | BL153: 643.1523596 | BM153: 120084 | BO153: 0 | BP153: 0 | CD153: Recoupment Academy
A154: 3343 | B154: Charing Church of England Primary School | C154: 1 | D154: 91 | E154: 0 | F154: 0 | G154: 0.3076923077 | H154: 0 | I154: 0.3263157895 | J154: 0 | K154: 0.04395604396 | L154: 0.4175824176 | M154: 0 | N154: 0 | O154: 0.02197802198 | P154: 0 | Q154: 0 | R154: 0 | S154: 0 | T154: 0 | U154: 0 | V154: 0 | W154: 0.01282051282 | X154: 0 | Y154: 0.3066666667 | Z154: 0 | AA154: 120084 | AB154: 35351.4785 | AC154: 0 | AD154: 1 | AE154: 0 | AF154: 3277 | AG154: 0 | AH154: 0 | AI154: 4180 | AJ154: 460933.1354 | AK154: 17988 | AL154: 0 | AM154: 0 | AN154: 3155.2 | AO154: 93 | AR154: 4.14 | AS154: 0 | AT154: 0 | BI154: 11698.1 | BJ154: 9895.177158 | BK154: 30579.28813 | BL154: 642.1216667 | BM154: 120084 | BO154: 0 | BP154: 0 | CD154: Recoupment Academy
A155: 3348 | B155: St Eanswythe's Church of England Primary School | C155: 1 | D155: 213 | E155: 0 | F155: 0 | G155: 0.2441314554 | H155: 0 | I155: 0.2441314554 | J155: 0 | K155: 0.07042253521 | L155: 0.117370892 | M155: 0.06572769953 | N155: 0.2018779343 | O155: 0.20657277 | P155: 0.08920187793 | Q155: 0 | R155: 0 | S155: 0 | T155: 0 | U155: 0 | V155: 0 | W155: 0.08743169399 | X155: 0 | Y155: 0.2528735632 | Z155: 0 | AA155: 120084 | AB155: 0 | AC155: 0 | AD155: 1 | AE155: 0 | AF155: 4353 | AG155: 0 | AH155: 0 | AI155: 4180 | AJ155: 893443.9668 | AK155: 42704.6743 | AL155: 0 | AM155: 0 | AN155: 4353 | AO155: 213 | AR155: 4.14 | AS155: 0 | AT155: 0 | BI155: 67326.83 | BJ155: 17327.96 | BK155: 59020.43931 | BL155: 10249.8859 | BM155: 120084 | BO155: 0 | BP155: 0 | CD155: Recoupment Academy
A156: 3349 | B156: Folkestone St. Mary's Church of England Primary Academy | C156: 1 | D156: 403 | E156: 0 | F156: 0 | G156: 0.2853598015 | H156: 0 | I156: 0.2853598015 | J156: 0 | K156: 0.1836228288 | L156: 0.1042183623 | M156: 0.111662531 | N156: 0.08933002481 | O156: 0.3449131514 | P156: 0.03225806452 | Q156: 0 | R156: 0 | S156: 0 | T156: 0 | U156: 0 | V156: 0 | W156: 0.01449275362 | X156: 0 | Y156: 0.2151162791 | Z156: 0 | AA156: 120084 | AB156: 0 | AC156: 0 | AD156: 1 | AE156: 0 | AF156: 9984 | AG156: 0 | AH156: 0 | AI156: 4180 | AJ156: 1618373.235 | AK156: 83411.2457 | AL156: 0 | AM156: 0 | AN156: 9613.5 | AO156: 408 | AR156: 4.14 | AS156: 0 | AT156: 0 | BI156: 135479.33 | BJ156: 38321.45 | BK156: 94994.33994 | BL156: 3214.596667 | BM156: 120084 | BO156: 0 | BP156: 0 | CD156: Recoupment Academy
A157: 3353 | B157: Deal Parochial Church of England Primary School | C157: 1 | D157: 204 | E157: 0 | F157: 0 | G157: 0.2990196078 | H157: 0 | I157: 0.3043478261 | J157: 0 | K157: 0.2990196078 | L157: 0.1176470588 | M157: 0.009803921569 | N157: 0.03431372549 | O157: 0.2058823529 | P157: 0 | Q157: 0 | R157: 0 | S157: 0 | T157: 0 | U157: 0 | V157: 0 | W157: 0.01704545455 | X157: 0 | Y157: 0.1791907514 | Z157: 0 | AA157: 120084 | AB157: 0 | AC157: 0 | AD157: 1 | AE157: 0 | AF157: 1612.8 | AG157: 0 | AH157: 0 | AI157: 4180 | AJ157: 826822.2898 | AK157: 37351.44 | AL157: 0 | AM157: 0 | AN157: 1612.8 | AO157: 206 | AR157: 4.14 | AS157: 0 | AT157: 0 | BI157: 43270.08 | BJ157: 20689.23652 | BK157: 40055.77734 | BL157: 1913.856136 | BM157: 120084 | BO157: 0 | BP157: 0 | CD157: Recoupment Academy
A158: 3358 | B158: Sholden Church of England Primary School | C158: 1 | D158: 105 | E158: 0 | F158: 0 | G158: 0.1904761905 | H158: 0 | I158: 0.198019802 | J158: 0 | K158: 0.2095238095 | L158: 0.1238095238 | M158: 0.08571428571 | N158: 0.3047619048 | O158: 0.009523809524 | P158: 0 | Q158: 0 | R158: 0 | S158: 0 | T158: 0 | U158: 0 | V158: 0 | W158: 0.01111111111 | X158: 0 | Y158: 0.1111111111 | Z158: 0 | AA158: 120084 | AB158: 0 | AC158: 0 | AD158: 1 | AE158: 0 | AF158: 181.4 | AG158: 0 | AH158: 0 | AI158: 4180 | AJ158: 457242.2892 | AK158: 19967.6914 | AL158: 0 | AM158: 0 | AN158: 181.4 | AO158: 102 | AR158: 4.14 | AS158: 0 | AT158: 0 | BI158: 26533.5 | BJ158: 6928.544554 | BK158: 12783.98333 | BL158: 642.1216667 | BM158: 120084 | BO158: 0 | BP158: 0 | CD158: Recoupment Academy
A159: 3372 | B159: Maidstone, St John's Church of England Primary School | C159: 1 | D159: 438 | E159: 0 | F159: 0 | G159: 0.07534246575 | H159: 0 | I159: 0.07534246575 | J159: 0 | K159: 0.006864988558 | L159: 0.02288329519 | M159: 0.002288329519 | N159: 0.009153318078 | O159: 0.004576659039 | P159: 0 | Q159: 0 | R159: 0 | S159: 0 | T159: 0 | U159: 0 | V159: 0 | W159: 0.03439153439 | X159: 0 | Y159: 0.115902965 | Z159: 0 | AA159: 120084 | AB159: 0 | AC159: 0 | AD159: 1 | AE159: 0 | AF159: 9062.4 | AG159: 0 | AH159: 0 | AI159: 4180 | AJ159: 1643726.1 | AK159: 78427.68 | AL159: 0 | AM159: 0 | AN159: 8726.1 | AO159: 436 | AR159: 4.14 | AS159: 0 | AT159: 0 | BI159: 6404.061144 | BJ159: 10996.59 | BK159: 55627.31046 | BL159: 8290.795397 | BM159: 120084 | BO159: 259438.223 | BP159: 0 | CD159: Recoupment Academy
A160: 3708 | B160: St John's Catholic Primary School, Gravesend | C160: 1 | D160: 758 | E160: 0 | F160: 0 | G160: 0.1451187335 | H160: 0 | I160: 0.1451187335 | J160: 0 | K160: 0.2896825397 | L160: 0.0582010582 | M160: 0.06216931217 | N160: 0.2116402116 | O160: 0.01058201058 | P160: 0 | Q160: 0 | R160: 0 | S160: 0 | T160: 0 | U160: 0 | V160: 0 | W160: 0.2421875 | X160: 0 | Y160: 0.231884058 | Z160: 0 | AA160: 120084 | AB160: 0 | AC160: 0 | AD160: 1 | AE160: 0 | AF160: 9850.88 | AG160: 0 | AH160: 0 | AI160: 4180 | AJ160: 2776715.96 | AK160: 132751.44 | AL160: 0 | AM160: 0 | AN160: 9215.96 | AO160: 738 | AR160: 4.14 | AS160: 0 | AT160: 0 | BI160: 153306.1417 | BJ160: 36655.3 | BK160: 192601.4284 | BL160: 101039.5642 | BM160: 120084 | BO160: 169495.5057 | BP160: 0 | CD160: Recoupment Academy
A161: 3714 | B161: St Peter's Catholic Primary School | C161: 1 | D161: 199 | E161: 0 | F161: 0 | G161: 0.08040201005 | H161: 0 | I161: 0.08040201005 | J161: 0 | K161: 0.1909547739 | L161: 0.1959798995 | M161: 0.04020100503 | N161: 0 | O161: 0 | P161: 0.01507537688 | Q161: 0 | R161: 0 | S161: 0 | T161: 0 | U161: 0 | V161: 0 | W161: 0.1348314607 | X161: 0 | Y161: 0.238372093 | Z161: 0 | AA161: 120084 | AB161: 0 | AC161: 0 | AD161: 1 | AE161: 0 | AF161: 488.07 | AG161: 0 | AH161: 0 | AI161: 4180 | AJ161: 820092.5307 | AK161: 40722.6686 | AL161: 0 | AM161: 0 | AN161: 488.07 | AO161: 211 | AR161: 4.14 | AS161: 0 | AT161: 0 | BI161: 23466.33 | BJ161: 5331.68 | BK161: 51978.99669 | BL161: 14767.76764 | BM161: 120084 | BO161: 0 | BP161: 0 | CD161: Recoupment Academy
A162: 3715 | B162: St Mary's Catholic Primary School, Whitstable | C162: 1 | D162: 406 | E162: 0 | F162: 0 | G162: 0.0763546798 | H162: 0 | I162: 0.0763546798 | J162: 0 | K162: 0.02709359606 | L162: 0.004926108374 | M162: 0.039408867 | N162: 0.04187192118 | O162: 0.004926108374 | P162: 0 | Q162: 0 | R162: 0 | S162: 0 | T162: 0 | U162: 0 | V162: 0 | W162: 0.01408450704 | X162: 0 | Y162: 0.1940298507 | Z162: 0 | AA162: 120084 | AB162: 0 | AC162: 0 | AD162: 1 | AE162: 0 | AF162: 8448 | AG162: 0 | AH162: 0 | AI162: 4180 | AJ162: 1552000.6 | AK162: 74110.56 | AL162: 0 | AM162: 0 | AN162: 7000.6 | AO162: 412 | AR162: 4.14 | AS162: 0 | AT162: 0 | BI162: 17972.58 | BJ162: 10330.13 | BK162: 86320.50836 | BL162: 3147.300563 | BM162: 120084 | BO162: 189128.5411 | BP162: 0 | CD162: Recoupment Academy
A163: 3716 | B163: St Teresa's Catholic Primary School | C163: 1 | D163: 215 | E163: 0 | F163: 0 | G163: 0.1255813953 | H163: 0 | I163: 0.1348837209 | J163: 0 | K163: 0.1074766355 | L163: 0.07009345794 | M163: 0.04672897196 | N163: 0.02803738318 | O163: 0.02803738318 | P163: 0 | Q163: 0 | R163: 0 | S163: 0 | T163: 0 | U163: 0 | V163: 0 | W163: 0.1297297297 | X163: 0 | Y163: 0.2339181287 | Z163: 0 | AA163: 120084 | AB163: 0 | AC163: 0 | AD163: 1 | AE163: 0 | AF163: 5040 | AG163: 0 | AH163: 0 | AI163: 4180 | AJ163: 842685.0217 | AK163: 38674.2 | AL163: 0 | AM163: 0 | AN163: 4066.5788 | AO163: 215 | AR163: 4.14 | AS163: 0 | AT163: 0 | BI163: 18564.23528 | BJ163: 9663.67 | BK163: 55108.90058 | BL163: 15351.41838 | BM163: 120084 | BO163: 2467.585756 | BP163: 0 | CD163: Recoupment Academy
A164: 3719 | B164: St Joseph's Catholic Primary School, Aylesham | C164: 1 | D164: 108 | E164: 0 | F164: 0 | G164: 0.3888888889 | H164: 0 | I164: 0.46 | J164: 0 | K164: 0.4351851852 | L164: 0.4722222222 | M164: 0 | N164: 0 | O164: 0 | P164: 0 | Q164: 0 | R164: 0 | S164: 0 | T164: 0 | U164: 0 | V164: 0 | W164: 0.06741573034 | X164: 0 | Y164: 0.2 | Z164: 0 | AA164: 120084 | AB164: 0 | AC164: 0 | AD164: 1 | AE164: 0 | AF164: 2534.4 | AG164: 0 | AH164: 0 | AI164: 4180 | AJ164: 510690.0375 | AK164: 18527.64 | AL164: 0 | AM164: 0 | AN164: 2340.062 | AO164: 103 | AR164: 4.14 | AS164: 0 | AT164: 0 | BI164: 23381.23 | BJ164: 16554.8664 | BK164: 23668.632 | BL164: 4007.333933 | BM164: 120084 | BO164: 0 | BP164: 7665.720448 | CD164: Recoupment Academy
A165: 3720 | B165: St Mary's Catholic Primary School | C165: 1 | D165: 187 | E165: 0 | F165: 0 | G165: 0.2620320856 | H165: 0 | I165: 0.2620320856 | J165: 0 | K165: 0.3689839572 | L165: 0.1871657754 | M165: 0.01069518717 | N165: 0.04812834225 | O165: 0.04278074866 | P165: 0 | Q165: 0 | R165: 0 | S165: 0 | T165: 0 | U165: 0 | V165: 0 | W165: 0.02424242424 | X165: 0 | Y165: 0.2098765432 | Z165: 0 | AA165: 120084 | AB165: 0 | AC165: 0 | AD165: 1 | AE165: 0 | AF165: 2688 | AG165: 0 | AH165: 0 | AI165: 4180 | AJ165: 791484.7663 | AK165: 35436.36 | AL165: 0 | AM165: 0 | AN165: 1379.4 | AO165: 197 | AR165: 4.14 | AS165: 0 | AT165: 0 | BI165: 32582.66 | BJ165: 16328.27 | BK165: 43005.59049 | BL165: 2495.101333 | BM165: 120084 | BO165: 0 | BP165: 0 | CD165: Recoupment Academy
A166: 3740 | B166: St Richard's Catholic Primary School | C166: 1 | D166: 197 | E166: 0 | F166: 0 | G166: 0.2233502538 | H166: 0 | I166: 0.2233502538 | J166: 0 | K166: 0.118556701 | L166: 0.2680412371 | M166: 0.2113402062 | N166: 0.09278350515 | O166: 0.118556701 | P166: 0.01546391753 | Q166: 0 | R166: 0 | S166: 0 | T166: 0 | U166: 0 | V166: 0 | W166: 0.1676646707 | X166: 0 | Y166: 0.245398773 | Z166: 0 | AA166: 120084 | AB166: 0 | AC166: 0 | AD166: 1 | AE166: 0 | AF166: 5478.4 | AG166: 0 | AH166: 0 | AI166: 4180 | AJ166: 862810.9461 | AK166: 36155.88 | AL166: 0 | AM166: 0 | AN166: 3735.16 | AO166: 201 | AR166: 4.14 | AS166: 0 | AT166: 0 | BI166: 56976.82742 | BJ166: 14662.12 | BK166: 52973.42086 | BL166: 18179.34874 | BM166: 120084 | BO166: 0 | BP166: 0 | CD166: Recoupment Academy
A167: 3743 | B167: St Simon of England Roman Catholic Primary School, Ashford | C167: 1 | D167: 205 | E167: 0 | F167: 0 | G167: 0.156097561 | H167: 0 | I167: 0.1990291262 | J167: 0 | K167: 0.07317073171 | L167: 0.07317073171 | M167: 0.05365853659 | N167: 0.00487804878 | O167: 0.3463414634 | P167: 0 | Q167: 0 | R167: 0 | S167: 0 | T167: 0 | U167: 0 | V167: 0 | W167: 0.24 | X167: 0 | Y167: 0.4035087719 | Z167: 0 | AA167: 120084 | AB167: 0 | AC167: 0 | AD167: 1 | AE167: 0 | AF167: 506 | AG167: 0 | AH167: 0 | AI167: 4180 | AJ167: 889215.7869 | AK167: 37164.2057 | AL167: 0 | AM167: 0 | AN167: 506 | AO167: 204 | AR167: 4.14 | AS167: 0 | AT167: 0 | BI167: 45836.88 | BJ167: 13596.10752 | BK167: 90641.32544 | BL167: 27079.188 | BM167: 120084 | BO167: 0 | BP167: 0 | CD167: Recoupment Academy
A168: 3744 | B168: St Margaret Clitherow Catholic Primary School | C168: 1 | D168: 398 | E168: 0 | F168: 0 | G168: 0.05527638191 | H168: 0 | I168: 0.05527638191 | J168: 0 | K168: 0.2065491184 | L168: 0.01007556675 | M168: 0.1032745592 | N168: 0 | O168: 0 | P168: 0 | Q168: 0 | R168: 0 | S168: 0 | T168: 0 | U168: 0 | V168: 0 | W168: 0.1449275362 | X168: 0 | Y168: 0.1580547112 | Z168: 0 | AA168: 120084 | AB168: 0 | AC168: 0 | AD168: 1 | AE168: 0 | AF168: 7577.6 | AG168: 0 | AH168: 0 | AI168: 4180 | AJ168: 1488432.872 | AK168: 72349.4743 | AL168: 0 | AM168: 0 | AN168: 7182.872 | AO168: 395 | AR168: 4.14 | AS168: 0 | AT168: 0 | BI168: 35594.34302 | BJ168: 7331.06 | BK168: 68930.26116 | BL168: 31747.13333 | BM168: 120084 | BO168: 158744.5025 | BP168: 0 | CD168: Recoupment Academy
A169: 3745 | B169: More Park Catholic Primary School | C169: 1 | D169: 204 | E169: 0 | F169: 0 | G169: 0.09803921569 | H169: 0 | I169: 0.09803921569 | J169: 0 | K169: 0.1764705882 | L169: 0.02941176471 | M169: 0 | N169: 0.08823529412 | O169: 0.03921568627 | P169: 0 | Q169: 0 | R169: 0 | S169: 0 | T169: 0 | U169: 0 | V169: 0 | W169: 0.04022988506 | X169: 0 | Y169: 0.1411764706 | Z169: 0 | AA169: 120084 | AB169: 0 | AC169: 0 | AD169: 1 | AE169: 0 | AF169: 4889.6 | AG169: 0 | AH169: 0 | AI169: 4180 | AJ169: 785419.0843 | AK169: 37415.04 | AL169: 0 | AM169: 0 | AN169: 4708.15 | AO169: 208 | AR169: 4.14 | AS169: 0 | AT169: 0 | BI169: 21124.7 | BJ169: 6664.6 | BK169: 31558.176 | BL169: 4516.993793 | BM169: 120084 | BO169: 28558.45021 | BP169: 0 | CD169: Recoupment Academy
A170: 3751 | B170: St Thomas' Catholic Primary School, Sevenoaks | C170: 1 | D170: 195 | E170: 0 | F170: 0 | G170: 0.05641025641 | H170: 0 | I170: 0.05641025641 | J170: 0 | K170: 0 | L170: 0 | M170: 0 | N170: 0 | O170: 0 | P170: 0 | Q170: 0 | R170: 0 | S170: 0 | T170: 0 | U170: 0 | V170: 0 | W170: 0.103030303 | X170: 0 | Y170: 0.3137254902 | Z170: 0 | AA170: 120084 | AB170: 0 | AC170: 0 | AD170: 1.0368 | AE170: 0 | AF170: 5140.8 | AG170: 0 | AH170: 0 | AI170: 4180 | AJ170: 827162.4108 | AK170: 37994.7 | AL170: 0 | AM170: 0 | AN170: 4818.734 | AO170: 205 | AR170: 4.14 | AS170: 0 | AT170: 0 | BI170: 0 | BJ170: 3665.53 | BK170: 67035.34118 | BL170: 11057.83545 | BM170: 120084 | BO170: 0 | BP170: 0 | CD170: Recoupment Academy
A171: 3754 | B171: St Augustine's Catholic Primary School | C171: 1 | D171: 290 | E171: 0 | F171: 0 | G171: 0.1482758621 | H171: 0 | I171: 0.1482758621 | J171: 0 | K171: 0.1862068966 | L171: 0.003448275862 | M171: 0 | N171: 0.0724137931 | O171: 0.003448275862 | P171: 0 | Q171: 0 | R171: 0 | S171: 0 | T171: 0 | U171: 0 | V171: 0 | W171: 0.2945736434 | X171: 0 | Y171: 0.233201581 | Z171: 0 | AA171: 120084 | AB171: 0 | AC171: 0 | AD171: 1 | AE171: 0 | AF171: 5836.8 | AG171: 0 | AH171: 0 | AI171: 4180 | AJ171: 1150506.338 | AK171: 54503.64 | AL171: 0 | AM171: 0 | AN171: 4752.502 | AO171: 303 | AR171: 4.14 | AS171: 0 | AT171: 0 | BI171: 21705.12 | BJ171: 14328.89 | BK171: 74105.23597 | BL171: 47017.8124 | BM171: 120084 | BO171: 18145.88163 | BP171: 0 | CD171: Recoupment Academy
A172: 3889 | B172: St Gregory's Catholic Primary School, Margate | C172: 1 | D172: 253 | E172: 0 | F172: 0 | G172: 0.2173913043 | H172: 0 | I172: 0.2173913043 | J172: 0 | K172: 0.3794466403 | L172: 0.1067193676 | M172: 0.02371541502 | N172: 0.1778656126 | O172: 0.07509881423 | P172: 0.06324110672 | Q172: 0 | R172: 0 | S172: 0 | T172: 0 | U172: 0 | V172: 0 | W172: 0.05936073059 | X172: 0 | Y172: 0.2105263158 | Z172: 0 | AA172: 120084 | AB172: 0 | AC172: 0 | AD172: 1 | AE172: 0 | AF172: 7782.4 | AG172: 0 | AH172: 0 | AI172: 4180 | AJ172: 1045567.992 | AK172: 46768.8 | AL172: 0 | AM172: 0 | AN172: 7493.6 | AO172: 260 | AR172: 4.14 | AS172: 0 | AT172: 0 | BI172: 69138.1 | BJ172: 18327.65 | BK172: 58364.17053 | BL172: 8265.902785 | BM172: 120084 | BO172: 0 | BP172: 0 | CD172: Recoupment Academy
A173: 3890 | B173: St Joseph's Catholic Primary School, Broadstairs | C173: 1 | D173: 193 | E173: 0 | F173: 0 | G173: 0.1865284974 | H173: 0 | I173: 0.1865284974 | J173: 0 | K173: 0.1088082902 | L173: 0.0932642487 | M173: 0.03626943005 | N173: 0.0518134715 | O173: 0.1554404145 | P173: 0.0414507772 | Q173: 0 | R173: 0 | S173: 0 | T173: 0 | U173: 0 | V173: 0 | W173: 0.05113636364 | X173: 0 | Y173: 0.3086419753 | Z173: 0 | AA173: 120084 | AB173: 0 | AC173: 0 | AD173: 1 | AE173: 0 | AF173: 3072 | AG173: 0 | AH173: 0 | AI173: 4180 | AJ173: 852157.0433 | AK173: 37415.04 | AL173: 0 | AM173: 0 | AN173: 2958 | AO173: 208 | AR173: 4.14 | AS173: 0 | AT173: 0 | BI173: 35749.86 | BJ173: 11996.28 | BK173: 65272.71914 | BL173: 5431.974034 | BM173: 120084 | BO173: 0 | BP173: 0 | CD173: Recoupment Academy
A174: 3900 | B174: Whitehill Primary School | C174: 1 | D174: 628 | E174: 0 | F174: 0 | G174: 0.2452229299 | H174: 0 | I174: 0.269470405 | J174: 0 | K174: 0.1052631579 | L174: 0.1403508772 | M174: 0.0350877193 | N174: 0.2551834131 | O174: 0.01435406699 | P174: 0 | Q174: 0 | R174: 0 | S174: 0 | T174: 0 | U174: 0 | V174: 0 | W174: 0.07129798903 | X174: 0 | Y174: 0.2298624754 | Z174: 0 | AA174: 120084 | AB174: 0 | AC174: 0 | AD174: 1 | AE174: 0 | AF174: 10649.6 | AG174: 0 | AH174: 0 | AI174: 4180 | AJ174: 2444148.865 | AK174: 114583.56 | AL174: 0 | AM174: 0 | AN174: 10254.4 | AO174: 637 | AR174: 4.14 | AS174: 0 | AT174: 0 | BI174: 121843.7086 | BJ174: 56391.65128 | BK174: 158178.3822 | BL174: 24643.78771 | BM174: 120084 | BO174: 130498.4302 | BP174: 0 | CD174: Recoupment Academy
A175: 3911 | B175: Hornbeam Primary School | C175: 1 | D175: 234 | E175: 0 | F175: 0 | G175: 0.1965811966 | H175: 0 | I175: 0.230125523 | J175: 0 | K175: 0.2264957265 | L175: 0.2478632479 | M175: 0.04273504274 | N175: 0.1623931624 | O175: 0.04273504274 | P175: 0 | Q175: 0 | R175: 0 | S175: 0 | T175: 0 | U175: 0 | V175: 0 | W175: 0.01470588235 | X175: 0 | Y175: 0.27 | Z175: 0 | AA175: 120084 | AB175: 0 | AC175: 0 | AD175: 1 | AE175: 0 | AF175: 4566.4 | AG175: 0 | AH175: 0 | AI175: 4180 | AJ175: 959342.3452 | AK175: 42991.32 | AL175: 0 | AM175: 0 | AN175: 4566.4 | AO175: 239 | AR175: 4.14 | AS175: 0 | AT175: 0 | BI175: 52271.37 | BJ175: 17944.22636 | BK175: 69230.7486 | BL175: 1893.989118 | BM175: 120084 | BO175: 0 | BP175: 0 | CD175: Recoupment Academy
A176: 3912 | B176: Westlands Primary School | C176: 1 | D176: 561 | E176: 0 | F176: 0 | G176: 0.265597148 | H176: 0 | I176: 0.274822695 | J176: 0 | K176: 0.1839285714 | L176: 0.1392857143 | M176: 0.1714285714 | N176: 0.001785714286 | O176: 0.005357142857 | P176: 0.005357142857 | Q176: 0 | R176: 0 | S176: 0 | T176: 0 | U176: 0 | V176: 0 | W176: 0.0658436214 | X176: 0 | Y176: 0.1806167401 | Z176: 0 | AA176: 120084 | AB176: 0 | AC176: 0 | AD176: 1 | AE176: 0 | AF176: 13619.2 | AG176: 0 | AH176: 0 | AI176: 4180 | AJ176: 2128113.8 | AK176: 101452.32 | AL176: 0 | AM176: 0 | AN176: 13113.8 | AO176: 564 | AR176: 4.14 | AS176: 0 | AT176: 0 | BI176: 85727.73236 | BJ176: 51375.9125 | BK176: 111029.9814 | BL176: 20330.45531 | BM176: 120084 | BO176: 152575.8685 | BP176: 0 | CD176: Recoupment Academy
A177: 3914 | B177: Oakfield Primary Academy | C177: 1 | D177: 653 | E177: 0 | F177: 0 | G177: 0.2358346095 | H177: 0 | I177: 0.2368421053 | J177: 0 | K177: 0.1592649311 | L177: 0.02143950995 | M177: 0.01071975498 | N177: 0.1393568147 | O177: 0.03215926493 | P177: 0 | Q177: 0 | R177: 0 | S177: 0 | T177: 0 | U177: 0 | V177: 0 | W177: 0.165480427 | X177: 0 | Y177: 0.2344322344 | Z177: 0 | AA177: 120084 | AB177: 0 | AC177: 0 | AD177: 1.0368 | AE177: 0 | AF177: 13107.2 | AG177: 0 | AH177: 0 | AI177: 4180 | AJ177: 2453994.991 | AK177: 121416.9943 | AL177: 0 | AM177: 0 | AN177: 12620.8 | AO177: 644 | AR177: 4.14 | AS177: 0 | AT177: 0 | BI177: 79395.29 | BJ177: 51536.65026 | BK177: 167745.1276 | BL177: 59474.43827 | BM177: 120084 | BO177: 66037.29935 | BP177: 0 | CD177: Recoupment Academy
A178: 3915 | B178: Manor Community Primary School | C178: 1 | D178: 620 | E178: 0 | F178: 0 | G178: 0.264516129 | H178: 0 | I178: 0.264516129 | J178: 0 | K178: 0.2548387097 | L178: 0.09677419355 | M178: 0.01612903226 | N178: 0.009677419355 | O178: 0.1903225806 | P178: 0 | Q178: 0 | R178: 0 | S178: 0 | T178: 0 | U178: 0 | V178: 0 | W178: 0.1094339623 | X178: 0 | Y178: 0.2674418605 | Z178: 0 | AA178: 120084 | AB178: 0 | AC178: 0 | AD178: 1.0368 | AE178: 0 | AF178: 21913.6 | AG178: 0 | AH178: 0 | AI178: 4180 | AJ178: 2463519.515 | AK178: 115096.14 | AL178: 0 | AM178: 0 | AN178: 21100.4 | AO178: 621 | AR178: 4.14 | AS178: 0 | AT178: 0 | BI178: 112468.2 | BJ178: 54649.72 | BK178: 181693.9558 | BL178: 37343.44226 | BM178: 120084 | BO178: 121.3050326 | BP178: 0 | CD178: Recoupment Academy
A179: 5204 | B179: Sutton-At-Hone Church of England Primary School | C179: 1 | D179: 409 | E179: 0 | F179: 0 | G179: 0.119804401 | H179: 0 | I179: 0.1222493888 | J179: 0 | K179: 0.05392156863 | L179: 0.08088235294 | M179: 0.01225490196 | N179: 0.007352941176 | O179: 0.01960784314 | P179: 0 | Q179: 0 | R179: 0 | S179: 0 | T179: 0 | U179: 0 | V179: 0 | W179: 0.01126760563 | X179: 0 | Y179: 0.1903409091 | Z179: 0 | AA179: 120084 | AB179: 0 | AC179: 0 | AD179: 1.0368 | AE179: 0 | AF179: 6092.8 | AG179: 0 | AH179: 0 | AI179: 4180 | AJ179: 1557460.648 | AK179: 76730.76 | AL179: 0 | AM179: 0 | AN179: 4960.648 | AO179: 414 | AR179: 4.14 | AS179: 0 | AT179: 0 | BI179: 20559.52779 | BJ179: 16661.5 | BK179: 85305.0719 | BL179: 2536.445183 | BM179: 120084 | BO179: 120403.8829 | BP179: 0 | CD179: Recoupment Academy
A180: 5209 | B180: Allington Primary School | C180: 1 | D180: 465 | E180: 0 | F180: 0 | G180: 0.0623655914 | H180: 0 | I180: 0.0623655914 | J180: 0 | K180: 0.02370689655 | L180: 0.004310344828 | M180: 0 | N180: 0.0474137931 | O180: 0.004310344828 | P180: 0 | Q180: 0 | R180: 0 | S180: 0 | T180: 0 | U180: 0 | V180: 0 | W180: 0.07407407407 | X180: 0 | Y180: 0.2027027027 | Z180: 0 | AA180: 120084 | AB180: 0 | AC180: 0 | AD180: 1 | AE180: 0 | AF180: 9324 | AG180: 0 | AH180: 0 | AI180: 4180 | AJ180: 1741620.5 | AK180: 83104.56 | AL180: 0 | AM180: 0 | AN180: 9120.5 | AO180: 462 | AR180: 4.14 | AS180: 0 | AT180: 0 | BI180: 13663.87468 | BJ180: 9663.67 | BK180: 103283.7264 | BL180: 18957.87778 | BM180: 120084 | BO180: 226373.5212 | BP180: 0 | CD180: Recoupment Academy
A181: 5210 | B181: St Botolph's Church of England Primary School | C181: 1 | D181: 450 | E181: 0 | F181: 0 | G181: 0.1733333333 | H181: 0 | I181: 0.2093541203 | J181: 0 | K181: 0.1138392857 | L181: 0.08258928571 | M181: 0.2008928571 | N181: 0.02901785714 | O181: 0.04241071429 | P181: 0 | Q181: 0 | R181: 0 | S181: 0 | T181: 0 | U181: 0 | V181: 0 | W181: 0.1298701299 | X181: 0 | Y181: 0.2380952381 | Z181: 0 | AA181: 120084 | AB181: 0 | AC181: 0 | AD181: 1 | AE181: 0 | AF181: 7987.2 | AG181: 0 | AH181: 0 | AI181: 4180 | AJ181: 1695190.8 | AK181: 80946 | AL181: 0 | AM181: 0 | AN181: 7690.8 | AO181: 450 | AR181: 4.14 | AS181: 0 | AT181: 0 | BI181: 72668.68192 | BJ181: 31393.38307 | BK181: 117403.9286 | BL181: 32165.64935 | BM181: 120084 | BO181: 79452.89708 | BP181: 0 | CD181: Recoupment Academy
A182: 5215 | B182: Horton Kirby Church of England Primary School | C182: 1 | D182: 258 | E182: 0 | F182: 0 | G182: 0.2209302326 | H182: 0 | I182: 0.2234848485 | J182: 0 | K182: 0.2645914397 | L182: 0.04280155642 | M182: 0.003891050584 | N182: 0 | O182: 0.0233463035 | P182: 0 | Q182: 0 | R182: 0 | S182: 0 | T182: 0 | U182: 0 | V182: 0 | W182: 0.03056768559 | X182: 0 | Y182: 0.2669902913 | Z182: 0 | AA182: 120084 | AB182: 0 | AC182: 0 | AD182: 1.0368 | AE182: 0 | AF182: 5529.6 | AG182: 0 | AH182: 0 | AI182: 4180 | AJ182: 1026157.919 | AK182: 48559.08 | AL182: 0 | AM182: 0 | AN182: 5324.4 | AO182: 262 | AR182: 4.14 | AS182: 0 | AT182: 0 | BI182: 20835.20661 | BJ182: 19213.73886 | BK182: 75480.46748 | BL182: 4340.630306 | BM182: 120084 | BO182: 0 | BP182: 0 | CD182: Recoupment Academy
A183: 5216 | B183: Stella Maris Catholic Primary School | C183: 1 | D183: 213 | E183: 0 | F183: 0 | G183: 0.2441314554 | H183: 0 | I183: 0.2523364486 | J183: 0 | K183: 0.04245283019 | L183: 0.1320754717 | M183: 0.1462264151 | N183: 0.1698113208 | O183: 0.1320754717 | P183: 0.04716981132 | Q183: 0 | R183: 0 | S183: 0 | T183: 0 | U183: 0 | V183: 0 | W183: 0.07103825137 | X183: 0 | Y183: 0.2727272727 | Z183: 0 | AA183: 120084 | AB183: 0 | AC183: 0 | AD183: 1 | AE183: 0 | AF183: 3814.4 | AG183: 0 | AH183: 0 | AI183: 4180 | AJ183: 899638.1353 | AK183: 38494.32 | AL183: 0 | AM183: 0 | AN183: 3256.006 | AO183: 214 | AR183: 4.14 | AS183: 0 | AT183: 0 | BI183: 57756.23604 | BJ183: 17910.33393 | BK183: 63654.27545 | BL183: 8328.032295 | BM183: 120084 | BO183: 0 | BP183: 0 | CD183: Recoupment Academy
A184: 5217 | B184: Our Lady of Hartley Catholic Primary School, Hartley, Longfield | C184: 1 | D184: 216 | E184: 0 | F184: 0 | G184: 0.02314814815 | H184: 0 | I184: 0.06944444444 | J184: 0 | K184: 0.06018518519 | L184: 0.01388888889 | M184: 0.05092592593 | N184: 0.02777777778 | O184: 0.00462962963 | P184: 0 | Q184: 0 | R184: 0 | S184: 0 | T184: 0 | U184: 0 | V184: 0 | W184: 0.02150537634 | X184: 0 | Y184: 0.2021857923 | Z184: 0 | AA184: 120084 | AB184: 0 | AC184: 0 | AD184: 1.0368 | AE184: 0 | AF184: 4275.2 | AG184: 0 | AH184: 0 | AI184: 4180 | AJ184: 833718.4763 | AK184: 40033.44 | AL184: 0 | AM184: 0 | AN184: 3663.046 | AO184: 216 | AR184: 4.14 | AS184: 0 | AT184: 0 | BI184: 11237.87 | BJ184: 4998.45 | BK184: 47854.61115 | BL184: 2556.650323 | BM184: 120084 | BO184: 14178.68776 | BP184: 0 | CD184: Recoupment Academy
A185: 5219 | B185: Wilmington Primary School | C185: 1 | D185: 211 | E185: 0 | F185: 0 | G185: 0.07109004739 | H185: 0 | I185: 0.07547169811 | J185: 0 | K185: 0.04265402844 | L185: 0.01421800948 | M185: 0.01421800948 | N185: 0 | O185: 0.01895734597 | P185: 0 | Q185: 0 | R185: 0 | S185: 0 | T185: 0 | U185: 0 | V185: 0 | W185: 0.005494505495 | X185: 0 | Y185: 0.217877095 | Z185: 0 | AA185: 120084 | AB185: 0 | AC185: 0 | AD185: 1.0368 | AE185: 0 | AF185: 4746.002 | AG185: 0 | AH185: 0 | AI185: 4180 | AJ185: 812001.5927 | AK185: 38736.06 | AL185: 0 | AM185: 0 | AN185: 4746.002 | AO185: 209 | AR185: 4.14 | AS185: 0 | AT185: 0 | BI185: 5849.08 | BJ185: 5306.530566 | BK185: 50374.8119 | BL185: 638.0895055 | BM185: 120084 | BO185: 9184.982532 | BP185: 0 | CD185: Recoupment Academy
A186: 5220 | B186: Halfway Houses Primary School | C186: 1 | D186: 613 | E186: 0 | F186: 0 | G186: 0.2398042414 | H186: 0 | I186: 0.2398042414 | J186: 0 | K186: 0.3349753695 | L186: 0.1001642036 | M186: 0.03119868637 | N186: 0.03612479475 | O186: 0.1806239737 | P186: 0.1428571429 | Q186: 0 | R186: 0 | S186: 0 | T186: 0 | U186: 0 | V186: 0 | W186: 0.03377110694 | X186: 0 | Y186: 0.2851711027 | Z186: 0 | AA186: 120084 | AB186: 0 | AC186: 0 | AD186: 1 | AE186: 0 | AF186: 19353.6 | AG186: 0 | AH186: 0 | AI186: 4180 | AJ186: 2187532.191 | AK186: 103970.64 | AL186: 0 | AM186: 0 | AN186: 18635.4 | AO186: 578 | AR186: 4.14 | AS186: 0 | AT186: 0 | BI186: 184823.6471 | BJ186: 48984.81 | BK186: 191551.4287 | BL186: 11394.00236 | BM186: 120084 | BO186: 41721.86187 | BP186: 0 | CD186: Recoupment Academy
A187: 5202 | B187: Holy Trinity Church of England Voluntary Aided Primary School | C187: 1 | D187: 417 | E187: 0 | F187: 0 | G187: 0.170263789 | H187: 0 | I187: 0.170263789 | J187: 0 | K187: 0.1894484412 | L187: 0.3261390887 | M187: 0.02398081535 | N187: 0.04316546763 | O187: 0.009592326139 | P187: 0 | Q187: 0 | R187: 0 | S187: 0 | T187: 0 | U187: 0 | V187: 0 | W187: 0.3143631436 | X187: 0 | Y187: 0.2875 | Z187: 0 | AA187: 120084 | AB187: 0 | AC187: 0 | AD187: 1 | AE187: 0 | AF187: 9830 | AG187: 0 | AH187: 0 | AI187: 4180 | AJ187: 1733098.518 | AK187: 78967.32 | AL187: 0 | AM187: 0 | AN187: 9830 | AO187: 439 | AP187: 0 | AR187: 4.14 | AS187: 0 | AT187: 0.17 | BI187: 66401 | BJ187: 23659.33 | BK187: 131369.13 | BL187: 72150.31 | BM187: 120084 | BO187: 6861.49 | BP187: 0 | CD187: Recoupment Academy
A188: 3173 | B188: Kingsdown and Ringwould CofE Primary School | C188: 1 | D188: 218 | E188: 0 | F188: 0 | G188: 0.123853211 | H188: 0 | I188: 0.123853211 | J188: 0 | K188: 0.1100917431 | L188: 0.01834862385 | M188: 0.01376146789 | N188: 0.01376146789 | O188: 0.01376146789 | P188: 0 | Q188: 0 | R188: 0 | S188: 0 | T188: 0 | U188: 0 | V188: 0 | W188: 0.02659574468 | X188: 0 | Y188: 0.07486631016 | Z188: 0 | AA188: 120084 | AB188: 0 | AC188: 0 | AD188: 1 | AE188: 0 | AF188: 21707 | AG188: 0 | AH188: 0 | AI188: 4180 | AJ188: 823084 | AK188: 38494.32 | AL188: 0 | AM188: 0 | AN188: 20584 | AO188: 214 | AP188: 0 | AR188: 4.14 | AS188: 0 | AT188: 0 | BI188: 10197 | BJ188: 8997.21 | BK188: 17883.9 | BL188: 3191.09 | BM188: 120084 | BO188: 64146.99 | BP188: 0 | CD188: Recoupment Academy
A189: 5222 | B189: St Joseph's Catholic Primary School, Northfleet | C189: 1 | D189: 210 | E189: 0 | F189: 0 | G189: 0.08095238095 | H189: 0 | I189: 0.09205020921 | J189: 0 | K189: 0.1435406699 | L189: 0.1770334928 | M189: 0.1052631579 | N189: 0.05741626794 | O189: 0.06220095694 | P189: 0 | Q189: 0 | R189: 0 | S189: 0 | T189: 0 | U189: 0 | V189: 0 | W189: 0.1179775281 | X189: 0 | Y189: 0.1931818182 | Z189: 0 | AA189: 120084 | AB189: 0 | AC189: 0 | AD189: 1 | AE189: 0 | AF189: 4586.4 | AG189: 0 | AH189: 0 | AI189: 4180 | AJ189: 941475.126 | AK189: 43171.2 | AL189: 0 | AM189: 0 | AN189: 4358.9 | AO189: 240 | AR189: 4.14 | AS189: 0 | AT189: 0 | BI189: 36805.81579 | BJ189: 6441.517155 | BK189: 44453.39659 | BL189: 13636.06685 | BM189: 120084 | BO189: 0 | BP189: 0 | CD189: Recoupment Academy
A190: 5224 | B190: All Soul's Church of England Primary School | C190: 1 | D190: 260 | E190: 0 | F190: 0 | G190: 0.3384615385 | H190: 0 | I190: 0.3384615385 | J190: 0 | K190: 0.3692307692 | L190: 0.03461538462 | M190: 0 | N190: 0.03461538462 | O190: 0.02307692308 | P190: 0.007692307692 | Q190: 0 | R190: 0 | S190: 0 | T190: 0 | U190: 0 | V190: 0 | W190: 0.08154506438 | X190: 0 | Y190: 0.1785714286 | Z190: 0 | AA190: 120084 | AB190: 0 | AC190: 0 | AD190: 1 | AE190: 0 | AF190: 4736 | AG190: 0 | AH190: 0 | AI190: 4180 | AJ190: 1072305.561 | AK190: 50546.28 | AL190: 0 | AM190: 0 | AN190: 0 | AO190: 281 | AR190: 4.14 | AS190: 0 | AT190: 0 | BI190: 31096.65 | BJ190: 29324.24 | BK190: 50875.03571 | BL190: 11669.21288 | BM190: 120084 | BO190: 0 | BP190: 0 | CD190: Recoupment Academy
A191: 5228 | B191: St Georges CofE (Aided) Primary School | C191: 1 | D191: 386 | E191: 0 | F191: 0 | G191: 0.1502590674 | H191: 0 | I191: 0.1607142857 | J191: 0 | K191: 0.4404145078 | L191: 0.05958549223 | M191: 0.03626943005 | N191: 0.1243523316 | O191: 0.08808290155 | P191: 0.0518134715 | Q191: 0 | R191: 0 | S191: 0 | T191: 0 | U191: 0 | V191: 0 | W191: 0.01173020528 | X191: 0 | Y191: 0.3045977011 | Z191: 0 | AA191: 120084 | AB191: 0 | AC191: 0 | AD191: 1 | AE191: 0 | AF191: 15770 | AG191: 0 | AH191: 0 | AI191: 4180 | AJ191: 1508368.867 | AK191: 69973.32 | AL191: 0 | AM191: 0 | AN191: 15184.4 | AO191: 389 | AR191: 4.14 | AS191: 0 | AT191: 0 | BI191: 98248.4 | BJ191: 20672.16107 | BK191: 128834.8429 | BL191: 2492.088446 | BM191: 120084 | BO191: 22486.32761 | BP191: 0 | CD191: Recoupment Academy
A192: 4000 | B192: St Augustine Academy | C192: 2 | D192: 0 | E192: 459 | F192: 290 | G192: 0 | H192: 0.2309746328 | I192: 0 | J192: 0.3039348711 | K192: 0 | L192: 0 | M192: 0 | N192: 0 | O192: 0 | P192: 0 | Q192: 0.1642189586 | R192: 0.05473965287 | S192: 0.01602136182 | T192: 0.05073431242 | U192: 0.07209612817 | V192: 0 | W192: 0 | X192: 0.01377410468 | Y192: 0 | Z192: 0.289323576 | AA192: 117882.46 | AB192: 0 | AC192: 0 | AD192: 1 | AE192: 0 | AF192: 34308.67 | AG192: 0 | AH192: 0 | AI192: 5415 | AJ192: 4005758.166 | AK192: 200438.46 | AL192: 0 | AM192: 0 | AN192: 37182.042 | AO192: 757 | AR192: 4.14 | AS192: 0 | AT192: 0 | BI192: 122851.51 | BJ192: 138735.0443 | BK192: 359978.9508 | BL192: 15331.18402 | BM192: 117882.46 | BO192: 0 | BP192: 0 | CD192: Recoupment Academy
A193: 4001 | B193: The Ebbsfleet Academy | C193: 2 | D193: 0 | E193: 353 | F193: 268 | G193: 0 | H193: 0.2431561997 | I193: 0 | J193: 0.335443038 | K193: 0 | L193: 0 | M193: 0 | N193: 0 | O193: 0 | P193: 0 | Q193: 0.1677419355 | R193: 0.1306451613 | S193: 0.05322580645 | T193: 0.02096774194 | U193: 0.1112903226 | V193: 0.001612903226 | W193: 0 | X193: 0.0998389694 | Y193: 0 | Z193: 0.2467462698 | AA193: 117882.46 | AB193: 0 | AC193: 0 | AD193: 1.0368 | AE193: 0 | AF193: 25088 | AG193: 1306093.797 | AH193: 0 | AI193: 5415 | AJ193: 4815857.837 | AK193: 167486.92 | AL193: 0 | AM193: 0 | AN193: 24157 | AO193: 614 | AR193: 4.14 | AS193: 0 | AT193: 0 | BI193: 141296.8812 | BJ193: 126950.4404 | BK193: 254538.6059 | BL193: 92134.48 | BM193: 117882.46 | BO193: 0 | BP193: 0 | CD193: Recoupment Academy
A194: 4002 | B194: The Sittingbourne School | C194: 2 | D194: 0 | E194: 816 | F194: 511 | G194: 0 | H194: 0.3285606631 | I194: 0 | J194: 0.4266347687 | K194: 0 | L194: 0 | M194: 0 | N194: 0 | O194: 0 | P194: 0 | Q194: 0.2241509434 | R194: 0.1833962264 | S194: 0.0920754717 | T194: 0.04754716981 | U194: 0.09509433962 | V194: 0.1290566038 | W194: 0 | X194: 0.01662887377 | Y194: 0 | Z194: 0.2953144567 | AA194: 117882.46 | AB194: 0 | AC194: 0 | AD194: 1 | AE194: 0 | AF194: 62617.6 | AG194: 0 | AH194: 0 | AI194: 5415 | AJ194: 6933680.169 | AK194: 345900.4029 | AL194: 0 | AM194: 0 | AN194: 49516.92 | AO194: 1245 | AR194: 4.14 | AS194: 0 | AT194: 0 | BI194: 538149.4167 | BJ194: 345025.344 | BK194: 650979.1751 | BL194: 32791.72469 | BM194: 117882.46 | BO194: 0 | BP194: 0 | CD194: Recoupment Academy
A195: 4003 | B195: High Weald Academy | C195: 2 | D195: 0 | E195: 160 | F195: 96 | G195: 0 | H195: 0.2578125 | I195: 0 | J195: 0.3306772908 | K195: 0 | L195: 0 | M195: 0 | N195: 0 | O195: 0 | P195: 0 | Q195: 0.13671875 | R195: 0.0234375 | S195: 0.01171875 | T195: 0.00390625 | U195: 0 | V195: 0 | W195: 0 | X195: 0.007843137255 | Y195: 0 | Z195: 0.3767525631 | AA195: 117882.46 | AB195: 0 | AC195: 70048.3 | AD195: 1 | AE195: 0 | AF195: 20582.4 | AG195: 0 | AH195: 0 | AI195: 5415 | AJ195: 1496065.821 | AK195: 66989.34 | AL195: 0 | AM195: 0 | AN195: 19818.6 | AO195: 253 | AR195: 4.14 | AS195: 0 | AT195: 0 | BI195: 15721.11 | BJ195: 51590.31331 | BK195: 160216.6497 | BL195: 2983.735216 | BM195: 117882.46 | BO195: 0 | BP195: 0 | CD195: Recoupment Academy
A196: 4004 | B196: Meopham School | C196: 2 | D196: 0 | E196: 510 | F196: 296 | G196: 0 | H196: 0.1327543424 | I196: 0 | J196: 0.2177419355 | K196: 0 | L196: 0 | M196: 0 | N196: 0 | O196: 0 | P196: 0 | Q196: 0.05217391304 | R196: 0.04968944099 | S196: 0.04347826087 | T196: 0.03850931677 | U196: 0.006211180124 | V196: 0 | W196: 0 | X196: 0 | Y196: 0 | Z196: 0.2235993848 | AA196: 117882.46 | AB196: 0 | AC196: 0 | AD196: 1 | AE196: 0 | AF196: 43008 | AG196: 0 | AH196: 0 | AI196: 5415 | AJ196: 3740892.545 | AK196: 201328.2943 | AL196: 0 | AM196: 0 | AN196: 20213 | AO196: 739 | AR196: 4.14 | AS196: 0 | AT196: 0 | BI196: 72991.79053 | BJ196: 106954.965 | BK196: 299376.0894 | BL196: 0 | BM196: 117882.46 | BO196: 36501.61503 | BP196: 0 | CD196: Recoupment Academy
A197: 4006 | B197: Trinity School | C197: 2 | D197: 0 | E197: 545 | F197: 303 | G197: 0 | H197: 0.1285377358 | I197: 0 | J197: 0.1634738186 | K197: 0 | L197: 0 | M197: 0 | N197: 0 | O197: 0 | P197: 0 | Q197: 0.03423848878 | R197: 0.005903187721 | S197: 0.00826446281 | T197: 0.002361275089 | U197: 0.003541912633 | V197: 0 | W197: 0 | X197: 0.004716981132 | Y197: 0 | Z197: 0.1984987563 | AA197: 117882.46 | AB197: 0 | AC197: 0 | AD197: 1.0368 | AE197: 0 | AF197: 39424 | AG197: 0 | AH197: 0 | AI197: 5415 | AJ197: 3933683.07 | AK197: 212495.62 | AL197: 0 | AM197: 0 | AN197: 38683.07 | AO197: 779 | AR197: 4.14 | AS197: 0 | AT197: 0 | BI197: 18459.78862 | BJ197: 84482.7202 | BK197: 279617.9885 | BL197: 5944.16 | BM197: 117882.46 | BO197: 3808.340412 | BP197: 0 | CD197: Recoupment Academy
A198: 4007 | B198: Wye School | C198: 2 | D198: 0 | E198: 318 | F198: 185 | G198: 0 | H198: 0.1371769384 | I198: 0 | J198: 0.194 | K198: 0 | L198: 0 | M198: 0 | N198: 0 | O198: 0 | P198: 0 | Q198: 0.01792828685 | R198: 0.05179282869 | S198: 0.01992031873 | T198: 0.04183266932 | U198: 0.01593625498 | V198: 0.001992031873 | W198: 0 | X198: 0.009940357853 | Y198: 0 | Z198: 0.2631408555 | AA198: 117882.46 | AB198: 0 | AC198: 22648.95033 | AD198: 1 | AE198: 0 | AF198: 31197.74 | AG198: 0 | AH198: 0 | AI198: 5415 | AJ198: 2581083.279 | AK198: 131595.66 | AL198: 0 | AM198: 0 | AN198: 20851.682 | AO198: 497 | AR198: 4.14 | AS198: 0 | AT198: 0 | BI198: 39019.88432 | BJ198: 59469.39826 | BK198: 219870.889 | BL198: 7430.2 | BM198: 117882.46 | BO198: 0 | BP198: 0 | CD198: Recoupment Academy
A199: 4009 | B199: Hadlow Rural Community School | C199: 2 | D199: 0 | E199: 234 | F199: 155 | G199: 0 | H199: 0.1799485861 | I199: 0 | J199: 0.2425876011 | K199: 0 | L199: 0 | M199: 0 | N199: 0 | O199: 0 | P199: 0 | Q199: 0.1443298969 | R199: 0.09020618557 | S199: 0.05927835052 | T199: 0.01288659794 | U199: 0.005154639175 | V199: 0 | W199: 0 | X199: 0 | Y199: 0 | Z199: 0.3338475612 | AA199: 117882.46 | AB199: 0 | AC199: 0 | AD199: 1 | AE199: 0 | AF199: 19555.2 | AG199: 0 | AH199: 0 | AI199: 5415 | AJ199: 1987289.455 | AK199: 97439.04 | AL199: 0 | AM199: 0 | AN199: 19128.4 | AO199: 368 | AR199: 4.14 | AS199: 0 | AT199: 0 | BI199: 49898.33335 | BJ199: 57509.82291 | BK199: 215729.3696 | BL199: 0 | BM199: 117882.46 | BO199: 0 | BP199: 0 | CD199: Recoupment Academy
A200: 4012 | B200: The Leigh UTC | C200: 2 | D200: 0 | E200: 381 | F200: 168 | G200: 0 | H200: 0.2349726776 | I200: 0 | J200: 0.3257731959 | K200: 0 | L200: 0 | M200: 0 | N200: 0 | O200: 0 | P200: 0 | Q200: 0.1158088235 | R200: 0.04411764706 | S200: 0.1176470588 | T200: 0.02389705882 | U200: 0.09742647059 | V200: 0 | W200: 0 | X200: 0.01343570058 | Y200: 0 | Z200: 0.2474525431 | AA200: 117882.46 | AB200: 0 | AC200: 0 | AD200: 1.0368 | AE200: 0 | AF200: 58368 | AG200: 0 | AH200: 0 | AI200: 5415 | AJ200: 2728137.687 | AK200: 135026.1 | AL200: 0 | AM200: 0 | AN200: 35794.306 | AO200: 495 | AR200: 4.14 | AS200: 0 | AT200: 0 | BI200: 111937.6889 | BJ200: 108996.2414 | BK200: 225670.9883 | BL200: 10961.32768 | BM200: 117882.46 | BO200: 0 | BP200: 0 | CD200: Recoupment Academy
... 70 more rows

Sheet TestArea (hidden)
A1: MI DfE no | B1: School Name | D1: Macro School Name | E1: Data Calc | F1: =SUM(F2:F302) -> 301 | H1: Macro F1 | I1: Data Calc F1 | L1: Macro F2 | M1: Data Calc F2 | N1: 0 | P1: Macro F4 | Q1: Data Calc F4 | R1: 0 | T1: Macro F6 | U1: Data Calc F6 | V1: 0 | X1: Macro F7 | Y1: Data Calc F7 | Z1: 0 | AB1: Macro F8 | AC1: Data Calc F8 | AD1: 0 | AF1: Macro F9 | AG1: Data Calc F9 | AH1: 0 | AJ1: Macro F10 | AK1: Data Calc F10 | AL1: 0 | AN1: Macro F11 | AO1: Data Calc F11 | AP1: 0 | AR1: Macro F12 | AS1: Data Calc F12 | AT1: 0 | AV1: Macro F13 | AW1: Data Calc F13 | AX1: 0 | AZ1: Macro F14 | BA1: Data Calc F14 | BB1: 0 | BD1: Macro FFT | BE1: Data Calc FFT | BF1: 0 | BH1: Macro MFG | BI1: Data Calc MFG | BJ1: 0 | BL1: Macro SBS | BM1: Data Calc SBS | BN1: 0 | BP1: Macro Growth | BQ1: Data Calc Growth | BR1: 0 | BT1: Macro SBS Inc Growth | BU1: Data Calc SBS Inc Growth | BV1: 0 | BX1: Early years rate | BZ1: =SUM(BZ2:BZ302) -> 0 | CB1: Macro Notional SEN | CC1: Data Calc | CD1: =SUM(CD2:CD302) -> 0 | CF1: Macro De-Delegation | CG1: Data Calc | CH1: =SUM(CH2:CH302) -> 64553 | CJ1: SRP Element 1 | CK1: Data Calc | CL1: =SUM(CL2:CL302) -> 0 | CN1: SRP Element 2 | CO1: Data Calc | CP1: =SUM(CP2:CP302) -> 0 | CR1: SRP 1 Pre | CS1: Data Calc | CT1: =SUM(CT2:CT302) -> 0 | CV1: SRP 1 Post | CW1: Data Calc | CX1: =SUM(CX2:CX302) -> 0 | CZ1: SRP 2 Pre | DA1: Data Calc | DB1: =SUM(DB2:DB302) -> 0 | DD1: SRP 2 Post | DE1: Data Calc | DF1: =SUM(DF2:DF302) -> 0 | DH1: Qual Year1 | DI1: Data Calc | DJ1: =SUM(DJ2:DJ302) -> 33 | DL1: Orig PAN 1 | DM1: Data Calc | DN1: =SUM(DN2:DN302) -> -697 | DP1: New PAN | DQ1: Data Calc | DR1: =SUM(DR2:DR302) -> 33 | DT1: Qual Year2 | DU1: Data Calc | DV1: =SUM(DV2:DV302) -> 33 | DX1: Orig PAN2 | DY1: Data Calc | DZ1: =SUM(DZ2:DZ302) -> 33 | EB1: New PAN2 | EC1: Data Calc | ED1: =SUM(ED2:ED302) -> 33 | EF1: Qual Year3 | EG1: Data Calc | EH1: =SUM(EH2:EH302) -> 20 | EJ1: Orig PAN3 | EK1: Data Calc | EL1: =SUM(EL2:EL302) -> 20 | EN1: New PAN3 | EO1: Data Calc | EP1: =SUM(EP2:EP302) -> 20
A2: 2000 | B2: St Johns Church of England Primary School | D2: St Johns Church of England Primary School | F2: =IF(E2=D2,0,1) -> 1 | H2: 1122820.71 | I2: 1122820.71 | J2: =H2-I2 -> 0 | L2: 253014.83 | M2: 253014.8345 | N2: =L2-M2 -> -0.004491525498 | P2: 32877.09 | Q2: 32877.0938 | R2: =P2-Q2 -> -0.003797468271 | T2: 131081.49 | U2: 131081.4862 | V2: =T2-U2 -> 0.003750000003 | X2: 120084 | Y2: 120084 | Z2: =X2-Y2 -> 0 | AB2: 0 | AC2: 0 | AD2: =AB2-AC2 -> 0 | AF2: 0 | AG2: 0 | AH2: =AF2-AG2 -> 0 | AJ2: 0 | AK2: 0 | AL2: =AJ2-AK2 -> 0 | AN2: 24576 | AO2: 24576 | AP2: =AN2-AO2 -> 0 | AR2: 0 | AS2: 0 | AT2: =AR2-AS2 -> 0 | AV2: 0 | AW2: 0 | AX2: =AV2-AW2 -> 0 | AZ2: 0 | BA2: 0 | BB2: =AZ2-BA2 -> 0 | BD2: 1684454.12 | BE2: 1684454.125 | BF2: =BD2-BE2 -> -0.004538993817 | BH2: 0 | BI2: 0 | BJ2: =BH2-BI2 -> 0 | BL2: 1684454.12 | BM2: 1684454.125 | BN2: =BL2-BM2 -> -0.004538993817 | BP2: 0 | BR2: =BP2-BQ2 -> 0 | BV2: =BT2-BU2 -> 0 | BZ2: =BX2-BY2 -> 0 | CB2: 339430.24 | CC2: 339430.2368 | CD2: =ROUND(CB2-CC2,0) -> 0 | CF2: 9546.9 | CG2: 9546.9 | CH2: =ROUND(CF2-CG2,0) -> 0 | CL2: =ROUND(CJ2-CK2,0) -> 0 | CP2: =ROUND(CN2-CO2,0) -> 0 | CT2: =ROUND(CR2-CS2,0) -> 0 | CX2: =ROUND(CV2-CW2,0) -> 0 | DB2: =ROUND(CZ2-DA2,0) -> 0 | DF2: =ROUND(DD2-DE2,0) -> 0 | DH2: NO | DI2: =IF(ISERROR(VLOOKUP($A2+8860000,'Growth Data'!$A:$F,3,0)),"NO",VLOOKUP($A2+8860000,'Growth Data'!$A:$F,3,0)) -> YES | DJ2: =IF(DH2=DI2,0,1) -> 1 | DL2: 0 | DM2: =IF(DI2="YES",IF(ISERROR(VLOOKUP($A2+8860000,'Growth Data'!$A:$F,6,0)),0,VLOOKUP($A2+8860000,'Growth Data'!$A:$F,6,0)),0) -> 54 | DN2: =ROUND(DL2-DM2,0) -> -54 | DP2: 0 | DQ2: =IF(ISERROR(VLOOKUP($A2+8860000,'Growth Data'!$A:$Z,7,0)),0,VLOOKUP($A2+8860000,'Growth Data'!$A:$Z,7,0)) -> 60 | DR2: =IF(DP2=DQ2,0,1) -> 1 | DT2: NO | DU2: =IF(ISERROR(VLOOKUP($A2+8860000,'Growth Data'!$A:$F,4,0)),"NO",VLOOKUP($A2+8860000,'Growth Data'!$A:$F,4,0)) -> YES | DV2: =IF(DT2=DU2,0,1) -> 1 | DX2: 0 | DY2: =IF(ISERROR(VLOOKUP($A2+8860000,'Growth Data'!$A:$Z,8,0)),0,VLOOKUP($A2+8860000,'Growth Data'!$A:$Z,8,0)) -> 54 | DZ2: =IF(DX2=DY2,0,1) -> 1 | EB2: 0 | EC2: =IF(ISERROR(VLOOKUP($A2+8860000,'Growth Data'!$A:$Z,9,0)),0,VLOOKUP($A2+8860000,'Growth Data'!$A:$Z,9,0)) -> 60 | ED2: =IF(EB2=EC2,0,1) -> 1 | EF2: NO | EG2: =IF(ISERROR(VLOOKUP($A2+8860000,'Growth Data'!$A:$Z,5,0)),"NO",VLOOKUP($A2+8860000,'Growth Data'!$A:$Z,5,0)) -> NO | EH2: =IF(EF2=EG2,0,1) -> 0 | EJ2: 0 | EK2: =IF(ISERROR(VLOOKUP($A2+8860000,'Growth Data'!$A:$Z,10,0)),0,VLOOKUP($A2+8860000,'Growth Data'!$A:$Z,10,0)) -> 0 | EL2: =IF(EJ2=EK2,0,1) -> 0 | EN2: 0 | EO2: =IF(ISERROR(VLOOKUP($A2+8860000,'Growth Data'!$A:$Z,11,0)),0,VLOOKUP($A2+8860000,'Growth Data'!$A:$Z,11,0)) -> 0 | EP2: =IF(EN2=EO2,0,1) -> 0
A3: 2002 | B3: Repton Manor Primary School | D3: Repton Manor Primary School | F3: 1 | H3: 1472348.92 | I3: 1472348.92 | J3: 0 | L3: 76187.86 | M3: 76187.86 | N3: 0 | P3: 26450.47 | Q3: 26450.47327 | R3: -0.003269230649 | T3: 111114.92 | U3: 111114.9228 | V3: -0.002807017547 | X3: 120084 | Y3: 120084 | Z3: 0 | AB3: 0 | AC3: 0 | AD3: 0 | AF3: 0 | AG3: 0 | AH3: 0 | AJ3: 0 | AK3: 0 | AL3: 0 | AN3: 10650 | AO3: 10650 | AP3: 0 | AR3: 0 | AS3: 0 | AT3: 0 | AV3: 0 | AW3: 0 | AX3: 0 | AZ3: 183493.82 | BA3: 183493.8239 | BB3: -0.003923751821 | BD3: 2000330 | BE3: 2000330 | BF3: 0 | BH3: 0 | BI3: 0 | BJ3: 0 | BL3: 2000330 | BM3: 2000330 | BN3: 0 | BP3: 0 | BR3: 0 | BV3: 0 | BZ3: 0 | CB3: 371259.74 | CC3: 371259.7423 | CD3: 0 | CF3: 12518.8 | CG3: 12518.8 | CH3: 0 | CL3: 0 | CP3: 0 | CT3: 0 | CX3: 0 | DB3: 0 | DF3: 0 | DH3: NO | DI3: =IF(ISERROR(VLOOKUP($A3+8860000,'Growth Data'!$A:$F,3,0)),"NO",VLOOKUP($A3+8860000,'Growth Data'!$A:$F,3,0)) -> NO | DJ3: 0 | DL3: 0 | DM3: =IF(DI3="YES",IF(ISERROR(VLOOKUP($A3+8860000,'Growth Data'!$A:$F,6,0)),0,VLOOKUP($A3+8860000,'Growth Data'!$A:$F,6,0)),0) -> 0 | DN3: 0 | DP3: 0 | DQ3: =IF(ISERROR(VLOOKUP($A3+8860000,'Growth Data'!$A:$Z,7,0)),0,VLOOKUP($A3+8860000,'Growth Data'!$A:$Z,7,0)) -> 0 | DR3: 0 | DT3: NO | DU3: =IF(ISERROR(VLOOKUP($A3+8860000,'Growth Data'!$A:$F,4,0)),"NO",VLOOKUP($A3+8860000,'Growth Data'!$A:$F,4,0)) -> NO | DV3: 0 | DX3: 0 | DY3: =IF(ISERROR(VLOOKUP($A3+8860000,'Growth Data'!$A:$Z,8,0)),0,VLOOKUP($A3+8860000,'Growth Data'!$A:$Z,8,0)) -> 0 | DZ3: 0 | EB3: 0 | EC3: =IF(ISERROR(VLOOKUP($A3+8860000,'Growth Data'!$A:$Z,9,0)),0,VLOOKUP($A3+8860000,'Growth Data'!$A:$Z,9,0)) -> 0 | ED3: 0 | EF3: NO | EG3: =IF(ISERROR(VLOOKUP($A3+8860000,'Growth Data'!$A:$Z,5,0)),"NO",VLOOKUP($A3+8860000,'Growth Data'!$A:$Z,5,0)) -> NO | EH3: 0 | EJ3: 0 | EK3: =IF(ISERROR(VLOOKUP($A3+8860000,'Growth Data'!$A:$Z,10,0)),0,VLOOKUP($A3+8860000,'Growth Data'!$A:$Z,10,0)) -> 0 | EL3: 0 | EN3: 0 | EO3: =IF(ISERROR(VLOOKUP($A3+8860000,'Growth Data'!$A:$Z,11,0)),0,VLOOKUP($A3+8860000,'Growth Data'!$A:$Z,11,0)) -> 0 | EP3: 0
A4: 2065 | B4: The Discovery School | D4: The Discovery School | F4: 1 | H4: 1902299.55 | I4: 1902299.55 | J4: 0 | L4: 31727.77 | M4: 31727.76923 | N4: 0.0007692307554 | P4: 15415.1 | Q4: 15415.09753 | R4: 0.002466793158 | T4: 110601.67 | U4: 110601.6704 | V4: -0.0004198473325 | X4: 120084 | Y4: 120084 | Z4: 0 | AB4: 0 | AC4: 0 | AD4: 0 | AF4: 0 | AG4: 0 | AH4: 0 | AJ4: 0 | AK4: 0 | AL4: 0 | AN4: 75264 | AO4: 75264 | AP4: 0 | AR4: 0 | AS4: 0 | AT4: 0 | AV4: 0 | AW4: 0 | AX4: 0 | AZ4: 390571.91 | BA4: 390571.9128 | BB4: -0.002816176566 | BD4: 2645964 | BE4: 2645964 | BF4: 0 | BH4: 0 | BI4: 0 | BJ4: 0 | BL4: 2645964 | BM4: 2645964 | BN4: 0 | BP4: 0 | BR4: 0 | BV4: 0 | BZ4: 0 | CB4: 540741.91 | CC4: 540741.9123 | CD4: 0 | CF4: 16174.5 | CG4: 16174.5 | CH4: 0 | CL4: 0 | CP4: 0 | CT4: 0 | CX4: 0 | DB4: 0 | DF4: 0 | DH4: NO | DI4: =IF(ISERROR(VLOOKUP($A4+8860000,'Growth Data'!$A:$F,3,0)),"NO",VLOOKUP($A4+8860000,'Growth Data'!$A:$F,3,0)) -> NO | DJ4: 0 | DL4: 0 | DM4: =IF(DI4="YES",IF(ISERROR(VLOOKUP($A4+8860000,'Growth Data'!$A:$F,6,0)),0,VLOOKUP($A4+8860000,'Growth Data'!$A:$F,6,0)),0) -> 0 | DN4: 0 | DP4: 0 | DQ4: =IF(ISERROR(VLOOKUP($A4+8860000,'Growth Data'!$A:$Z,7,0)),0,VLOOKUP($A4+8860000,'Growth Data'!$A:$Z,7,0)) -> 0 | DR4: 0 | DT4: NO | DU4: =IF(ISERROR(VLOOKUP($A4+8860000,'Growth Data'!$A:$F,4,0)),"NO",VLOOKUP($A4+8860000,'Growth Data'!$A:$F,4,0)) -> NO | DV4: 0 | DX4: 0 | DY4: =IF(ISERROR(VLOOKUP($A4+8860000,'Growth Data'!$A:$Z,8,0)),0,VLOOKUP($A4+8860000,'Growth Data'!$A:$Z,8,0)) -> 0 | DZ4: 0 | EB4: 0 | EC4: =IF(ISERROR(VLOOKUP($A4+8860000,'Growth Data'!$A:$Z,9,0)),0,VLOOKUP($A4+8860000,'Growth Data'!$A:$Z,9,0)) -> 0 | ED4: 0 | EF4: NO | EG4: =IF(ISERROR(VLOOKUP($A4+8860000,'Growth Data'!$A:$Z,5,0)),"NO",VLOOKUP($A4+8860000,'Growth Data'!$A:$Z,5,0)) -> NO | EH4: 0 | EJ4: 0 | EK4: =IF(ISERROR(VLOOKUP($A4+8860000,'Growth Data'!$A:$Z,10,0)),0,VLOOKUP($A4+8860000,'Growth Data'!$A:$Z,10,0)) -> 0 | EL4: 0 | EN4: 0 | EO4: =IF(ISERROR(VLOOKUP($A4+8860000,'Growth Data'!$A:$Z,11,0)),0,VLOOKUP($A4+8860000,'Growth Data'!$A:$Z,11,0)) -> 0 | EP4: 0
A5: 2066 | B5: Maypole Primary School | D5: Maypole Primary School | F5: 1 | H5: 1252733.85 | I5: 1252733.85 | J5: 0 | L5: 59522.26 | M5: 59522.26408 | N5: -0.004084158449 | P5: 16152.75 | Q5: 16152.75 | R5: 0 | T5: 111934.37 | U5: 111934.3687 | V5: 0.001305637983 | X5: 120084 | Y5: 120084 | Z5: 0 | AB5: 0 | AC5: 0 | AD5: 0 | AF5: 57423.72 | AG5: 57423.72217 | AH5: -0.002166249556 | AJ5: 0 | AK5: 0 | AL5: 0 | AN5: 38144 | AO5: 38144 | AP5: 0 | AR5: 0 | AS5: 0 | AT5: 0 | AV5: 0 | AW5: 0 | AX5: 0 | AZ5: 75049.05 | BA5: 75049.04506 | BB5: 0.004944770117 | BD5: 1731044 | BE5: 1731044 | BF5: 0 | BH5: 0 | BI5: 0 | BJ5: 0 | BL5: 1731044 | BM5: 1731044 | BN5: 0 | BP5: 0 | BR5: 0 | BV5: 0 | BZ5: 0 | CB5: 255504.8 | CC5: 255504.7954 | CD5: 0 | CF5: 11043.48 | CG5: 11043.4752 | CH5: 0 | CL5: 0 | CP5: 0 | CT5: 0 | CX5: 0 | DB5: 0 | DF5: 0 | DH5: NO | DI5: =IF(ISERROR(VLOOKUP($A5+8860000,'Growth Data'!$A:$F,3,0)),"NO",VLOOKUP($A5+8860000,'Growth Data'!$A:$F,3,0)) -> NO | DJ5: 0 | DL5: 0 | DM5: =IF(DI5="YES",IF(ISERROR(VLOOKUP($A5+8860000,'Growth Data'!$A:$F,6,0)),0,VLOOKUP($A5+8860000,'Growth Data'!$A:$F,6,0)),0) -> 0 | DN5: 0 | DP5: 0 | DQ5: =IF(ISERROR(VLOOKUP($A5+8860000,'Growth Data'!$A:$Z,7,0)),0,VLOOKUP($A5+8860000,'Growth Data'!$A:$Z,7,0)) -> 0 | DR5: 0 | DT5: NO | DU5: =IF(ISERROR(VLOOKUP($A5+8860000,'Growth Data'!$A:$F,4,0)),"NO",VLOOKUP($A5+8860000,'Growth Data'!$A:$F,4,0)) -> NO | DV5: 0 | DX5: 0 | DY5: =IF(ISERROR(VLOOKUP($A5+8860000,'Growth Data'!$A:$Z,8,0)),0,VLOOKUP($A5+8860000,'Growth Data'!$A:$Z,8,0)) -> 0 | DZ5: 0 | EB5: 0 | EC5: =IF(ISERROR(VLOOKUP($A5+8860000,'Growth Data'!$A:$Z,9,0)),0,VLOOKUP($A5+8860000,'Growth Data'!$A:$Z,9,0)) -> 0 | ED5: 0 | EF5: NO | EG5: =IF(ISERROR(VLOOKUP($A5+8860000,'Growth Data'!$A:$Z,5,0)),"NO",VLOOKUP($A5+8860000,'Growth Data'!$A:$Z,5,0)) -> NO | EH5: 0 | EJ5: 0 | EK5: =IF(ISERROR(VLOOKUP($A5+8860000,'Growth Data'!$A:$Z,10,0)),0,VLOOKUP($A5+8860000,'Growth Data'!$A:$Z,10,0)) -> 0 | EL5: 0 | EN5: 0 | EO5: =IF(ISERROR(VLOOKUP($A5+8860000,'Growth Data'!$A:$Z,11,0)),0,VLOOKUP($A5+8860000,'Growth Data'!$A:$Z,11,0)) -> 0 | EP5: 0
A6: 2079 | B6: Woodlands Primary School | D6: Woodlands Primary School | F6: 1 | H6: 1970349.29 | I6: 1970349.29 | J6: 0 | L6: 127513.72 | M6: 127513.72 | N6: 0 | P6: 9544.42 | Q6: 9544.421869 | R6: -0.001869328476 | T6: 152245.19 | U6: 152245.1901 | V6: -5.545286695e-05 | X6: 120084 | Y6: 120084 | Z6: 0 | AB6: 0 | AC6: 0 | AD6: 0 | AF6: 0 | AG6: 0 | AH6: 0 | AJ6: 0 | AK6: 0 | AL6: 0 | AN6: 57856 | AO6: 57856 | AP6: 0 | AR6: 0 | AS6: 0 | AT6: 0 | AV6: 0 | AW6: 0 | AX6: 0 | AZ6: 282923.38 | BA6: 282923.3781 | BB6: 0.001924781362 | BD6: 2720516 | BE6: 2720516 | BF6: 0 | BH6: 0 | BI6: 0 | BJ6: 0 | BL6: 2720516 | BM6: 2720516 | BN6: 0 | BP6: 0 | BR6: 0 | BV6: 0 | BZ6: 0 | CB6: 537032.97 | CC6: 537032.9723 | CD6: 0 | CF6: 16753.1 | CG6: 16753.1 | CH6: 0 | CL6: 0 | CP6: 0 | CT6: 0 | CX6: 0 | DB6: 0 | DF6: 0 | DH6: NO | DI6: =IF(ISERROR(VLOOKUP($A6+8860000,'Growth Data'!$A:$F,3,0)),"NO",VLOOKUP($A6+8860000,'Growth Data'!$A:$F,3,0)) -> NO | DJ6: 0 | DL6: 0 | DM6: =IF(DI6="YES",IF(ISERROR(VLOOKUP($A6+8860000,'Growth Data'!$A:$F,6,0)),0,VLOOKUP($A6+8860000,'Growth Data'!$A:$F,6,0)),0) -> 0 | DN6: 0 | DP6: 0 | DQ6: =IF(ISERROR(VLOOKUP($A6+8860000,'Growth Data'!$A:$Z,7,0)),0,VLOOKUP($A6+8860000,'Growth Data'!$A:$Z,7,0)) -> 0 | DR6: 0 | DT6: NO | DU6: =IF(ISERROR(VLOOKUP($A6+8860000,'Growth Data'!$A:$F,4,0)),"NO",VLOOKUP($A6+8860000,'Growth Data'!$A:$F,4,0)) -> NO | DV6: 0 | DX6: 0 | DY6: =IF(ISERROR(VLOOKUP($A6+8860000,'Growth Data'!$A:$Z,8,0)),0,VLOOKUP($A6+8860000,'Growth Data'!$A:$Z,8,0)) -> 0 | DZ6: 0 | EB6: 0 | EC6: =IF(ISERROR(VLOOKUP($A6+8860000,'Growth Data'!$A:$Z,9,0)),0,VLOOKUP($A6+8860000,'Growth Data'!$A:$Z,9,0)) -> 0 | ED6: 0 | EF6: NO | EG6: =IF(ISERROR(VLOOKUP($A6+8860000,'Growth Data'!$A:$Z,5,0)),"NO",VLOOKUP($A6+8860000,'Growth Data'!$A:$Z,5,0)) -> NO | EH6: 0 | EJ6: 0 | EK6: =IF(ISERROR(VLOOKUP($A6+8860000,'Growth Data'!$A:$Z,10,0)),0,VLOOKUP($A6+8860000,'Growth Data'!$A:$Z,10,0)) -> 0 | EL6: 0 | EN6: 0 | EO6: =IF(ISERROR(VLOOKUP($A6+8860000,'Growth Data'!$A:$Z,11,0)),0,VLOOKUP($A6+8860000,'Growth Data'!$A:$Z,11,0)) -> 0 | EP6: 0
A7: 2088 | B7: Crockenhill Primary School | D7: Crockenhill Primary School | F7: 1 | H7: 624820.34 | I7: 624820.34 | J7: 0 | L7: 54306.69 | M7: 54306.69 | N7: 0 | P7: 1939.16 | Q7: 1939.164767 | R7: -0.004767441863 | T7: 43478.59 | U7: 43478.58821 | V7: 0.001785714281 | X7: 120084 | Y7: 120084 | Z7: 0 | AB7: 0 | AC7: 0 | AD7: 0 | AF7: 31082.34 | AG7: 31082.33921 | AH7: 0.0007862724269 | AJ7: 0 | AK7: 0 | AL7: 0 | AN7: 24116 | AO7: 24116 | AP7: 0 | AR7: 0 | AS7: 0 | AT7: 0 | AV7: 0 | AW7: 0 | AX7: 0 | AZ7: 0 | BA7: 0 | BB7: 0 | BD7: 899827.12 | BE7: 899827.1222 | BF7: -0.002195455134 | BH7: 0 | BI7: 0 | BJ7: 0 | BL7: 899827.12 | BM7: 899827.1222 | BN7: -0.002195455134 | BP7: 0 | BR7: 0 | BV7: 0 | BZ7: 0 | CB7: 89336.64 | CC7: 89336.64472 | CD7: 0 | CF7: 5508.1 | CG7: 5508.10368 | CH7: 0 | CL7: 0 | CP7: 0 | CT7: 0 | CX7: 0 | DB7: 0 | DF7: 0 | DH7: NO | DI7: =IF(ISERROR(VLOOKUP($A7+8860000,'Growth Data'!$A:$F,3,0)),"NO",VLOOKUP($A7+8860000,'Growth Data'!$A:$F,3,0)) -> NO | DJ7: 0 | DL7: 0 | DM7: =IF(DI7="YES",IF(ISERROR(VLOOKUP($A7+8860000,'Growth Data'!$A:$F,6,0)),0,VLOOKUP($A7+8860000,'Growth Data'!$A:$F,6,0)),0) -> 0 | DN7: 0 | DP7: 0 | DQ7: =IF(ISERROR(VLOOKUP($A7+8860000,'Growth Data'!$A:$Z,7,0)),0,VLOOKUP($A7+8860000,'Growth Data'!$A:$Z,7,0)) -> 0 | DR7: 0 | DT7: NO | DU7: =IF(ISERROR(VLOOKUP($A7+8860000,'Growth Data'!$A:$F,4,0)),"NO",VLOOKUP($A7+8860000,'Growth Data'!$A:$F,4,0)) -> NO | DV7: 0 | DX7: 0 | DY7: =IF(ISERROR(VLOOKUP($A7+8860000,'Growth Data'!$A:$Z,8,0)),0,VLOOKUP($A7+8860000,'Growth Data'!$A:$Z,8,0)) -> 0 | DZ7: 0 | EB7: 0 | EC7: =IF(ISERROR(VLOOKUP($A7+8860000,'Growth Data'!$A:$Z,9,0)),0,VLOOKUP($A7+8860000,'Growth Data'!$A:$Z,9,0)) -> 0 | ED7: 0 | EF7: NO | EG7: =IF(ISERROR(VLOOKUP($A7+8860000,'Growth Data'!$A:$Z,5,0)),"NO",VLOOKUP($A7+8860000,'Growth Data'!$A:$Z,5,0)) -> NO | EH7: 0 | EJ7: 0 | EK7: =IF(ISERROR(VLOOKUP($A7+8860000,'Growth Data'!$A:$Z,10,0)),0,VLOOKUP($A7+8860000,'Growth Data'!$A:$Z,10,0)) -> 0 | EL7: 0 | EN7: 0 | EO7: =IF(ISERROR(VLOOKUP($A7+8860000,'Growth Data'!$A:$Z,11,0)),0,VLOOKUP($A7+8860000,'Growth Data'!$A:$Z,11,0)) -> 0 | EP7: 0
A8: 2089 | B8: The Anthony Roper Primary School | D8: The Anthony Roper Primary School | F8: 1 | H8: 924857.83 | I8: 924857.83 | J8: 0 | L8: 29410.36 | M8: 29410.36438 | N8: -0.004379084981 | P8: 1943.7 | Q8: 1943.700118 | R8: -0.0001181102291 | T8: 54828.75 | U8: 54828.75278 | V8: -0.002775510206 | X8: 120084 | Y8: 120084 | Z8: 0 | AB8: 0 | AC8: 0 | AD8: 0 | AF8: 41625.39 | AG8: 41625.38702 | AH8: 0.002980364436 | AJ8: 0 | AK8: 0 | AL8: 0 | AN8: 6656 | AO8: 6656 | AP8: 0 | AR8: 0 | AS8: 0 | AT8: 0 | AV8: 0 | AW8: 0 | AX8: 0 | AZ8: 77069.97 | BA8: 77069.96571 | BB8: 0.004292341007 | BD8: 1256476 | BE8: 1256476 | BF8: 0 | BH8: 0 | BI8: 0 | BJ8: 0 | BL8: 1256476 | BM8: 1256476 | BN8: 0 | BP8: 0 | BR8: 0 | BV8: 0 | BZ8: 0 | CB8: 163343.63 | CC8: 163343.6277 | CD8: 0 | CF8: 8153.08 | CG8: 8153.08416 | CH8: 0 | CL8: 0 | CP8: 0 | CT8: 0 | CX8: 0 | DB8: 0 | DF8: 0 | DH8: NO | DI8: =IF(ISERROR(VLOOKUP($A8+8860000,'Growth Data'!$A:$F,3,0)),"NO",VLOOKUP($A8+8860000,'Growth Data'!$A:$F,3,0)) -> NO | DJ8: 0 | DL8: 0 | DM8: =IF(DI8="YES",IF(ISERROR(VLOOKUP($A8+8860000,'Growth Data'!$A:$F,6,0)),0,VLOOKUP($A8+8860000,'Growth Data'!$A:$F,6,0)),0) -> 0 | DN8: 0 | DP8: 0 | DQ8: =IF(ISERROR(VLOOKUP($A8+8860000,'Growth Data'!$A:$Z,7,0)),0,VLOOKUP($A8+8860000,'Growth Data'!$A:$Z,7,0)) -> 0 | DR8: 0 | DT8: NO | DU8: =IF(ISERROR(VLOOKUP($A8+8860000,'Growth Data'!$A:$F,4,0)),"NO",VLOOKUP($A8+8860000,'Growth Data'!$A:$F,4,0)) -> NO | DV8: 0 | DX8: 0 | DY8: =IF(ISERROR(VLOOKUP($A8+8860000,'Growth Data'!$A:$Z,8,0)),0,VLOOKUP($A8+8860000,'Growth Data'!$A:$Z,8,0)) -> 0 | DZ8: 0 | EB8: 0 | EC8: =IF(ISERROR(VLOOKUP($A8+8860000,'Growth Data'!$A:$Z,9,0)),0,VLOOKUP($A8+8860000,'Growth Data'!$A:$Z,9,0)) -> 0 | ED8: 0 | EF8: NO | EG8: =IF(ISERROR(VLOOKUP($A8+8860000,'Growth Data'!$A:$Z,5,0)),"NO",VLOOKUP($A8+8860000,'Growth Data'!$A:$Z,5,0)) -> NO | EH8: 0 | EJ8: 0 | EK8: =IF(ISERROR(VLOOKUP($A8+8860000,'Growth Data'!$A:$Z,10,0)),0,VLOOKUP($A8+8860000,'Growth Data'!$A:$Z,10,0)) -> 0 | EL8: 0 | EN8: 0 | EO8: =IF(ISERROR(VLOOKUP($A8+8860000,'Growth Data'!$A:$Z,11,0)),0,VLOOKUP($A8+8860000,'Growth Data'!$A:$Z,11,0)) -> 0 | EP8: 0
A9: 2094 | B9: Cobham Primary School | D9: Cobham Primary School | F9: 1 | H9: 677404.23 | I9: 677404.23 | J9: 0 | L9: 10201.87 | M9: 10201.87436 | N9: -0.004357798165 | P9: 641.15 | Q9: 641.1457979 | R9: 0.00420212766 | T9: 34648.6 | U9: 34648.59898 | V9: 0.001016042785 | X9: 120084 | Y9: 120084 | Z9: 0 | AB9: 0 | AC9: 0 | AD9: 0 | AF9: 0 | AG9: 0 | AH9: 0 | AJ9: 0 | AK9: 0 | AL9: 0 | AN9: 17216 | AO9: 17216 | AP9: 0 | AR9: 0 | AS9: 0 | AT9: 0 | AV9: 0 | AW9: 0 | AX9: 0 | AZ9: 72440.15 | BA9: 72440.15086 | BB9: -0.0008603722963 | BD9: 932636 | BE9: 932636 | BF9: 0 | BH9: 0 | BI9: 0 | BJ9: 0 | BL9: 932636 | BM9: 932636 | BN9: 0 | BP9: 0 | BR9: 0 | BV9: 0 | BZ9: 0 | CB9: 120023.95 | CC9: 120023.9523 | CD9: 0 | CF9: 5759.7 | CG9: 5759.7 | CH9: 0 | CL9: 0 | CP9: 0 | CT9: 0 | CX9: 0 | DB9: 0 | DF9: 0 | DH9: NO | DI9: =IF(ISERROR(VLOOKUP($A9+8860000,'Growth Data'!$A:$F,3,0)),"NO",VLOOKUP($A9+8860000,'Growth Data'!$A:$F,3,0)) -> NO | DJ9: 0 | DL9: 0 | DM9: =IF(DI9="YES",IF(ISERROR(VLOOKUP($A9+8860000,'Growth Data'!$A:$F,6,0)),0,VLOOKUP($A9+8860000,'Growth Data'!$A:$F,6,0)),0) -> 0 | DN9: 0 | DP9: 0 | DQ9: =IF(ISERROR(VLOOKUP($A9+8860000,'Growth Data'!$A:$Z,7,0)),0,VLOOKUP($A9+8860000,'Growth Data'!$A:$Z,7,0)) -> 0 | DR9: 0 | DT9: NO | DU9: =IF(ISERROR(VLOOKUP($A9+8860000,'Growth Data'!$A:$F,4,0)),"NO",VLOOKUP($A9+8860000,'Growth Data'!$A:$F,4,0)) -> NO | DV9: 0 | DX9: 0 | DY9: =IF(ISERROR(VLOOKUP($A9+8860000,'Growth Data'!$A:$Z,8,0)),0,VLOOKUP($A9+8860000,'Growth Data'!$A:$Z,8,0)) -> 0 | DZ9: 0 | EB9: 0 | EC9: =IF(ISERROR(VLOOKUP($A9+8860000,'Growth Data'!$A:$Z,9,0)),0,VLOOKUP($A9+8860000,'Growth Data'!$A:$Z,9,0)) -> 0 | ED9: 0 | EF9: NO | EG9: =IF(ISERROR(VLOOKUP($A9+8860000,'Growth Data'!$A:$Z,5,0)),"NO",VLOOKUP($A9+8860000,'Growth Data'!$A:$Z,5,0)) -> NO | EH9: 0 | EJ9: 0 | EK9: =IF(ISERROR(VLOOKUP($A9+8860000,'Growth Data'!$A:$Z,10,0)),0,VLOOKUP($A9+8860000,'Growth Data'!$A:$Z,10,0)) -> 0 | EL9: 0 | EN9: 0 | EO9: =IF(ISERROR(VLOOKUP($A9+8860000,'Growth Data'!$A:$Z,11,0)),0,VLOOKUP($A9+8860000,'Growth Data'!$A:$Z,11,0)) -> 0 | EP9: 0
A10: 2095 | B10: Cecil Road Primary and Nursery School | D10: Cecil Road Primary and Nursery School | F10: 1 | H10: 1169218.26 | I10: 1169218.26 | J10: 0 | L10: 90246.89 | M10: 90246.88745 | N10: 0.002553191574 | P10: 50727.61 | Q10: 50727.61167 | R10: -0.001666666627 | T10: 100534.24 | U10: 100534.2379 | V10: 0.002135922332 | X10: 120084 | Y10: 120084 | Z10: 0 | AB10: 0 | AC10: 0 | AD10: 0 | AF10: 0 | AG10: 0 | AH10: 0 | AJ10: 0 | AK10: 0 | AL10: 0 | AN10: 34048 | AO10: 34048 | AP10: 0 | AR10: 0 | AS10: 0 | AT10: 0 | AV10: 0 | AW10: 0 | AX10: 0 | AZ10: 49229 | BA10: 49229.00302 | BB10: -0.003022447287 | BD10: 1614088 | BE10: 1614088 | BF10: 0 | BH10: 0 | BI10: 0 | BJ10: 0 | BL10: 1614088 | BM10: 1614088 | BN10: 0 | BP10: 0 | BR10: 0 | BV10: 0 | BZ10: 0 | CB10: 268893.28 | CC10: 268893.2823 | CD10: 0 | CF10: 9941.4 | CG10: 9941.4 | CH10: 0 | CL10: 0 | CP10: 0 | CT10: 0 | CX10: 0 | DB10: 0 | DF10: 0 | DH10: NO | DI10: =IF(ISERROR(VLOOKUP($A10+8860000,'Growth Data'!$A:$F,3,0)),"NO",VLOOKUP($A10+8860000,'Growth Data'!$A:$F,3,0)) -> NO | DJ10: 0 | DL10: 0 | DM10: =IF(DI10="YES",IF(ISERROR(VLOOKUP($A10+8860000,'Growth Data'!$A:$F,6,0)),0,VLOOKUP($A10+8860000,'Growth Data'!$A:$F,6,0)),0) -> 0 | DN10: 0 | DP10: 0 | DQ10: =IF(ISERROR(VLOOKUP($A10+8860000,'Growth Data'!$A:$Z,7,0)),0,VLOOKUP($A10+8860000,'Growth Data'!$A:$Z,7,0)) -> 0 | DR10: 0 | DT10: NO | DU10: =IF(ISERROR(VLOOKUP($A10+8860000,'Growth Data'!$A:$F,4,0)),"NO",VLOOKUP($A10+8860000,'Growth Data'!$A:$F,4,0)) -> NO | DV10: 0 | DX10: 0 | DY10: =IF(ISERROR(VLOOKUP($A10+8860000,'Growth Data'!$A:$Z,8,0)),0,VLOOKUP($A10+8860000,'Growth Data'!$A:$Z,8,0)) -> 0 | DZ10: 0 | EB10: 0 | EC10: =IF(ISERROR(VLOOKUP($A10+8860000,'Growth Data'!$A:$Z,9,0)),0,VLOOKUP($A10+8860000,'Growth Data'!$A:$Z,9,0)) -> 0 | ED10: 0 | EF10: NO | EG10: =IF(ISERROR(VLOOKUP($A10+8860000,'Growth Data'!$A:$Z,5,0)),"NO",VLOOKUP($A10+8860000,'Growth Data'!$A:$Z,5,0)) -> NO | EH10: 0 | EJ10: 0 | EK10: =IF(ISERROR(VLOOKUP($A10+8860000,'Growth Data'!$A:$Z,10,0)),0,VLOOKUP($A10+8860000,'Growth Data'!$A:$Z,10,0)) -> 0 | EL10: 0 | EN10: 0 | EO10: =IF(ISERROR(VLOOKUP($A10+8860000,'Growth Data'!$A:$Z,11,0)),0,VLOOKUP($A10+8860000,'Growth Data'!$A:$Z,11,0)) -> 0 | EP10: 0
A11: 2109 | B11: Higham Primary School | D11: Higham Primary School | F11: 1 | H11: 637193.02 | I11: 637193.02 | J11: 0 | L11: 16562.91 | M11: 16562.91367 | N11: -0.003671497583 | P11: 1273.94 | Q11: 1273.936404 | R11: 0.003595505616 | T11: 58663.94 | U11: 58663.93514 | V11: 0.004858757071 | X11: 120084 | Y11: 120084 | Z11: 0 | AB11: 0 | AC11: 0 | AD11: 0 | AF11: 0 | AG11: 0 | AH11: 0 | AJ11: 0 | AK11: 0 | AL11: 0 | AN11: 22330 | AO11: 22330 | AP11: 0 | AR11: 0 | AS11: 0 | AT11: 0 | AV11: 0 | AW11: 0 | AX11: 0 | AZ11: 27302.19 | BA11: 27302.19478 | BB11: -0.004782765089 | BD11: 883410 | BE11: 883410 | BF11: 0 | BH11: 0 | BI11: 0 | BJ11: 0 | BL11: 883410 | BM11: 883410 | BN11: 0 | BP11: 0 | BR11: 0 | BV11: 0 | BZ11: 0 | CB11: 102212.6 | CC11: 102212.6023 | CD11: 0 | CF11: 5417.8 | CG11: 5417.8 | CH11: 0 | CL11: 0 | CP11: 0 | CT11: 0 | CX11: 0 | DB11: 0 | DF11: 0 | DH11: NO | DI11: =IF(ISERROR(VLOOKUP($A11+8860000,'Growth Data'!$A:$F,3,0)),"NO",VLOOKUP($A11+8860000,'Growth Data'!$A:$F,3,0)) -> NO | DJ11: 0 | DL11: 0 | DM11: =IF(DI11="YES",IF(ISERROR(VLOOKUP($A11+8860000,'Growth Data'!$A:$F,6,0)),0,VLOOKUP($A11+8860000,'Growth Data'!$A:$F,6,0)),0) -> 0 | DN11: 0 | DP11: 0 | DQ11: =IF(ISERROR(VLOOKUP($A11+8860000,'Growth Data'!$A:$Z,7,0)),0,VLOOKUP($A11+8860000,'Growth Data'!$A:$Z,7,0)) -> 0 | DR11: 0 | DT11: NO | DU11: =IF(ISERROR(VLOOKUP($A11+8860000,'Growth Data'!$A:$F,4,0)),"NO",VLOOKUP($A11+8860000,'Growth Data'!$A:$F,4,0)) -> NO | DV11: 0 | DX11: 0 | DY11: =IF(ISERROR(VLOOKUP($A11+8860000,'Growth Data'!$A:$Z,8,0)),0,VLOOKUP($A11+8860000,'Growth Data'!$A:$Z,8,0)) -> 0 | DZ11: 0 | EB11: 0 | EC11: =IF(ISERROR(VLOOKUP($A11+8860000,'Growth Data'!$A:$Z,9,0)),0,VLOOKUP($A11+8860000,'Growth Data'!$A:$Z,9,0)) -> 0 | ED11: 0 | EF11: NO | EG11: =IF(ISERROR(VLOOKUP($A11+8860000,'Growth Data'!$A:$Z,5,0)),"NO",VLOOKUP($A11+8860000,'Growth Data'!$A:$Z,5,0)) -> NO | EH11: 0 | EJ11: 0 | EK11: =IF(ISERROR(VLOOKUP($A11+8860000,'Growth Data'!$A:$Z,10,0)),0,VLOOKUP($A11+8860000,'Growth Data'!$A:$Z,10,0)) -> 0 | EL11: 0 | EN11: 0 | EO11: =IF(ISERROR(VLOOKUP($A11+8860000,'Growth Data'!$A:$Z,11,0)),0,VLOOKUP($A11+8860000,'Growth Data'!$A:$Z,11,0)) -> 0 | EP11: 0
A12: 2116 | B12: Lawn Primary School | D12: Lawn Primary School | F12: 1 | H12: 603168.15 | I12: 603168.15 | J12: 0 | L12: 168011.36 | M12: 168011.3551 | N12: 0.004876847292 | P12: 22766.13 | Q12: 22766.13182 | R12: -0.001818181801 | T12: 88417.3 | U12: 88417.30345 | V12: -0.003448275864 | X12: 120084 | Y12: 120084 | Z12: 0 | AB12: 0 | AC12: 0 | AD12: 0 | AF12: 0 | AG12: 0 | AH12: 0 | AJ12: 0 | AK12: 0 | AL12: 0 | AN12: 20709 | AO12: 20709 | AP12: 0 | AR12: 0 | AS12: 0 | AT12: 0 | AV12: 0 | AW12: 0 | AX12: 0 | AZ12: 0 | BA12: 0 | BB12: 0 | BD12: 1023155.94 | BE12: 1023155.94 | BF12: -0.0003896105336 | BH12: 0 | BI12: 0 | BJ12: 0 | BL12: 1023155.94 | BM12: 1023155.94 | BN12: -0.0003896105336 | BP12: 0 | BR12: 0 | BV12: 0 | BZ12: 0 | CB12: 234334.33 | CC12: 234334.3327 | CD12: 0 | CF12: 5128.5 | CG12: 5128.5 | CH12: 0 | CL12: 0 | CP12: 0 | CT12: 0 | CX12: 0 | DB12: 0 | DF12: 0 | DH12: NO | DI12: =IF(ISERROR(VLOOKUP($A12+8860000,'Growth Data'!$A:$F,3,0)),"NO",VLOOKUP($A12+8860000,'Growth Data'!$A:$F,3,0)) -> NO | DJ12: 0 | DL12: 0 | DM12: =IF(DI12="YES",IF(ISERROR(VLOOKUP($A12+8860000,'Growth Data'!$A:$F,6,0)),0,VLOOKUP($A12+8860000,'Growth Data'!$A:$F,6,0)),0) -> 0 | DN12: 0 | DP12: 0 | DQ12: =IF(ISERROR(VLOOKUP($A12+8860000,'Growth Data'!$A:$Z,7,0)),0,VLOOKUP($A12+8860000,'Growth Data'!$A:$Z,7,0)) -> 0 | DR12: 0 | DT12: NO | DU12: =IF(ISERROR(VLOOKUP($A12+8860000,'Growth Data'!$A:$F,4,0)),"NO",VLOOKUP($A12+8860000,'Growth Data'!$A:$F,4,0)) -> NO | DV12: 0 | DX12: 0 | DY12: =IF(ISERROR(VLOOKUP($A12+8860000,'Growth Data'!$A:$Z,8,0)),0,VLOOKUP($A12+8860000,'Growth Data'!$A:$Z,8,0)) -> 0 | DZ12: 0 | EB12: 0 | EC12: =IF(ISERROR(VLOOKUP($A12+8860000,'Growth Data'!$A:$Z,9,0)),0,VLOOKUP($A12+8860000,'Growth Data'!$A:$Z,9,0)) -> 0 | ED12: 0 | EF12: NO | EG12: =IF(ISERROR(VLOOKUP($A12+8860000,'Growth Data'!$A:$Z,5,0)),"NO",VLOOKUP($A12+8860000,'Growth Data'!$A:$Z,5,0)) -> NO | EH12: 0 | EJ12: 0 | EK12: =IF(ISERROR(VLOOKUP($A12+8860000,'Growth Data'!$A:$Z,10,0)),0,VLOOKUP($A12+8860000,'Growth Data'!$A:$Z,10,0)) -> 0 | EL12: 0 | EN12: 0 | EO12: =IF(ISERROR(VLOOKUP($A12+8860000,'Growth Data'!$A:$Z,11,0)),0,VLOOKUP($A12+8860000,'Growth Data'!$A:$Z,11,0)) -> 0 | EP12: 0
A13: 2119 | B13: Shears Green Infant School | D13: Shears Green Infant School | F13: 1 | H13: 1048584.63 | I13: 1048584.63 | J13: 0 | L13: 97334.53 | M13: 97334.53 | N13: 0 | P13: 23025.04 | Q13: 23025.03868 | R13: 0.001319148927 | T13: 48034.4 | U13: 48034.40043 | V13: -0.0004310344884 | X13: 120084 | Y13: 120084 | Z13: 0 | AB13: 0 | AC13: 0 | AD13: 0 | AF13: 0 | AG13: 0 | AH13: 0 | AJ13: 0 | AK13: 0 | AL13: 0 | AN13: 21760 | AO13: 21760 | AP13: 0 | AR13: 0 | AS13: 0 | AT13: 0 | AV13: 0 | AW13: 0 | AX13: 0 | AZ13: 79957.4 | BA13: 79957.40089 | BB13: -0.0008881143585 | BD13: 1438780 | BE13: 1438780 | BF13: 0 | BH13: 0 | BI13: 0 | BJ13: 0 | BL13: 1438780 | BM13: 1438780 | BN13: 0 | BP13: 0 | BR13: 0 | BV13: 0 | BZ13: 0 | CB13: 229729.15 | CC13: 229729.1523 | CD13: 0 | CF13: 8915.7 | CG13: 8915.7 | CH13: 0 | CL13: 0 | CP13: 0 | CT13: 0 | CX13: 0 | DB13: 0 | DF13: 0 | DH13: NO | DI13: =IF(ISERROR(VLOOKUP($A13+8860000,'Growth Data'!$A:$F,3,0)),"NO",VLOOKUP($A13+8860000,'Growth Data'!$A:$F,3,0)) -> NO | DJ13: 0 | DL13: 0 | DM13: =IF(DI13="YES",IF(ISERROR(VLOOKUP($A13+8860000,'Growth Data'!$A:$F,6,0)),0,VLOOKUP($A13+8860000,'Growth Data'!$A:$F,6,0)),0) -> 0 | DN13: 0 | DP13: 0 | DQ13: =IF(ISERROR(VLOOKUP($A13+8860000,'Growth Data'!$A:$Z,7,0)),0,VLOOKUP($A13+8860000,'Growth Data'!$A:$Z,7,0)) -> 0 | DR13: 0 | DT13: NO | DU13: =IF(ISERROR(VLOOKUP($A13+8860000,'Growth Data'!$A:$F,4,0)),"NO",VLOOKUP($A13+8860000,'Growth Data'!$A:$F,4,0)) -> NO | DV13: 0 | DX13: 0 | DY13: =IF(ISERROR(VLOOKUP($A13+8860000,'Growth Data'!$A:$Z,8,0)),0,VLOOKUP($A13+8860000,'Growth Data'!$A:$Z,8,0)) -> 0 | DZ13: 0 | EB13: 0 | EC13: =IF(ISERROR(VLOOKUP($A13+8860000,'Growth Data'!$A:$Z,9,0)),0,VLOOKUP($A13+8860000,'Growth Data'!$A:$Z,9,0)) -> 0 | ED13: 0 | EF13: NO | EG13: =IF(ISERROR(VLOOKUP($A13+8860000,'Growth Data'!$A:$Z,5,0)),"NO",VLOOKUP($A13+8860000,'Growth Data'!$A:$Z,5,0)) -> NO | EH13: 0 | EJ13: 0 | EK13: =IF(ISERROR(VLOOKUP($A13+8860000,'Growth Data'!$A:$Z,10,0)),0,VLOOKUP($A13+8860000,'Growth Data'!$A:$Z,10,0)) -> 0 | EL13: 0 | EN13: 0 | EO13: =IF(ISERROR(VLOOKUP($A13+8860000,'Growth Data'!$A:$Z,11,0)),0,VLOOKUP($A13+8860000,'Growth Data'!$A:$Z,11,0)) -> 0 | EP13: 0
A14: 2120 | B14: Bean Primary School | D14: Bean Primary School | F14: 1 | H14: 596981.81 | I14: 596981.81 | J14: 0 | L14: 53653.15 | M14: 53653.14612 | N14: 0.003880597062 | P14: 5431.97 | Q14: 5431.974034 | R14: -0.004034090904 | T14: 47272.81 | U14: 47272.80694 | V14: 0.003058823531 | X14: 120084 | Y14: 120084 | Z14: 0 | AB14: 0 | AC14: 0 | AD14: 0 | AF14: 30301.99 | AG14: 30301.99353 | AH14: -0.003525083866 | AJ14: 0 | AK14: 0 | AL14: 0 | AN14: 16093 | AO14: 16093 | AP14: 0 | AR14: 0 | AS14: 0 | AT14: 0 | AV14: 0 | AW14: 0 | AX14: 0 | AZ14: 0 | BA14: 0 | BB14: 0 | BD14: 869818.73 | BE14: 869818.7306 | BF14: -0.0006197541952 | BH14: 0 | BI14: 0 | BJ14: 0 | BL14: 869818.73 | BM14: 869818.7306 | BN14: -0.0006197541952 | BP14: 0 | BR14: 0 | BV14: 0 | BZ14: 0 | CB14: 100509.58 | CC14: 100509.579 | CD14: 0 | CF14: 5262.69 | CG14: 5262.69312 | CH14: 0 | CL14: 0 | CP14: 0 | CT14: 0 | CX14: 0 | DB14: 0 | DF14: 0 | DH14: NO | DI14: =IF(ISERROR(VLOOKUP($A14+8860000,'Growth Data'!$A:$F,3,0)),"NO",VLOOKUP($A14+8860000,'Growth Data'!$A:$F,3,0)) -> NO | DJ14: 0 | DL14: 0 | DM14: =IF(DI14="YES",IF(ISERROR(VLOOKUP($A14+8860000,'Growth Data'!$A:$F,6,0)),0,VLOOKUP($A14+8860000,'Growth Data'!$A:$F,6,0)),0) -> 0 | DN14: 0 | DP14: 0 | DQ14: =IF(ISERROR(VLOOKUP($A14+8860000,'Growth Data'!$A:$Z,7,0)),0,VLOOKUP($A14+8860000,'Growth Data'!$A:$Z,7,0)) -> 0 | DR14: 0 | DT14: NO | DU14: =IF(ISERROR(VLOOKUP($A14+8860000,'Growth Data'!$A:$F,4,0)),"NO",VLOOKUP($A14+8860000,'Growth Data'!$A:$F,4,0)) -> NO | DV14: 0 | DX14: 0 | DY14: =IF(ISERROR(VLOOKUP($A14+8860000,'Growth Data'!$A:$Z,8,0)),0,VLOOKUP($A14+8860000,'Growth Data'!$A:$Z,8,0)) -> 0 | DZ14: 0 | EB14: 0 | EC14: =IF(ISERROR(VLOOKUP($A14+8860000,'Growth Data'!$A:$Z,9,0)),0,VLOOKUP($A14+8860000,'Growth Data'!$A:$Z,9,0)) -> 0 | ED14: 0 | EF14: NO | EG14: =IF(ISERROR(VLOOKUP($A14+8860000,'Growth Data'!$A:$Z,5,0)),"NO",VLOOKUP($A14+8860000,'Growth Data'!$A:$Z,5,0)) -> NO | EH14: 0 | EJ14: 0 | EK14: =IF(ISERROR(VLOOKUP($A14+8860000,'Growth Data'!$A:$Z,10,0)),0,VLOOKUP($A14+8860000,'Growth Data'!$A:$Z,10,0)) -> 0 | EL14: 0 | EN14: 0 | EO14: =IF(ISERROR(VLOOKUP($A14+8860000,'Growth Data'!$A:$Z,11,0)),0,VLOOKUP($A14+8860000,'Growth Data'!$A:$Z,11,0)) -> 0 | EP14: 0
A15: 2128 | B15: Capel Primary School | D15: Capel Primary School | F15: 1 | H15: 640286.19 | I15: 640286.19 | J15: 0 | L15: 32125.31 | M15: 32125.31 | N15: 3.274180926e-11 | P15: 3840.36 | Q15: 3840.361685 | R15: -0.001685393255 | T15: 43204.65 | U15: 43204.64571 | V15: 0.004285714291 | X15: 120084 | Y15: 120084 | Z15: 0 | AB15: 0 | AC15: 0 | AD15: 0 | AF15: 0 | AG15: 0 | AH15: 0 | AJ15: 0 | AK15: 0 | AL15: 0 | AN15: 21457 | AO15: 21457 | AP15: 0 | AR15: 0 | AS15: 0 | AT15: 0 | AV15: 0 | AW15: 0 | AX15: 0 | AZ15: 25719.49 | BA15: 25719.4926 | BB15: -0.002600321011 | BD15: 886717 | BE15: 886717 | BF15: 0 | BH15: 0 | BI15: 0 | BJ15: 0 | BL15: 886717 | BM15: 886717 | BN15: 0 | BP15: 0 | BR15: 0 | BV15: 0 | BZ15: 0 | CB15: 96854.95 | CC15: 96854.95231 | CD15: 0 | CF15: 5444.1 | CG15: 5444.1 | CH15: 0 | CL15: 0 | CP15: 0 | CT15: 0 | CX15: 0 | DB15: 0 | DF15: 0 | DH15: NO | DI15: =IF(ISERROR(VLOOKUP($A15+8860000,'Growth Data'!$A:$F,3,0)),"NO",VLOOKUP($A15+8860000,'Growth Data'!$A:$F,3,0)) -> NO | DJ15: 0 | DL15: 0 | DM15: =IF(DI15="YES",IF(ISERROR(VLOOKUP($A15+8860000,'Growth Data'!$A:$F,6,0)),0,VLOOKUP($A15+8860000,'Growth Data'!$A:$F,6,0)),0) -> 0 | DN15: 0 | DP15: 0 | DQ15: =IF(ISERROR(VLOOKUP($A15+8860000,'Growth Data'!$A:$Z,7,0)),0,VLOOKUP($A15+8860000,'Growth Data'!$A:$Z,7,0)) -> 0 | DR15: 0 | DT15: NO | DU15: =IF(ISERROR(VLOOKUP($A15+8860000,'Growth Data'!$A:$F,4,0)),"NO",VLOOKUP($A15+8860000,'Growth Data'!$A:$F,4,0)) -> NO | DV15: 0 | DX15: 0 | DY15: =IF(ISERROR(VLOOKUP($A15+8860000,'Growth Data'!$A:$Z,8,0)),0,VLOOKUP($A15+8860000,'Growth Data'!$A:$Z,8,0)) -> 0 | DZ15: 0 | EB15: 0 | EC15: =IF(ISERROR(VLOOKUP($A15+8860000,'Growth Data'!$A:$Z,9,0)),0,VLOOKUP($A15+8860000,'Growth Data'!$A:$Z,9,0)) -> 0 | ED15: 0 | EF15: NO | EG15: =IF(ISERROR(VLOOKUP($A15+8860000,'Growth Data'!$A:$Z,5,0)),"NO",VLOOKUP($A15+8860000,'Growth Data'!$A:$Z,5,0)) -> NO | EH15: 0 | EJ15: 0 | EK15: =IF(ISERROR(VLOOKUP($A15+8860000,'Growth Data'!$A:$Z,10,0)),0,VLOOKUP($A15+8860000,'Growth Data'!$A:$Z,10,0)) -> 0 | EL15: 0 | EN15: 0 | EO15: =IF(ISERROR(VLOOKUP($A15+8860000,'Growth Data'!$A:$Z,11,0)),0,VLOOKUP($A15+8860000,'Growth Data'!$A:$Z,11,0)) -> 0 | EP15: 0
A16: 2130 | B16: Dunton Green Primary School | D16: Dunton Green Primary School | F16: 1 | H16: 566050.11 | I16: 566050.11 | J16: 0 | L16: 40518.09 | M16: 40518.09 | N16: 0 | P16: 7147.97 | Q16: 7147.968194 | R16: 0.001806451611 | T16: 48301.86 | U16: 48301.86153 | V16: -0.00153284672 | X16: 120084 | Y16: 120084 | Z16: 0 | AB16: 0 | AC16: 0 | AD16: 0 | AF16: 28781.35 | AG16: 28781.35469 | AH16: -0.00469393134 | AJ16: 0 | AK16: 0 | AL16: 0 | AN16: 24576 | AO16: 24576 | AP16: 0 | AR16: 0 | AS16: 0 | AT16: 0 | AV16: 0 | AW16: 0 | AX16: 0 | AZ16: 0 | BA16: 0 | BB16: 0 | BD16: 835459.38 | BE16: 835459.3844 | BF16: -0.004420326324 | BH16: 0 | BI16: 0 | BJ16: 0 | BL16: 835459.38 | BM16: 835459.3844 | BN16: -0.004420326324 | BP16: 0 | BR16: 0 | BV16: 0 | BZ16: 0 | CB16: 82101.06 | CC16: 82101.06297 | CD16: 0 | CF16: 4990.01 | CG16: 4990.01472 | CH16: 0 | CL16: 0 | CP16: 0 | CT16: 0 | CX16: 0 | DB16: 0 | DF16: 0 | DH16: NO | DI16: =IF(ISERROR(VLOOKUP($A16+8860000,'Growth Data'!$A:$F,3,0)),"NO",VLOOKUP($A16+8860000,'Growth Data'!$A:$F,3,0)) -> NO | DJ16: 0 | DL16: 0 | DM16: =IF(DI16="YES",IF(ISERROR(VLOOKUP($A16+8860000,'Growth Data'!$A:$F,6,0)),0,VLOOKUP($A16+8860000,'Growth Data'!$A:$F,6,0)),0) -> 0 | DN16: 0 | DP16: 0 | DQ16: =IF(ISERROR(VLOOKUP($A16+8860000,'Growth Data'!$A:$Z,7,0)),0,VLOOKUP($A16+8860000,'Growth Data'!$A:$Z,7,0)) -> 0 | DR16: 0 | DT16: NO | DU16: =IF(ISERROR(VLOOKUP($A16+8860000,'Growth Data'!$A:$F,4,0)),"NO",VLOOKUP($A16+8860000,'Growth Data'!$A:$F,4,0)) -> NO | DV16: 0 | DX16: 0 | DY16: =IF(ISERROR(VLOOKUP($A16+8860000,'Growth Data'!$A:$Z,8,0)),0,VLOOKUP($A16+8860000,'Growth Data'!$A:$Z,8,0)) -> 0 | DZ16: 0 | EB16: 0 | EC16: =IF(ISERROR(VLOOKUP($A16+8860000,'Growth Data'!$A:$Z,9,0)),0,VLOOKUP($A16+8860000,'Growth Data'!$A:$Z,9,0)) -> 0 | ED16: 0 | EF16: NO | EG16: =IF(ISERROR(VLOOKUP($A16+8860000,'Growth Data'!$A:$Z,5,0)),"NO",VLOOKUP($A16+8860000,'Growth Data'!$A:$Z,5,0)) -> NO | EH16: 0 | EJ16: 0 | EK16: =IF(ISERROR(VLOOKUP($A16+8860000,'Growth Data'!$A:$Z,10,0)),0,VLOOKUP($A16+8860000,'Growth Data'!$A:$Z,10,0)) -> 0 | EL16: 0 | EN16: 0 | EO16: =IF(ISERROR(VLOOKUP($A16+8860000,'Growth Data'!$A:$Z,11,0)),0,VLOOKUP($A16+8860000,'Growth Data'!$A:$Z,11,0)) -> 0 | EP16: 0
A17: 2132 | B17: Hadlow Primary School | D17: Hadlow Primary School | F17: 1 | H17: 572236.45 | I17: 572236.45 | J17: 0 | L17: 56803.96 | M17: 56803.95593 | N17: 0.004072164964 | P17: 1313.83 | Q17: 1313.834194 | R17: -0.004193548386 | T17: 57718.16 | U17: 57718.16285 | V17: -0.002847222211 | X17: 120084 | Y17: 120084 | Z17: 0 | AB17: 0 | AC17: 0 | AD17: 0 | AF17: 0 | AG17: 0 | AH17: 0 | AJ17: 0 | AK17: 0 | AL17: 0 | AN17: 24326 | AO17: 24326 | AP17: 0 | AR17: 0 | AS17: 0 | AT17: 0 | AV17: 0 | AW17: 0 | AX17: 0 | AZ17: 0 | BA17: 0 | BB17: 0 | BD17: 832482.4 | BE17: 832482.403 | BF17: -0.002968605724 | BH17: 0 | BI17: 0 | BJ17: 0 | BL17: 832482.4 | BM17: 832482.403 | BN17: -0.002968605724 | BP17: 0 | BR17: 0 | BV17: 0 | BZ17: 0 | CB17: 105039.18 | CC17: 105039.1753 | CD17: 0 | CF17: 4865.5 | CG17: 4865.5 | CH17: 0 | CL17: 0 | CP17: 0 | CT17: 0 | CX17: 0 | DB17: 0 | DF17: 0 | DH17: NO | DI17: =IF(ISERROR(VLOOKUP($A17+8860000,'Growth Data'!$A:$F,3,0)),"NO",VLOOKUP($A17+8860000,'Growth Data'!$A:$F,3,0)) -> NO | DJ17: 0 | DL17: 0 | DM17: =IF(DI17="YES",IF(ISERROR(VLOOKUP($A17+8860000,'Growth Data'!$A:$F,6,0)),0,VLOOKUP($A17+8860000,'Growth Data'!$A:$F,6,0)),0) -> 0 | DN17: 0 | DP17: 0 | DQ17: =IF(ISERROR(VLOOKUP($A17+8860000,'Growth Data'!$A:$Z,7,0)),0,VLOOKUP($A17+8860000,'Growth Data'!$A:$Z,7,0)) -> 0 | DR17: 0 | DT17: NO | DU17: =IF(ISERROR(VLOOKUP($A17+8860000,'Growth Data'!$A:$F,4,0)),"NO",VLOOKUP($A17+8860000,'Growth Data'!$A:$F,4,0)) -> NO | DV17: 0 | DX17: 0 | DY17: =IF(ISERROR(VLOOKUP($A17+8860000,'Growth Data'!$A:$Z,8,0)),0,VLOOKUP($A17+8860000,'Growth Data'!$A:$Z,8,0)) -> 0 | DZ17: 0 | EB17: 0 | EC17: =IF(ISERROR(VLOOKUP($A17+8860000,'Growth Data'!$A:$Z,9,0)),0,VLOOKUP($A17+8860000,'Growth Data'!$A:$Z,9,0)) -> 0 | ED17: 0 | EF17: NO | EG17: =IF(ISERROR(VLOOKUP($A17+8860000,'Growth Data'!$A:$Z,5,0)),"NO",VLOOKUP($A17+8860000,'Growth Data'!$A:$Z,5,0)) -> NO | EH17: 0 | EJ17: 0 | EK17: =IF(ISERROR(VLOOKUP($A17+8860000,'Growth Data'!$A:$Z,10,0)),0,VLOOKUP($A17+8860000,'Growth Data'!$A:$Z,10,0)) -> 0 | EL17: 0 | EN17: 0 | EO17: =IF(ISERROR(VLOOKUP($A17+8860000,'Growth Data'!$A:$Z,11,0)),0,VLOOKUP($A17+8860000,'Growth Data'!$A:$Z,11,0)) -> 0 | EP17: 0
A18: 2133 | B18: Halstead Community Primary School | D18: Halstead Community Primary School | F18: 1 | H18: 225801.41 | I18: 225801.41 | J18: 0 | L18: 19480.51 | M18: 19480.51 | N18: 0 | P18: 0 | Q18: 0 | R18: 0 | T18: 20642.89 | U18: 20642.8929 | V18: -0.002903225806 | X18: 120084 | Y18: 120084 | Z18: 0 | AB18: 0 | AC18: 0 | AD18: 0 | AF18: 14205.12 | AG18: 14205.12431 | AH18: -0.00431483871 | AJ18: 0 | AK18: 0 | AL18: 0 | AN18: 9481 | AO18: 9481 | AP18: 0 | AR18: 0 | AS18: 0 | AT18: 0 | AV18: 0 | AW18: 0 | AX18: 0 | AZ18: 0 | BA18: 0 | BB18: 0 | BD18: 409694.94 | BE18: 409694.9372 | BF18: 0.002781935444 | BH18: 1299.9 | BI18: 1299.896359 | BJ18: 0.003640664602 | BL18: 410994.83 | BM18: 410994.8336 | BN18: -0.003577399941 | BP18: 0 | BR18: 0 | BV18: 0 | BZ18: 0 | CB18: 40296.42 | CC18: 40296.41735 | CD18: 0 | CF18: 1990.55 | CG18: 1990.55232 | CH18: 0 | CL18: 0 | CP18: 0 | CT18: 0 | CX18: 0 | DB18: 0 | DF18: 0 | DH18: NO | DI18: =IF(ISERROR(VLOOKUP($A18+8860000,'Growth Data'!$A:$F,3,0)),"NO",VLOOKUP($A18+8860000,'Growth Data'!$A:$F,3,0)) -> NO | DJ18: 0 | DL18: 0 | DM18: =IF(DI18="YES",IF(ISERROR(VLOOKUP($A18+8860000,'Growth Data'!$A:$F,6,0)),0,VLOOKUP($A18+8860000,'Growth Data'!$A:$F,6,0)),0) -> 0 | DN18: 0 | DP18: 0 | DQ18: =IF(ISERROR(VLOOKUP($A18+8860000,'Growth Data'!$A:$Z,7,0)),0,VLOOKUP($A18+8860000,'Growth Data'!$A:$Z,7,0)) -> 0 | DR18: 0 | DT18: NO | DU18: =IF(ISERROR(VLOOKUP($A18+8860000,'Growth Data'!$A:$F,4,0)),"NO",VLOOKUP($A18+8860000,'Growth Data'!$A:$F,4,0)) -> NO | DV18: 0 | DX18: 0 | DY18: =IF(ISERROR(VLOOKUP($A18+8860000,'Growth Data'!$A:$Z,8,0)),0,VLOOKUP($A18+8860000,'Growth Data'!$A:$Z,8,0)) -> 0 | DZ18: 0 | EB18: 0 | EC18: =IF(ISERROR(VLOOKUP($A18+8860000,'Growth Data'!$A:$Z,9,0)),0,VLOOKUP($A18+8860000,'Growth Data'!$A:$Z,9,0)) -> 0 | ED18: 0 | EF18: NO | EG18: =IF(ISERROR(VLOOKUP($A18+8860000,'Growth Data'!$A:$Z,5,0)),"NO",VLOOKUP($A18+8860000,'Growth Data'!$A:$Z,5,0)) -> NO | EH18: 0 | EJ18: 0 | EK18: =IF(ISERROR(VLOOKUP($A18+8860000,'Growth Data'!$A:$Z,10,0)),0,VLOOKUP($A18+8860000,'Growth Data'!$A:$Z,10,0)) -> 0 | EL18: 0 | EN18: 0 | EO18: =IF(ISERROR(VLOOKUP($A18+8860000,'Growth Data'!$A:$Z,11,0)),0,VLOOKUP($A18+8860000,'Growth Data'!$A:$Z,11,0)) -> 0 | EP18: 0
A19: 2134 | B19: Four Elms Primary School | D19: Four Elms Primary School | F19: 1 | H19: 330969.19 | I19: 330969.19 | J19: 0 | L19: 17739.97 | M19: 17739.97047 | N19: -0.0004716980984 | P19: 0 | Q19: 0 | R19: 0 | T19: 33871.47 | U19: 33871.46822 | V19: 0.001777777783 | X19: 120084 | Y19: 120084 | Z19: 0 | AB19: 0 | AC19: 0 | AD19: 0 | AF19: 18498.06 | AG19: 18498.05834 | AH19: 0.001664063733 | AJ19: 0 | AK19: 0 | AL19: 0 | AN19: 13348 | AO19: 13348 | AP19: 0 | AR19: 0 | AS19: 0 | AT19: 0 | AV19: 0 | AW19: 0 | AX19: 0 | AZ19: 0 | BA19: 0 | BB19: 0 | BD19: 534510.69 | BE19: 534510.687 | BF19: 0.002970143338 | BH19: 0 | BI19: 0 | BJ19: 0 | BL19: 534510.69 | BM19: 534510.687 | BN19: 0.002970143338 | BP19: 0 | BR19: 0 | BV19: 0 | BZ19: 0 | CB19: 56157.17 | CC19: 56157.17403 | CD19: 0 | CF19: 2917.66 | CG19: 2917.65888 | CH19: 0 | CL19: 0 | CP19: 0 | CT19: 0 | CX19: 0 | DB19: 0 | DF19: 0 | DH19: NO | DI19: =IF(ISERROR(VLOOKUP($A19+8860000,'Growth Data'!$A:$F,3,0)),"NO",VLOOKUP($A19+8860000,'Growth Data'!$A:$F,3,0)) -> NO | DJ19: 0 | DL19: 0 | DM19: =IF(DI19="YES",IF(ISERROR(VLOOKUP($A19+8860000,'Growth Data'!$A:$F,6,0)),0,VLOOKUP($A19+8860000,'Growth Data'!$A:$F,6,0)),0) -> 0 | DN19: 0 | DP19: 0 | DQ19: =IF(ISERROR(VLOOKUP($A19+8860000,'Growth Data'!$A:$Z,7,0)),0,VLOOKUP($A19+8860000,'Growth Data'!$A:$Z,7,0)) -> 0 | DR19: 0 | DT19: NO | DU19: =IF(ISERROR(VLOOKUP($A19+8860000,'Growth Data'!$A:$F,4,0)),"NO",VLOOKUP($A19+8860000,'Growth Data'!$A:$F,4,0)) -> NO | DV19: 0 | DX19: 0 | DY19: =IF(ISERROR(VLOOKUP($A19+8860000,'Growth Data'!$A:$Z,8,0)),0,VLOOKUP($A19+8860000,'Growth Data'!$A:$Z,8,0)) -> 0 | DZ19: 0 | EB19: 0 | EC19: =IF(ISERROR(VLOOKUP($A19+8860000,'Growth Data'!$A:$Z,9,0)),0,VLOOKUP($A19+8860000,'Growth Data'!$A:$Z,9,0)) -> 0 | ED19: 0 | EF19: NO | EG19: =IF(ISERROR(VLOOKUP($A19+8860000,'Growth Data'!$A:$Z,5,0)),"NO",VLOOKUP($A19+8860000,'Growth Data'!$A:$Z,5,0)) -> NO | EH19: 0 | EJ19: 0 | EK19: =IF(ISERROR(VLOOKUP($A19+8860000,'Growth Data'!$A:$Z,10,0)),0,VLOOKUP($A19+8860000,'Growth Data'!$A:$Z,10,0)) -> 0 | EL19: 0 | EN19: 0 | EO19: =IF(ISERROR(VLOOKUP($A19+8860000,'Growth Data'!$A:$Z,11,0)),0,VLOOKUP($A19+8860000,'Growth Data'!$A:$Z,11,0)) -> 0 | EP19: 0
A20: 2136 | B20: Kemsing Primary School | D20: Kemsing Primary School | F20: 1 | H20: 578422.79 | I20: 578422.79 | J20: 0 | L20: 18941.15 | M20: 18941.14549 | N20: 0.004514735818 | P20: 1941.94 | Q20: 1941.942075 | R20: -0.002075471699 | T20: 63455.69 | U20: 63455.68723 | V20: 0.002774193548 | X20: 120084 | Y20: 120084 | Z20: 0 | AB20: 0 | AC20: 0 | AD20: 0 | AF20: 28808.72 | AG20: 28808.71678 | AH20: 0.003215855246 | AJ20: 0 | AK20: 0 | AL20: 0 | AN20: 21956 | AO20: 21956 | AP20: 0 | AR20: 0 | AS20: 0 | AT20: 0 | AV20: 0 | AW20: 0 | AX20: 0 | AZ20: 0 | BA20: 0 | BB20: 0 | BD20: 833610.28 | BE20: 833610.2816 | BF20: -0.001570687047 | BH20: 0 | BI20: 0 | BJ20: 0 | BL20: 833610.28 | BM20: 833610.2816 | BN20: -0.001570687047 | BP20: 0 | BR20: 0 | BV20: 0 | BZ20: 0 | CB20: 83884.5 | CC20: 83884.499 | CD20: 0 | CF20: 5099.09 | CG20: 5099.08608 | CH20: 0 | CL20: 0 | CP20: 0 | CT20: 0 | CX20: 0 | DB20: 0 | DF20: 0 | DH20: YES | DI20: =IF(ISERROR(VLOOKUP($A20+8860000,'Growth Data'!$A:$F,3,0)),"NO",VLOOKUP($A20+8860000,'Growth Data'!$A:$F,3,0)) -> NO | DJ20: 1 | DL20: 31 | DM20: =IF(DI20="YES",IF(ISERROR(VLOOKUP($A20+8860000,'Growth Data'!$A:$F,6,0)),0,VLOOKUP($A20+8860000,'Growth Data'!$A:$F,6,0)),0) -> 0 | DN20: 31 | DP20: 60 | DQ20: =IF(ISERROR(VLOOKUP($A20+8860000,'Growth Data'!$A:$Z,7,0)),0,VLOOKUP($A20+8860000,'Growth Data'!$A:$Z,7,0)) -> 0 | DR20: 1 | DT20: YES | DU20: =IF(ISERROR(VLOOKUP($A20+8860000,'Growth Data'!$A:$F,4,0)),"NO",VLOOKUP($A20+8860000,'Growth Data'!$A:$F,4,0)) -> NO | DV20: 1 | DX20: 32 | DY20: =IF(ISERROR(VLOOKUP($A20+8860000,'Growth Data'!$A:$Z,8,0)),0,VLOOKUP($A20+8860000,'Growth Data'!$A:$Z,8,0)) -> 0 | DZ20: 1 | EB20: 60 | EC20: =IF(ISERROR(VLOOKUP($A20+8860000,'Growth Data'!$A:$Z,9,0)),0,VLOOKUP($A20+8860000,'Growth Data'!$A:$Z,9,0)) -> 0 | ED20: 1 | EF20: NO | EG20: =IF(ISERROR(VLOOKUP($A20+8860000,'Growth Data'!$A:$Z,5,0)),"NO",VLOOKUP($A20+8860000,'Growth Data'!$A:$Z,5,0)) -> NO | EH20: 0 | EJ20: 0 | EK20: =IF(ISERROR(VLOOKUP($A20+8860000,'Growth Data'!$A:$Z,10,0)),0,VLOOKUP($A20+8860000,'Growth Data'!$A:$Z,10,0)) -> 0 | EL20: 0 | EN20: 0 | EO20: =IF(ISERROR(VLOOKUP($A20+8860000,'Growth Data'!$A:$Z,11,0)),0,VLOOKUP($A20+8860000,'Growth Data'!$A:$Z,11,0)) -> 0 | EP20: 0
A21: 2137 | B21: Leigh Primary School | D21: Leigh Primary School | F21: 1 | H21: 510373.05 | I21: 510373.05 | J21: 0 | L21: 13060.73 | M21: 13060.73059 | N21: -0.0005917159815 | P21: 0 | Q21: 0 | R21: 0 | T21: 39304.79 | U21: 39304.79348 | V21: -0.003478260871 | X21: 120084 | Y21: 120084 | Z21: 0 | AB21: 0 | AC21: 0 | AD21: 0 | AF21: 25127.87 | AG21: 25127.87073 | AH21: -0.0007257751458 | AJ21: 0 | AK21: 0 | AL21: 0 | AN21: 12200 | AO21: 12200 | AP21: 0 | AR21: 0 | AS21: 0 | AT21: 0 | AV21: 0 | AW21: 0 | AX21: 0 | AZ21: 0 | BA21: 0 | BB21: 0 | BD21: 720150.44 | BE21: 720150.4448 | BF21: -0.004795752 | BH21: 0 | BI21: 0 | BJ21: 0 | BL21: 720150.44 | BM21: 720150.4448 | BN21: -0.004795752 | BP21: 0 | BR21: 0 | BV21: 0 | BZ21: 0 | CB21: 54552.71 | CC21: 54552.71087 | CD21: 0 | CF21: 4499.19 | CG21: 4499.1936 | CH21: 0 | CL21: 0 | CP21: 0 | CT21: 0 | CX21: 0 | DB21: 0 | DF21: 0 | DH21: NO | DI21: =IF(ISERROR(VLOOKUP($A21+8860000,'Growth Data'!$A:$F,3,0)),"NO",VLOOKUP($A21+8860000,'Growth Data'!$A:$F,3,0)) -> NO | DJ21: 0 | DL21: 0 | DM21: =IF(DI21="YES",IF(ISERROR(VLOOKUP($A21+8860000,'Growth Data'!$A:$F,6,0)),0,VLOOKUP($A21+8860000,'Growth Data'!$A:$F,6,0)),0) -> 0 | DN21: 0 | DP21: 0 | DQ21: =IF(ISERROR(VLOOKUP($A21+8860000,'Growth Data'!$A:$Z,7,0)),0,VLOOKUP($A21+8860000,'Growth Data'!$A:$Z,7,0)) -> 0 | DR21: 0 | DT21: NO | DU21: =IF(ISERROR(VLOOKUP($A21+8860000,'Growth Data'!$A:$F,4,0)),"NO",VLOOKUP($A21+8860000,'Growth Data'!$A:$F,4,0)) -> NO | DV21: 0 | DX21: 0 | DY21: =IF(ISERROR(VLOOKUP($A21+8860000,'Growth Data'!$A:$Z,8,0)),0,VLOOKUP($A21+8860000,'Growth Data'!$A:$Z,8,0)) -> 0 | DZ21: 0 | EB21: 0 | EC21: =IF(ISERROR(VLOOKUP($A21+8860000,'Growth Data'!$A:$Z,9,0)),0,VLOOKUP($A21+8860000,'Growth Data'!$A:$Z,9,0)) -> 0 | ED21: 0 | EF21: NO | EG21: =IF(ISERROR(VLOOKUP($A21+8860000,'Growth Data'!$A:$Z,5,0)),"NO",VLOOKUP($A21+8860000,'Growth Data'!$A:$Z,5,0)) -> NO | EH21: 0 | EJ21: 0 | EK21: =IF(ISERROR(VLOOKUP($A21+8860000,'Growth Data'!$A:$Z,10,0)),0,VLOOKUP($A21+8860000,'Growth Data'!$A:$Z,10,0)) -> 0 | EL21: 0 | EN21: 0 | EO21: =IF(ISERROR(VLOOKUP($A21+8860000,'Growth Data'!$A:$Z,11,0)),0,VLOOKUP($A21+8860000,'Growth Data'!$A:$Z,11,0)) -> 0 | EP21: 0
A22: 2138 | B22: Otford Primary School | D22: Otford Primary School | F22: 1 | H22: 1193963.62 | I22: 1193963.62 | J22: 0 | L22: 31419.78 | M22: 31419.78 | N22: 0 | P22: 1891.25 | Q22: 1891.251098 | R22: -0.001097922848 | T22: 57906.23 | U22: 57906.22655 | V22: 0.003452380952 | X22: 120084 | Y22: 120084 | Z22: 0 | AB22: 0 | AC22: 0 | AD22: 0 | AF22: 51713.75 | AG22: 51713.7475 | AH22: 0.002502644049 | AJ22: 0 | AK22: 0 | AL22: 0 | AN22: 29440 | AO22: 29440 | AP22: 0 | AR22: 0 | AS22: 0 | AT22: 0 | AV22: 0 | AW22: 0 | AX22: 0 | AZ22: 156501.37 | BA22: 156501.3749 | BB22: -0.004857102031 | BD22: 1642920 | BE22: 1642920 | BF22: 0 | BH22: 0 | BI22: 0 | BJ22: 0 | BL22: 1642920 | BM22: 1642920 | BN22: 0 | BP22: 0 | BR22: 0 | BV22: 0 | BZ22: 0 | CB22: 240358.59 | CC22: 240358.5882 | CD22: 0 | CF22: 10525.39 | CG22: 10525.38624 | CH22: 0 | CL22: 0 | CP22: 0 | CT22: 0 | CX22: 0 | DB22: 0 | DF22: 0 | DH22: NO | DI22: =IF(ISERROR(VLOOKUP($A22+8860000,'Growth Data'!$A:$F,3,0)),"NO",VLOOKUP($A22+8860000,'Growth Data'!$A:$F,3,0)) -> NO | DJ22: 0 | DL22: 0 | DM22: =IF(DI22="YES",IF(ISERROR(VLOOKUP($A22+8860000,'Growth Data'!$A:$F,6,0)),0,VLOOKUP($A22+8860000,'Growth Data'!$A:$F,6,0)),0) -> 0 | DN22: 0 | DP22: 0 | DQ22: =IF(ISERROR(VLOOKUP($A22+8860000,'Growth Data'!$A:$Z,7,0)),0,VLOOKUP($A22+8860000,'Growth Data'!$A:$Z,7,0)) -> 0 | DR22: 0 | DT22: NO | DU22: =IF(ISERROR(VLOOKUP($A22+8860000,'Growth Data'!$A:$F,4,0)),"NO",VLOOKUP($A22+8860000,'Growth Data'!$A:$F,4,0)) -> NO | DV22: 0 | DX22: 0 | DY22: =IF(ISERROR(VLOOKUP($A22+8860000,'Growth Data'!$A:$Z,8,0)),0,VLOOKUP($A22+8860000,'Growth Data'!$A:$Z,8,0)) -> 0 | DZ22: 0 | EB22: 0 | EC22: =IF(ISERROR(VLOOKUP($A22+8860000,'Growth Data'!$A:$Z,9,0)),0,VLOOKUP($A22+8860000,'Growth Data'!$A:$Z,9,0)) -> 0 | ED22: 0 | EF22: NO | EG22: =IF(ISERROR(VLOOKUP($A22+8860000,'Growth Data'!$A:$Z,5,0)),"NO",VLOOKUP($A22+8860000,'Growth Data'!$A:$Z,5,0)) -> NO | EH22: 0 | EJ22: 0 | EK22: =IF(ISERROR(VLOOKUP($A22+8860000,'Growth Data'!$A:$Z,10,0)),0,VLOOKUP($A22+8860000,'Growth Data'!$A:$Z,10,0)) -> 0 | EL22: 0 | EN22: 0 | EO22: =IF(ISERROR(VLOOKUP($A22+8860000,'Growth Data'!$A:$Z,11,0)),0,VLOOKUP($A22+8860000,'Growth Data'!$A:$Z,11,0)) -> 0 | EP22: 0
A23: 2139 | B23: Pembury School | D23: Pembury School | F23: 1 | H23: 1249640.68 | I23: 1249640.68 | J23: 0 | L23: 33466.26 | M23: 33466.26337 | N23: -0.003374689841 | P23: 17687.53 | Q23: 17687.53318 | R23: -0.003181818174 | T23: 72680.63 | U23: 72680.62507 | V23: 0.004925373141 | X23: 120084 | Y23: 120084 | Z23: 0 | AB23: 0 | AC23: 0 | AD23: 0 | AF23: 0 | AG23: 0 | AH23: 0 | AJ23: 0 | AK23: 0 | AL23: 0 | AN23: 42496 | AO23: 42496 | AP23: 0 | AR23: 0 | AS23: 0 | AT23: 0 | AV23: 0 | AW23: 0 | AX23: 0 | AZ23: 195160.9 | BA23: 195160.8984 | BB23: 0.001631134859 | BD23: 1731216 | BE23: 1731216 | BF23: 0 | BH23: 0 | BI23: 0 | BJ23: 0 | BL23: 1731216 | BM23: 1731216 | BN23: 0 | BP23: 0 | BR23: 0 | BV23: 0 | BZ23: 0 | CB23: 309579.5 | CC23: 309579.5023 | CD23: 0 | CF23: 10625.2 | CG23: 10625.2 | CH23: 0 | CL23: 0 | CP23: 0 | CT23: 0 | CX23: 0 | DB23: 0 | DF23: 0 | DH23: NO | DI23: =IF(ISERROR(VLOOKUP($A23+8860000,'Growth Data'!$A:$F,3,0)),"NO",VLOOKUP($A23+8860000,'Growth Data'!$A:$F,3,0)) -> NO | DJ23: 0 | DL23: 0 | DM23: =IF(DI23="YES",IF(ISERROR(VLOOKUP($A23+8860000,'Growth Data'!$A:$F,6,0)),0,VLOOKUP($A23+8860000,'Growth Data'!$A:$F,6,0)),0) -> 0 | DN23: 0 | DP23: 0 | DQ23: =IF(ISERROR(VLOOKUP($A23+8860000,'Growth Data'!$A:$Z,7,0)),0,VLOOKUP($A23+8860000,'Growth Data'!$A:$Z,7,0)) -> 0 | DR23: 0 | DT23: NO | DU23: =IF(ISERROR(VLOOKUP($A23+8860000,'Growth Data'!$A:$F,4,0)),"NO",VLOOKUP($A23+8860000,'Growth Data'!$A:$F,4,0)) -> NO | DV23: 0 | DX23: 0 | DY23: =IF(ISERROR(VLOOKUP($A23+8860000,'Growth Data'!$A:$Z,8,0)),0,VLOOKUP($A23+8860000,'Growth Data'!$A:$Z,8,0)) -> 0 | DZ23: 0 | EB23: 0 | EC23: =IF(ISERROR(VLOOKUP($A23+8860000,'Growth Data'!$A:$Z,9,0)),0,VLOOKUP($A23+8860000,'Growth Data'!$A:$Z,9,0)) -> 0 | ED23: 0 | EF23: NO | EG23: =IF(ISERROR(VLOOKUP($A23+8860000,'Growth Data'!$A:$Z,5,0)),"NO",VLOOKUP($A23+8860000,'Growth Data'!$A:$Z,5,0)) -> NO | EH23: 0 | EJ23: 0 | EK23: =IF(ISERROR(VLOOKUP($A23+8860000,'Growth Data'!$A:$Z,10,0)),0,VLOOKUP($A23+8860000,'Growth Data'!$A:$Z,10,0)) -> 0 | EL23: 0 | EN23: 0 | EO23: =IF(ISERROR(VLOOKUP($A23+8860000,'Growth Data'!$A:$Z,11,0)),0,VLOOKUP($A23+8860000,'Growth Data'!$A:$Z,11,0)) -> 0 | EP23: 0
A24: 2142 | B24: Sandhurst Primary School | D24: Sandhurst Primary School | F24: 1 | H24: 470161.84 | I24: 470161.84 | J24: 0 | L24: 32536.56 | M24: 32536.56 | N24: 0 | P24: 1976.2 | Q24: 1976.203465 | R24: -0.00346456693 | T24: 41639.26 | U24: 41639.26 | V24: 0 | X24: 120084 | Y24: 120084 | Z24: 0 | AB24: 0 | AC24: 0 | AD24: 0 | AF24: 0 | AG24: 0 | AH24: 0 | AJ24: 0 | AK24: 0 | AL24: 0 | AN24: 21582 | AO24: 21582 | AP24: 0 | AR24: 0 | AS24: 0 | AT24: 0 | AV24: 0 | AW24: 0 | AX24: 0 | AZ24: 0 | BA24: 0 | BB24: 0 | BD24: 687979.86 | BE24: 687979.8635 | BF24: -0.003464566893 | BH24: 0 | BI24: 0 | BJ24: 0 | BL24: 687979.86 | BM24: 687979.8635 | BN24: -0.003464566893 | BP24: 0 | BR24: 0 | BV24: 0 | BZ24: 0 | CB24: 64894.93 | CC24: 64894.92577 | CD24: 0 | CF24: 3997.6 | CG24: 3997.6 | CH24: 0 | CL24: 0 | CP24: 0 | CT24: 0 | CX24: 0 | DB24: 0 | DF24: 0 | DH24: NO | DI24: =IF(ISERROR(VLOOKUP($A24+8860000,'Growth Data'!$A:$F,3,0)),"NO",VLOOKUP($A24+8860000,'Growth Data'!$A:$F,3,0)) -> NO | DJ24: 0 | DL24: 0 | DM24: =IF(DI24="YES",IF(ISERROR(VLOOKUP($A24+8860000,'Growth Data'!$A:$F,6,0)),0,VLOOKUP($A24+8860000,'Growth Data'!$A:$F,6,0)),0) -> 0 | DN24: 0 | DP24: 0 | DQ24: =IF(ISERROR(VLOOKUP($A24+8860000,'Growth Data'!$A:$Z,7,0)),0,VLOOKUP($A24+8860000,'Growth Data'!$A:$Z,7,0)) -> 0 | DR24: 0 | DT24: NO | DU24: =IF(ISERROR(VLOOKUP($A24+8860000,'Growth Data'!$A:$F,4,0)),"NO",VLOOKUP($A24+8860000,'Growth Data'!$A:$F,4,0)) -> NO | DV24: 0 | DX24: 0 | DY24: =IF(ISERROR(VLOOKUP($A24+8860000,'Growth Data'!$A:$Z,8,0)),0,VLOOKUP($A24+8860000,'Growth Data'!$A:$Z,8,0)) -> 0 | DZ24: 0 | EB24: 0 | EC24: =IF(ISERROR(VLOOKUP($A24+8860000,'Growth Data'!$A:$Z,9,0)),0,VLOOKUP($A24+8860000,'Growth Data'!$A:$Z,9,0)) -> 0 | ED24: 0 | EF24: NO | EG24: =IF(ISERROR(VLOOKUP($A24+8860000,'Growth Data'!$A:$Z,5,0)),"NO",VLOOKUP($A24+8860000,'Growth Data'!$A:$Z,5,0)) -> NO | EH24: 0 | EJ24: 0 | EK24: =IF(ISERROR(VLOOKUP($A24+8860000,'Growth Data'!$A:$Z,10,0)),0,VLOOKUP($A24+8860000,'Growth Data'!$A:$Z,10,0)) -> 0 | EL24: 0 | EN24: 0 | EO24: =IF(ISERROR(VLOOKUP($A24+8860000,'Growth Data'!$A:$Z,11,0)),0,VLOOKUP($A24+8860000,'Growth Data'!$A:$Z,11,0)) -> 0 | EP24: 0
A25: 2147 | B25: Weald Community Primary School | D25: Weald Community Primary School | F25: 1 | H25: 454695.99 | I25: 454695.99 | J25: 0 | L25: 15649.85 | M25: 15649.85 | N25: -2.728484105e-11 | P25: 4978.91 | Q25: 4978.912615 | R25: -0.002615384612 | T25: 37635.09 | U25: 37635.09112 | V25: -0.001121495334 | X25: 120084 | Y25: 120084 | Z25: 0 | AB25: 1683.4 | AC25: 1683.403738 | AD25: -0.003738317751 | AF25: 23357.96 | AG25: 23357.96271 | AH25: -0.002707087278 | AJ25: 0 | AK25: 0 | AL25: 0 | AN25: 15220 | AO25: 15220 | AP25: 0 | AR25: 0 | AS25: 0 | AT25: 0 | AV25: 0 | AW25: 0 | AX25: 0 | AZ25: 0 | BA25: 0 | BB25: 0 | BD25: 673305.21 | BE25: 673305.2102 | BF25: -0.00018228509 | BH25: 0 | BI25: 0 | BJ25: 0 | BL25: 673305.21 | BM25: 673305.2102 | BN25: -0.00018228509 | BP25: 0 | BR25: 0 | BV25: 0 | BZ25: 0 | CB25: 58281.8 | CC25: 58281.80019 | CD25: 0 | CF25: 4008.37 | CG25: 4008.37248 | CH25: 0 | CL25: 0 | CP25: 0 | CT25: 0 | CX25: 0 | DB25: 0 | DF25: 0 | DH25: NO | DI25: =IF(ISERROR(VLOOKUP($A25+8860000,'Growth Data'!$A:$F,3,0)),"NO",VLOOKUP($A25+8860000,'Growth Data'!$A:$F,3,0)) -> NO | DJ25: 0 | DL25: 0 | DM25: =IF(DI25="YES",IF(ISERROR(VLOOKUP($A25+8860000,'Growth Data'!$A:$F,6,0)),0,VLOOKUP($A25+8860000,'Growth Data'!$A:$F,6,0)),0) -> 0 | DN25: 0 | DP25: 0 | DQ25: =IF(ISERROR(VLOOKUP($A25+8860000,'Growth Data'!$A:$Z,7,0)),0,VLOOKUP($A25+8860000,'Growth Data'!$A:$Z,7,0)) -> 0 | DR25: 0 | DT25: NO | DU25: =IF(ISERROR(VLOOKUP($A25+8860000,'Growth Data'!$A:$F,4,0)),"NO",VLOOKUP($A25+8860000,'Growth Data'!$A:$F,4,0)) -> NO | DV25: 0 | DX25: 0 | DY25: =IF(ISERROR(VLOOKUP($A25+8860000,'Growth Data'!$A:$Z,8,0)),0,VLOOKUP($A25+8860000,'Growth Data'!$A:$Z,8,0)) -> 0 | DZ25: 0 | EB25: 0 | EC25: =IF(ISERROR(VLOOKUP($A25+8860000,'Growth Data'!$A:$Z,9,0)),0,VLOOKUP($A25+8860000,'Growth Data'!$A:$Z,9,0)) -> 0 | ED25: 0 | EF25: NO | EG25: =IF(ISERROR(VLOOKUP($A25+8860000,'Growth Data'!$A:$Z,5,0)),"NO",VLOOKUP($A25+8860000,'Growth Data'!$A:$Z,5,0)) -> NO | EH25: 0 | EJ25: 0 | EK25: =IF(ISERROR(VLOOKUP($A25+8860000,'Growth Data'!$A:$Z,10,0)),0,VLOOKUP($A25+8860000,'Growth Data'!$A:$Z,10,0)) -> 0 | EL25: 0 | EN25: 0 | EO25: =IF(ISERROR(VLOOKUP($A25+8860000,'Growth Data'!$A:$Z,11,0)),0,VLOOKUP($A25+8860000,'Growth Data'!$A:$Z,11,0)) -> 0 | EP25: 0
A26: 2148 | B26: Shoreham Village School | D26: Shoreham Village School | F26: 1 | H26: 303130.66 | I26: 303130.66 | J26: 0 | L26: 17573.82 | M26: 17573.82293 | N26: -0.002929292928 | P26: 1254.38 | Q26: 1254.377209 | R26: 0.002790697673 | T26: 26846.37 | U26: 26846.365 | V26: 0.005000000001 | X26: 120084 | Y26: 120084 | Z26: 0 | AB26: 0 | AC26: 0 | AD26: 0 | AF26: 17255.12 | AG26: 17255.12349 | AH26: -0.003485100307 | AJ26: 0 | AK26: 0 | AL26: 0 | AN26: 14097 | AO26: 14097 | AP26: 0 | AR26: 0 | AS26: 0 | AT26: 0 | AV26: 0 | AW26: 0 | AX26: 0 | AZ26: 0 | BA26: 0 | BB26: 0 | BD26: 500241.35 | BE26: 500241.3486 | BF26: 0.001376304426 | BH26: 0 | BI26: 0 | BJ26: 0 | BL26: 500241.35 | BM26: 500241.3486 | BN26: 0.001376304426 | BP26: 0 | BR26: 0 | BV26: 0 | BZ26: 0 | CB26: 45229.23 | CC26: 45229.22577 | CD26: 0 | CF26: 2672.25 | CG26: 2672.24832 | CH26: 0 | CL26: 0 | CP26: 0 | CT26: 0 | CX26: 0 | DB26: 0 | DF26: 0 | DH26: NO | DI26: =IF(ISERROR(VLOOKUP($A26+8860000,'Growth Data'!$A:$F,3,0)),"NO",VLOOKUP($A26+8860000,'Growth Data'!$A:$F,3,0)) -> NO | DJ26: 0 | DL26: 0 | DM26: =IF(DI26="YES",IF(ISERROR(VLOOKUP($A26+8860000,'Growth Data'!$A:$F,6,0)),0,VLOOKUP($A26+8860000,'Growth Data'!$A:$F,6,0)),0) -> 0 | DN26: 0 | DP26: 0 | DQ26: =IF(ISERROR(VLOOKUP($A26+8860000,'Growth Data'!$A:$Z,7,0)),0,VLOOKUP($A26+8860000,'Growth Data'!$A:$Z,7,0)) -> 0 | DR26: 0 | DT26: NO | DU26: =IF(ISERROR(VLOOKUP($A26+8860000,'Growth Data'!$A:$F,4,0)),"NO",VLOOKUP($A26+8860000,'Growth Data'!$A:$F,4,0)) -> NO | DV26: 0 | DX26: 0 | DY26: =IF(ISERROR(VLOOKUP($A26+8860000,'Growth Data'!$A:$Z,8,0)),0,VLOOKUP($A26+8860000,'Growth Data'!$A:$Z,8,0)) -> 0 | DZ26: 0 | EB26: 0 | EC26: =IF(ISERROR(VLOOKUP($A26+8860000,'Growth Data'!$A:$Z,9,0)),0,VLOOKUP($A26+8860000,'Growth Data'!$A:$Z,9,0)) -> 0 | ED26: 0 | EF26: NO | EG26: =IF(ISERROR(VLOOKUP($A26+8860000,'Growth Data'!$A:$Z,5,0)),"NO",VLOOKUP($A26+8860000,'Growth Data'!$A:$Z,5,0)) -> NO | EH26: 0 | EJ26: 0 | EK26: =IF(ISERROR(VLOOKUP($A26+8860000,'Growth Data'!$A:$Z,10,0)),0,VLOOKUP($A26+8860000,'Growth Data'!$A:$Z,10,0)) -> 0 | EL26: 0 | EN26: 0 | EO26: =IF(ISERROR(VLOOKUP($A26+8860000,'Growth Data'!$A:$Z,11,0)),0,VLOOKUP($A26+8860000,'Growth Data'!$A:$Z,11,0)) -> 0 | EP26: 0
A27: 2155 | B27: Slade Primary School and Attached Unit for Children with Hearing Impairment | D27: Slade Primary School and Attached Unit for Children with Hearing Impairment | F27: 1 | H27: 1289851.89 | I27: 1289851.89 | J27: 0 | L27: 49705.64 | M27: 49705.63881 | N27: 0.001185185225 | P27: 26358.59 | Q27: 26358.59336 | R27: -0.003361344505 | T27: 128984.96 | U27: 128984.9623 | V27: -0.002342342341 | X27: 120084 | Y27: 120084 | Z27: 0 | AB27: 0 | AC27: 0 | AD27: 0 | AF27: 0 | AG27: 0 | AH27: 0 | AJ27: 0 | AK27: 0 | AL27: 0 | AN27: 29952 | AO27: 29952 | AP27: 0 | AR27: 0 | AS27: 0 | AT27: 0 | AV27: 0 | AW27: 0 | AX27: 0 | AZ27: 128074.92 | BA27: 128074.9155 | BB27: 0.004518501766 | BD27: 1773012 | BE27: 1773012 | BF27: 0 | BH27: 0 | BI27: 0 | BJ27: 0 | BL27: 1773012 | BM27: 1773012 | BN27: 0 | BP27: 0 | BR27: 0 | BV27: 0 | BZ27: 0 | CB27: 323708.29 | CC27: 323708.2923 | CD27: 0 | CF27: 10967.1 | CG27: 10967.1 | CH27: 0 | CL27: 0 | CP27: 0 | CT27: 0 | CX27: 0 | DB27: 0 | DF27: 0 | DH27: NO | DI27: =IF(ISERROR(VLOOKUP($A27+8860000,'Growth Data'!$A:$F,3,0)),"NO",VLOOKUP($A27+8860000,'Growth Data'!$A:$F,3,0)) -> NO | DJ27: 0 | DL27: 0 | DM27: =IF(DI27="YES",IF(ISERROR(VLOOKUP($A27+8860000,'Growth Data'!$A:$F,6,0)),0,VLOOKUP($A27+8860000,'Growth Data'!$A:$F,6,0)),0) -> 0 | DN27: 0 | DP27: 0 | DQ27: =IF(ISERROR(VLOOKUP($A27+8860000,'Growth Data'!$A:$Z,7,0)),0,VLOOKUP($A27+8860000,'Growth Data'!$A:$Z,7,0)) -> 0 | DR27: 0 | DT27: NO | DU27: =IF(ISERROR(VLOOKUP($A27+8860000,'Growth Data'!$A:$F,4,0)),"NO",VLOOKUP($A27+8860000,'Growth Data'!$A:$F,4,0)) -> NO | DV27: 0 | DX27: 0 | DY27: =IF(ISERROR(VLOOKUP($A27+8860000,'Growth Data'!$A:$Z,8,0)),0,VLOOKUP($A27+8860000,'Growth Data'!$A:$Z,8,0)) -> 0 | DZ27: 0 | EB27: 0 | EC27: =IF(ISERROR(VLOOKUP($A27+8860000,'Growth Data'!$A:$Z,9,0)),0,VLOOKUP($A27+8860000,'Growth Data'!$A:$Z,9,0)) -> 0 | ED27: 0 | EF27: NO | EG27: =IF(ISERROR(VLOOKUP($A27+8860000,'Growth Data'!$A:$Z,5,0)),"NO",VLOOKUP($A27+8860000,'Growth Data'!$A:$Z,5,0)) -> NO | EH27: 0 | EJ27: 0 | EK27: =IF(ISERROR(VLOOKUP($A27+8860000,'Growth Data'!$A:$Z,10,0)),0,VLOOKUP($A27+8860000,'Growth Data'!$A:$Z,10,0)) -> 0 | EL27: 0 | EN27: 0 | EO27: =IF(ISERROR(VLOOKUP($A27+8860000,'Growth Data'!$A:$Z,11,0)),0,VLOOKUP($A27+8860000,'Growth Data'!$A:$Z,11,0)) -> 0 | EP27: 0
A28: 2156 | B28: Sussex Road Community Primary School | D28: Sussex Road Community Primary School | F28: 1 | H28: 1364087.97 | I28: 1364087.97 | J28: 0 | L28: 58503.68 | M28: 58503.68 | N28: 1.018634066e-10 | P28: 20386.1 | Q28: 20386.0989 | R28: 0.001102362192 | T28: 82914.24 | U28: 82914.24257 | V28: -0.002573726539 | X28: 120084 | Y28: 120084 | Z28: 0 | AB28: 0 | AC28: 0 | AD28: 0 | AF28: 0 | AG28: 0 | AH28: 0 | AJ28: 0 | AK28: 0 | AL28: 0 | AN28: 44544 | AO28: 44544 | AP28: 0 | AR28: 0 | AS28: 0 | AT28: 0 | AV28: 0 | AW28: 0 | AX28: 0 | AZ28: 197404.01 | BA28: 197404.0085 | BB28: 0.001471364172 | BD28: 1887924 | BE28: 1887924 | BF28: 0 | BH28: 0 | BI28: 0 | BJ28: 0 | BL28: 1887924 | BM28: 1887924 | BN28: 0 | BP28: 0 | BR28: 0 | BV28: 0 | BZ28: 0 | CB28: 341966.77 | CC28: 341966.7723 | CD28: 0 | CF28: 11598.3 | CG28: 11598.3 | CH28: 0 | CL28: 0 | CP28: 0 | CT28: 0 | CX28: 0 | DB28: 0 | DF28: 0 | DH28: NO | DI28: =IF(ISERROR(VLOOKUP($A28+8860000,'Growth Data'!$A:$F,3,0)),"NO",VLOOKUP($A28+8860000,'Growth Data'!$A:$F,3,0)) -> NO | DJ28: 0 | DL28: 0 | DM28: =IF(DI28="YES",IF(ISERROR(VLOOKUP($A28+8860000,'Growth Data'!$A:$F,6,0)),0,VLOOKUP($A28+8860000,'Growth Data'!$A:$F,6,0)),0) -> 0 | DN28: 0 | DP28: 0 | DQ28: =IF(ISERROR(VLOOKUP($A28+8860000,'Growth Data'!$A:$Z,7,0)),0,VLOOKUP($A28+8860000,'Growth Data'!$A:$Z,7,0)) -> 0 | DR28: 0 | DT28: NO | DU28: =IF(ISERROR(VLOOKUP($A28+8860000,'Growth Data'!$A:$F,4,0)),"NO",VLOOKUP($A28+8860000,'Growth Data'!$A:$F,4,0)) -> NO | DV28: 0 | DX28: 0 | DY28: =IF(ISERROR(VLOOKUP($A28+8860000,'Growth Data'!$A:$Z,8,0)),0,VLOOKUP($A28+8860000,'Growth Data'!$A:$Z,8,0)) -> 0 | DZ28: 0 | EB28: 0 | EC28: =IF(ISERROR(VLOOKUP($A28+8860000,'Growth Data'!$A:$Z,9,0)),0,VLOOKUP($A28+8860000,'Growth Data'!$A:$Z,9,0)) -> 0 | ED28: 0 | EF28: NO | EG28: =IF(ISERROR(VLOOKUP($A28+8860000,'Growth Data'!$A:$Z,5,0)),"NO",VLOOKUP($A28+8860000,'Growth Data'!$A:$Z,5,0)) -> NO | EH28: 0 | EJ28: 0 | EK28: =IF(ISERROR(VLOOKUP($A28+8860000,'Growth Data'!$A:$Z,10,0)),0,VLOOKUP($A28+8860000,'Growth Data'!$A:$Z,10,0)) -> 0 | EL28: 0 | EN28: 0 | EO28: =IF(ISERROR(VLOOKUP($A28+8860000,'Growth Data'!$A:$Z,11,0)),0,VLOOKUP($A28+8860000,'Growth Data'!$A:$Z,11,0)) -> 0 | EP28: 0
A29: 2161 | B29: Boughton Monchelsea Primary School | D29: Boughton Monchelsea Primary School | F29: 1 | H29: 637193.02 | I29: 637193.02 | J29: 0 | L29: 34942.27 | M29: 34942.27 | N29: 0 | P29: 647.89 | Q29: 647.8876571 | R29: 0.002342857143 | T29: 50594.35 | U29: 50594.34586 | V29: 0.004137931028 | X29: 120084 | Y29: 120084 | Z29: 0 | AB29: 0 | AC29: 0 | AD29: 0 | AF29: 0 | AG29: 0 | AH29: 0 | AJ29: 0 | AK29: 0 | AL29: 0 | AN29: 22580 | AO29: 22580 | AP29: 0 | AR29: 0 | AS29: 0 | AT29: 0 | AV29: 0 | AW29: 0 | AX29: 0 | AZ29: 17618.48 | BA29: 17618.47648 | BB29: 0.003519211885 | BD29: 883660 | BE29: 883660 | BF29: 0 | BH29: 0 | BI29: 0 | BJ29: 0 | BL29: 883660 | BM29: 883660 | BN29: 0 | BP29: 0 | BR29: 0 | BV29: 0 | BZ29: 0 | CB29: 98069.72 | CC29: 98069.72231 | CD29: 0 | CF29: 5417.8 | CG29: 5417.8 | CH29: 0 | CL29: 0 | CP29: 0 | CT29: 0 | CX29: 0 | DB29: 0 | DF29: 0 | DH29: NO | DI29: =IF(ISERROR(VLOOKUP($A29+8860000,'Growth Data'!$A:$F,3,0)),"NO",VLOOKUP($A29+8860000,'Growth Data'!$A:$F,3,0)) -> NO | DJ29: 0 | DL29: 0 | DM29: =IF(DI29="YES",IF(ISERROR(VLOOKUP($A29+8860000,'Growth Data'!$A:$F,6,0)),0,VLOOKUP($A29+8860000,'Growth Data'!$A:$F,6,0)),0) -> 0 | DN29: 0 | DP29: 0 | DQ29: =IF(ISERROR(VLOOKUP($A29+8860000,'Growth Data'!$A:$Z,7,0)),0,VLOOKUP($A29+8860000,'Growth Data'!$A:$Z,7,0)) -> 0 | DR29: 0 | DT29: NO | DU29: =IF(ISERROR(VLOOKUP($A29+8860000,'Growth Data'!$A:$F,4,0)),"NO",VLOOKUP($A29+8860000,'Growth Data'!$A:$F,4,0)) -> NO | DV29: 0 | DX29: 0 | DY29: =IF(ISERROR(VLOOKUP($A29+8860000,'Growth Data'!$A:$Z,8,0)),0,VLOOKUP($A29+8860000,'Growth Data'!$A:$Z,8,0)) -> 0 | DZ29: 0 | EB29: 0 | EC29: =IF(ISERROR(VLOOKUP($A29+8860000,'Growth Data'!$A:$Z,9,0)),0,VLOOKUP($A29+8860000,'Growth Data'!$A:$Z,9,0)) -> 0 | ED29: 0 | EF29: NO | EG29: =IF(ISERROR(VLOOKUP($A29+8860000,'Growth Data'!$A:$Z,5,0)),"NO",VLOOKUP($A29+8860000,'Growth Data'!$A:$Z,5,0)) -> NO | EH29: 0 | EJ29: 0 | EK29: =IF(ISERROR(VLOOKUP($A29+8860000,'Growth Data'!$A:$Z,10,0)),0,VLOOKUP($A29+8860000,'Growth Data'!$A:$Z,10,0)) -> 0 | EL29: 0 | EN29: 0 | EO29: =IF(ISERROR(VLOOKUP($A29+8860000,'Growth Data'!$A:$Z,11,0)),0,VLOOKUP($A29+8860000,'Growth Data'!$A:$Z,11,0)) -> 0 | EP29: 0
A30: 2163 | B30: East Farleigh Primary School | D30: East Farleigh Primary School | F30: 1 | H30: 627913.51 | I30: 627913.51 | J30: 0 | L30: 22954.94 | M30: 22954.94 | N30: 0 | P30: 3174.12 | Q30: 3174.124148 | R30: -0.004147727272 | T30: 43985.57 | U30: 43985.56977 | V30: 0.0002259887042 | X30: 120084 | Y30: 120084 | Z30: 0 | AB30: 0 | AC30: 0 | AD30: 0 | AF30: 0 | AG30: 0 | AH30: 0 | AJ30: 0 | AK30: 0 | AL30: 0 | AN30: 16717 | AO30: 16717 | AP30: 0 | AR30: 0 | AS30: 0 | AT30: 0 | AV30: 0 | AW30: 0 | AX30: 0 | AZ30: 30427.86 | BA30: 30427.85608 | BB30: 0.003921738578 | BD30: 865257 | BE30: 865257 | BF30: 0 | BH30: 0 | BI30: 0 | BJ30: 0 | BL30: 865257 | BM30: 865257 | BN30: 0 | BP30: 0 | BR30: 0 | BV30: 0 | BZ30: 0 | CB30: 100793.39 | CC30: 100793.3923 | CD30: 0 | CF30: 5338.9 | CG30: 5338.9 | CH30: 0 | CL30: 0 | CP30: 0 | CT30: 0 | CX30: 0 | DB30: 0 | DF30: 0 | DH30: NO | DI30: =IF(ISERROR(VLOOKUP($A30+8860000,'Growth Data'!$A:$F,3,0)),"NO",VLOOKUP($A30+8860000,'Growth Data'!$A:$F,3,0)) -> NO | DJ30: 0 | DL30: 0 | DM30: =IF(DI30="YES",IF(ISERROR(VLOOKUP($A30+8860000,'Growth Data'!$A:$F,6,0)),0,VLOOKUP($A30+8860000,'Growth Data'!$A:$F,6,0)),0) -> 0 | DN30: 0 | DP30: 0 | DQ30: =IF(ISERROR(VLOOKUP($A30+8860000,'Growth Data'!$A:$Z,7,0)),0,VLOOKUP($A30+8860000,'Growth Data'!$A:$Z,7,0)) -> 0 | DR30: 0 | DT30: NO | DU30: =IF(ISERROR(VLOOKUP($A30+8860000,'Growth Data'!$A:$F,4,0)),"NO",VLOOKUP($A30+8860000,'Growth Data'!$A:$F,4,0)) -> NO | DV30: 0 | DX30: 0 | DY30: =IF(ISERROR(VLOOKUP($A30+8860000,'Growth Data'!$A:$Z,8,0)),0,VLOOKUP($A30+8860000,'Growth Data'!$A:$Z,8,0)) -> 0 | DZ30: 0 | EB30: 0 | EC30: =IF(ISERROR(VLOOKUP($A30+8860000,'Growth Data'!$A:$Z,9,0)),0,VLOOKUP($A30+8860000,'Growth Data'!$A:$Z,9,0)) -> 0 | ED30: 0 | EF30: NO | EG30: =IF(ISERROR(VLOOKUP($A30+8860000,'Growth Data'!$A:$Z,5,0)),"NO",VLOOKUP($A30+8860000,'Growth Data'!$A:$Z,5,0)) -> NO | EH30: 0 | EJ30: 0 | EK30: =IF(ISERROR(VLOOKUP($A30+8860000,'Growth Data'!$A:$Z,10,0)),0,VLOOKUP($A30+8860000,'Growth Data'!$A:$Z,10,0)) -> 0 | EL30: 0 | EN30: 0 | EO30: =IF(ISERROR(VLOOKUP($A30+8860000,'Growth Data'!$A:$Z,11,0)),0,VLOOKUP($A30+8860000,'Growth Data'!$A:$Z,11,0)) -> 0 | EP30: 0
A31: 2164 | B31: East Peckham Primary School | D31: East Peckham Primary School | F31: 1 | H31: 491814.03 | I31: 491814.03 | J31: 0 | L31: 40198.93 | M31: 40198.93 | N31: 0 | P31: 1223.94 | Q31: 1223.944196 | R31: -0.004195804197 | T31: 39597.14 | U31: 39597.14318 | V31: -0.003181818181 | X31: 120084 | Y31: 120084 | Z31: 0 | AB31: 0 | AC31: 0 | AD31: 0 | AF31: 0 | AG31: 0 | AH31: 0 | AJ31: 0 | AK31: 0 | AL31: 0 | AN31: 20709 | AO31: 20709 | AP31: 0 | AR31: 0 | AS31: 0 | AT31: 0 | AV31: 0 | AW31: 0 | AX31: 0 | AZ31: 0 | BA31: 0 | BB31: 0 | BD31: 713627.05 | BE31: 713627.0474 | BF31: 0.002622377709 | BH31: 0 | BI31: 0 | BJ31: 0 | BL31: 713627.05 | BM31: 713627.0474 | BN31: 0.002622377709 | BP31: 0 | BR31: 0 | BV31: 0 | BZ31: 0 | CB31: 74826.44 | CC31: 74826.43968 | CD31: 0 | CF31: 4181.7 | CG31: 4181.7 | CH31: 0 | CL31: 0 | CP31: 0 | CT31: 0 | CX31: 0 | DB31: 0 | DF31: 0 | DH31: NO | DI31: =IF(ISERROR(VLOOKUP($A31+8860000,'Growth Data'!$A:$F,3,0)),"NO",VLOOKUP($A31+8860000,'Growth Data'!$A:$F,3,0)) -> NO | DJ31: 0 | DL31: 0 | DM31: =IF(DI31="YES",IF(ISERROR(VLOOKUP($A31+8860000,'Growth Data'!$A:$F,6,0)),0,VLOOKUP($A31+8860000,'Growth Data'!$A:$F,6,0)),0) -> 0 | DN31: 0 | DP31: 0 | DQ31: =IF(ISERROR(VLOOKUP($A31+8860000,'Growth Data'!$A:$Z,7,0)),0,VLOOKUP($A31+8860000,'Growth Data'!$A:$Z,7,0)) -> 0 | DR31: 0 | DT31: NO | DU31: =IF(ISERROR(VLOOKUP($A31+8860000,'Growth Data'!$A:$F,4,0)),"NO",VLOOKUP($A31+8860000,'Growth Data'!$A:$F,4,0)) -> NO | DV31: 0 | DX31: 0 | DY31: =IF(ISERROR(VLOOKUP($A31+8860000,'Growth Data'!$A:$Z,8,0)),0,VLOOKUP($A31+8860000,'Growth Data'!$A:$Z,8,0)) -> 0 | DZ31: 0 | EB31: 0 | EC31: =IF(ISERROR(VLOOKUP($A31+8860000,'Growth Data'!$A:$Z,9,0)),0,VLOOKUP($A31+8860000,'Growth Data'!$A:$Z,9,0)) -> 0 | ED31: 0 | EF31: NO | EG31: =IF(ISERROR(VLOOKUP($A31+8860000,'Growth Data'!$A:$Z,5,0)),"NO",VLOOKUP($A31+8860000,'Growth Data'!$A:$Z,5,0)) -> NO | EH31: 0 | EJ31: 0 | EK31: =IF(ISERROR(VLOOKUP($A31+8860000,'Growth Data'!$A:$Z,10,0)),0,VLOOKUP($A31+8860000,'Growth Data'!$A:$Z,10,0)) -> 0 | EL31: 0 | EN31: 0 | EO31: =IF(ISERROR(VLOOKUP($A31+8860000,'Growth Data'!$A:$Z,11,0)),0,VLOOKUP($A31+8860000,'Growth Data'!$A:$Z,11,0)) -> 0 | EP31: 0
A32: 2165 | B32: Headcorn Primary School | D32: Headcorn Primary School | F32: 1 | H32: 1008373.42 | I32: 1008373.42 | J32: 0 | L32: 70803.73 | M32: 70803.7262 | N32: 0.003795379555 | P32: 4617.61 | Q32: 4617.610221 | R32: -0.0002205882429 | T32: 60660.17 | U32: 60660.17321 | V32: -0.003207547161 | X32: 120084 | Y32: 120084 | Z32: 0 | AB32: 0 | AC32: 0 | AD32: 0 | AF32: 0 | AG32: 0 | AH32: 0 | AJ32: 0 | AK32: 0 | AL32: 0 | AN32: 40918 | AO32: 40918 | AP32: 0 | AR32: 0 | AS32: 0 | AT32: 0 | AV32: 0 | AW32: 0 | AX32: 0 | AZ32: 98141.07 | BA32: 98141.07037 | BB32: -0.0003672441235 | BD32: 1403598 | BE32: 1403598 | BF32: 0 | BH32: 0 | BI32: 0 | BJ32: 0 | BL32: 1403598 | BM32: 1403598 | BN32: 0 | BP32: 0 | BR32: 0 | BV32: 0 | BZ32: 0 | CB32: 220203.56 | CC32: 220203.5623 | CD32: 0 | CF32: 8573.8 | CG32: 8573.8 | CH32: 0 | CL32: 0 | CP32: 0 | CT32: 0 | CX32: 0 | DB32: 0 | DF32: 0 | DH32: NO | DI32: =IF(ISERROR(VLOOKUP($A32+8860000,'Growth Data'!$A:$F,3,0)),"NO",VLOOKUP($A32+8860000,'Growth Data'!$A:$F,3,0)) -> YES | DJ32: 1 | DL32: 0 | DM32: =IF(DI32="YES",IF(ISERROR(VLOOKUP($A32+8860000,'Growth Data'!$A:$F,6,0)),0,VLOOKUP($A32+8860000,'Growth Data'!$A:$F,6,0)),0) -> 34 | DN32: -34 | DP32: 0 | DQ32: =IF(ISERROR(VLOOKUP($A32+8860000,'Growth Data'!$A:$Z,7,0)),0,VLOOKUP($A32+8860000,'Growth Data'!$A:$Z,7,0)) -> 60 | DR32: 1 | DT32: NO | DU32: =IF(ISERROR(VLOOKUP($A32+8860000,'Growth Data'!$A:$F,4,0)),"NO",VLOOKUP($A32+8860000,'Growth Data'!$A:$F,4,0)) -> YES | DV32: 1 | DX32: 0 | DY32: =IF(ISERROR(VLOOKUP($A32+8860000,'Growth Data'!$A:$Z,8,0)),0,VLOOKUP($A32+8860000,'Growth Data'!$A:$Z,8,0)) -> 32 | DZ32: 1 | EB32: 0 | EC32: =IF(ISERROR(VLOOKUP($A32+8860000,'Growth Data'!$A:$Z,9,0)),0,VLOOKUP($A32+8860000,'Growth Data'!$A:$Z,9,0)) -> 60 | ED32: 1 | EF32: NO | EG32: =IF(ISERROR(VLOOKUP($A32+8860000,'Growth Data'!$A:$Z,5,0)),"NO",VLOOKUP($A32+8860000,'Growth Data'!$A:$Z,5,0)) -> YES | EH32: 1 | EJ32: 0 | EK32: =IF(ISERROR(VLOOKUP($A32+8860000,'Growth Data'!$A:$Z,10,0)),0,VLOOKUP($A32+8860000,'Growth Data'!$A:$Z,10,0)) -> 30 | EL32: 1 | EN32: 0 | EO32: =IF(ISERROR(VLOOKUP($A32+8860000,'Growth Data'!$A:$Z,11,0)),0,VLOOKUP($A32+8860000,'Growth Data'!$A:$Z,11,0)) -> 60 | EP32: 1
A33: 2166 | B33: Hollingbourne Primary School | D33: Hollingbourne Primary School | F33: 1 | H33: 296944.32 | I33: 296944.32 | J33: 0 | L33: 12638.76 | M33: 12638.76 | N33: 0 | P33: 3221.8 | Q33: 3221.795122 | R33: 0.004878048779 | T33: 31957.65 | U33: 31957.64658 | V33: 0.00341772152 | X33: 120084 | Y33: 120084 | Z33: 0 | AB33: 0 | AC33: 0 | AD33: 0 | AF33: 0 | AG33: 0 | AH33: 0 | AJ33: 0 | AK33: 0 | AL33: 0 | AN33: 13723 | AO33: 13723 | AP33: 0 | AR33: 0 | AS33: 0 | AT33: 0 | AV33: 0 | AW33: 0 | AX33: 0 | AZ33: 0 | BA33: 0 | BB33: 0 | BD33: 478569.52 | BE33: 478569.5217 | BF33: -0.001704229682 | BH33: 0 | BI33: 0 | BJ33: 0 | BL33: 478569.52 | BM33: 478569.5217 | BN33: -0.001704229682 | BP33: 0 | BR33: 0 | BV33: 0 | BZ33: 0 | CB33: 47148.46 | CC33: 47148.46401 | CD33: 0 | CF33: 2524.8 | CG33: 2524.8 | CH33: 0 | CL33: 0 | CP33: 0 | CT33: 0 | CX33: 0 | DB33: 0 | DF33: 0 | DH33: NO | DI33: =IF(ISERROR(VLOOKUP($A33+8860000,'Growth Data'!$A:$F,3,0)),"NO",VLOOKUP($A33+8860000,'Growth Data'!$A:$F,3,0)) -> NO | DJ33: 0 | DL33: 0 | DM33: =IF(DI33="YES",IF(ISERROR(VLOOKUP($A33+8860000,'Growth Data'!$A:$F,6,0)),0,VLOOKUP($A33+8860000,'Growth Data'!$A:$F,6,0)),0) -> 0 | DN33: 0 | DP33: 0 | DQ33: =IF(ISERROR(VLOOKUP($A33+8860000,'Growth Data'!$A:$Z,7,0)),0,VLOOKUP($A33+8860000,'Growth Data'!$A:$Z,7,0)) -> 0 | DR33: 0 | DT33: NO | DU33: =IF(ISERROR(VLOOKUP($A33+8860000,'Growth Data'!$A:$F,4,0)),"NO",VLOOKUP($A33+8860000,'Growth Data'!$A:$F,4,0)) -> NO | DV33: 0 | DX33: 0 | DY33: =IF(ISERROR(VLOOKUP($A33+8860000,'Growth Data'!$A:$Z,8,0)),0,VLOOKUP($A33+8860000,'Growth Data'!$A:$Z,8,0)) -> 0 | DZ33: 0 | EB33: 0 | EC33: =IF(ISERROR(VLOOKUP($A33+8860000,'Growth Data'!$A:$Z,9,0)),0,VLOOKUP($A33+8860000,'Growth Data'!$A:$Z,9,0)) -> 0 | ED33: 0 | EF33: NO | EG33: =IF(ISERROR(VLOOKUP($A33+8860000,'Growth Data'!$A:$Z,5,0)),"NO",VLOOKUP($A33+8860000,'Growth Data'!$A:$Z,5,0)) -> NO | EH33: 0 | EJ33: 0 | EK33: =IF(ISERROR(VLOOKUP($A33+8860000,'Growth Data'!$A:$Z,10,0)),0,VLOOKUP($A33+8860000,'Growth Data'!$A:$Z,10,0)) -> 0 | EL33: 0 | EN33: 0 | EO33: =IF(ISERROR(VLOOKUP($A33+8860000,'Growth Data'!$A:$Z,11,0)),0,VLOOKUP($A33+8860000,'Growth Data'!$A:$Z,11,0)) -> 0 | EP33: 0
A34: 2167 | B34: Ightham Primary School | D34: Ightham Primary School | F34: 1 | H34: 637193.02 | I34: 637193.02 | J34: 0 | L34: 4814.35 | M34: 4814.35 | N34: 0 | P34: 1943.66 | Q34: 1943.662971 | R34: -0.002971428566 | T34: 24927.09 | U34: 24927.08687 | V34: 0.003128834353 | X34: 120084 | Y34: 120084 | Z34: 0 | AB34: 0 | AC34: 0 | AD34: 0 | AF34: 0 | AG34: 0 | AH34: 0 | AJ34: 0 | AK34: 0 | AL34: 0 | AN34: 21457 | AO34: 21457 | AP34: 0 | AR34: 0 | AS34: 0 | AT34: 0 | AV34: 0 | AW34: 0 | AX34: 0 | AZ34: 72117.88 | BA34: 72117.88016 | BB34: -0.0001574057678 | BD34: 882537 | BE34: 882537 | BF34: 0 | BH34: 0 | BI34: 0 | BJ34: 0 | BL34: 882537 | BM34: 882537 | BN34: 0 | BP34: 0 | BR34: 0 | BV34: 0 | BZ34: 0 | CB34: 109117.4 | CC34: 109117.4023 | CD34: 0 | CF34: 5417.8 | CG34: 5417.8 | CH34: 0 | CL34: 0 | CP34: 0 | CT34: 0 | CX34: 0 | DB34: 0 | DF34: 0 | DH34: NO | DI34: =IF(ISERROR(VLOOKUP($A34+8860000,'Growth Data'!$A:$F,3,0)),"NO",VLOOKUP($A34+8860000,'Growth Data'!$A:$F,3,0)) -> NO | DJ34: 0 | DL34: 0 | DM34: =IF(DI34="YES",IF(ISERROR(VLOOKUP($A34+8860000,'Growth Data'!$A:$F,6,0)),0,VLOOKUP($A34+8860000,'Growth Data'!$A:$F,6,0)),0) -> 0 | DN34: 0 | DP34: 0 | DQ34: =IF(ISERROR(VLOOKUP($A34+8860000,'Growth Data'!$A:$Z,7,0)),0,VLOOKUP($A34+8860000,'Growth Data'!$A:$Z,7,0)) -> 0 | DR34: 0 | DT34: NO | DU34: =IF(ISERROR(VLOOKUP($A34+8860000,'Growth Data'!$A:$F,4,0)),"NO",VLOOKUP($A34+8860000,'Growth Data'!$A:$F,4,0)) -> NO | DV34: 0 | DX34: 0 | DY34: =IF(ISERROR(VLOOKUP($A34+8860000,'Growth Data'!$A:$Z,8,0)),0,VLOOKUP($A34+8860000,'Growth Data'!$A:$Z,8,0)) -> 0 | DZ34: 0 | EB34: 0 | EC34: =IF(ISERROR(VLOOKUP($A34+8860000,'Growth Data'!$A:$Z,9,0)),0,VLOOKUP($A34+8860000,'Growth Data'!$A:$Z,9,0)) -> 0 | ED34: 0 | EF34: NO | EG34: =IF(ISERROR(VLOOKUP($A34+8860000,'Growth Data'!$A:$Z,5,0)),"NO",VLOOKUP($A34+8860000,'Growth Data'!$A:$Z,5,0)) -> NO | EH34: 0 | EJ34: 0 | EK34: =IF(ISERROR(VLOOKUP($A34+8860000,'Growth Data'!$A:$Z,10,0)),0,VLOOKUP($A34+8860000,'Growth Data'!$A:$Z,10,0)) -> 0 | EL34: 0 | EN34: 0 | EO34: =IF(ISERROR(VLOOKUP($A34+8860000,'Growth Data'!$A:$Z,11,0)),0,VLOOKUP($A34+8860000,'Growth Data'!$A:$Z,11,0)) -> 0 | EP34: 0
A35: 2168 | B35: Lenham Primary School | D35: Lenham Primary School | F35: 1 | H35: 634099.85 | I35: 634099.85 | J35: 0 | L35: 30215.58 | M35: 30215.58235 | N35: -0.002352941148 | P35: 1282.16 | Q35: 1282.158523 | R35: 0.001477272723 | T35: 57800.27 | U35: 57800.2655 | V35: 0.004502923977 | X35: 120084 | Y35: 120084 | Z35: 0 | AB35: 0 | AC35: 0 | AD35: 0 | AF35: 0 | AG35: 0 | AH35: 0 | AJ35: 0 | AK35: 0 | AL35: 0 | AN35: 18837 | AO35: 18837 | AP35: 0 | AR35: 0 | AS35: 0 | AT35: 0 | AV35: 0 | AW35: 0 | AX35: 0 | AZ35: 13418.14 | BA35: 13418.14363 | BB35: -0.003627255574 | BD35: 875737 | BE35: 875737 | BF35: 0 | BH35: 0 | BI35: 0 | BJ35: 0 | BL35: 875737 | BM35: 875737 | BN35: 0 | BP35: 0 | BR35: 0 | BV35: 0 | BZ35: 0 | CB35: 93300.33 | CC35: 93300.33231 | CD35: 0 | CF35: 5391.5 | CG35: 5391.5 | CH35: 0 | CL35: 0 | CP35: 0 | CT35: 0 | CX35: 0 | DB35: 0 | DF35: 0 | DH35: NO | DI35: =IF(ISERROR(VLOOKUP($A35+8860000,'Growth Data'!$A:$F,3,0)),"NO",VLOOKUP($A35+8860000,'Growth Data'!$A:$F,3,0)) -> NO | DJ35: 0 | DL35: 0 | DM35: =IF(DI35="YES",IF(ISERROR(VLOOKUP($A35+8860000,'Growth Data'!$A:$F,6,0)),0,VLOOKUP($A35+8860000,'Growth Data'!$A:$F,6,0)),0) -> 0 | DN35: 0 | DP35: 0 | DQ35: =IF(ISERROR(VLOOKUP($A35+8860000,'Growth Data'!$A:$Z,7,0)),0,VLOOKUP($A35+8860000,'Growth Data'!$A:$Z,7,0)) -> 0 | DR35: 0 | DT35: NO | DU35: =IF(ISERROR(VLOOKUP($A35+8860000,'Growth Data'!$A:$F,4,0)),"NO",VLOOKUP($A35+8860000,'Growth Data'!$A:$F,4,0)) -> NO | DV35: 0 | DX35: 0 | DY35: =IF(ISERROR(VLOOKUP($A35+8860000,'Growth Data'!$A:$Z,8,0)),0,VLOOKUP($A35+8860000,'Growth Data'!$A:$Z,8,0)) -> 0 | DZ35: 0 | EB35: 0 | EC35: =IF(ISERROR(VLOOKUP($A35+8860000,'Growth Data'!$A:$Z,9,0)),0,VLOOKUP($A35+8860000,'Growth Data'!$A:$Z,9,0)) -> 0 | ED35: 0 | EF35: NO | EG35: =IF(ISERROR(VLOOKUP($A35+8860000,'Growth Data'!$A:$Z,5,0)),"NO",VLOOKUP($A35+8860000,'Growth Data'!$A:$Z,5,0)) -> NO | EH35: 0 | EJ35: 0 | EK35: =IF(ISERROR(VLOOKUP($A35+8860000,'Growth Data'!$A:$Z,10,0)),0,VLOOKUP($A35+8860000,'Growth Data'!$A:$Z,10,0)) -> 0 | EL35: 0 | EN35: 0 | EO35: =IF(ISERROR(VLOOKUP($A35+8860000,'Growth Data'!$A:$Z,11,0)),0,VLOOKUP($A35+8860000,'Growth Data'!$A:$Z,11,0)) -> 0 | EP35: 0
A36: 2169 | B36: Platts Heath Primary School | D36: Platts Heath Primary School | F36: 1 | H36: 163938.01 | I36: 163938.01 | J36: 0 | L36: 13449.33 | M36: 13449.33 | N36: 0 | P36: 0 | Q36: 0 | R36: 0 | T36: 16593.09 | U36: 16593.08857 | V36: 0.001428571428 | X36: 120084 | Y36: 120084 | Z36: 0 | AB36: 0 | AC36: 0 | AD36: 0 | AF36: 0 | AG36: 0 | AH36: 0 | AJ36: 0 | AK36: 0 | AL36: 0 | AN36: 2345 | AO36: 2345 | AP36: 0 | AR36: 0 | AS36: 0 | AT36: 0 | AV36: 0 | AW36: 0 | AX36: 0 | AZ36: 0 | BA36: 0 | BB36: 0 | BD36: 316409.43 | BE36: 316409.4286 | BF36: 0.001428571413 | BH36: 0 | BI36: 0 | BJ36: 0 | BL36: 316409.43 | BM36: 316409.4286 | BN36: 0.001428571413 | BP36: 0 | BR36: 0 | BV36: 0 | BZ36: 0 | CB36: 29372.68 | CC36: 29372.68088 | CD36: 0 | CF36: 1393.9 | CG36: 1393.9 | CH36: 0 | CL36: 0 | CP36: 0 | CT36: 0 | CX36: 0 | DB36: 0 | DF36: 0 | DH36: NO | DI36: =IF(ISERROR(VLOOKUP($A36+8860000,'Growth Data'!$A:$F,3,0)),"NO",VLOOKUP($A36+8860000,'Growth Data'!$A:$F,3,0)) -> NO | DJ36: 0 | DL36: 0 | DM36: =IF(DI36="YES",IF(ISERROR(VLOOKUP($A36+8860000,'Growth Data'!$A:$F,6,0)),0,VLOOKUP($A36+8860000,'Growth Data'!$A:$F,6,0)),0) -> 0 | DN36: 0 | DP36: 0 | DQ36: =IF(ISERROR(VLOOKUP($A36+8860000,'Growth Data'!$A:$Z,7,0)),0,VLOOKUP($A36+8860000,'Growth Data'!$A:$Z,7,0)) -> 0 | DR36: 0 | DT36: NO | DU36: =IF(ISERROR(VLOOKUP($A36+8860000,'Growth Data'!$A:$F,4,0)),"NO",VLOOKUP($A36+8860000,'Growth Data'!$A:$F,4,0)) -> NO | DV36: 0 | DX36: 0 | DY36: =IF(ISERROR(VLOOKUP($A36+8860000,'Growth Data'!$A:$Z,8,0)),0,VLOOKUP($A36+8860000,'Growth Data'!$A:$Z,8,0)) -> 0 | DZ36: 0 | EB36: 0 | EC36: =IF(ISERROR(VLOOKUP($A36+8860000,'Growth Data'!$A:$Z,9,0)),0,VLOOKUP($A36+8860000,'Growth Data'!$A:$Z,9,0)) -> 0 | ED36: 0 | EF36: NO | EG36: =IF(ISERROR(VLOOKUP($A36+8860000,'Growth Data'!$A:$Z,5,0)),"NO",VLOOKUP($A36+8860000,'Growth Data'!$A:$Z,5,0)) -> NO | EH36: 0 | EJ36: 0 | EK36: =IF(ISERROR(VLOOKUP($A36+8860000,'Growth Data'!$A:$Z,10,0)),0,VLOOKUP($A36+8860000,'Growth Data'!$A:$Z,10,0)) -> 0 | EL36: 0 | EN36: 0 | EO36: =IF(ISERROR(VLOOKUP($A36+8860000,'Growth Data'!$A:$Z,11,0)),0,VLOOKUP($A36+8860000,'Growth Data'!$A:$Z,11,0)) -> 0 | EP36: 0
A37: 2171 | B37: Brunswick House Primary School | D37: Brunswick House Primary School | F37: 1 | H37: 1292945.06 | I37: 1292945.06 | J37: 0 | L37: 81649.55 | M37: 81649.55058 | N37: -0.0005797100312 | P37: 28918.54 | Q37: 28918.53603 | R37: 0.003966480534 | T37: 94261.63 | U37: 94261.62916 | V37: 0.0008405797125 | X37: 120084 | Y37: 120084 | Z37: 0 | AB37: 0 | AC37: 0 | AD37: 0 | AF37: 0 | AG37: 0 | AH37: 0 | AJ37: 0 | AK37: 0 | AL37: 0 | AN37: 66048 | AO37: 66048 | AP37: 0 | AR37: 0 | AS37: 0 | AT37: 0 | AV37: 0 | AW37: 0 | AX37: 0 | AZ37: 129381.22 | BA37: 129381.2242 | BB37: -0.004227350117 | BD37: 1813288 | BE37: 1813288 | BF37: 0 | BH37: 0 | BI37: 0 | BJ37: 0 | BL37: 1813288 | BM37: 1813288 | BN37: 0 | BP37: 0 | BR37: 0 | BV37: 0 | BZ37: 0 | CB37: 304541.04 | CC37: 304541.0423 | CD37: 0 | CF37: 10993.4 | CG37: 10993.4 | CH37: 0 | CL37: 0 | CP37: 0 | CT37: 0 | CX37: 0 | DB37: 0 | DF37: 0 | DH37: NO | DI37: =IF(ISERROR(VLOOKUP($A37+8860000,'Growth Data'!$A:$F,3,0)),"NO",VLOOKUP($A37+8860000,'Growth Data'!$A:$F,3,0)) -> NO | DJ37: 0 | DL37: 0 | DM37: =IF(DI37="YES",IF(ISERROR(VLOOKUP($A37+8860000,'Growth Data'!$A:$F,6,0)),0,VLOOKUP($A37+8860000,'Growth Data'!$A:$F,6,0)),0) -> 0 | DN37: 0 | DP37: 0 | DQ37: =IF(ISERROR(VLOOKUP($A37+8860000,'Growth Data'!$A:$Z,7,0)),0,VLOOKUP($A37+8860000,'Growth Data'!$A:$Z,7,0)) -> 0 | DR37: 0 | DT37: NO | DU37: =IF(ISERROR(VLOOKUP($A37+8860000,'Growth Data'!$A:$F,4,0)),"NO",VLOOKUP($A37+8860000,'Growth Data'!$A:$F,4,0)) -> NO | DV37: 0 | DX37: 0 | DY37: =IF(ISERROR(VLOOKUP($A37+8860000,'Growth Data'!$A:$Z,8,0)),0,VLOOKUP($A37+8860000,'Growth Data'!$A:$Z,8,0)) -> 0 | DZ37: 0 | EB37: 0 | EC37: =IF(ISERROR(VLOOKUP($A37+8860000,'Growth Data'!$A:$Z,9,0)),0,VLOOKUP($A37+8860000,'Growth Data'!$A:$Z,9,0)) -> 0 | ED37: 0 | EF37: NO | EG37: =IF(ISERROR(VLOOKUP($A37+8860000,'Growth Data'!$A:$Z,5,0)),"NO",VLOOKUP($A37+8860000,'Growth Data'!$A:$Z,5,0)) -> NO | EH37: 0 | EJ37: 0 | EK37: =IF(ISERROR(VLOOKUP($A37+8860000,'Growth Data'!$A:$Z,10,0)),0,VLOOKUP($A37+8860000,'Growth Data'!$A:$Z,10,0)) -> 0 | EL37: 0 | EN37: 0 | EO37: =IF(ISERROR(VLOOKUP($A37+8860000,'Growth Data'!$A:$Z,11,0)),0,VLOOKUP($A37+8860000,'Growth Data'!$A:$Z,11,0)) -> 0 | EP37: 0
A38: 2175 | B38: North Borough Junior School | D38: North Borough Junior School | F38: 1 | H38: 1051677.8 | I38: 1051677.8 | J38: 0 | L38: 91323.38 | M38: 91323.37997 | N38: 3.00299871e-05 | P38: 20914.82 | Q38: 20914.82 | R38: 0 | T38: 122957.69 | U38: 122957.6898 | V38: 0.0002310231066 | X38: 120084 | Y38: 120084 | Z38: 0 | AB38: 0 | AC38: 0 | AD38: 0 | AF38: 0 | AG38: 0 | AH38: 0 | AJ38: 0 | AK38: 0 | AL38: 0 | AN38: 23328 | AO38: 23328 | AP38: 0 | AR38: 0 | AS38: 0 | AT38: 0 | AV38: 0 | AW38: 0 | AX38: 0 | AZ38: 14242.31 | BA38: 14242.31026 | BB38: -0.0002610530337 | BD38: 1444528 | BE38: 1444528 | BF38: 0 | BH38: 0 | BI38: 0 | BJ38: 0 | BL38: 1444528 | BM38: 1444528 | BN38: 0 | BP38: 0 | BR38: 0 | BV38: 0 | BZ38: 0 | CB38: 219307.98 | CC38: 219307.9823 | CD38: 0 | CF38: 8942 | CG38: 8942 | CH38: 0 | CL38: 0 | CP38: 0 | CT38: 0 | CX38: 0 | DB38: 0 | DF38: 0 | DH38: NO | DI38: =IF(ISERROR(VLOOKUP($A38+8860000,'Growth Data'!$A:$F,3,0)),"NO",VLOOKUP($A38+8860000,'Growth Data'!$A:$F,3,0)) -> NO | DJ38: 0 | DL38: 0 | DM38: =IF(DI38="YES",IF(ISERROR(VLOOKUP($A38+8860000,'Growth Data'!$A:$F,6,0)),0,VLOOKUP($A38+8860000,'Growth Data'!$A:$F,6,0)),0) -> 0 | DN38: 0 | DP38: 0 | DQ38: =IF(ISERROR(VLOOKUP($A38+8860000,'Growth Data'!$A:$Z,7,0)),0,VLOOKUP($A38+8860000,'Growth Data'!$A:$Z,7,0)) -> 0 | DR38: 0 | DT38: NO | DU38: =IF(ISERROR(VLOOKUP($A38+8860000,'Growth Data'!$A:$F,4,0)),"NO",VLOOKUP($A38+8860000,'Growth Data'!$A:$F,4,0)) -> NO | DV38: 0 | DX38: 0 | DY38: =IF(ISERROR(VLOOKUP($A38+8860000,'Growth Data'!$A:$Z,8,0)),0,VLOOKUP($A38+8860000,'Growth Data'!$A:$Z,8,0)) -> 0 | DZ38: 0 | EB38: 0 | EC38: =IF(ISERROR(VLOOKUP($A38+8860000,'Growth Data'!$A:$Z,9,0)),0,VLOOKUP($A38+8860000,'Growth Data'!$A:$Z,9,0)) -> 0 | ED38: 0 | EF38: NO | EG38: =IF(ISERROR(VLOOKUP($A38+8860000,'Growth Data'!$A:$Z,5,0)),"NO",VLOOKUP($A38+8860000,'Growth Data'!$A:$Z,5,0)) -> NO | EH38: 0 | EJ38: 0 | EK38: =IF(ISERROR(VLOOKUP($A38+8860000,'Growth Data'!$A:$Z,10,0)),0,VLOOKUP($A38+8860000,'Growth Data'!$A:$Z,10,0)) -> 0 | EL38: 0 | EN38: 0 | EO38: =IF(ISERROR(VLOOKUP($A38+8860000,'Growth Data'!$A:$Z,11,0)),0,VLOOKUP($A38+8860000,'Growth Data'!$A:$Z,11,0)) -> 0 | EP38: 0
A39: 2176 | B39: Park Way Primary School | D39: Park Way Primary School | F39: 1 | H39: 958882.7 | I39: 958882.7 | J39: 0 | L39: 117104.67 | M39: 117104.6746 | N39: -0.004603174588 | P39: 26397.95 | Q39: 26397.95057 | R39: -0.0005660376519 | T39: 102762.97 | U39: 102762.9681 | V39: 0.001932773113 | X39: 120084 | Y39: 120084 | Z39: 0 | AB39: 0 | AC39: 0 | AD39: 0 | AF39: 0 | AG39: 0 | AH39: 0 | AJ39: 0 | AK39: 0 | AL39: 0 | AN39: 28416 | AO39: 28416 | AP39: 0 | AR39: 0 | AS39: 0 | AT39: 0 | AV39: 0 | AW39: 0 | AX39: 0 | AZ39: 0 | BA39: 0 | BB39: 0 | BD39: 1353648.29 | BE39: 1353648.293 | BF39: -0.003236439079 | BH39: 0 | BI39: 0 | BJ39: 0 | BL39: 1353648.29 | BM39: 1353648.293 | BN39: -0.003236439079 | BP39: 0 | BR39: 0 | BV39: 0 | BZ39: 0 | CB39: 216135.38 | CC39: 216135.3755 | CD39: 0 | CF39: 8153 | CG39: 8153 | CH39: 0 | CL39: 0 | CP39: 0 | CT39: 0 | CX39: 0 | DB39: 0 | DF39: 0 | DH39: NO | DI39: =IF(ISERROR(VLOOKUP($A39+8860000,'Growth Data'!$A:$F,3,0)),"NO",VLOOKUP($A39+8860000,'Growth Data'!$A:$F,3,0)) -> NO | DJ39: 0 | DL39: 0 | DM39: =IF(DI39="YES",IF(ISERROR(VLOOKUP($A39+8860000,'Growth Data'!$A:$F,6,0)),0,VLOOKUP($A39+8860000,'Growth Data'!$A:$F,6,0)),0) -> 0 | DN39: 0 | DP39: 0 | DQ39: =IF(ISERROR(VLOOKUP($A39+8860000,'Growth Data'!$A:$Z,7,0)),0,VLOOKUP($A39+8860000,'Growth Data'!$A:$Z,7,0)) -> 0 | DR39: 0 | DT39: NO | DU39: =IF(ISERROR(VLOOKUP($A39+8860000,'Growth Data'!$A:$F,4,0)),"NO",VLOOKUP($A39+8860000,'Growth Data'!$A:$F,4,0)) -> NO | DV39: 0 | DX39: 0 | DY39: =IF(ISERROR(VLOOKUP($A39+8860000,'Growth Data'!$A:$Z,8,0)),0,VLOOKUP($A39+8860000,'Growth Data'!$A:$Z,8,0)) -> 0 | DZ39: 0 | EB39: 0 | EC39: =IF(ISERROR(VLOOKUP($A39+8860000,'Growth Data'!$A:$Z,9,0)),0,VLOOKUP($A39+8860000,'Growth Data'!$A:$Z,9,0)) -> 0 | ED39: 0 | EF39: NO | EG39: =IF(ISERROR(VLOOKUP($A39+8860000,'Growth Data'!$A:$Z,5,0)),"NO",VLOOKUP($A39+8860000,'Growth Data'!$A:$Z,5,0)) -> NO | EH39: 0 | EJ39: 0 | EK39: =IF(ISERROR(VLOOKUP($A39+8860000,'Growth Data'!$A:$Z,10,0)),0,VLOOKUP($A39+8860000,'Growth Data'!$A:$Z,10,0)) -> 0 | EL39: 0 | EN39: 0 | EO39: =IF(ISERROR(VLOOKUP($A39+8860000,'Growth Data'!$A:$Z,11,0)),0,VLOOKUP($A39+8860000,'Growth Data'!$A:$Z,11,0)) -> 0 | EP39: 0
A40: 2185 | B40: Mereworth Community Primary School | D40: Mereworth Community Primary School | F40: 1 | H40: 637193.02 | I40: 637193.02 | J40: 0 | L40: 27757.63 | M40: 27757.62846 | N40: 0.001544404266 | P40: 622.97 | Q40: 622.9689011 | R40: 0.001098901099 | T40: 44384.84 | U40: 44384.84101 | V40: -0.00101123596 | X40: 120084 | Y40: 120084 | Z40: 0 | AB40: 0 | AC40: 0 | AD40: 0 | AF40: 0 | AG40: 0 | AH40: 0 | AJ40: 0 | AK40: 0 | AL40: 0 | AN40: 26368 | AO40: 26368 | AP40: 0 | AR40: 0 | AS40: 0 | AT40: 0 | AV40: 0 | AW40: 0 | AX40: 0 | AZ40: 31037.54 | BA40: 31037.54163 | BB40: -0.00163206939 | BD40: 887448 | BE40: 887448 | BF40: 0 | BH40: 0 | BI40: 0 | BJ40: 0 | BL40: 887448 | BM40: 887448 | BN40: 0 | BP40: 0 | BR40: 0 | BV40: 0 | BZ40: 0 | CB40: 98990.36 | CC40: 98990.36231 | CD40: 0 | CF40: 5417.8 | CG40: 5417.8 | CH40: 0 | CL40: 0 | CP40: 0 | CT40: 0 | CX40: 0 | DB40: 0 | DF40: 0 | DH40: NO | DI40: =IF(ISERROR(VLOOKUP($A40+8860000,'Growth Data'!$A:$F,3,0)),"NO",VLOOKUP($A40+8860000,'Growth Data'!$A:$F,3,0)) -> NO | DJ40: 0 | DL40: 0 | DM40: =IF(DI40="YES",IF(ISERROR(VLOOKUP($A40+8860000,'Growth Data'!$A:$F,6,0)),0,VLOOKUP($A40+8860000,'Growth Data'!$A:$F,6,0)),0) -> 0 | DN40: 0 | DP40: 0 | DQ40: =IF(ISERROR(VLOOKUP($A40+8860000,'Growth Data'!$A:$Z,7,0)),0,VLOOKUP($A40+8860000,'Growth Data'!$A:$Z,7,0)) -> 0 | DR40: 0 | DT40: NO | DU40: =IF(ISERROR(VLOOKUP($A40+8860000,'Growth Data'!$A:$F,4,0)),"NO",VLOOKUP($A40+8860000,'Growth Data'!$A:$F,4,0)) -> NO | DV40: 0 | DX40: 0 | DY40: =IF(ISERROR(VLOOKUP($A40+8860000,'Growth Data'!$A:$Z,8,0)),0,VLOOKUP($A40+8860000,'Growth Data'!$A:$Z,8,0)) -> 0 | DZ40: 0 | EB40: 0 | EC40: =IF(ISERROR(VLOOKUP($A40+8860000,'Growth Data'!$A:$Z,9,0)),0,VLOOKUP($A40+8860000,'Growth Data'!$A:$Z,9,0)) -> 0 | ED40: 0 | EF40: NO | EG40: =IF(ISERROR(VLOOKUP($A40+8860000,'Growth Data'!$A:$Z,5,0)),"NO",VLOOKUP($A40+8860000,'Growth Data'!$A:$Z,5,0)) -> NO | EH40: 0 | EJ40: 0 | EK40: =IF(ISERROR(VLOOKUP($A40+8860000,'Growth Data'!$A:$Z,10,0)),0,VLOOKUP($A40+8860000,'Growth Data'!$A:$Z,10,0)) -> 0 | EL40: 0 | EN40: 0 | EO40: =IF(ISERROR(VLOOKUP($A40+8860000,'Growth Data'!$A:$Z,11,0)),0,VLOOKUP($A40+8860000,'Growth Data'!$A:$Z,11,0)) -> 0 | EP40: 0
A41: 2187 | B41: Offham Primary School | D41: Offham Primary School | F41: 1 | H41: 646472.53 | I41: 646472.53 | J41: 0 | L41: 13556.95 | M41: 13556.94507 | N41: 0.004927536231 | P41: 1278.13 | Q41: 1278.127889 | R41: 0.002111111113 | T41: 31985.47 | U41: 31985.46508 | V41: 0.00491620112 | X41: 120084 | Y41: 120084 | Z41: 0 | AB41: 0 | AC41: 0 | AD41: 0 | AF41: 0 | AG41: 0 | AH41: 0 | AJ41: 0 | AK41: 0 | AL41: 0 | AN41: 23827 | AO41: 23827 | AP41: 0 | AR41: 0 | AS41: 0 | AT41: 0 | AV41: 0 | AW41: 0 | AX41: 0 | AZ41: 60242.93 | BA41: 60242.93195 | BB41: -0.001954848434 | BD41: 897447 | BE41: 897447 | BF41: 0 | BH41: 0 | BI41: 0 | BJ41: 0 | BL41: 897447 | BM41: 897447 | BN41: 0 | BP41: 0 | BR41: 0 | BV41: 0 | BZ41: 0 | CB41: 110076.29 | CC41: 110076.2923 | CD41: 0 | CF41: 5496.7 | CG41: 5496.7 | CH41: 0 | CL41: 0 | CP41: 0 | CT41: 0 | CX41: 0 | DB41: 0 | DF41: 0 | DH41: NO | DI41: =IF(ISERROR(VLOOKUP($A41+8860000,'Growth Data'!$A:$F,3,0)),"NO",VLOOKUP($A41+8860000,'Growth Data'!$A:$F,3,0)) -> NO | DJ41: 0 | DL41: 0 | DM41: =IF(DI41="YES",IF(ISERROR(VLOOKUP($A41+8860000,'Growth Data'!$A:$F,6,0)),0,VLOOKUP($A41+8860000,'Growth Data'!$A:$F,6,0)),0) -> 0 | DN41: 0 | DP41: 0 | DQ41: =IF(ISERROR(VLOOKUP($A41+8860000,'Growth Data'!$A:$Z,7,0)),0,VLOOKUP($A41+8860000,'Growth Data'!$A:$Z,7,0)) -> 0 | DR41: 0 | DT41: NO | DU41: =IF(ISERROR(VLOOKUP($A41+8860000,'Growth Data'!$A:$F,4,0)),"NO",VLOOKUP($A41+8860000,'Growth Data'!$A:$F,4,0)) -> NO | DV41: 0 | DX41: 0 | DY41: =IF(ISERROR(VLOOKUP($A41+8860000,'Growth Data'!$A:$Z,8,0)),0,VLOOKUP($A41+8860000,'Growth Data'!$A:$Z,8,0)) -> 0 | DZ41: 0 | EB41: 0 | EC41: =IF(ISERROR(VLOOKUP($A41+8860000,'Growth Data'!$A:$Z,9,0)),0,VLOOKUP($A41+8860000,'Growth Data'!$A:$Z,9,0)) -> 0 | ED41: 0 | EF41: NO | EG41: =IF(ISERROR(VLOOKUP($A41+8860000,'Growth Data'!$A:$Z,5,0)),"NO",VLOOKUP($A41+8860000,'Growth Data'!$A:$Z,5,0)) -> NO | EH41: 0 | EJ41: 0 | EK41: =IF(ISERROR(VLOOKUP($A41+8860000,'Growth Data'!$A:$Z,10,0)),0,VLOOKUP($A41+8860000,'Growth Data'!$A:$Z,10,0)) -> 0 | EL41: 0 | EN41: 0 | EO41: =IF(ISERROR(VLOOKUP($A41+8860000,'Growth Data'!$A:$Z,11,0)),0,VLOOKUP($A41+8860000,'Growth Data'!$A:$Z,11,0)) -> 0 | EP41: 0
A42: 2188 | B42: Plaxtol Primary School | D42: Plaxtol Primary School | F42: 1 | H42: 300037.49 | I42: 300037.49 | J42: 0 | L42: 6469.28 | M42: 6469.276044 | N42: 0.003956043955 | P42: 651.07 | Q42: 651.0710976 | R42: -0.001097560975 | T42: 13626.88 | U42: 13626.88333 | V42: -0.003333333332 | X42: 120084 | Y42: 120084 | Z42: 0 | AB42: 0 | AC42: 0 | AD42: 0 | AF42: 0 | AG42: 0 | AH42: 0 | AJ42: 0 | AK42: 0 | AL42: 0 | AN42: 13847 | AO42: 13847 | AP42: 0 | AR42: 0 | AS42: 0 | AT42: 0 | AV42: 0 | AW42: 0 | AX42: 0 | AZ42: 0 | BA42: 0 | BB42: 0 | BD42: 454715.72 | BE42: 454715.7205 | BF42: -0.0004748504143 | BH42: 0 | BI42: 0 | BJ42: 0 | BL42: 454715.72 | BM42: 454715.7205 | BN42: -0.0004748504143 | BP42: 0 | BR42: 0 | BV42: 0 | BZ42: 0 | CB42: 24680.69 | CC42: 24680.69278 | CD42: 0 | CF42: 2551.1 | CG42: 2551.1 | CH42: 0 | CL42: 0 | CP42: 0 | CT42: 0 | CX42: 0 | DB42: 0 | DF42: 0 | DH42: NO | DI42: =IF(ISERROR(VLOOKUP($A42+8860000,'Growth Data'!$A:$F,3,0)),"NO",VLOOKUP($A42+8860000,'Growth Data'!$A:$F,3,0)) -> NO | DJ42: 0 | DL42: 0 | DM42: =IF(DI42="YES",IF(ISERROR(VLOOKUP($A42+8860000,'Growth Data'!$A:$F,6,0)),0,VLOOKUP($A42+8860000,'Growth Data'!$A:$F,6,0)),0) -> 0 | DN42: 0 | DP42: 0 | DQ42: =IF(ISERROR(VLOOKUP($A42+8860000,'Growth Data'!$A:$Z,7,0)),0,VLOOKUP($A42+8860000,'Growth Data'!$A:$Z,7,0)) -> 0 | DR42: 0 | DT42: NO | DU42: =IF(ISERROR(VLOOKUP($A42+8860000,'Growth Data'!$A:$F,4,0)),"NO",VLOOKUP($A42+8860000,'Growth Data'!$A:$F,4,0)) -> NO | DV42: 0 | DX42: 0 | DY42: =IF(ISERROR(VLOOKUP($A42+8860000,'Growth Data'!$A:$Z,8,0)),0,VLOOKUP($A42+8860000,'Growth Data'!$A:$Z,8,0)) -> 0 | DZ42: 0 | EB42: 0 | EC42: =IF(ISERROR(VLOOKUP($A42+8860000,'Growth Data'!$A:$Z,9,0)),0,VLOOKUP($A42+8860000,'Growth Data'!$A:$Z,9,0)) -> 0 | ED42: 0 | EF42: NO | EG42: =IF(ISERROR(VLOOKUP($A42+8860000,'Growth Data'!$A:$Z,5,0)),"NO",VLOOKUP($A42+8860000,'Growth Data'!$A:$Z,5,0)) -> NO | EH42: 0 | EJ42: 0 | EK42: =IF(ISERROR(VLOOKUP($A42+8860000,'Growth Data'!$A:$Z,10,0)),0,VLOOKUP($A42+8860000,'Growth Data'!$A:$Z,10,0)) -> 0 | EL42: 0 | EN42: 0 | EO42: =IF(ISERROR(VLOOKUP($A42+8860000,'Growth Data'!$A:$Z,11,0)),0,VLOOKUP($A42+8860000,'Growth Data'!$A:$Z,11,0)) -> 0 | EP42: 0
A43: 2189 | B43: Ryarsh Primary School | D43: Ryarsh Primary School | F43: 1 | H43: 652658.87 | I43: 652658.87 | J43: 0 | L43: 10889.56 | M43: 10889.56 | N43: 0 | P43: 0 | Q43: 0 | R43: 0 | T43: 39819.06 | U43: 39819.06428 | V43: -0.004277777778 | X43: 120084 | Y43: 120084 | Z43: 0 | AB43: 0 | AC43: 0 | AD43: 0 | AF43: 0 | AG43: 0 | AH43: 0 | AJ43: 0 | AK43: 0 | AL43: 0 | AN43: 17964 | AO43: 17964 | AP43: 0 | AR43: 0 | AS43: 0 | AT43: 0 | AV43: 0 | AW43: 0 | AX43: 0 | AZ43: 58528.51 | BA43: 58528.50572 | BB43: 0.004277777763 | BD43: 899944 | BE43: 899944 | BF43: 0 | BH43: 0 | BI43: 0 | BJ43: 0 | BL43: 899944 | BM43: 899944 | BN43: 0 | BP43: 0 | BR43: 0 | BV43: 0 | BZ43: 0 | CB43: 111329.31 | CC43: 111329.3123 | CD43: 0 | CF43: 5549.3 | CG43: 5549.3 | CH43: 0 | CL43: 0 | CP43: 0 | CT43: 0 | CX43: 0 | DB43: 0 | DF43: 0 | DH43: NO | DI43: =IF(ISERROR(VLOOKUP($A43+8860000,'Growth Data'!$A:$F,3,0)),"NO",VLOOKUP($A43+8860000,'Growth Data'!$A:$F,3,0)) -> NO | DJ43: 0 | DL43: 0 | DM43: =IF(DI43="YES",IF(ISERROR(VLOOKUP($A43+8860000,'Growth Data'!$A:$F,6,0)),0,VLOOKUP($A43+8860000,'Growth Data'!$A:$F,6,0)),0) -> 0 | DN43: 0 | DP43: 0 | DQ43: =IF(ISERROR(VLOOKUP($A43+8860000,'Growth Data'!$A:$Z,7,0)),0,VLOOKUP($A43+8860000,'Growth Data'!$A:$Z,7,0)) -> 0 | DR43: 0 | DT43: NO | DU43: =IF(ISERROR(VLOOKUP($A43+8860000,'Growth Data'!$A:$F,4,0)),"NO",VLOOKUP($A43+8860000,'Growth Data'!$A:$F,4,0)) -> NO | DV43: 0 | DX43: 0 | DY43: =IF(ISERROR(VLOOKUP($A43+8860000,'Growth Data'!$A:$Z,8,0)),0,VLOOKUP($A43+8860000,'Growth Data'!$A:$Z,8,0)) -> 0 | DZ43: 0 | EB43: 0 | EC43: =IF(ISERROR(VLOOKUP($A43+8860000,'Growth Data'!$A:$Z,9,0)),0,VLOOKUP($A43+8860000,'Growth Data'!$A:$Z,9,0)) -> 0 | ED43: 0 | EF43: NO | EG43: =IF(ISERROR(VLOOKUP($A43+8860000,'Growth Data'!$A:$Z,5,0)),"NO",VLOOKUP($A43+8860000,'Growth Data'!$A:$Z,5,0)) -> NO | EH43: 0 | EJ43: 0 | EK43: =IF(ISERROR(VLOOKUP($A43+8860000,'Growth Data'!$A:$Z,10,0)),0,VLOOKUP($A43+8860000,'Growth Data'!$A:$Z,10,0)) -> 0 | EL43: 0 | EN43: 0 | EO43: =IF(ISERROR(VLOOKUP($A43+8860000,'Growth Data'!$A:$Z,11,0)),0,VLOOKUP($A43+8860000,'Growth Data'!$A:$Z,11,0)) -> 0 | EP43: 0
A44: 2190 | B44: Shipbourne School | D44: Shipbourne School | F44: 1 | H44: 182497.03 | I44: 182497.03 | J44: 0 | L44: 11938.36 | M44: 11938.35929 | N44: 0.0007142857085 | P44: 1948.38 | Q44: 1948.3806 | R44: -0.0005999999998 | T44: 6338.28 | U44: 6338.277451 | V44: 0.002549019608 | X44: 120084 | Y44: 120084 | Z44: 0 | AB44: 0 | AC44: 0 | AD44: 0 | AF44: 0 | AG44: 0 | AH44: 0 | AJ44: 0 | AK44: 0 | AL44: 0 | AN44: 6737 | AO44: 6737 | AP44: 0 | AR44: 0 | AS44: 0 | AT44: 0 | AV44: 0 | AW44: 0 | AX44: 0 | AZ44: 0 | BA44: 0 | BB44: 0 | BD44: 329543.05 | BE44: 329543.0473 | BF44: 0.00266330532 | BH44: 3647.25 | BI44: 3647.246872 | BJ44: 0.003128400072 | BL44: 333190.29 | BM44: 333190.2942 | BN44: -0.004208294617 | BP44: 0 | BR44: 0 | BV44: 0 | BZ44: 0 | CB44: 25504.13 | CC44: 25504.12652 | CD44: 0 | CF44: 1551.7 | CG44: 1551.7 | CH44: 0 | CL44: 0 | CP44: 0 | CT44: 0 | CX44: 0 | DB44: 0 | DF44: 0 | DH44: NO | DI44: =IF(ISERROR(VLOOKUP($A44+8860000,'Growth Data'!$A:$F,3,0)),"NO",VLOOKUP($A44+8860000,'Growth Data'!$A:$F,3,0)) -> NO | DJ44: 0 | DL44: 0 | DM44: =IF(DI44="YES",IF(ISERROR(VLOOKUP($A44+8860000,'Growth Data'!$A:$F,6,0)),0,VLOOKUP($A44+8860000,'Growth Data'!$A:$F,6,0)),0) -> 0 | DN44: 0 | DP44: 0 | DQ44: =IF(ISERROR(VLOOKUP($A44+8860000,'Growth Data'!$A:$Z,7,0)),0,VLOOKUP($A44+8860000,'Growth Data'!$A:$Z,7,0)) -> 0 | DR44: 0 | DT44: YES | DU44: =IF(ISERROR(VLOOKUP($A44+8860000,'Growth Data'!$A:$F,4,0)),"NO",VLOOKUP($A44+8860000,'Growth Data'!$A:$F,4,0)) -> NO | DV44: 1 | DX44: 64 | DY44: =IF(ISERROR(VLOOKUP($A44+8860000,'Growth Data'!$A:$Z,8,0)),0,VLOOKUP($A44+8860000,'Growth Data'!$A:$Z,8,0)) -> 0 | DZ44: 1 | EB44: 82 | EC44: =IF(ISERROR(VLOOKUP($A44+8860000,'Growth Data'!$A:$Z,9,0)),0,VLOOKUP($A44+8860000,'Growth Data'!$A:$Z,9,0)) -> 0 | ED44: 1 | EF44: YES | EG44: =IF(ISERROR(VLOOKUP($A44+8860000,'Growth Data'!$A:$Z,5,0)),"NO",VLOOKUP($A44+8860000,'Growth Data'!$A:$Z,5,0)) -> NO | EH44: 1 | EJ44: 67 | EK44: =IF(ISERROR(VLOOKUP($A44+8860000,'Growth Data'!$A:$Z,10,0)),0,VLOOKUP($A44+8860000,'Growth Data'!$A:$Z,10,0)) -> 0 | EL44: 1 | EN44: 82 | EO44: =IF(ISERROR(VLOOKUP($A44+8860000,'Growth Data'!$A:$Z,11,0)),0,VLOOKUP($A44+8860000,'Growth Data'!$A:$Z,11,0)) -> 0 | EP44: 1
A45: 2192 | B45: Staplehurst School | D45: Staplehurst School | F45: 1 | H45: 1079516.33 | I45: 1079516.33 | J45: 0 | L45: 50203.19 | M45: 50203.18689 | N45: 0.003106267046 | P45: 6402.87 | Q45: 6402.870333 | R45: -0.0003333333261 | T45: 97530.88 | U45: 97530.88416 | V45: -0.004161073826 | X45: 120084 | Y45: 120084 | Z45: 0 | AB45: 0 | AC45: 0 | AD45: 0 | AF45: 0 | AG45: 0 | AH45: 0 | AJ45: 0 | AK45: 0 | AL45: 0 | AN45: 37632 | AO45: 37632 | AP45: 0 | AR45: 0 | AS45: 0 | AT45: 0 | AV45: 0 | AW45: 0 | AX45: 0 | AZ45: 105082.73 | BA45: 105082.7286 | BB45: 0.001388140212 | BD45: 1496452 | BE45: 1496452 | BF45: 0 | BH45: 0 | BI45: 0 | BJ45: 0 | BL45: 1496452 | BM45: 1496452 | BN45: 0 | BP45: 0 | BR45: 0 | BV45: 0 | BZ45: 0 | CB45: 242438.73 | CC45: 242438.7323 | CD45: 0 | CF45: 9178.7 | CG45: 9178.7 | CH45: 0 | CL45: 0 | CP45: 0 | CT45: 0 | CX45: 0 | DB45: 0 | DF45: 0 | DH45: NO | DI45: =IF(ISERROR(VLOOKUP($A45+8860000,'Growth Data'!$A:$F,3,0)),"NO",VLOOKUP($A45+8860000,'Growth Data'!$A:$F,3,0)) -> NO | DJ45: 0 | DL45: 0 | DM45: =IF(DI45="YES",IF(ISERROR(VLOOKUP($A45+8860000,'Growth Data'!$A:$F,6,0)),0,VLOOKUP($A45+8860000,'Growth Data'!$A:$F,6,0)),0) -> 0 | DN45: 0 | DP45: 0 | DQ45: =IF(ISERROR(VLOOKUP($A45+8860000,'Growth Data'!$A:$Z,7,0)),0,VLOOKUP($A45+8860000,'Growth Data'!$A:$Z,7,0)) -> 0 | DR45: 0 | DT45: NO | DU45: =IF(ISERROR(VLOOKUP($A45+8860000,'Growth Data'!$A:$F,4,0)),"NO",VLOOKUP($A45+8860000,'Growth Data'!$A:$F,4,0)) -> NO | DV45: 0 | DX45: 0 | DY45: =IF(ISERROR(VLOOKUP($A45+8860000,'Growth Data'!$A:$Z,8,0)),0,VLOOKUP($A45+8860000,'Growth Data'!$A:$Z,8,0)) -> 0 | DZ45: 0 | EB45: 0 | EC45: =IF(ISERROR(VLOOKUP($A45+8860000,'Growth Data'!$A:$Z,9,0)),0,VLOOKUP($A45+8860000,'Growth Data'!$A:$Z,9,0)) -> 0 | ED45: 0 | EF45: NO | EG45: =IF(ISERROR(VLOOKUP($A45+8860000,'Growth Data'!$A:$Z,5,0)),"NO",VLOOKUP($A45+8860000,'Growth Data'!$A:$Z,5,0)) -> NO | EH45: 0 | EJ45: 0 | EK45: =IF(ISERROR(VLOOKUP($A45+8860000,'Growth Data'!$A:$Z,10,0)),0,VLOOKUP($A45+8860000,'Growth Data'!$A:$Z,10,0)) -> 0 | EL45: 0 | EN45: 0 | EO45: =IF(ISERROR(VLOOKUP($A45+8860000,'Growth Data'!$A:$Z,11,0)),0,VLOOKUP($A45+8860000,'Growth Data'!$A:$Z,11,0)) -> 0 | EP45: 0
A46: 2193 | B46: Sutton Valence Primary School | D46: Sutton Valence Primary School | F46: 1 | H46: 631006.68 | I46: 631006.68 | J46: 0 | L46: 42929.83 | M46: 42929.83 | N46: 8.003553376e-11 | P46: 5162.28 | Q46: 5162.278621 | R46: 0.001379310341 | T46: 40122.04 | U46: 40122.04 | V46: 0 | X46: 120084 | Y46: 120084 | Z46: 0 | AB46: 0 | AC46: 0 | AD46: 0 | AF46: 0 | AG46: 0 | AH46: 0 | AJ46: 0 | AK46: 0 | AL46: 0 | AN46: 19835 | AO46: 19835 | AP46: 0 | AR46: 0 | AS46: 0 | AT46: 0 | AV46: 0 | AW46: 0 | AX46: 0 | AZ46: 13415.17 | BA46: 13415.17138 | BB46: -0.00137931037 | BD46: 872555 | BE46: 872555 | BF46: 0 | BH46: 0 | BI46: 0 | BJ46: 0 | BL46: 872555 | BM46: 872555 | BN46: 0 | BP46: 0 | BR46: 0 | BV46: 0 | BZ46: 0 | CB46: 91753.18 | CC46: 91753.18231 | CD46: 0 | CF46: 5365.2 | CG46: 5365.2 | CH46: 0 | CL46: 0 | CP46: 0 | CT46: 0 | CX46: 0 | DB46: 0 | DF46: 0 | DH46: NO | DI46: =IF(ISERROR(VLOOKUP($A46+8860000,'Growth Data'!$A:$F,3,0)),"NO",VLOOKUP($A46+8860000,'Growth Data'!$A:$F,3,0)) -> NO | DJ46: 0 | DL46: 0 | DM46: =IF(DI46="YES",IF(ISERROR(VLOOKUP($A46+8860000,'Growth Data'!$A:$F,6,0)),0,VLOOKUP($A46+8860000,'Growth Data'!$A:$F,6,0)),0) -> 0 | DN46: 0 | DP46: 0 | DQ46: =IF(ISERROR(VLOOKUP($A46+8860000,'Growth Data'!$A:$Z,7,0)),0,VLOOKUP($A46+8860000,'Growth Data'!$A:$Z,7,0)) -> 0 | DR46: 0 | DT46: NO | DU46: =IF(ISERROR(VLOOKUP($A46+8860000,'Growth Data'!$A:$F,4,0)),"NO",VLOOKUP($A46+8860000,'Growth Data'!$A:$F,4,0)) -> NO | DV46: 0 | DX46: 0 | DY46: =IF(ISERROR(VLOOKUP($A46+8860000,'Growth Data'!$A:$Z,8,0)),0,VLOOKUP($A46+8860000,'Growth Data'!$A:$Z,8,0)) -> 0 | DZ46: 0 | EB46: 0 | EC46: =IF(ISERROR(VLOOKUP($A46+8860000,'Growth Data'!$A:$Z,9,0)),0,VLOOKUP($A46+8860000,'Growth Data'!$A:$Z,9,0)) -> 0 | ED46: 0 | EF46: NO | EG46: =IF(ISERROR(VLOOKUP($A46+8860000,'Growth Data'!$A:$Z,5,0)),"NO",VLOOKUP($A46+8860000,'Growth Data'!$A:$Z,5,0)) -> NO | EH46: 0 | EJ46: 0 | EK46: =IF(ISERROR(VLOOKUP($A46+8860000,'Growth Data'!$A:$Z,10,0)),0,VLOOKUP($A46+8860000,'Growth Data'!$A:$Z,10,0)) -> 0 | EL46: 0 | EN46: 0 | EO46: =IF(ISERROR(VLOOKUP($A46+8860000,'Growth Data'!$A:$Z,11,0)),0,VLOOKUP($A46+8860000,'Growth Data'!$A:$Z,11,0)) -> 0 | EP46: 0
A47: 2226 | B47: Eastling Primary School | D47: Eastling Primary School | F47: 1 | H47: 272198.96 | I47: 272198.96 | J47: 0 | L47: 20632.71 | M47: 20632.71163 | N47: -0.00162790696 | P47: 672.7 | Q47: 672.6988889 | R47: 0.001111111111 | T47: 27739.49 | U47: 27739.4926 | V47: -0.002602739722 | X47: 120084 | Y47: 120084 | Z47: 0 | AB47: 37155.13 | AC47: 37155.12537 | AD47: 0.004632843789 | AF47: 0 | AG47: 0 | AH47: 0 | AJ47: 0 | AK47: 0 | AL47: 0 | AN47: 12974 | AO47: 12974 | AP47: 0 | AR47: 0 | AS47: 0 | AT47: 0 | AV47: 0 | AW47: 0 | AX47: 0 | AZ47: 0 | BA47: 0 | BB47: 0 | BD47: 491456.99 | BE47: 491456.9885 | BF47: 0.001513308205 | BH47: 0 | BI47: 0 | BJ47: 0 | BL47: 491456.99 | BM47: 491456.9885 | BN47: 0.001513308205 | BP47: 0 | BR47: 0 | BV47: 0 | BZ47: 0 | CB47: 47454.53 | CC47: 47454.52543 | CD47: 0 | CF47: 2314.4 | CG47: 2314.4 | CH47: 0 | CL47: 0 | CP47: 0 | CT47: 0 | CX47: 0 | DB47: 0 | DF47: 0 | DH47: NO | DI47: =IF(ISERROR(VLOOKUP($A47+8860000,'Growth Data'!$A:$F,3,0)),"NO",VLOOKUP($A47+8860000,'Growth Data'!$A:$F,3,0)) -> NO | DJ47: 0 | DL47: 0 | DM47: =IF(DI47="YES",IF(ISERROR(VLOOKUP($A47+8860000,'Growth Data'!$A:$F,6,0)),0,VLOOKUP($A47+8860000,'Growth Data'!$A:$F,6,0)),0) -> 0 | DN47: 0 | DP47: 0 | DQ47: =IF(ISERROR(VLOOKUP($A47+8860000,'Growth Data'!$A:$Z,7,0)),0,VLOOKUP($A47+8860000,'Growth Data'!$A:$Z,7,0)) -> 0 | DR47: 0 | DT47: NO | DU47: =IF(ISERROR(VLOOKUP($A47+8860000,'Growth Data'!$A:$F,4,0)),"NO",VLOOKUP($A47+8860000,'Growth Data'!$A:$F,4,0)) -> NO | DV47: 0 | DX47: 0 | DY47: =IF(ISERROR(VLOOKUP($A47+8860000,'Growth Data'!$A:$Z,8,0)),0,VLOOKUP($A47+8860000,'Growth Data'!$A:$Z,8,0)) -> 0 | DZ47: 0 | EB47: 0 | EC47: =IF(ISERROR(VLOOKUP($A47+8860000,'Growth Data'!$A:$Z,9,0)),0,VLOOKUP($A47+8860000,'Growth Data'!$A:$Z,9,0)) -> 0 | ED47: 0 | EF47: NO | EG47: =IF(ISERROR(VLOOKUP($A47+8860000,'Growth Data'!$A:$Z,5,0)),"NO",VLOOKUP($A47+8860000,'Growth Data'!$A:$Z,5,0)) -> NO | EH47: 0 | EJ47: 0 | EK47: =IF(ISERROR(VLOOKUP($A47+8860000,'Growth Data'!$A:$Z,10,0)),0,VLOOKUP($A47+8860000,'Growth Data'!$A:$Z,10,0)) -> 0 | EL47: 0 | EN47: 0 | EO47: =IF(ISERROR(VLOOKUP($A47+8860000,'Growth Data'!$A:$Z,11,0)),0,VLOOKUP($A47+8860000,'Growth Data'!$A:$Z,11,0)) -> 0 | EP47: 0
A48: 2227 | B48: Ethelbert Road Primary School | D48: Ethelbert Road Primary School | F48: 1 | H48: 643379.36 | I48: 643379.36 | J48: 0 | L48: 20042.93 | M48: 20042.93 | N48: 0 | P48: 3233.93 | Q48: 3233.929944 | R48: 5.64971715e-05 | T48: 49937.56 | U48: 49937.56315 | V48: -0.003146067422 | X48: 120084 | Y48: 120084 | Z48: 0 | AB48: 0 | AC48: 0 | AD48: 0 | AF48: 0 | AG48: 0 | AH48: 0 | AJ48: 0 | AK48: 0 | AL48: 0 | AN48: 11477 | AO48: 11477 | AP48: 0 | AR48: 0 | AS48: 0 | AT48: 0 | AV48: 0 | AW48: 0 | AX48: 0 | AZ48: 32762.22 | BA48: 32762.21691 | BB48: 0.003089570237 | BD48: 880917 | BE48: 880917 | BF48: 0 | BH48: 0 | BI48: 0 | BJ48: 0 | BL48: 880917 | BM48: 880917 | BN48: 0 | BP48: 0 | BR48: 0 | BV48: 0 | BZ48: 0 | CB48: 106227.54 | CC48: 106227.5423 | CD48: 0 | CF48: 5470.4 | CG48: 5470.4 | CH48: 0 | CL48: 0 | CP48: 0 | CT48: 0 | CX48: 0 | DB48: 0 | DF48: 0 | DH48: NO | DI48: =IF(ISERROR(VLOOKUP($A48+8860000,'Growth Data'!$A:$F,3,0)),"NO",VLOOKUP($A48+8860000,'Growth Data'!$A:$F,3,0)) -> NO | DJ48: 0 | DL48: 0 | DM48: =IF(DI48="YES",IF(ISERROR(VLOOKUP($A48+8860000,'Growth Data'!$A:$F,6,0)),0,VLOOKUP($A48+8860000,'Growth Data'!$A:$F,6,0)),0) -> 0 | DN48: 0 | DP48: 0 | DQ48: =IF(ISERROR(VLOOKUP($A48+8860000,'Growth Data'!$A:$Z,7,0)),0,VLOOKUP($A48+8860000,'Growth Data'!$A:$Z,7,0)) -> 0 | DR48: 0 | DT48: NO | DU48: =IF(ISERROR(VLOOKUP($A48+8860000,'Growth Data'!$A:$F,4,0)),"NO",VLOOKUP($A48+8860000,'Growth Data'!$A:$F,4,0)) -> NO | DV48: 0 | DX48: 0 | DY48: =IF(ISERROR(VLOOKUP($A48+8860000,'Growth Data'!$A:$Z,8,0)),0,VLOOKUP($A48+8860000,'Growth Data'!$A:$Z,8,0)) -> 0 | DZ48: 0 | EB48: 0 | EC48: =IF(ISERROR(VLOOKUP($A48+8860000,'Growth Data'!$A:$Z,9,0)),0,VLOOKUP($A48+8860000,'Growth Data'!$A:$Z,9,0)) -> 0 | ED48: 0 | EF48: NO | EG48: =IF(ISERROR(VLOOKUP($A48+8860000,'Growth Data'!$A:$Z,5,0)),"NO",VLOOKUP($A48+8860000,'Growth Data'!$A:$Z,5,0)) -> NO | EH48: 0 | EJ48: 0 | EK48: =IF(ISERROR(VLOOKUP($A48+8860000,'Growth Data'!$A:$Z,10,0)),0,VLOOKUP($A48+8860000,'Growth Data'!$A:$Z,10,0)) -> 0 | EL48: 0 | EN48: 0 | EO48: =IF(ISERROR(VLOOKUP($A48+8860000,'Growth Data'!$A:$Z,11,0)),0,VLOOKUP($A48+8860000,'Growth Data'!$A:$Z,11,0)) -> 0 | EP48: 0
A49: 2228 | B49: Davington Primary School | D49: Davington Primary School | F49: 1 | H49: 1255827.02 | I49: 1255827.02 | J49: 0 | L49: 148720.31 | M49: 148720.31 | N49: 0 | P49: 6439.72 | Q49: 6439.721614 | R49: -0.001613832856 | T49: 127296.8 | U49: 127296.7969 | V49: 0.003126843672 | X49: 120084 | Y49: 120084 | Z49: 0 | AB49: 0 | AC49: 0 | AD49: 0 | AF49: 0 | AG49: 0 | AH49: 0 | AJ49: 0 | AK49: 0 | AL49: 0 | AN49: 39424 | AO49: 39424 | AP49: 0 | AR49: 0 | AS49: 0 | AT49: 0 | AV49: 0 | AW49: 0 | AX49: 0 | AZ49: 38712.15 | BA49: 38712.15151 | BB49: -0.001513010669 | BD49: 1736504 | BE49: 1736504 | BF49: 0 | BH49: 0 | BI49: 0 | BJ49: 0 | BL49: 1736504 | BM49: 1736504 | BN49: 0 | BP49: 0 | BR49: 0 | BV49: 0 | BZ49: 0 | CB49: 297943.56 | CC49: 297943.5623 | CD49: 0 | CF49: 10677.8 | CG49: 10677.8 | CH49: 0 | CL49: 0 | CP49: 0 | CT49: 0 | CX49: 0 | DB49: 0 | DF49: 0 | DH49: NO | DI49: =IF(ISERROR(VLOOKUP($A49+8860000,'Growth Data'!$A:$F,3,0)),"NO",VLOOKUP($A49+8860000,'Growth Data'!$A:$F,3,0)) -> NO | DJ49: 0 | DL49: 0 | DM49: =IF(DI49="YES",IF(ISERROR(VLOOKUP($A49+8860000,'Growth Data'!$A:$F,6,0)),0,VLOOKUP($A49+8860000,'Growth Data'!$A:$F,6,0)),0) -> 0 | DN49: 0 | DP49: 0 | DQ49: =IF(ISERROR(VLOOKUP($A49+8860000,'Growth Data'!$A:$Z,7,0)),0,VLOOKUP($A49+8860000,'Growth Data'!$A:$Z,7,0)) -> 0 | DR49: 0 | DT49: NO | DU49: =IF(ISERROR(VLOOKUP($A49+8860000,'Growth Data'!$A:$F,4,0)),"NO",VLOOKUP($A49+8860000,'Growth Data'!$A:$F,4,0)) -> NO | DV49: 0 | DX49: 0 | DY49: =IF(ISERROR(VLOOKUP($A49+8860000,'Growth Data'!$A:$Z,8,0)),0,VLOOKUP($A49+8860000,'Growth Data'!$A:$Z,8,0)) -> 0 | DZ49: 0 | EB49: 0 | EC49: =IF(ISERROR(VLOOKUP($A49+8860000,'Growth Data'!$A:$Z,9,0)),0,VLOOKUP($A49+8860000,'Growth Data'!$A:$Z,9,0)) -> 0 | ED49: 0 | EF49: NO | EG49: =IF(ISERROR(VLOOKUP($A49+8860000,'Growth Data'!$A:$Z,5,0)),"NO",VLOOKUP($A49+8860000,'Growth Data'!$A:$Z,5,0)) -> NO | EH49: 0 | EJ49: 0 | EK49: =IF(ISERROR(VLOOKUP($A49+8860000,'Growth Data'!$A:$Z,10,0)),0,VLOOKUP($A49+8860000,'Growth Data'!$A:$Z,10,0)) -> 0 | EL49: 0 | EN49: 0 | EO49: =IF(ISERROR(VLOOKUP($A49+8860000,'Growth Data'!$A:$Z,11,0)),0,VLOOKUP($A49+8860000,'Growth Data'!$A:$Z,11,0)) -> 0 | EP49: 0
A50: 2231 | B50: Lower Halstow Primary School | D50: Lower Halstow Primary School | F50: 1 | H50: 507279.88 | I50: 507279.88 | J50: 0 | L50: 27266.19 | M50: 27266.19177 | N50: -0.001772151936 | P50: 658.86 | Q50: 658.8610219 | R50: -0.00102189781 | T50: 36256.53 | U50: 36256.53018 | V50: -0.0001754385885 | X50: 120084 | Y50: 120084 | Z50: 0 | AB50: 0 | AC50: 0 | AD50: 0 | AF50: 0 | AG50: 0 | AH50: 0 | AJ50: 0 | AK50: 0 | AL50: 0 | AN50: 20833 | AO50: 20833 | AP50: 0 | AR50: 0 | AS50: 0 | AT50: 0 | AV50: 0 | AW50: 0 | AX50: 0 | AZ50: 0 | BA50: 0 | BB50: 0 | BD50: 712378.46 | BE50: 712378.463 | BF50: -0.002969488385 | BH50: 0 | BI50: 0 | BJ50: 0 | BL50: 712378.46 | BM50: 712378.463 | BN50: -0.002969488385 | BP50: 0 | BR50: 0 | BV50: 0 | BZ50: 0 | CB50: 62130.89 | CC50: 62130.88528 | CD50: 0 | CF50: 4313.2 | CG50: 4313.2 | CH50: 0 | CL50: 0 | CP50: 0 | CT50: 0 | CX50: 0 | DB50: 0 | DF50: 0 | DH50: NO | DI50: =IF(ISERROR(VLOOKUP($A50+8860000,'Growth Data'!$A:$F,3,0)),"NO",VLOOKUP($A50+8860000,'Growth Data'!$A:$F,3,0)) -> YES | DJ50: 1 | DL50: 0 | DM50: =IF(DI50="YES",IF(ISERROR(VLOOKUP($A50+8860000,'Growth Data'!$A:$F,6,0)),0,VLOOKUP($A50+8860000,'Growth Data'!$A:$F,6,0)),0) -> 29 | DN50: -29 | DP50: 0 | DQ50: =IF(ISERROR(VLOOKUP($A50+8860000,'Growth Data'!$A:$Z,7,0)),0,VLOOKUP($A50+8860000,'Growth Data'!$A:$Z,7,0)) -> 30 | DR50: 1 | DT50: NO | DU50: =IF(ISERROR(VLOOKUP($A50+8860000,'Growth Data'!$A:$F,4,0)),"NO",VLOOKUP($A50+8860000,'Growth Data'!$A:$F,4,0)) -> YES | DV50: 1 | DX50: 0 | DY50: =IF(ISERROR(VLOOKUP($A50+8860000,'Growth Data'!$A:$Z,8,0)),0,VLOOKUP($A50+8860000,'Growth Data'!$A:$Z,8,0)) -> 20 | DZ50: 1 | EB50: 0 | EC50: =IF(ISERROR(VLOOKUP($A50+8860000,'Growth Data'!$A:$Z,9,0)),0,VLOOKUP($A50+8860000,'Growth Data'!$A:$Z,9,0)) -> 30 | ED50: 1 | EF50: NO | EG50: =IF(ISERROR(VLOOKUP($A50+8860000,'Growth Data'!$A:$Z,5,0)),"NO",VLOOKUP($A50+8860000,'Growth Data'!$A:$Z,5,0)) -> NO | EH50: 0 | EJ50: 0 | EK50: =IF(ISERROR(VLOOKUP($A50+8860000,'Growth Data'!$A:$Z,10,0)),0,VLOOKUP($A50+8860000,'Growth Data'!$A:$Z,10,0)) -> 0 | EL50: 0 | EN50: 0 | EO50: =IF(ISERROR(VLOOKUP($A50+8860000,'Growth Data'!$A:$Z,11,0)),0,VLOOKUP($A50+8860000,'Growth Data'!$A:$Z,11,0)) -> 0 | EP50: 0
A51: 2239 | B51: Rodmersham School | D51: Rodmersham School | F51: 1 | H51: 312410.17 | I51: 312410.17 | J51: 0 | L51: 10765.64 | M51: 10765.64127 | N51: -0.001274509803 | P51: 669.75 | Q51: 669.7516867 | R51: -0.001686746986 | T51: 18445.46 | U51: 18445.46167 | V51: -0.001666666667 | X51: 120084 | Y51: 120084 | Z51: 0 | AB51: 0 | AC51: 0 | AD51: 0 | AF51: 0 | AG51: 0 | AH51: 0 | AJ51: 0 | AK51: 0 | AL51: 0 | AN51: 5863 | AO51: 5863 | AP51: 0 | AR51: 0 | AS51: 0 | AT51: 0 | AV51: 9907 | AW51: 9907 | AX51: 0 | AZ51: 0 | BA51: 0 | BB51: 0 | BD51: 478145.02 | BE51: 478145.0246 | BF51: -0.004627923423 | BH51: 0 | BI51: 0 | BJ51: 0 | BL51: 478145.02 | BM51: 478145.0246 | BN51: -0.004627923423 | BP51: 0 | BR51: 0 | BV51: 0 | BZ51: 0 | CB51: 34734.96 | CC51: 34734.95693 | CD51: 0 | CF51: 2656.3 | CG51: 2656.3 | CH51: 0 | CL51: 0 | CP51: 0 | CT51: 0 | CX51: 0 | DB51: 0 | DF51: 0 | DH51: NO | DI51: =IF(ISERROR(VLOOKUP($A51+8860000,'Growth Data'!$A:$F,3,0)),"NO",VLOOKUP($A51+8860000,'Growth Data'!$A:$F,3,0)) -> NO | DJ51: 0 | DL51: 0 | DM51: =IF(DI51="YES",IF(ISERROR(VLOOKUP($A51+8860000,'Growth Data'!$A:$F,6,0)),0,VLOOKUP($A51+8860000,'Growth Data'!$A:$F,6,0)),0) -> 0 | DN51: 0 | DP51: 0 | DQ51: =IF(ISERROR(VLOOKUP($A51+8860000,'Growth Data'!$A:$Z,7,0)),0,VLOOKUP($A51+8860000,'Growth Data'!$A:$Z,7,0)) -> 0 | DR51: 0 | DT51: NO | DU51: =IF(ISERROR(VLOOKUP($A51+8860000,'Growth Data'!$A:$F,4,0)),"NO",VLOOKUP($A51+8860000,'Growth Data'!$A:$F,4,0)) -> NO | DV51: 0 | DX51: 0 | DY51: =IF(ISERROR(VLOOKUP($A51+8860000,'Growth Data'!$A:$Z,8,0)),0,VLOOKUP($A51+8860000,'Growth Data'!$A:$Z,8,0)) -> 0 | DZ51: 0 | EB51: 0 | EC51: =IF(ISERROR(VLOOKUP($A51+8860000,'Growth Data'!$A:$Z,9,0)),0,VLOOKUP($A51+8860000,'Growth Data'!$A:$Z,9,0)) -> 0 | ED51: 0 | EF51: NO | EG51: =IF(ISERROR(VLOOKUP($A51+8860000,'Growth Data'!$A:$Z,5,0)),"NO",VLOOKUP($A51+8860000,'Growth Data'!$A:$Z,5,0)) -> NO | EH51: 0 | EJ51: 0 | EK51: =IF(ISERROR(VLOOKUP($A51+8860000,'Growth Data'!$A:$Z,10,0)),0,VLOOKUP($A51+8860000,'Growth Data'!$A:$Z,10,0)) -> 0 | EL51: 0 | EN51: 0 | EO51: =IF(ISERROR(VLOOKUP($A51+8860000,'Growth Data'!$A:$Z,11,0)),0,VLOOKUP($A51+8860000,'Growth Data'!$A:$Z,11,0)) -> 0 | EP51: 0
A52: 2245 | B52: Rose Street Primary School | D52: Rose Street Primary School | F52: 1 | H52: 1224895.32 | I52: 1224895.32 | J52: 0 | L52: 369955.03 | M52: 369955.0257 | N52: 0.004285714298 | P52: 14102.93 | Q52: 14102.93435 | R52: -0.00435294118 | T52: 138430.04 | U52: 138430.0358 | V52: 0.004171779146 | X52: 120084 | Y52: 120084 | Z52: 0 | AB52: 0 | AC52: 0 | AD52: 0 | AF52: 0 | AG52: 0 | AH52: 0 | AJ52: 0 | AK52: 0 | AL52: 0 | AN52: 79872 | AO52: 79872 | AP52: 0 | AR52: 0 | AS52: 0 | AT52: 0 | AV52: 0 | AW52: 0 | AX52: 0 | AZ52: 0 | BA52: 0 | BB52: 0 | BD52: 1947339.32 | BE52: 1947339.316 | BF52: 0.004104552325 | BH52: 0 | BI52: 0 | BJ52: 0 | BL52: 1947339.32 | BM52: 1947339.316 | BN52: 0.004104552325 | BP52: 0 | BR52: 0 | BV52: 0 | BZ52: 0 | CB52: 432516.18 | CC52: 432516.1782 | CD52: 0 | CF52: 10414.8 | CG52: 10414.8 | CH52: 0 | CL52: 0 | CP52: 0 | CT52: 0 | CX52: 0 | DB52: 0 | DF52: 0 | DH52: NO | DI52: =IF(ISERROR(VLOOKUP($A52+8860000,'Growth Data'!$A:$F,3,0)),"NO",VLOOKUP($A52+8860000,'Growth Data'!$A:$F,3,0)) -> NO | DJ52: 0 | DL52: 0 | DM52: =IF(DI52="YES",IF(ISERROR(VLOOKUP($A52+8860000,'Growth Data'!$A:$F,6,0)),0,VLOOKUP($A52+8860000,'Growth Data'!$A:$F,6,0)),0) -> 0 | DN52: 0 | DP52: 0 | DQ52: =IF(ISERROR(VLOOKUP($A52+8860000,'Growth Data'!$A:$Z,7,0)),0,VLOOKUP($A52+8860000,'Growth Data'!$A:$Z,7,0)) -> 0 | DR52: 0 | DT52: NO | DU52: =IF(ISERROR(VLOOKUP($A52+8860000,'Growth Data'!$A:$F,4,0)),"NO",VLOOKUP($A52+8860000,'Growth Data'!$A:$F,4,0)) -> NO | DV52: 0 | DX52: 0 | DY52: =IF(ISERROR(VLOOKUP($A52+8860000,'Growth Data'!$A:$Z,8,0)),0,VLOOKUP($A52+8860000,'Growth Data'!$A:$Z,8,0)) -> 0 | DZ52: 0 | EB52: 0 | EC52: =IF(ISERROR(VLOOKUP($A52+8860000,'Growth Data'!$A:$Z,9,0)),0,VLOOKUP($A52+8860000,'Growth Data'!$A:$Z,9,0)) -> 0 | ED52: 0 | EF52: NO | EG52: =IF(ISERROR(VLOOKUP($A52+8860000,'Growth Data'!$A:$Z,5,0)),"NO",VLOOKUP($A52+8860000,'Growth Data'!$A:$Z,5,0)) -> NO | EH52: 0 | EJ52: 0 | EK52: =IF(ISERROR(VLOOKUP($A52+8860000,'Growth Data'!$A:$Z,10,0)),0,VLOOKUP($A52+8860000,'Growth Data'!$A:$Z,10,0)) -> 0 | EL52: 0 | EN52: 0 | EO52: =IF(ISERROR(VLOOKUP($A52+8860000,'Growth Data'!$A:$Z,11,0)),0,VLOOKUP($A52+8860000,'Growth Data'!$A:$Z,11,0)) -> 0 | EP52: 0
A53: 2254 | B53: Canterbury Road Primary School | D53: Canterbury Road Primary School | F53: 1 | H53: 640286.19 | I53: 640286.19 | J53: 0 | L53: 92278.12 | M53: 92278.12 | N53: 0 | P53: 10942.5 | Q53: 10942.49949 | R53: 0.0005084745753 | T53: 77768.36 | U53: 77768.36229 | V53: -0.00228571429 | X53: 120084 | Y53: 120084 | Z53: 0 | AB53: 0 | AC53: 0 | AD53: 0 | AF53: 0 | AG53: 0 | AH53: 0 | AJ53: 0 | AK53: 0 | AL53: 0 | AN53: 29952 | AO53: 29952 | AP53: 0 | AR53: 0 | AS53: 0 | AT53: 0 | AV53: 0 | AW53: 0 | AX53: 0 | AZ53: 0 | BA53: 0 | BB53: 0 | BD53: 971311.17 | BE53: 971311.1718 | BF53: -0.00177723961 | BH53: 0 | BI53: 0 | BJ53: 0 | BL53: 971311.17 | BM53: 971311.1718 | BN53: -0.00177723961 | BP53: 0 | BR53: 0 | BV53: 0 | BZ53: 0 | CB53: 165128.68 | CC53: 165128.6841 | CD53: 0 | CF53: 5444.1 | CG53: 5444.1 | CH53: 0 | CL53: 0 | CP53: 0 | CT53: 0 | CX53: 0 | DB53: 0 | DF53: 0 | DH53: NO | DI53: =IF(ISERROR(VLOOKUP($A53+8860000,'Growth Data'!$A:$F,3,0)),"NO",VLOOKUP($A53+8860000,'Growth Data'!$A:$F,3,0)) -> NO | DJ53: 0 | DL53: 0 | DM53: =IF(DI53="YES",IF(ISERROR(VLOOKUP($A53+8860000,'Growth Data'!$A:$F,6,0)),0,VLOOKUP($A53+8860000,'Growth Data'!$A:$F,6,0)),0) -> 0 | DN53: 0 | DP53: 0 | DQ53: =IF(ISERROR(VLOOKUP($A53+8860000,'Growth Data'!$A:$Z,7,0)),0,VLOOKUP($A53+8860000,'Growth Data'!$A:$Z,7,0)) -> 0 | DR53: 0 | DT53: YES | DU53: =IF(ISERROR(VLOOKUP($A53+8860000,'Growth Data'!$A:$F,4,0)),"NO",VLOOKUP($A53+8860000,'Growth Data'!$A:$F,4,0)) -> NO | DV53: 1 | DX53: 30 | DY53: =IF(ISERROR(VLOOKUP($A53+8860000,'Growth Data'!$A:$Z,8,0)),0,VLOOKUP($A53+8860000,'Growth Data'!$A:$Z,8,0)) -> 0 | DZ53: 1 | EB53: 60 | EC53: =IF(ISERROR(VLOOKUP($A53+8860000,'Growth Data'!$A:$Z,9,0)),0,VLOOKUP($A53+8860000,'Growth Data'!$A:$Z,9,0)) -> 0 | ED53: 1 | EF53: YES | EG53: =IF(ISERROR(VLOOKUP($A53+8860000,'Growth Data'!$A:$Z,5,0)),"NO",VLOOKUP($A53+8860000,'Growth Data'!$A:$Z,5,0)) -> NO | EH53: 1 | EJ53: 30 | EK53: =IF(ISERROR(VLOOKUP($A53+8860000,'Growth Data'!$A:$Z,10,0)),0,VLOOKUP($A53+8860000,'Growth Data'!$A:$Z,10,0)) -> 0 | EL53: 1 | EN53: 60 | EO53: =IF(ISERROR(VLOOKUP($A53+8860000,'Growth Data'!$A:$Z,11,0)),0,VLOOKUP($A53+8860000,'Growth Data'!$A:$Z,11,0)) -> 0 | EP53: 1
A54: 2258 | B54: Blean Primary School | D54: Blean Primary School | F54: 1 | H54: 1330063.1 | I54: 1330063.1 | J54: 0 | L54: 45879.97 | M54: 45879.96986 | N54: 0.0001388888923 | P54: 28220.54 | Q54: 28220.53875 | R54: 0.001246612497 | T54: 73704.31 | U54: 73704.30615 | V54: 0.003854748604 | X54: 120084 | Y54: 120084 | Z54: 0 | AB54: 0 | AC54: 0 | AD54: 0 | AF54: 0 | AG54: 0 | AH54: 0 | AJ54: 0 | AK54: 0 | AL54: 0 | AN54: 37632 | AO54: 37632 | AP54: 0 | AR54: 0 | AS54: 0 | AT54: 0 | AV54: 0 | AW54: 0 | AX54: 0 | AZ54: 199448.09 | BA54: 199448.0852 | BB54: 0.004759750125 | BD54: 1835032 | BE54: 1835032 | BF54: 0 | BH54: 0 | BI54: 0 | BJ54: 0 | BL54: 1835032 | BM54: 1835032 | BN54: 0 | BP54: 0 | BR54: 0 | BV54: 0 | BZ54: 0 | CB54: 341059.32 | CC54: 341059.3223 | CD54: 0 | CF54: 11309 | CG54: 11309 | CH54: 0 | CL54: 0 | CP54: 0 | CT54: 0 | CX54: 0 | DB54: 0 | DF54: 0 | DH54: NO | DI54: =IF(ISERROR(VLOOKUP($A54+8860000,'Growth Data'!$A:$F,3,0)),"NO",VLOOKUP($A54+8860000,'Growth Data'!$A:$F,3,0)) -> NO | DJ54: 0 | DL54: 0 | DM54: =IF(DI54="YES",IF(ISERROR(VLOOKUP($A54+8860000,'Growth Data'!$A:$F,6,0)),0,VLOOKUP($A54+8860000,'Growth Data'!$A:$F,6,0)),0) -> 0 | DN54: 0 | DP54: 0 | DQ54: =IF(ISERROR(VLOOKUP($A54+8860000,'Growth Data'!$A:$Z,7,0)),0,VLOOKUP($A54+8860000,'Growth Data'!$A:$Z,7,0)) -> 0 | DR54: 0 | DT54: NO | DU54: =IF(ISERROR(VLOOKUP($A54+8860000,'Growth Data'!$A:$F,4,0)),"NO",VLOOKUP($A54+8860000,'Growth Data'!$A:$F,4,0)) -> NO | DV54: 0 | DX54: 0 | DY54: =IF(ISERROR(VLOOKUP($A54+8860000,'Growth Data'!$A:$Z,8,0)),0,VLOOKUP($A54+8860000,'Growth Data'!$A:$Z,8,0)) -> 0 | DZ54: 0 | EB54: 0 | EC54: =IF(ISERROR(VLOOKUP($A54+8860000,'Growth Data'!$A:$Z,9,0)),0,VLOOKUP($A54+8860000,'Growth Data'!$A:$Z,9,0)) -> 0 | ED54: 0 | EF54: NO | EG54: =IF(ISERROR(VLOOKUP($A54+8860000,'Growth Data'!$A:$Z,5,0)),"NO",VLOOKUP($A54+8860000,'Growth Data'!$A:$Z,5,0)) -> NO | EH54: 0 | EJ54: 0 | EK54: =IF(ISERROR(VLOOKUP($A54+8860000,'Growth Data'!$A:$Z,10,0)),0,VLOOKUP($A54+8860000,'Growth Data'!$A:$Z,10,0)) -> 0 | EL54: 0 | EN54: 0 | EO54: =IF(ISERROR(VLOOKUP($A54+8860000,'Growth Data'!$A:$Z,11,0)),0,VLOOKUP($A54+8860000,'Growth Data'!$A:$Z,11,0)) -> 0 | EP54: 0
A55: 2259 | B55: Chartham Primary School | D55: Chartham Primary School | F55: 1 | H55: 1073329.99 | I55: 1073329.99 | J55: 0 | L55: 66127.85 | M55: 66127.85 | N55: 0 | P55: 10610.3 | Q55: 10610.29611 | R55: 0.003888888879 | T55: 98381.76 | U55: 98381.75545 | V55: 0.004545454532 | X55: 120084 | Y55: 120084 | Z55: 0 | AB55: 0 | AC55: 0 | AD55: 0 | AF55: 0 | AG55: 0 | AH55: 0 | AJ55: 0 | AK55: 0 | AL55: 0 | AN55: 32512 | AO55: 32512 | AP55: 0 | AR55: 0 | AS55: 0 | AT55: 0 | AV55: 0 | AW55: 0 | AX55: 0 | AZ55: 81926.11 | BA55: 81926.10843 | BB55: 0.00156565661 | BD55: 1482972 | BE55: 1482972 | BF55: 0 | BH55: 0 | BI55: 0 | BJ55: 0 | BL55: 1482972 | BM55: 1482972 | BN55: 0 | BP55: 0 | BR55: 0 | BV55: 0 | BZ55: 0 | CB55: 229217.39 | CC55: 229217.3923 | CD55: 0 | CF55: 9126.1 | CG55: 9126.1 | CH55: 0 | CL55: 0 | CP55: 0 | CT55: 0 | CX55: 0 | DB55: 0 | DF55: 0 | DH55: NO | DI55: =IF(ISERROR(VLOOKUP($A55+8860000,'Growth Data'!$A:$F,3,0)),"NO",VLOOKUP($A55+8860000,'Growth Data'!$A:$F,3,0)) -> YES | DJ55: 1 | DL55: 0 | DM55: =IF(DI55="YES",IF(ISERROR(VLOOKUP($A55+8860000,'Growth Data'!$A:$F,6,0)),0,VLOOKUP($A55+8860000,'Growth Data'!$A:$F,6,0)),0) -> 52 | DN55: -52 | DP55: 0 | DQ55: =IF(ISERROR(VLOOKUP($A55+8860000,'Growth Data'!$A:$Z,7,0)),0,VLOOKUP($A55+8860000,'Growth Data'!$A:$Z,7,0)) -> 60 | DR55: 1 | DT55: NO | DU55: =IF(ISERROR(VLOOKUP($A55+8860000,'Growth Data'!$A:$F,4,0)),"NO",VLOOKUP($A55+8860000,'Growth Data'!$A:$F,4,0)) -> NO | DV55: 0 | DX55: 0 | DY55: =IF(ISERROR(VLOOKUP($A55+8860000,'Growth Data'!$A:$Z,8,0)),0,VLOOKUP($A55+8860000,'Growth Data'!$A:$Z,8,0)) -> 0 | DZ55: 0 | EB55: 0 | EC55: =IF(ISERROR(VLOOKUP($A55+8860000,'Growth Data'!$A:$Z,9,0)),0,VLOOKUP($A55+8860000,'Growth Data'!$A:$Z,9,0)) -> 0 | ED55: 0 | EF55: NO | EG55: =IF(ISERROR(VLOOKUP($A55+8860000,'Growth Data'!$A:$Z,5,0)),"NO",VLOOKUP($A55+8860000,'Growth Data'!$A:$Z,5,0)) -> NO | EH55: 0 | EJ55: 0 | EK55: =IF(ISERROR(VLOOKUP($A55+8860000,'Growth Data'!$A:$Z,10,0)),0,VLOOKUP($A55+8860000,'Growth Data'!$A:$Z,10,0)) -> 0 | EL55: 0 | EN55: 0 | EO55: =IF(ISERROR(VLOOKUP($A55+8860000,'Growth Data'!$A:$Z,11,0)),0,VLOOKUP($A55+8860000,'Growth Data'!$A:$Z,11,0)) -> 0 | EP55: 0
A56: 2263 | B56: Herne Bay Infant School | D56: Herne Bay Infant School | F56: 1 | H56: 862994.43 | I56: 862994.43 | J56: 0 | L56: 119794.25 | M56: 119794.25 | N56: 0 | P56: 16204.7 | Q56: 16204.69854 | R56: 0.001457286398 | T56: 94773.15 | U56: 94773.1473 | V56: 0.002699999997 | X56: 120084 | Y56: 120084 | Z56: 0 | AB56: 0 | AC56: 0 | AD56: 0 | AF56: 0 | AG56: 0 | AH56: 0 | AJ56: 0 | AK56: 0 | AL56: 0 | AN56: 15968 | AO56: 15968 | AP56: 0 | AR56: 0 | AS56: 0 | AT56: 0 | AV56: 0 | AW56: 0 | AX56: 0 | AZ56: 0 | BA56: 0 | BB56: 0 | BD56: 1229818.53 | BE56: 1229818.526 | BF56: 0.00415728637 | BH56: 0 | BI56: 0 | BJ56: 0 | BL56: 1229818.53 | BM56: 1229818.526 | BN56: 0.00415728637 | BP56: 0 | BR56: 0 | BV56: 0 | BZ56: 0 | CB56: 194657.72 | CC56: 194657.7181 | CD56: 0 | CF56: 7337.7 | CG56: 7337.7 | CH56: 0 | CL56: 0 | CP56: 0 | CT56: 0 | CX56: 0 | DB56: 0 | DF56: 0 | DH56: NO | DI56: =IF(ISERROR(VLOOKUP($A56+8860000,'Growth Data'!$A:$F,3,0)),"NO",VLOOKUP($A56+8860000,'Growth Data'!$A:$F,3,0)) -> NO | DJ56: 0 | DL56: 0 | DM56: =IF(DI56="YES",IF(ISERROR(VLOOKUP($A56+8860000,'Growth Data'!$A:$F,6,0)),0,VLOOKUP($A56+8860000,'Growth Data'!$A:$F,6,0)),0) -> 0 | DN56: 0 | DP56: 0 | DQ56: =IF(ISERROR(VLOOKUP($A56+8860000,'Growth Data'!$A:$Z,7,0)),0,VLOOKUP($A56+8860000,'Growth Data'!$A:$Z,7,0)) -> 0 | DR56: 0 | DT56: YES | DU56: =IF(ISERROR(VLOOKUP($A56+8860000,'Growth Data'!$A:$F,4,0)),"NO",VLOOKUP($A56+8860000,'Growth Data'!$A:$F,4,0)) -> NO | DV56: 1 | DX56: 44 | DY56: =IF(ISERROR(VLOOKUP($A56+8860000,'Growth Data'!$A:$Z,8,0)),0,VLOOKUP($A56+8860000,'Growth Data'!$A:$Z,8,0)) -> 0 | DZ56: 1 | EB56: 60 | EC56: =IF(ISERROR(VLOOKUP($A56+8860000,'Growth Data'!$A:$Z,9,0)),0,VLOOKUP($A56+8860000,'Growth Data'!$A:$Z,9,0)) -> 0 | ED56: 1 | EF56: YES | EG56: =IF(ISERROR(VLOOKUP($A56+8860000,'Growth Data'!$A:$Z,5,0)),"NO",VLOOKUP($A56+8860000,'Growth Data'!$A:$Z,5,0)) -> NO | EH56: 1 | EJ56: 31 | EK56: =IF(ISERROR(VLOOKUP($A56+8860000,'Growth Data'!$A:$Z,10,0)),0,VLOOKUP($A56+8860000,'Growth Data'!$A:$Z,10,0)) -> 0 | EL56: 1 | EN56: 60 | EO56: =IF(ISERROR(VLOOKUP($A56+8860000,'Growth Data'!$A:$Z,11,0)),0,VLOOKUP($A56+8860000,'Growth Data'!$A:$Z,11,0)) -> 0 | EP56: 1
A57: 2265 | B57: Hoath Primary School | D57: Hoath Primary School | F57: 1 | H57: 284571.64 | I57: 284571.64 | J57: 0 | L57: 10815.06 | M57: 10815.05727 | N57: 0.002727272731 | P57: 632.95 | Q57: 632.9485 | R57: 0.0015 | T57: 19072.32 | U57: 19072.32108 | V57: -0.001081081082 | X57: 120084 | Y57: 120084 | Z57: 0 | AB57: 0 | AC57: 0 | AD57: 0 | AF57: 0 | AG57: 0 | AH57: 0 | AJ57: 0 | AK57: 0 | AL57: 0 | AN57: 14346 | AO57: 14346 | AP57: 0 | AR57: 0 | AS57: 0 | AT57: 0 | AV57: 0 | AW57: 0 | AX57: 0 | AZ57: 0 | BA57: 0 | BB57: 0 | BD57: 449521.97 | BE57: 449521.9669 | BF57: 0.003146191651 | BH57: 4533.48 | BI57: 4533.475644 | BJ57: 0.004355940171 | BL57: 454055.44 | BM57: 454055.4425 | BN57: -0.002497868147 | BP57: 0 | BR57: 0 | BV57: 0 | BZ57: 0 | CB57: 39907.9 | CC57: 39907.9048 | CD57: 0 | CF57: 2419.6 | CG57: 2419.6 | CH57: 0 | CL57: 0 | CP57: 0 | CT57: 0 | CX57: 0 | DB57: 0 | DF57: 0 | DH57: NO | DI57: =IF(ISERROR(VLOOKUP($A57+8860000,'Growth Data'!$A:$F,3,0)),"NO",VLOOKUP($A57+8860000,'Growth Data'!$A:$F,3,0)) -> YES | DJ57: 1 | DL57: 0 | DM57: =IF(DI57="YES",IF(ISERROR(VLOOKUP($A57+8860000,'Growth Data'!$A:$F,6,0)),0,VLOOKUP($A57+8860000,'Growth Data'!$A:$F,6,0)),0) -> 92 | DN57: -92 | DP57: 0 | DQ57: =IF(ISERROR(VLOOKUP($A57+8860000,'Growth Data'!$A:$Z,7,0)),0,VLOOKUP($A57+8860000,'Growth Data'!$A:$Z,7,0)) -> 99 | DR57: 1 | DT57: NO | DU57: =IF(ISERROR(VLOOKUP($A57+8860000,'Growth Data'!$A:$F,4,0)),"NO",VLOOKUP($A57+8860000,'Growth Data'!$A:$F,4,0)) -> YES | DV57: 1 | DX57: 0 | DY57: =IF(ISERROR(VLOOKUP($A57+8860000,'Growth Data'!$A:$Z,8,0)),0,VLOOKUP($A57+8860000,'Growth Data'!$A:$Z,8,0)) -> 92 | DZ57: 1 | EB57: 0 | EC57: =IF(ISERROR(VLOOKUP($A57+8860000,'Growth Data'!$A:$Z,9,0)),0,VLOOKUP($A57+8860000,'Growth Data'!$A:$Z,9,0)) -> 105 | ED57: 1 | EF57: NO | EG57: =IF(ISERROR(VLOOKUP($A57+8860000,'Growth Data'!$A:$Z,5,0)),"NO",VLOOKUP($A57+8860000,'Growth Data'!$A:$Z,5,0)) -> NO | EH57: 0 | EJ57: 0 | EK57: =IF(ISERROR(VLOOKUP($A57+8860000,'Growth Data'!$A:$Z,10,0)),0,VLOOKUP($A57+8860000,'Growth Data'!$A:$Z,10,0)) -> 0 | EL57: 0 | EN57: 0 | EO57: =IF(ISERROR(VLOOKUP($A57+8860000,'Growth Data'!$A:$Z,11,0)),0,VLOOKUP($A57+8860000,'Growth Data'!$A:$Z,11,0)) -> 0 | EP57: 0
A58: 2268 | B58: Westmeads Community Infant School | D58: Westmeads Community Infant School | F58: 1 | H58: 525838.9 | I58: 525838.9 | J58: 0 | L58: 25830.95 | M58: 25830.95 | N58: 3.637978807e-11 | P58: 1627.24 | Q58: 1627.24 | R58: 0 | T58: 41044.94 | U58: 41044.94407 | V58: -0.00406779661 | X58: 120084 | Y58: 120084 | Z58: 0 | AB58: 0 | AC58: 0 | AD58: 0 | AF58: 0 | AG58: 0 | AH58: 0 | AJ58: 0 | AK58: 0 | AL58: 0 | AN58: 19711 | AO58: 19711 | AP58: 0 | AR58: 0 | AS58: 0 | AT58: 0 | AV58: 0 | AW58: 0 | AX58: 0 | AZ58: 0 | BA58: 0 | BB58: 0 | BD58: 734137.03 | BE58: 734137.0341 | BF58: -0.004067796515 | BH58: 0 | BI58: 0 | BJ58: 0 | BL58: 734137.03 | BM58: 734137.0341 | BN58: -0.004067796515 | BP58: 0 | BR58: 0 | BV58: 0 | BZ58: 0 | CB58: 62769.88 | CC58: 62769.87637 | CD58: 0 | CF58: 4471 | CG58: 4471 | CH58: 0 | CL58: 0 | CP58: 0 | CT58: 0 | CX58: 0 | DB58: 0 | DF58: 0 | DH58: NO | DI58: =IF(ISERROR(VLOOKUP($A58+8860000,'Growth Data'!$A:$F,3,0)),"NO",VLOOKUP($A58+8860000,'Growth Data'!$A:$F,3,0)) -> NO | DJ58: 0 | DL58: 0 | DM58: =IF(DI58="YES",IF(ISERROR(VLOOKUP($A58+8860000,'Growth Data'!$A:$F,6,0)),0,VLOOKUP($A58+8860000,'Growth Data'!$A:$F,6,0)),0) -> 0 | DN58: 0 | DP58: 0 | DQ58: =IF(ISERROR(VLOOKUP($A58+8860000,'Growth Data'!$A:$Z,7,0)),0,VLOOKUP($A58+8860000,'Growth Data'!$A:$Z,7,0)) -> 0 | DR58: 0 | DT58: NO | DU58: =IF(ISERROR(VLOOKUP($A58+8860000,'Growth Data'!$A:$F,4,0)),"NO",VLOOKUP($A58+8860000,'Growth Data'!$A:$F,4,0)) -> NO | DV58: 0 | DX58: 0 | DY58: =IF(ISERROR(VLOOKUP($A58+8860000,'Growth Data'!$A:$Z,8,0)),0,VLOOKUP($A58+8860000,'Growth Data'!$A:$Z,8,0)) -> 0 | DZ58: 0 | EB58: 0 | EC58: =IF(ISERROR(VLOOKUP($A58+8860000,'Growth Data'!$A:$Z,9,0)),0,VLOOKUP($A58+8860000,'Growth Data'!$A:$Z,9,0)) -> 0 | ED58: 0 | EF58: NO | EG58: =IF(ISERROR(VLOOKUP($A58+8860000,'Growth Data'!$A:$Z,5,0)),"NO",VLOOKUP($A58+8860000,'Growth Data'!$A:$Z,5,0)) -> NO | EH58: 0 | EJ58: 0 | EK58: =IF(ISERROR(VLOOKUP($A58+8860000,'Growth Data'!$A:$Z,10,0)),0,VLOOKUP($A58+8860000,'Growth Data'!$A:$Z,10,0)) -> 0 | EL58: 0 | EN58: 0 | EO58: =IF(ISERROR(VLOOKUP($A58+8860000,'Growth Data'!$A:$Z,11,0)),0,VLOOKUP($A58+8860000,'Growth Data'!$A:$Z,11,0)) -> 0 | EP58: 0
A59: 2269 | B59: Whitstable Junior School | D59: Whitstable Junior School | F59: 1 | H59: 788758.35 | I59: 788758.35 | J59: 0 | L59: 58115.14 | M59: 58115.13812 | N59: 0.001875000053 | P59: 1651.17 | Q59: 1651.17 | R59: 5.911715562e-12 | T59: 78694.18 | U59: 78694.17612 | V59: 0.003877551018 | X59: 120084 | Y59: 120084 | Z59: 0 | AB59: 0 | AC59: 0 | AD59: 0 | AF59: 0 | AG59: 0 | AH59: 0 | AJ59: 0 | AK59: 0 | AL59: 0 | AN59: 18837 | AO59: 18837 | AP59: 0 | AR59: 0 | AS59: 0 | AT59: 0 | AV59: 0 | AW59: 0 | AX59: 0 | AZ59: 18597.17 | BA59: 18597.16575 | BB59: 0.004247448887 | BD59: 1084737 | BE59: 1084737 | BF59: 0 | BH59: 0 | BI59: 0 | BJ59: 0 | BL59: 1084737 | BM59: 1084737 | BN59: 0 | BP59: 0 | BR59: 0 | BV59: 0 | BZ59: 0 | CB59: 142578.31 | CC59: 142578.3123 | CD59: 0 | CF59: 6706.5 | CG59: 6706.5 | CH59: 0 | CL59: 0 | CP59: 0 | CT59: 0 | CX59: 0 | DB59: 0 | DF59: 0 | DH59: NO | DI59: =IF(ISERROR(VLOOKUP($A59+8860000,'Growth Data'!$A:$F,3,0)),"NO",VLOOKUP($A59+8860000,'Growth Data'!$A:$F,3,0)) -> NO | DJ59: 0 | DL59: 0 | DM59: =IF(DI59="YES",IF(ISERROR(VLOOKUP($A59+8860000,'Growth Data'!$A:$F,6,0)),0,VLOOKUP($A59+8860000,'Growth Data'!$A:$F,6,0)),0) -> 0 | DN59: 0 | DP59: 0 | DQ59: =IF(ISERROR(VLOOKUP($A59+8860000,'Growth Data'!$A:$Z,7,0)),0,VLOOKUP($A59+8860000,'Growth Data'!$A:$Z,7,0)) -> 0 | DR59: 0 | DT59: NO | DU59: =IF(ISERROR(VLOOKUP($A59+8860000,'Growth Data'!$A:$F,4,0)),"NO",VLOOKUP($A59+8860000,'Growth Data'!$A:$F,4,0)) -> NO | DV59: 0 | DX59: 0 | DY59: =IF(ISERROR(VLOOKUP($A59+8860000,'Growth Data'!$A:$Z,8,0)),0,VLOOKUP($A59+8860000,'Growth Data'!$A:$Z,8,0)) -> 0 | DZ59: 0 | EB59: 0 | EC59: =IF(ISERROR(VLOOKUP($A59+8860000,'Growth Data'!$A:$Z,9,0)),0,VLOOKUP($A59+8860000,'Growth Data'!$A:$Z,9,0)) -> 0 | ED59: 0 | EF59: NO | EG59: =IF(ISERROR(VLOOKUP($A59+8860000,'Growth Data'!$A:$Z,5,0)),"NO",VLOOKUP($A59+8860000,'Growth Data'!$A:$Z,5,0)) -> NO | EH59: 0 | EJ59: 0 | EK59: =IF(ISERROR(VLOOKUP($A59+8860000,'Growth Data'!$A:$Z,10,0)),0,VLOOKUP($A59+8860000,'Growth Data'!$A:$Z,10,0)) -> 0 | EL59: 0 | EN59: 0 | EO59: =IF(ISERROR(VLOOKUP($A59+8860000,'Growth Data'!$A:$Z,11,0)),0,VLOOKUP($A59+8860000,'Growth Data'!$A:$Z,11,0)) -> 0 | EP59: 0
A60: 2270 | B60: Aldington Primary School | D60: Aldington Primary School | F60: 1 | H60: 621727.17 | I60: 621727.17 | J60: 0 | L60: 20801.44 | M60: 20801.44 | N60: 0 | P60: 0 | Q60: 0 | R60: 0 | T60: 58379.46 | U60: 58379.45711 | V60: 0.002891566262 | X60: 120084 | Y60: 120084 | Z60: 0 | AB60: 0 | AC60: 0 | AD60: 0 | AF60: 0 | AG60: 0 | AH60: 0 | AJ60: 0 | AK60: 0 | AL60: 0 | AN60: 29952 | AO60: 29952 | AP60: 0 | AR60: 0 | AS60: 0 | AT60: 0 | AV60: 0 | AW60: 0 | AX60: 0 | AZ60: 19187.93 | BA60: 19187.93289 | BB60: -0.002891566219 | BD60: 870132 | BE60: 870132 | BF60: 0 | BH60: 0 | BI60: 0 | BJ60: 0 | BL60: 870132 | BM60: 870132 | BN60: 0 | BP60: 0 | BR60: 0 | BV60: 0 | BZ60: 0 | CB60: 95857.81 | CC60: 95857.81231 | CD60: 0 | CF60: 5286.3 | CG60: 5286.3 | CH60: 0 | CL60: 0 | CP60: 0 | CT60: 0 | CX60: 0 | DB60: 0 | DF60: 0 | DH60: NO | DI60: =IF(ISERROR(VLOOKUP($A60+8860000,'Growth Data'!$A:$F,3,0)),"NO",VLOOKUP($A60+8860000,'Growth Data'!$A:$F,3,0)) -> NO | DJ60: 0 | DL60: 0 | DM60: =IF(DI60="YES",IF(ISERROR(VLOOKUP($A60+8860000,'Growth Data'!$A:$F,6,0)),0,VLOOKUP($A60+8860000,'Growth Data'!$A:$F,6,0)),0) -> 0 | DN60: 0 | DP60: 0 | DQ60: =IF(ISERROR(VLOOKUP($A60+8860000,'Growth Data'!$A:$Z,7,0)),0,VLOOKUP($A60+8860000,'Growth Data'!$A:$Z,7,0)) -> 0 | DR60: 0 | DT60: NO | DU60: =IF(ISERROR(VLOOKUP($A60+8860000,'Growth Data'!$A:$F,4,0)),"NO",VLOOKUP($A60+8860000,'Growth Data'!$A:$F,4,0)) -> NO | DV60: 0 | DX60: 0 | DY60: =IF(ISERROR(VLOOKUP($A60+8860000,'Growth Data'!$A:$Z,8,0)),0,VLOOKUP($A60+8860000,'Growth Data'!$A:$Z,8,0)) -> 0 | DZ60: 0 | EB60: 0 | EC60: =IF(ISERROR(VLOOKUP($A60+8860000,'Growth Data'!$A:$Z,9,0)),0,VLOOKUP($A60+8860000,'Growth Data'!$A:$Z,9,0)) -> 0 | ED60: 0 | EF60: NO | EG60: =IF(ISERROR(VLOOKUP($A60+8860000,'Growth Data'!$A:$Z,5,0)),"NO",VLOOKUP($A60+8860000,'Growth Data'!$A:$Z,5,0)) -> NO | EH60: 0 | EJ60: 0 | EK60: =IF(ISERROR(VLOOKUP($A60+8860000,'Growth Data'!$A:$Z,10,0)),0,VLOOKUP($A60+8860000,'Growth Data'!$A:$Z,10,0)) -> 0 | EL60: 0 | EN60: 0 | EO60: =IF(ISERROR(VLOOKUP($A60+8860000,'Growth Data'!$A:$Z,11,0)),0,VLOOKUP($A60+8860000,'Growth Data'!$A:$Z,11,0)) -> 0 | EP60: 0
A61: 2272 | B61: East Stour Primary School | D61: East Stour Primary School | F61: 1 | H61: 1209429.47 | I61: 1209429.47 | J61: 0 | L61: 153289.49 | M61: 153289.4879 | N61: 0.002144702943 | P61: 19621.4 | Q61: 19621.4035 | R61: -0.003500000003 | T61: 120191.14 | U61: 120191.1417 | V61: -0.001749174931 | X61: 120084 | Y61: 120084 | Z61: 0 | AB61: 0 | AC61: 0 | AD61: 0 | AF61: 0 | AG61: 0 | AH61: 0 | AJ61: 0 | AK61: 0 | AL61: 0 | AN61: 53760 | AO61: 53760 | AP61: 0 | AR61: 0 | AS61: 0 | AT61: 0 | AV61: 0 | AW61: 0 | AX61: 0 | AZ61: 11764.5 | BA61: 11764.4969 | BB61: 0.003104471951 | BD61: 1688140 | BE61: 1688140 | BF61: 0 | BH61: 0 | BI61: 0 | BJ61: 0 | BL61: 1688140 | BM61: 1688140 | BN61: 0 | BP61: 0 | BR61: 0 | BV61: 0 | BZ61: 0 | CB61: 252640.95 | CC61: 252640.9523 | CD61: 0 | CF61: 10283.3 | CG61: 10283.3 | CH61: 0 | CL61: 0 | CP61: 0 | CT61: 0 | CX61: 0 | DB61: 0 | DF61: 0 | DH61: NO | DI61: =IF(ISERROR(VLOOKUP($A61+8860000,'Growth Data'!$A:$F,3,0)),"NO",VLOOKUP($A61+8860000,'Growth Data'!$A:$F,3,0)) -> NO | DJ61: 0 | DL61: 0 | DM61: =IF(DI61="YES",IF(ISERROR(VLOOKUP($A61+8860000,'Growth Data'!$A:$F,6,0)),0,VLOOKUP($A61+8860000,'Growth Data'!$A:$F,6,0)),0) -> 0 | DN61: 0 | DP61: 0 | DQ61: =IF(ISERROR(VLOOKUP($A61+8860000,'Growth Data'!$A:$Z,7,0)),0,VLOOKUP($A61+8860000,'Growth Data'!$A:$Z,7,0)) -> 0 | DR61: 0 | DT61: NO | DU61: =IF(ISERROR(VLOOKUP($A61+8860000,'Growth Data'!$A:$F,4,0)),"NO",VLOOKUP($A61+8860000,'Growth Data'!$A:$F,4,0)) -> NO | DV61: 0 | DX61: 0 | DY61: =IF(ISERROR(VLOOKUP($A61+8860000,'Growth Data'!$A:$Z,8,0)),0,VLOOKUP($A61+8860000,'Growth Data'!$A:$Z,8,0)) -> 0 | DZ61: 0 | EB61: 0 | EC61: =IF(ISERROR(VLOOKUP($A61+8860000,'Growth Data'!$A:$Z,9,0)),0,VLOOKUP($A61+8860000,'Growth Data'!$A:$Z,9,0)) -> 0 | ED61: 0 | EF61: NO | EG61: =IF(ISERROR(VLOOKUP($A61+8860000,'Growth Data'!$A:$Z,5,0)),"NO",VLOOKUP($A61+8860000,'Growth Data'!$A:$Z,5,0)) -> NO | EH61: 0 | EJ61: 0 | EK61: =IF(ISERROR(VLOOKUP($A61+8860000,'Growth Data'!$A:$Z,10,0)),0,VLOOKUP($A61+8860000,'Growth Data'!$A:$Z,10,0)) -> 0 | EL61: 0 | EN61: 0 | EO61: =IF(ISERROR(VLOOKUP($A61+8860000,'Growth Data'!$A:$Z,11,0)),0,VLOOKUP($A61+8860000,'Growth Data'!$A:$Z,11,0)) -> 0 | EP61: 0
A62: 2275 | B62: Victoria Road Primary School | D62: Victoria Road Primary School | F62: 1 | H62: 634099.85 | I62: 634099.85 | J62: 0 | L62: 54750.98 | M62: 54750.98 | N62: 0 | P62: 10960.62 | Q62: 10960.62371 | R62: -0.003714285707 | T62: 51838.35 | U62: 51838.35 | V62: 0 | X62: 120084 | Y62: 120084 | Z62: 0 | AB62: 0 | AC62: 0 | AD62: 0 | AF62: 0 | AG62: 0 | AH62: 0 | AJ62: 0 | AK62: 0 | AL62: 0 | AN62: 15095 | AO62: 15095 | AP62: 0 | AR62: 0 | AS62: 0 | AT62: 0 | AV62: 0 | AW62: 0 | AX62: 0 | AZ62: 0 | BA62: 0 | BB62: 0 | BD62: 886828.8 | BE62: 886828.8037 | BF62: -0.003714285558 | BH62: 0 | BI62: 0 | BJ62: 0 | BL62: 886828.8 | BM62: 886828.8037 | BN62: -0.003714285558 | BP62: 0 | BR62: 0 | BV62: 0 | BZ62: 0 | CB62: 100308.7 | CC62: 100308.696 | CD62: 0 | CF62: 5391.5 | CG62: 5391.5 | CH62: 0 | CL62: 0 | CP62: 0 | CT62: 0 | CX62: 0 | DB62: 0 | DF62: 0 | DH62: NO | DI62: =IF(ISERROR(VLOOKUP($A62+8860000,'Growth Data'!$A:$F,3,0)),"NO",VLOOKUP($A62+8860000,'Growth Data'!$A:$F,3,0)) -> NO | DJ62: 0 | DL62: 0 | DM62: =IF(DI62="YES",IF(ISERROR(VLOOKUP($A62+8860000,'Growth Data'!$A:$F,6,0)),0,VLOOKUP($A62+8860000,'Growth Data'!$A:$F,6,0)),0) -> 0 | DN62: 0 | DP62: 0 | DQ62: =IF(ISERROR(VLOOKUP($A62+8860000,'Growth Data'!$A:$Z,7,0)),0,VLOOKUP($A62+8860000,'Growth Data'!$A:$Z,7,0)) -> 0 | DR62: 0 | DT62: NO | DU62: =IF(ISERROR(VLOOKUP($A62+8860000,'Growth Data'!$A:$F,4,0)),"NO",VLOOKUP($A62+8860000,'Growth Data'!$A:$F,4,0)) -> NO | DV62: 0 | DX62: 0 | DY62: =IF(ISERROR(VLOOKUP($A62+8860000,'Growth Data'!$A:$Z,8,0)),0,VLOOKUP($A62+8860000,'Growth Data'!$A:$Z,8,0)) -> 0 | DZ62: 0 | EB62: 0 | EC62: =IF(ISERROR(VLOOKUP($A62+8860000,'Growth Data'!$A:$Z,9,0)),0,VLOOKUP($A62+8860000,'Growth Data'!$A:$Z,9,0)) -> 0 | ED62: 0 | EF62: NO | EG62: =IF(ISERROR(VLOOKUP($A62+8860000,'Growth Data'!$A:$Z,5,0)),"NO",VLOOKUP($A62+8860000,'Growth Data'!$A:$Z,5,0)) -> NO | EH62: 0 | EJ62: 0 | EK62: =IF(ISERROR(VLOOKUP($A62+8860000,'Growth Data'!$A:$Z,10,0)),0,VLOOKUP($A62+8860000,'Growth Data'!$A:$Z,10,0)) -> 0 | EL62: 0 | EN62: 0 | EO62: =IF(ISERROR(VLOOKUP($A62+8860000,'Growth Data'!$A:$Z,11,0)),0,VLOOKUP($A62+8860000,'Growth Data'!$A:$Z,11,0)) -> 0 | EP62: 0
A63: 2276 | B63: Willesborough Infant School | D63: Willesborough Infant School | F63: 1 | H63: 1064050.48 | I63: 1064050.48 | J63: 0 | L63: 72794.5 | M63: 72794.5 | N63: -1.164153218e-10 | P63: 33809.67 | Q63: 33809.67143 | R63: -0.001428571508 | T63: 47118.11 | U63: 47118.11 | V63: 0 | X63: 120084 | Y63: 120084 | Z63: 0 | AB63: 0 | AC63: 0 | AD63: 0 | AF63: 0 | AG63: 0 | AH63: 0 | AJ63: 0 | AK63: 0 | AL63: 0 | AN63: 23079 | AO63: 23079 | AP63: 0 | AR63: 0 | AS63: 0 | AT63: 0 | AV63: 0 | AW63: 0 | AX63: 0 | AZ63: 100063.24 | BA63: 100063.2386 | BB63: 0.001428571602 | BD63: 1460999 | BE63: 1460999 | BF63: 0 | BH63: 0 | BI63: 0 | BJ63: 0 | BL63: 1460999 | BM63: 1460999 | BN63: 0 | BP63: 0 | BR63: 0 | BV63: 0 | BZ63: 0 | CB63: 233322.02 | CC63: 233322.0223 | CD63: 0 | CF63: 9047.2 | CG63: 9047.2 | CH63: 0 | CL63: 0 | CP63: 0 | CT63: 0 | CX63: 0 | DB63: 0 | DF63: 0 | DH63: NO | DI63: =IF(ISERROR(VLOOKUP($A63+8860000,'Growth Data'!$A:$F,3,0)),"NO",VLOOKUP($A63+8860000,'Growth Data'!$A:$F,3,0)) -> NO | DJ63: 0 | DL63: 0 | DM63: =IF(DI63="YES",IF(ISERROR(VLOOKUP($A63+8860000,'Growth Data'!$A:$F,6,0)),0,VLOOKUP($A63+8860000,'Growth Data'!$A:$F,6,0)),0) -> 0 | DN63: 0 | DP63: 0 | DQ63: =IF(ISERROR(VLOOKUP($A63+8860000,'Growth Data'!$A:$Z,7,0)),0,VLOOKUP($A63+8860000,'Growth Data'!$A:$Z,7,0)) -> 0 | DR63: 0 | DT63: NO | DU63: =IF(ISERROR(VLOOKUP($A63+8860000,'Growth Data'!$A:$F,4,0)),"NO",VLOOKUP($A63+8860000,'Growth Data'!$A:$F,4,0)) -> NO | DV63: 0 | DX63: 0 | DY63: =IF(ISERROR(VLOOKUP($A63+8860000,'Growth Data'!$A:$Z,8,0)),0,VLOOKUP($A63+8860000,'Growth Data'!$A:$Z,8,0)) -> 0 | DZ63: 0 | EB63: 0 | EC63: =IF(ISERROR(VLOOKUP($A63+8860000,'Growth Data'!$A:$Z,9,0)),0,VLOOKUP($A63+8860000,'Growth Data'!$A:$Z,9,0)) -> 0 | ED63: 0 | EF63: NO | EG63: =IF(ISERROR(VLOOKUP($A63+8860000,'Growth Data'!$A:$Z,5,0)),"NO",VLOOKUP($A63+8860000,'Growth Data'!$A:$Z,5,0)) -> NO | EH63: 0 | EJ63: 0 | EK63: =IF(ISERROR(VLOOKUP($A63+8860000,'Growth Data'!$A:$Z,10,0)),0,VLOOKUP($A63+8860000,'Growth Data'!$A:$Z,10,0)) -> 0 | EL63: 0 | EN63: 0 | EO63: =IF(ISERROR(VLOOKUP($A63+8860000,'Growth Data'!$A:$Z,11,0)),0,VLOOKUP($A63+8860000,'Growth Data'!$A:$Z,11,0)) -> 0 | EP63: 0
A64: 2278 | B64: Bethersden Primary School | D64: Bethersden Primary School | F64: 1 | H64: 377366.74 | I64: 377366.74 | J64: 0 | L64: 26609.45 | M64: 26609.45 | N64: 0 | P64: 1342.95 | Q64: 1342.9516 | R64: -0.0016 | T64: 25958.05 | U64: 25958.0466 | V64: 0.003398058252 | X64: 120084 | Y64: 120084 | Z64: 0 | AB64: 16713.79 | AC64: 16713.79426 | AD64: -0.004259012017 | AF64: 0 | AG64: 0 | AH64: 0 | AJ64: 0 | AK64: 0 | AL64: 0 | AN64: 10978 | AO64: 10978 | AP64: 0 | AR64: 0 | AS64: 0 | AT64: 0 | AV64: 0 | AW64: 0 | AX64: 0 | AZ64: 0 | BA64: 0 | BB64: 0 | BD64: 579052.98 | BE64: 579052.9825 | BF64: -0.00246095378 | BH64: 0 | BI64: 0 | BJ64: 0 | BL64: 579052.98 | BM64: 579052.9825 | BN64: -0.00246095378 | BP64: 0 | BR64: 0 | BV64: 0 | BZ64: 0 | CB64: 47716.87 | CC64: 47716.87051 | CD64: 0 | CF64: 3208.6 | CG64: 3208.6 | CH64: 0 | CL64: 0 | CP64: 0 | CT64: 0 | CX64: 0 | DB64: 0 | DF64: 0 | DH64: NO | DI64: =IF(ISERROR(VLOOKUP($A64+8860000,'Growth Data'!$A:$F,3,0)),"NO",VLOOKUP($A64+8860000,'Growth Data'!$A:$F,3,0)) -> NO | DJ64: 0 | DL64: 0 | DM64: =IF(DI64="YES",IF(ISERROR(VLOOKUP($A64+8860000,'Growth Data'!$A:$F,6,0)),0,VLOOKUP($A64+8860000,'Growth Data'!$A:$F,6,0)),0) -> 0 | DN64: 0 | DP64: 0 | DQ64: =IF(ISERROR(VLOOKUP($A64+8860000,'Growth Data'!$A:$Z,7,0)),0,VLOOKUP($A64+8860000,'Growth Data'!$A:$Z,7,0)) -> 0 | DR64: 0 | DT64: NO | DU64: =IF(ISERROR(VLOOKUP($A64+8860000,'Growth Data'!$A:$F,4,0)),"NO",VLOOKUP($A64+8860000,'Growth Data'!$A:$F,4,0)) -> NO | DV64: 0 | DX64: 0 | DY64: =IF(ISERROR(VLOOKUP($A64+8860000,'Growth Data'!$A:$Z,8,0)),0,VLOOKUP($A64+8860000,'Growth Data'!$A:$Z,8,0)) -> 0 | DZ64: 0 | EB64: 0 | EC64: =IF(ISERROR(VLOOKUP($A64+8860000,'Growth Data'!$A:$Z,9,0)),0,VLOOKUP($A64+8860000,'Growth Data'!$A:$Z,9,0)) -> 0 | ED64: 0 | EF64: NO | EG64: =IF(ISERROR(VLOOKUP($A64+8860000,'Growth Data'!$A:$Z,5,0)),"NO",VLOOKUP($A64+8860000,'Growth Data'!$A:$Z,5,0)) -> NO | EH64: 0 | EJ64: 0 | EK64: =IF(ISERROR(VLOOKUP($A64+8860000,'Growth Data'!$A:$Z,10,0)),0,VLOOKUP($A64+8860000,'Growth Data'!$A:$Z,10,0)) -> 0 | EL64: 0 | EN64: 0 | EO64: =IF(ISERROR(VLOOKUP($A64+8860000,'Growth Data'!$A:$Z,11,0)),0,VLOOKUP($A64+8860000,'Growth Data'!$A:$Z,11,0)) -> 0 | EP64: 0
A65: 2279 | B65: Brook Community Primary School | D65: Brook Community Primary School | F65: 1 | H65: 293851.15 | I65: 293851.15 | J65: 0 | L65: 8189.42 | M65: 8189.417253 | N65: 0.002747252745 | P65: 2582.08 | Q65: 2582.076543 | R65: 0.003456790124 | T65: 14067.32 | U65: 14067.31757 | V65: 0.002432432431 | X65: 120084 | Y65: 120084 | Z65: 0 | AB65: 0 | AC65: 0 | AD65: 0 | AF65: 0 | AG65: 0 | AH65: 0 | AJ65: 0 | AK65: 0 | AL65: 0 | AN65: 8608 | AO65: 8608 | AP65: 0 | AR65: 0 | AS65: 0 | AT65: 0 | AV65: 0 | AW65: 0 | AX65: 0 | AZ65: 0 | BA65: 0 | BB65: 0 | BD65: 447381.96 | BE65: 447381.9614 | BF65: -0.001363524701 | BH65: 4606.72 | BI65: 4606.715478 | BJ65: 0.004522166127 | BL65: 451988.68 | BM65: 451988.6768 | BN65: 0.003158641397 | BP65: 0 | BR65: 0 | BV65: 0 | BZ65: 0 | CB65: 33839.31 | CC65: 33839.30915 | CD65: 0 | CF65: 2498.5 | CG65: 2498.5 | CH65: 0 | CL65: 0 | CP65: 0 | CT65: 0 | CX65: 0 | DB65: 0 | DF65: 0 | DH65: NO | DI65: =IF(ISERROR(VLOOKUP($A65+8860000,'Growth Data'!$A:$F,3,0)),"NO",VLOOKUP($A65+8860000,'Growth Data'!$A:$F,3,0)) -> NO | DJ65: 0 | DL65: 0 | DM65: =IF(DI65="YES",IF(ISERROR(VLOOKUP($A65+8860000,'Growth Data'!$A:$F,6,0)),0,VLOOKUP($A65+8860000,'Growth Data'!$A:$F,6,0)),0) -> 0 | DN65: 0 | DP65: 0 | DQ65: =IF(ISERROR(VLOOKUP($A65+8860000,'Growth Data'!$A:$Z,7,0)),0,VLOOKUP($A65+8860000,'Growth Data'!$A:$Z,7,0)) -> 0 | DR65: 0 | DT65: NO | DU65: =IF(ISERROR(VLOOKUP($A65+8860000,'Growth Data'!$A:$F,4,0)),"NO",VLOOKUP($A65+8860000,'Growth Data'!$A:$F,4,0)) -> NO | DV65: 0 | DX65: 0 | DY65: =IF(ISERROR(VLOOKUP($A65+8860000,'Growth Data'!$A:$Z,8,0)),0,VLOOKUP($A65+8860000,'Growth Data'!$A:$Z,8,0)) -> 0 | DZ65: 0 | EB65: 0 | EC65: =IF(ISERROR(VLOOKUP($A65+8860000,'Growth Data'!$A:$Z,9,0)),0,VLOOKUP($A65+8860000,'Growth Data'!$A:$Z,9,0)) -> 0 | ED65: 0 | EF65: NO | EG65: =IF(ISERROR(VLOOKUP($A65+8860000,'Growth Data'!$A:$Z,5,0)),"NO",VLOOKUP($A65+8860000,'Growth Data'!$A:$Z,5,0)) -> NO | EH65: 0 | EJ65: 0 | EK65: =IF(ISERROR(VLOOKUP($A65+8860000,'Growth Data'!$A:$Z,10,0)),0,VLOOKUP($A65+8860000,'Growth Data'!$A:$Z,10,0)) -> 0 | EL65: 0 | EN65: 0 | EO65: =IF(ISERROR(VLOOKUP($A65+8860000,'Growth Data'!$A:$Z,11,0)),0,VLOOKUP($A65+8860000,'Growth Data'!$A:$Z,11,0)) -> 0 | EP65: 0
A66: 2280 | B66: Challock Primary School | D66: Challock Primary School | F66: =IF(E66=D66,0,1) -> 1 | H66: 634099.85 | I66: 634099.85 | J66: =H66-I66 -> 0 | L66: 15437.27 | M66: 15437.27402 | N66: =L66-M66 -> -0.004019607853 | P66: 1912.37 | Q66: 1912.372034 | R66: =P66-Q66 -> -0.002033898307 | T66: 50212.05 | U66: 50212.04882 | V66: =T66-U66 -> 0.001176470585 | X66: 120084 | Y66: 120084 | Z66: =X66-Y66 -> 0 | AB66: 0 | AC66: 0 | AD66: =AB66-AC66 -> 0 | AF66: 0 | AG66: 0 | AH66: =AF66-AG66 -> 0 | AJ66: 0 | AK66: 0 | AL66: =AJ66-AK66 -> 0 | AN66: 19711 | AO66: 19711 | AP66: =AN66-AO66 -> 0 | AR66: 0 | AS66: 0 | AT66: =AR66-AS66 -> 0 | AV66: 0 | AW66: 0 | AX66: =AV66-AW66 -> 0 | AZ66: 35154.46 | BA66: 35154.45512 | BB66: =AZ66-BA66 -> 0.004877035572 | BD66: 876611 | BE66: 876611 | BF66: =BD66-BE66 -> 0 | BH66: 0 | BI66: 0 | BJ66: =BH66-BI66 -> 0 | BL66: 876611 | BM66: 876611 | BN66: =BL66-BM66 -> 0 | BP66: 0 | BR66: =BP66-BQ66 -> 0 | BV66: =BT66-BU66 -> 0 | BZ66: =BX66-BY66 -> 0 | CB66: 104348.01 | CC66: 104348.0123 | CD66: =ROUND(CB66-CC66,0) -> 0 | CF66: 5391.5 | CG66: 5391.5 | CH66: =ROUND(CF66-CG66,0) -> 0 | CL66: =ROUND(CJ66-CK66,0) -> 0 | CP66: =ROUND(CN66-CO66,0) -> 0 | CT66: =ROUND(CR66-CS66,0) -> 0 | CX66: =ROUND(CV66-CW66,0) -> 0 | DB66: =ROUND(CZ66-DA66,0) -> 0 | DF66: =ROUND(DD66-DE66,0) -> 0 | DH66: NO | DI66: =IF(ISERROR(VLOOKUP($A66+8860000,'Growth Data'!$A:$F,3,0)),"NO",VLOOKUP($A66+8860000,'Growth Data'!$A:$F,3,0)) -> NO | DJ66: =IF(DH66=DI66,0,1) -> 0 | DL66: 0 | DM66: =IF(DI66="YES",IF(ISERROR(VLOOKUP($A66+8860000,'Growth Data'!$A:$F,6,0)),0,VLOOKUP($A66+8860000,'Growth Data'!$A:$F,6,0)),0) -> 0 | DN66: =ROUND(DL66-DM66,0) -> 0 | DP66: 0 | DQ66: =IF(ISERROR(VLOOKUP($A66+8860000,'Growth Data'!$A:$Z,7,0)),0,VLOOKUP($A66+8860000,'Growth Data'!$A:$Z,7,0)) -> 0 | DR66: =IF(DP66=DQ66,0,1) -> 0 | DT66: NO | DU66: =IF(ISERROR(VLOOKUP($A66+8860000,'Growth Data'!$A:$F,4,0)),"NO",VLOOKUP($A66+8860000,'Growth Data'!$A:$F,4,0)) -> NO | DV66: =IF(DT66=DU66,0,1) -> 0 | DX66: 0 | DY66: =IF(ISERROR(VLOOKUP($A66+8860000,'Growth Data'!$A:$Z,8,0)),0,VLOOKUP($A66+8860000,'Growth Data'!$A:$Z,8,0)) -> 0 | DZ66: =IF(DX66=DY66,0,1) -> 0 | EB66: 0 | EC66: =IF(ISERROR(VLOOKUP($A66+8860000,'Growth Data'!$A:$Z,9,0)),0,VLOOKUP($A66+8860000,'Growth Data'!$A:$Z,9,0)) -> 0 | ED66: =IF(EB66=EC66,0,1) -> 0 | EF66: NO | EG66: =IF(ISERROR(VLOOKUP($A66+8860000,'Growth Data'!$A:$Z,5,0)),"NO",VLOOKUP($A66+8860000,'Growth Data'!$A:$Z,5,0)) -> NO | EH66: =IF(EF66=EG66,0,1) -> 0 | EJ66: 0 | EK66: =IF(ISERROR(VLOOKUP($A66+8860000,'Growth Data'!$A:$Z,10,0)),0,VLOOKUP($A66+8860000,'Growth Data'!$A:$Z,10,0)) -> 0 | EL66: =IF(EJ66=EK66,0,1) -> 0 | EN66: 0 | EO66: =IF(ISERROR(VLOOKUP($A66+8860000,'Growth Data'!$A:$Z,11,0)),0,VLOOKUP($A66+8860000,'Growth Data'!$A:$Z,11,0)) -> 0 | EP66: =IF(EN66=EO66,0,1) -> 0
A67: 2282 | B67: Great Chart Primary School | D67: Great Chart Primary School | F67: 1 | H67: 1299131.4 | I67: 1299131.4 | J67: 0 | L67: 63528.1 | M67: 63528.1 | N67: 0 | P67: 24400.62 | Q67: 24400.62333 | R67: -0.003333333436 | T67: 71503.64 | U67: 71503.63559 | V67: 0.004406779655 | X67: 120084 | Y67: 120084 | Z67: 0 | AB67: 0 | AC67: 0 | AD67: 0 | AF67: 0 | AG67: 0 | AH67: 0 | AJ67: 0 | AK67: 0 | AL67: 0 | AN67: 38656 | AO67: 38656 | AP67: 0 | AR67: 0 | AS67: 0 | AT67: 0 | AV67: 0 | AW67: 0 | AX67: 0 | AZ67: 176952.24 | BA67: 176952.2411 | BB67: -0.001073446125 | BD67: 1794256 | BE67: 1794256 | BF67: 0 | BH67: 0 | BI67: 0 | BJ67: 0 | BL67: 1794256 | BM67: 1794256 | BN67: 0 | BP67: 0 | BR67: 0 | BV67: 0 | BZ67: 0 | CB67: 315921.1 | CC67: 315921.1023 | CD67: 0 | CF67: 11046 | CG67: 11046 | CH67: 0 | CL67: 0 | CP67: 0 | CT67: 0 | CX67: 0 | DB67: 0 | DF67: 0 | DH67: YES | DI67: =IF(ISERROR(VLOOKUP($A67+8860000,'Growth Data'!$A:$F,3,0)),"NO",VLOOKUP($A67+8860000,'Growth Data'!$A:$F,3,0)) -> NO | DJ67: 1 | DL67: 46 | DM67: =IF(DI67="YES",IF(ISERROR(VLOOKUP($A67+8860000,'Growth Data'!$A:$F,6,0)),0,VLOOKUP($A67+8860000,'Growth Data'!$A:$F,6,0)),0) -> 0 | DN67: 46 | DP67: 60 | DQ67: =IF(ISERROR(VLOOKUP($A67+8860000,'Growth Data'!$A:$Z,7,0)),0,VLOOKUP($A67+8860000,'Growth Data'!$A:$Z,7,0)) -> 0 | DR67: 1 | DT67: YES | DU67: =IF(ISERROR(VLOOKUP($A67+8860000,'Growth Data'!$A:$F,4,0)),"NO",VLOOKUP($A67+8860000,'Growth Data'!$A:$F,4,0)) -> NO | DV67: 1 | DX67: 46 | DY67: =IF(ISERROR(VLOOKUP($A67+8860000,'Growth Data'!$A:$Z,8,0)),0,VLOOKUP($A67+8860000,'Growth Data'!$A:$Z,8,0)) -> 0 | DZ67: 1 | EB67: 60 | EC67: =IF(ISERROR(VLOOKUP($A67+8860000,'Growth Data'!$A:$Z,9,0)),0,VLOOKUP($A67+8860000,'Growth Data'!$A:$Z,9,0)) -> 0 | ED67: 1 | EF67: YES | EG67: =IF(ISERROR(VLOOKUP($A67+8860000,'Growth Data'!$A:$Z,5,0)),"NO",VLOOKUP($A67+8860000,'Growth Data'!$A:$Z,5,0)) -> NO | EH67: 1 | EJ67: 47 | EK67: =IF(ISERROR(VLOOKUP($A67+8860000,'Growth Data'!$A:$Z,10,0)),0,VLOOKUP($A67+8860000,'Growth Data'!$A:$Z,10,0)) -> 0 | EL67: 1 | EN67: 60 | EO67: =IF(ISERROR(VLOOKUP($A67+8860000,'Growth Data'!$A:$Z,11,0)),0,VLOOKUP($A67+8860000,'Growth Data'!$A:$Z,11,0)) -> 0 | EP67: 1
